Workbook

Sheet Info
C7: File name | D7: ROP_front_end_June.xlsm
C8: Author | D8: Cambridge Econometrics
C9: Client | D9: Romanian Ministry of European Funds
C10: Project | D10: Developing a forecast tool
C12: Version | D12: 1.1
C13: Authorised for release by
C14: Last revised | D14: 2020-09-08
C15: Status | D15: Completed
C16: Source
C18: Purpose | D18: Indicator forecasts based on August 2020 SMIS extract
C22: Sheets in this file:
D24: Info | F24: This documentation sheet
D26: Projections | F26: Indicator projections
D28: Achievement_finalised | F28: Data underpinning the estimates of the achievement of finalised projects
D29: Achievement_to_date_ongoing | F29: Data underpinning the estimates of the achievement of ongoing projects
D30: Achievement_forecast_ongoing | F30: Estimates of the achievemnt of ongoing projects. Can be adjusted by the user.
D31: Project_characteristics | F31: Estimates of the average project characteristics and the number of projects starting in the future. Can be adjusted by the user.
D32: Achievement_forecasts_future | F32: Estimates of the achievement of projects starting in the future. Can be adjusted by the user.

Sheet Projections
H2: As percentage of target (%) | L2: Total | P2: Finalised | T2: Ongoing | X2: New
C3: PA | D3: PI | E3: Indicator | F3: Region | G3: Target | H3: 2020 | I3: =+H3+1 -> 2021 | J3: =+I3+1 -> 2022 | K3: =+J3+1 -> 2023 | L3: 2020 | M3: =+L3+1 -> 2021 | N3: =+M3+1 -> 2022 | O3: =+N3+1 -> 2023 | P3: 2020 | Q3: =+P3+1 -> 2021 | R3: =+Q3+1 -> 2022 | S3: =+R3+1 -> 2023 | T3: 2020 | U3: =+T3+1 -> 2021 | V3: =+U3+1 -> 2022 | W3: =+V3+1 -> 2023 | X3: 2020 | Y3: =+X3+1 -> 2021 | Z3: =+Y3+1 -> 2022 | AA3: =+Z3+1 -> 2023
C4: 1 | D4: All | E4: 1F | F4: All | G4: =156917619*G52 -> 759983412.3 | H4: =L4/$G4*100 -> 3.615440597 | I4: =M4/$G4*100 -> 5.893831731 | J4: =N4/$G4*100 -> 6.777838372 | K4: =O4/$G4*100 -> 7.095976146 | L4: =P4+T4+X4 -> 27476748.82 | M4: =Q4+U4+Y4 -> 44792143.51 | N4: =R4+V4+Z4 -> 51510447.34 | O4: =S4+W4+AA4 -> 53928241.65 | P4: =SUMIFS(Achievement_finalised!$G$4:$G$71,Achievement_finalised!$B$4:$B$71,Projections!$C4,Achievement_finalised!$D$4:$D$71,Projections!$E4,Achievement_finalised!$E$4:$E$71,Projections!$F4) -> 0 | Q4: =SUMIFS(Achievement_finalised!$G$4:$G$71,Achievement_finalised!$B$4:$B$71,Projections!$C4,Achievement_finalised!$D$4:$D$71,Projections!$E4,Achievement_finalised!$E$4:$E$71,Projections!$F4) -> 0 | R4: =SUMIFS(Achievement_finalised!$G$4:$G$71,Achievement_finalised!$B$4:$B$71,Projections!$C4,Achievement_finalised!$D$4:$D$71,Projections!$E4,Achievement_finalised!$E$4:$E$71,Projections!$F4) -> 0 | S4: =SUMIFS(Achievement_finalised!$G$4:$G$71,Achievement_finalised!$B$4:$B$71,Projections!$C4,Achievement_finalised!$D$4:$D$71,Projections!$E4,Achievement_finalised!$E$4:$E$71,Projections!$F4) -> 0 | T4: =SUMIFS(Achievement_forecast_ongoing!G$6:G$50000,Achievement_forecast_ongoing!$C$6:$C$50000,Projections!$C4,Achievement_forecast_ongoing!$E$6:$E$50000,Projections!$E4,Achievement_forecast_ongoing!$F$6:$F$50000,Projections!$F4) -> 24325437.27 | U4: =SUMIFS(Achievement_forecast_ongoing!H$6:H$50000,Achievement_forecast_ongoing!$C$6:$C$50000,Projections!$C4,Achievement_forecast_ongoing!$E$6:$E$50000,Projections!$E4,Achievement_forecast_ongoing!$F$6:$F$50000,Projections!$F4) -> 28678964.93 | V4: =SUMIFS(Achievement_forecast_ongoing!I$6:I$50000,Achievement_forecast_ongoing!$C$6:$C$50000,Projections!$C4,Achievement_forecast_ongoing!$E$6:$E$50000,Projections!$E4,Achievement_forecast_ongoing!$F$6:$F$50000,Projections!$F4) -> 30073300.73 | W4: =SUMIFS(Achievement_forecast_ongoing!J$6:J$50000,Achievement_forecast_ongoing!$C$6:$C$50000,Projections!$C4,Achievement_forecast_ongoing!$E$6:$E$50000,Projections!$E4,Achievement_forecast_ongoing!$F$6:$F$50000,Projections!$F4) -> 30073300.73 | X4: =SUMIFS(Achievement_forecasts_future!G$4:G$71,Achievement_forecasts_future!$B$4:$B$71,Projections!$C4,Achievement_forecasts_future!$D$4:$D$71,Projections!$E4,Achievement_forecasts_future!$E$4:$E$71,Projections!$F4) -> 3151311.551 | Y4: =SUMIFS(Achievement_forecasts_future!H$4:H$71,Achievement_forecasts_future!$B$4:$B$71,Projections!$C4,Achievement_forecasts_future!$D$4:$D$71,Projections!$E4,Achievement_forecasts_future!$E$4:$E$71,Projections!$F4) -> 16113178.58 | Z4: =SUMIFS(Achievement_forecasts_future!I$4:I$71,Achievement_forecasts_future!$B$4:$B$71,Projections!$C4,Achievement_forecasts_future!$D$4:$D$71,Projections!$E4,Achievement_forecasts_future!$E$4:$E$71,Projections!$F4) -> 21437146.62 | AA4: =SUMIFS(Achievement_forecasts_future!J$4:J$71,Achievement_forecasts_future!$B$4:$B$71,Projections!$C4,Achievement_forecasts_future!$D$4:$D$71,Projections!$E4,Achievement_forecasts_future!$E$4:$E$71,Projections!$F4) -> 23854940.92
C5: 1 | D5: All | E5: 1S2 | F5: All | G5: 17 | H5: =L5/$G5*100 -> 0 | I5: =M5/$G5*100 -> 11.76470588 | J5: =N5/$G5*100 -> 35.29411765 | K5: =O5/$G5*100 -> 35.29411765 | L5: 0 | M5: 2 | N5: 6 | O5: 6 | P5: =SUMIFS(Achievement_finalised!$G$4:$G$71,Achievement_finalised!$B$4:$B$71,Projections!$C5,Achievement_finalised!$D$4:$D$71,Projections!$E5,Achievement_finalised!$E$4:$E$71,Projections!$F5) -> 0 | Q5: =SUMIFS(Achievement_finalised!$G$4:$G$71,Achievement_finalised!$B$4:$B$71,Projections!$C5,Achievement_finalised!$D$4:$D$71,Projections!$E5,Achievement_finalised!$E$4:$E$71,Projections!$F5) -> 0 | R5: =SUMIFS(Achievement_finalised!$G$4:$G$71,Achievement_finalised!$B$4:$B$71,Projections!$C5,Achievement_finalised!$D$4:$D$71,Projections!$E5,Achievement_finalised!$E$4:$E$71,Projections!$F5) -> 0 | S5: =SUMIFS(Achievement_finalised!$G$4:$G$71,Achievement_finalised!$B$4:$B$71,Projections!$C5,Achievement_finalised!$D$4:$D$71,Projections!$E5,Achievement_finalised!$E$4:$E$71,Projections!$F5) -> 0 | T5: =SUMIFS(Achievement_forecast_ongoing!G$6:G$50000,Achievement_forecast_ongoing!$C$6:$C$50000,Projections!$C5,Achievement_forecast_ongoing!$E$6:$E$50000,Projections!$E5,Achievement_forecast_ongoing!$F$6:$F$50000,Projections!$F5) -> 0 | U5: =SUMIFS(Achievement_forecast_ongoing!H$6:H$50000,Achievement_forecast_ongoing!$C$6:$C$50000,Projections!$C5,Achievement_forecast_ongoing!$E$6:$E$50000,Projections!$E5,Achievement_forecast_ongoing!$F$6:$F$50000,Projections!$F5) -> 2 | V5: =SUMIFS(Achievement_forecast_ongoing!I$6:I$50000,Achievement_forecast_ongoing!$C$6:$C$50000,Projections!$C5,Achievement_forecast_ongoing!$E$6:$E$50000,Projections!$E5,Achievement_forecast_ongoing!$F$6:$F$50000,Projections!$F5) -> 6 | W5: =SUMIFS(Achievement_forecast_ongoing!J$6:J$50000,Achievement_forecast_ongoing!$C$6:$C$50000,Projections!$C5,Achievement_forecast_ongoing!$E$6:$E$50000,Projections!$E5,Achievement_forecast_ongoing!$F$6:$F$50000,Projections!$F5) -> 6 | X5: =SUMIFS(Achievement_forecasts_future!G$4:G$71,Achievement_forecasts_future!$B$4:$B$71,Projections!$C5,Achievement_forecasts_future!$D$4:$D$71,Projections!$E5,Achievement_forecasts_future!$E$4:$E$71,Projections!$F5) -> 0 | Y5: =SUMIFS(Achievement_forecasts_future!H$4:H$71,Achievement_forecasts_future!$B$4:$B$71,Projections!$C5,Achievement_forecasts_future!$D$4:$D$71,Projections!$E5,Achievement_forecasts_future!$E$4:$E$71,Projections!$F5) -> 0 | Z5: =SUMIFS(Achievement_forecasts_future!I$4:I$71,Achievement_forecasts_future!$B$4:$B$71,Projections!$C5,Achievement_forecasts_future!$D$4:$D$71,Projections!$E5,Achievement_forecasts_future!$E$4:$E$71,Projections!$F5) -> 0 | AA5: =SUMIFS(Achievement_forecasts_future!J$4:J$71,Achievement_forecasts_future!$B$4:$B$71,Projections!$C5,Achievement_forecasts_future!$D$4:$D$71,Projections!$E5,Achievement_forecasts_future!$E$4:$E$71,Projections!$F5) -> 0
C6: 1 | D6: All | E6: 1K8 | F6: All | G6: 17 | H6: =H5 -> 0 | I6: 11.76470588 | J6: 35.29411765 | K6: 35.29411765 | L6: 0 | M6: 2 | N6: 6 | O6: 6 | P6: 0 | Q6: 0 | R6: 0 | S6: 0 | T6: 0 | U6: 2 | V6: 6 | W6: 6 | X6: 0 | Y6: 0 | Z6: 0 | AA6: 0
C7: 1 | D7: All | E7: CO02 | F7: All | G7: 270 | H7: =L7/$G7*100 -> 0.3703703704 | I7: =M7/$G7*100 -> 0.7407407407 | J7: =N7/$G7*100 -> 2.222222222 | K7: 2.222222222 | L7: =P7+T7+X7 -> 1 | M7: =Q7+U7+Y7 -> 2 | N7: =R7+V7+Z7 -> 6 | O7: =S7+W7+AA7 -> 6 | P7: =SUMIFS(Achievement_finalised!$G$4:$G$71,Achievement_finalised!$B$4:$B$71,Projections!$C7,Achievement_finalised!$D$4:$D$71,Projections!$E7,Achievement_finalised!$E$4:$E$71,Projections!$F7) -> 0 | Q7: =SUMIFS(Achievement_finalised!$G$4:$G$71,Achievement_finalised!$B$4:$B$71,Projections!$C7,Achievement_finalised!$D$4:$D$71,Projections!$E7,Achievement_finalised!$E$4:$E$71,Projections!$F7) -> 0 | R7: =SUMIFS(Achievement_finalised!$G$4:$G$71,Achievement_finalised!$B$4:$B$71,Projections!$C7,Achievement_finalised!$D$4:$D$71,Projections!$E7,Achievement_finalised!$E$4:$E$71,Projections!$F7) -> 0 | S7: =SUMIFS(Achievement_finalised!$G$4:$G$71,Achievement_finalised!$B$4:$B$71,Projections!$C7,Achievement_finalised!$D$4:$D$71,Projections!$E7,Achievement_finalised!$E$4:$E$71,Projections!$F7) -> 0 | T7: =SUMIFS(Achievement_forecast_ongoing!G$6:G$50000,Achievement_forecast_ongoing!$C$6:$C$50000,Projections!$C7,Achievement_forecast_ongoing!$E$6:$E$50000,Projections!$E7,Achievement_forecast_ongoing!$F$6:$F$50000,Projections!$F7) -> 1 | U7: =SUMIFS(Achievement_forecast_ongoing!H$6:H$50000,Achievement_forecast_ongoing!$C$6:$C$50000,Projections!$C7,Achievement_forecast_ongoing!$E$6:$E$50000,Projections!$E7,Achievement_forecast_ongoing!$F$6:$F$50000,Projections!$F7) -> 2 | V7: =SUMIFS(Achievement_forecast_ongoing!I$6:I$50000,Achievement_forecast_ongoing!$C$6:$C$50000,Projections!$C7,Achievement_forecast_ongoing!$E$6:$E$50000,Projections!$E7,Achievement_forecast_ongoing!$F$6:$F$50000,Projections!$F7) -> 6 | W7: =SUMIFS(Achievement_forecast_ongoing!J$6:J$50000,Achievement_forecast_ongoing!$C$6:$C$50000,Projections!$C7,Achievement_forecast_ongoing!$E$6:$E$50000,Projections!$E7,Achievement_forecast_ongoing!$F$6:$F$50000,Projections!$F7) -> 6 | X7: =SUMIFS(Achievement_forecasts_future!G$4:G$71,Achievement_forecasts_future!$B$4:$B$71,Projections!$C7,Achievement_forecasts_future!$D$4:$D$71,Projections!$E7,Achievement_forecasts_future!$E$4:$E$71,Projections!$F7) -> 0 | Y7: =SUMIFS(Achievement_forecasts_future!H$4:H$71,Achievement_forecasts_future!$B$4:$B$71,Projections!$C7,Achievement_forecasts_future!$D$4:$D$71,Projections!$E7,Achievement_forecasts_future!$E$4:$E$71,Projections!$F7) -> 0 | Z7: =SUMIFS(Achievement_forecasts_future!I$4:I$71,Achievement_forecasts_future!$B$4:$B$71,Projections!$C7,Achievement_forecasts_future!$D$4:$D$71,Projections!$E7,Achievement_forecasts_future!$E$4:$E$71,Projections!$F7) -> 0 | AA7: =SUMIFS(Achievement_forecasts_future!J$4:J$71,Achievement_forecasts_future!$B$4:$B$71,Projections!$C7,Achievement_forecasts_future!$D$4:$D$71,Projections!$E7,Achievement_forecasts_future!$E$4:$E$71,Projections!$F7) -> 0
C8: 1 | D8: All | E8: 1K9 | F8: All | G8: 144 | H8: =H7 -> 0.3703703704 | I8: 0.7407407407 | J8: 2.222222222 | K8: 2.222222222 | L8: 1 | M8: 2 | N8: 6 | O8: 6 | P8: 0 | Q8: 0 | R8: 0 | S8: 0 | T8: 1 | U8: 2 | V8: 6 | W8: 6 | X8: 0 | Y8: 0 | Z8: 0 | AA8: 0
C9: 2 | D9: All | E9: 1F | F9: All | G9: =1391563827*G52 -> 6739621927 | H9: 73.01737837 | I9: 100.9722357 | J9: 108.9433821 | K9: 110.7499052 | L9: 4921095243 | M9: 6805146938 | N9: 7342372067 | O9: 7464124892 | P9: =SUMIFS(Achievement_finalised!$G$4:$G$71,Achievement_finalised!$B$4:$B$71,Projections!$C9,Achievement_finalised!$D$4:$D$71,Projections!$E9,Achievement_finalised!$E$4:$E$71,Projections!$F9) -> 2099472437 | Q9: =SUMIFS(Achievement_finalised!$G$4:$G$71,Achievement_finalised!$B$4:$B$71,Projections!$C9,Achievement_finalised!$D$4:$D$71,Projections!$E9,Achievement_finalised!$E$4:$E$71,Projections!$F9) -> 2099472437 | R9: =SUMIFS(Achievement_finalised!$G$4:$G$71,Achievement_finalised!$B$4:$B$71,Projections!$C9,Achievement_finalised!$D$4:$D$71,Projections!$E9,Achievement_finalised!$E$4:$E$71,Projections!$F9) -> 2099472437 | S9: =SUMIFS(Achievement_finalised!$G$4:$G$71,Achievement_finalised!$B$4:$B$71,Projections!$C9,Achievement_finalised!$D$4:$D$71,Projections!$E9,Achievement_finalised!$E$4:$E$71,Projections!$F9) -> 2099472437 | T9: =SUMIFS(Achievement_forecast_ongoing!G$6:G$50000,Achievement_forecast_ongoing!$C$6:$C$50000,Projections!$C9,Achievement_forecast_ongoing!$E$6:$E$50000,Projections!$E9,Achievement_forecast_ongoing!$F$6:$F$50000,Projections!$F9) -> 2373442995 | U9: =SUMIFS(Achievement_forecast_ongoing!H$6:H$50000,Achievement_forecast_ongoing!$C$6:$C$50000,Projections!$C9,Achievement_forecast_ongoing!$E$6:$E$50000,Projections!$E9,Achievement_forecast_ongoing!$F$6:$F$50000,Projections!$F9) -> 2522683915 | V9: =SUMIFS(Achievement_forecast_ongoing!I$6:I$50000,Achievement_forecast_ongoing!$C$6:$C$50000,Projections!$C9,Achievement_forecast_ongoing!$E$6:$E$50000,Projections!$E9,Achievement_forecast_ongoing!$F$6:$F$50000,Projections!$F9) -> 2556502609 | W9: =SUMIFS(Achievement_forecast_ongoing!J$6:J$50000,Achievement_forecast_ongoing!$C$6:$C$50000,Projections!$C9,Achievement_forecast_ongoing!$E$6:$E$50000,Projections!$E9,Achievement_forecast_ongoing!$F$6:$F$50000,Projections!$F9) -> 2564046706 | X9: =SUMIFS(Achievement_forecasts_future!G$4:G$71,Achievement_forecasts_future!$B$4:$B$71,Projections!$C9,Achievement_forecasts_future!$D$4:$D$71,Projections!$E9,Achievement_forecasts_future!$E$4:$E$71,Projections!$F9) -> 448179811.4 | Y9: =SUMIFS(Achievement_forecasts_future!H$4:H$71,Achievement_forecasts_future!$B$4:$B$71,Projections!$C9,Achievement_forecasts_future!$D$4:$D$71,Projections!$E9,Achievement_forecasts_future!$E$4:$E$71,Projections!$F9) -> 2182990586 | Z9: =SUMIFS(Achievement_forecasts_future!I$4:I$71,Achievement_forecasts_future!$B$4:$B$71,Projections!$C9,Achievement_forecasts_future!$D$4:$D$71,Projections!$E9,Achievement_forecasts_future!$E$4:$E$71,Projections!$F9) -> 2686397022 | AA9: =SUMIFS(Achievement_forecasts_future!J$4:J$71,Achievement_forecasts_future!$B$4:$B$71,Projections!$C9,Achievement_forecasts_future!$D$4:$D$71,Projections!$E9,Achievement_forecasts_future!$E$4:$E$71,Projections!$F9) -> 2800605749
C10: 2 | D10: All | E10: CO01 | F10: All | G10: 4574 | H10: 52.54723474 | I10: 61.63922128 | J10: 76.95756786 | K10: 98.3034653 | L10: 2403.510517 | M10: 2819.377981 | N10: 3520.039154 | O10: 4496.400503 | P10: =SUMIFS(Achievement_finalised!$G$4:$G$71,Achievement_finalised!$B$4:$B$71,Projections!$C10,Achievement_finalised!$D$4:$D$71,Projections!$E10,Achievement_finalised!$E$4:$E$71,Projections!$F10) -> 2071 | Q10: =SUMIFS(Achievement_finalised!$G$4:$G$71,Achievement_finalised!$B$4:$B$71,Projections!$C10,Achievement_finalised!$D$4:$D$71,Projections!$E10,Achievement_finalised!$E$4:$E$71,Projections!$F10) -> 2071 | R10: =SUMIFS(Achievement_finalised!$G$4:$G$71,Achievement_finalised!$B$4:$B$71,Projections!$C10,Achievement_finalised!$D$4:$D$71,Projections!$E10,Achievement_finalised!$E$4:$E$71,Projections!$F10) -> 2071 | S10: =SUMIFS(Achievement_finalised!$G$4:$G$71,Achievement_finalised!$B$4:$B$71,Projections!$C10,Achievement_finalised!$D$4:$D$71,Projections!$E10,Achievement_finalised!$E$4:$E$71,Projections!$F10) -> 2071 | T10: =SUMIFS(Achievement_forecast_ongoing!G$6:G$50000,Achievement_forecast_ongoing!$C$6:$C$50000,Projections!$C10,Achievement_forecast_ongoing!$E$6:$E$50000,Projections!$E10,Achievement_forecast_ongoing!$F$6:$F$50000,Projections!$F10) -> 332.510517 | U10: =SUMIFS(Achievement_forecast_ongoing!H$6:H$50000,Achievement_forecast_ongoing!$C$6:$C$50000,Projections!$C10,Achievement_forecast_ongoing!$E$6:$E$50000,Projections!$E10,Achievement_forecast_ongoing!$F$6:$F$50000,Projections!$F10) -> 748.3779815 | V10: =SUMIFS(Achievement_forecast_ongoing!I$6:I$50000,Achievement_forecast_ongoing!$C$6:$C$50000,Projections!$C10,Achievement_forecast_ongoing!$E$6:$E$50000,Projections!$E10,Achievement_forecast_ongoing!$F$6:$F$50000,Projections!$F10) -> 835.0391538 | W10: =SUMIFS(Achievement_forecast_ongoing!J$6:J$50000,Achievement_forecast_ongoing!$C$6:$C$50000,Projections!$C10,Achievement_forecast_ongoing!$E$6:$E$50000,Projections!$E10,Achievement_forecast_ongoing!$F$6:$F$50000,Projections!$F10) -> 878.3922891 | X10: =SUMIFS(Achievement_forecasts_future!G$4:G$71,Achievement_forecasts_future!$B$4:$B$71,Projections!$C10,Achievement_forecasts_future!$D$4:$D$71,Projections!$E10,Achievement_forecasts_future!$E$4:$E$71,Projections!$F10) -> 0 | Y10: =SUMIFS(Achievement_forecasts_future!H$4:H$71,Achievement_forecasts_future!$B$4:$B$71,Projections!$C10,Achievement_forecasts_future!$D$4:$D$71,Projections!$E10,Achievement_forecasts_future!$E$4:$E$71,Projections!$F10) -> 0 | Z10: =SUMIFS(Achievement_forecasts_future!I$4:I$71,Achievement_forecasts_future!$B$4:$B$71,Projections!$C10,Achievement_forecasts_future!$D$4:$D$71,Projections!$E10,Achievement_forecasts_future!$E$4:$E$71,Projections!$F10) -> 614 | AA10: =SUMIFS(Achievement_forecasts_future!J$4:J$71,Achievement_forecasts_future!$B$4:$B$71,Projections!$C10,Achievement_forecasts_future!$D$4:$D$71,Projections!$E10,Achievement_forecasts_future!$E$4:$E$71,Projections!$F10) -> 1547.008214
C11: 3 | D11: All | E11: 1F | F11: Less developed | G11: =1292174852*G52 -> 6258261243 | H11: 54.44066855 | I11: 68.7324791 | J11: 74.1809205 | K11: 76.7264579 | L11: 3407039260 | M11: 4301458101 | N11: 4642435798 | O11: 4801742178 | P11: =SUMIFS(Achievement_finalised!$G$4:$G$71,Achievement_finalised!$B$4:$B$71,Projections!$C11,Achievement_finalised!$D$4:$D$71,Projections!$E11,Achievement_finalised!$E$4:$E$71,Projections!$F11) -> 117855940.8 | Q11: =SUMIFS(Achievement_finalised!$G$4:$G$71,Achievement_finalised!$B$4:$B$71,Projections!$C11,Achievement_finalised!$D$4:$D$71,Projections!$E11,Achievement_finalised!$E$4:$E$71,Projections!$F11) -> 117855940.8 | R11: =SUMIFS(Achievement_finalised!$G$4:$G$71,Achievement_finalised!$B$4:$B$71,Projections!$C11,Achievement_finalised!$D$4:$D$71,Projections!$E11,Achievement_finalised!$E$4:$E$71,Projections!$F11) -> 117855940.8 | S11: =SUMIFS(Achievement_finalised!$G$4:$G$71,Achievement_finalised!$B$4:$B$71,Projections!$C11,Achievement_finalised!$D$4:$D$71,Projections!$E11,Achievement_finalised!$E$4:$E$71,Projections!$F11) -> 117855940.8 | T11: =SUMIFS(Achievement_forecast_ongoing!G$6:G$50000,Achievement_forecast_ongoing!$C$6:$C$50000,Projections!$C11,Achievement_forecast_ongoing!$E$6:$E$50000,Projections!$E11,Achievement_forecast_ongoing!$F$6:$F$50000,Projections!$F11) -> 3153480038 | U11: =SUMIFS(Achievement_forecast_ongoing!H$6:H$50000,Achievement_forecast_ongoing!$C$6:$C$50000,Projections!$C11,Achievement_forecast_ongoing!$E$6:$E$50000,Projections!$E11,Achievement_forecast_ongoing!$F$6:$F$50000,Projections!$F11) -> 3476949291 | V11: =SUMIFS(Achievement_forecast_ongoing!I$6:I$50000,Achievement_forecast_ongoing!$C$6:$C$50000,Projections!$C11,Achievement_forecast_ongoing!$E$6:$E$50000,Projections!$E11,Achievement_forecast_ongoing!$F$6:$F$50000,Projections!$F11) -> 3559618793 | W11: =SUMIFS(Achievement_forecast_ongoing!J$6:J$50000,Achievement_forecast_ongoing!$C$6:$C$50000,Projections!$C11,Achievement_forecast_ongoing!$E$6:$E$50000,Projections!$E11,Achievement_forecast_ongoing!$F$6:$F$50000,Projections!$F11) -> 3570943909 | X11: =SUMIFS(Achievement_forecasts_future!G$4:G$71,Achievement_forecasts_future!$B$4:$B$71,Projections!$C11,Achievement_forecasts_future!$D$4:$D$71,Projections!$E11,Achievement_forecasts_future!$E$4:$E$71,Projections!$F11) -> 135703281.3 | Y11: =SUMIFS(Achievement_forecasts_future!H$4:H$71,Achievement_forecasts_future!$B$4:$B$71,Projections!$C11,Achievement_forecasts_future!$D$4:$D$71,Projections!$E11,Achievement_forecasts_future!$E$4:$E$71,Projections!$F11) -> 706652868.9 | Z11: =SUMIFS(Achievement_forecasts_future!I$4:I$71,Achievement_forecasts_future!$B$4:$B$71,Projections!$C11,Achievement_forecasts_future!$D$4:$D$71,Projections!$E11,Achievement_forecasts_future!$E$4:$E$71,Projections!$F11) -> 964961064 | AA11: =SUMIFS(Achievement_forecasts_future!J$4:J$71,Achievement_forecasts_future!$B$4:$B$71,Projections!$C11,Achievement_forecasts_future!$D$4:$D$71,Projections!$E11,Achievement_forecasts_future!$E$4:$E$71,Projections!$F11) -> 1112942328
C12: 3 | D12: All | E12: 1F | F12: More developed | G12: =304773409*G52 -> 1476078574 | H12: 46.291576 | I12: 76.56044744 | J12: 89.62333065 | K12: 96.54946617 | L12: 683300035.2 | M12: 1130092361 | N12: 1322910781 | O12: 1425145984 | P12: =SUMIFS(Achievement_finalised!$G$4:$G$71,Achievement_finalised!$B$4:$B$71,Projections!$C12,Achievement_finalised!$D$4:$D$71,Projections!$E12,Achievement_finalised!$E$4:$E$71,Projections!$F12) -> 248506204.2 | Q12: =SUMIFS(Achievement_finalised!$G$4:$G$71,Achievement_finalised!$B$4:$B$71,Projections!$C12,Achievement_finalised!$D$4:$D$71,Projections!$E12,Achievement_finalised!$E$4:$E$71,Projections!$F12) -> 248506204.2 | R12: =SUMIFS(Achievement_finalised!$G$4:$G$71,Achievement_finalised!$B$4:$B$71,Projections!$C12,Achievement_finalised!$D$4:$D$71,Projections!$E12,Achievement_finalised!$E$4:$E$71,Projections!$F12) -> 248506204.2 | S12: =SUMIFS(Achievement_finalised!$G$4:$G$71,Achievement_finalised!$B$4:$B$71,Projections!$C12,Achievement_finalised!$D$4:$D$71,Projections!$E12,Achievement_finalised!$E$4:$E$71,Projections!$F12) -> 248506204.2 | T12: =SUMIFS(Achievement_forecast_ongoing!G$6:G$50000,Achievement_forecast_ongoing!$C$6:$C$50000,Projections!$C12,Achievement_forecast_ongoing!$E$6:$E$50000,Projections!$E12,Achievement_forecast_ongoing!$F$6:$F$50000,Projections!$F12) -> 328803562.2 | U12: =SUMIFS(Achievement_forecast_ongoing!H$6:H$50000,Achievement_forecast_ongoing!$C$6:$C$50000,Projections!$C12,Achievement_forecast_ongoing!$E$6:$E$50000,Projections!$E12,Achievement_forecast_ongoing!$F$6:$F$50000,Projections!$F12) -> 337454233.4 | V12: =SUMIFS(Achievement_forecast_ongoing!I$6:I$50000,Achievement_forecast_ongoing!$C$6:$C$50000,Projections!$C12,Achievement_forecast_ongoing!$E$6:$E$50000,Projections!$E12,Achievement_forecast_ongoing!$F$6:$F$50000,Projections!$F12) -> 340052010.2 | W12: =SUMIFS(Achievement_forecast_ongoing!J$6:J$50000,Achievement_forecast_ongoing!$C$6:$C$50000,Projections!$C12,Achievement_forecast_ongoing!$E$6:$E$50000,Projections!$E12,Achievement_forecast_ongoing!$F$6:$F$50000,Projections!$F12) -> 340155911.5 | X12: =SUMIFS(Achievement_forecasts_future!G$4:G$71,Achievement_forecasts_future!$B$4:$B$71,Projections!$C12,Achievement_forecasts_future!$D$4:$D$71,Projections!$E12,Achievement_forecasts_future!$E$4:$E$71,Projections!$F12) -> 105990268.8 | Y12: =SUMIFS(Achievement_forecasts_future!H$4:H$71,Achievement_forecasts_future!$B$4:$B$71,Projections!$C12,Achievement_forecasts_future!$D$4:$D$71,Projections!$E12,Achievement_forecasts_future!$E$4:$E$71,Projections!$F12) -> 544131923.5 | Z12: =SUMIFS(Achievement_forecasts_future!I$4:I$71,Achievement_forecasts_future!$B$4:$B$71,Projections!$C12,Achievement_forecasts_future!$D$4:$D$71,Projections!$E12,Achievement_forecasts_future!$E$4:$E$71,Projections!$F12) -> 734352567 | AA12: =SUMIFS(Achievement_forecasts_future!J$4:J$71,Achievement_forecasts_future!$B$4:$B$71,Projections!$C12,Achievement_forecasts_future!$D$4:$D$71,Projections!$E12,Achievement_forecasts_future!$E$4:$E$71,Projections!$F12) -> 836483868.1
C13: 3 | D13: All | E13: 1S11 | F13: Less developed | G13: 7 | H13: 51.09584923 | I13: 291.9762813 | J13: 532.8567134 | K13: 620.4495978 | L13: 3.576709446 | M13: 20.43833969 | N13: 37.29996994 | O13: 43.43147184 | P13: =SUMIFS(Achievement_finalised!$G$4:$G$71,Achievement_finalised!$B$4:$B$71,Projections!$C13,Achievement_finalised!$D$4:$D$71,Projections!$E13,Achievement_finalised!$E$4:$E$71,Projections!$F13) -> 0 | Q13: =SUMIFS(Achievement_finalised!$G$4:$G$71,Achievement_finalised!$B$4:$B$71,Projections!$C13,Achievement_finalised!$D$4:$D$71,Projections!$E13,Achievement_finalised!$E$4:$E$71,Projections!$F13) -> 0 | R13: =SUMIFS(Achievement_finalised!$G$4:$G$71,Achievement_finalised!$B$4:$B$71,Projections!$C13,Achievement_finalised!$D$4:$D$71,Projections!$E13,Achievement_finalised!$E$4:$E$71,Projections!$F13) -> 0 | S13: =SUMIFS(Achievement_finalised!$G$4:$G$71,Achievement_finalised!$B$4:$B$71,Projections!$C13,Achievement_finalised!$D$4:$D$71,Projections!$E13,Achievement_finalised!$E$4:$E$71,Projections!$F13) -> 0 | T13: =SUMIFS(Achievement_forecast_ongoing!G$6:G$50000,Achievement_forecast_ongoing!$C$6:$C$50000,Projections!$C13,Achievement_forecast_ongoing!$E$6:$E$50000,Projections!$E13,Achievement_forecast_ongoing!$F$6:$F$50000,Projections!$F13) -> 3.576709446 | U13: =SUMIFS(Achievement_forecast_ongoing!H$6:H$50000,Achievement_forecast_ongoing!$C$6:$C$50000,Projections!$C13,Achievement_forecast_ongoing!$E$6:$E$50000,Projections!$E13,Achievement_forecast_ongoing!$F$6:$F$50000,Projections!$F13) -> 20.43833969 | V13: =SUMIFS(Achievement_forecast_ongoing!I$6:I$50000,Achievement_forecast_ongoing!$C$6:$C$50000,Projections!$C13,Achievement_forecast_ongoing!$E$6:$E$50000,Projections!$E13,Achievement_forecast_ongoing!$F$6:$F$50000,Projections!$F13) -> 37.29996994 | W13: =SUMIFS(Achievement_forecast_ongoing!J$6:J$50000,Achievement_forecast_ongoing!$C$6:$C$50000,Projections!$C13,Achievement_forecast_ongoing!$E$6:$E$50000,Projections!$E13,Achievement_forecast_ongoing!$F$6:$F$50000,Projections!$F13) -> 43.43147184 | X13: =SUMIFS(Achievement_forecasts_future!G$4:G$71,Achievement_forecasts_future!$B$4:$B$71,Projections!$C13,Achievement_forecasts_future!$D$4:$D$71,Projections!$E13,Achievement_forecasts_future!$E$4:$E$71,Projections!$F13) -> 0 | Y13: =SUMIFS(Achievement_forecasts_future!H$4:H$71,Achievement_forecasts_future!$B$4:$B$71,Projections!$C13,Achievement_forecasts_future!$D$4:$D$71,Projections!$E13,Achievement_forecasts_future!$E$4:$E$71,Projections!$F13) -> 0 | Z13: =SUMIFS(Achievement_forecasts_future!I$4:I$71,Achievement_forecasts_future!$B$4:$B$71,Projections!$C13,Achievement_forecasts_future!$D$4:$D$71,Projections!$E13,Achievement_forecasts_future!$E$4:$E$71,Projections!$F13) -> 0 | AA13: =SUMIFS(Achievement_forecasts_future!J$4:J$71,Achievement_forecasts_future!$B$4:$B$71,Projections!$C13,Achievement_forecasts_future!$D$4:$D$71,Projections!$E13,Achievement_forecasts_future!$E$4:$E$71,Projections!$F13) -> 0
C14: 3 | D14: All | E14: 1S11 | F14: More developed | G14: 7 | H14: 7.299407033 | I14: 51.09584923 | J14: 80.29347736 | K14: 80.29347736 | L14: 0.5109584923 | M14: 3.576709446 | N14: 5.620543415 | O14: 5.620543415 | P14: =SUMIFS(Achievement_finalised!$G$4:$G$71,Achievement_finalised!$B$4:$B$71,Projections!$C14,Achievement_finalised!$D$4:$D$71,Projections!$E14,Achievement_finalised!$E$4:$E$71,Projections!$F14) -> 0 | Q14: =SUMIFS(Achievement_finalised!$G$4:$G$71,Achievement_finalised!$B$4:$B$71,Projections!$C14,Achievement_finalised!$D$4:$D$71,Projections!$E14,Achievement_finalised!$E$4:$E$71,Projections!$F14) -> 0 | R14: =SUMIFS(Achievement_finalised!$G$4:$G$71,Achievement_finalised!$B$4:$B$71,Projections!$C14,Achievement_finalised!$D$4:$D$71,Projections!$E14,Achievement_finalised!$E$4:$E$71,Projections!$F14) -> 0 | S14: =SUMIFS(Achievement_finalised!$G$4:$G$71,Achievement_finalised!$B$4:$B$71,Projections!$C14,Achievement_finalised!$D$4:$D$71,Projections!$E14,Achievement_finalised!$E$4:$E$71,Projections!$F14) -> 0 | T14: =SUMIFS(Achievement_forecast_ongoing!G$6:G$50000,Achievement_forecast_ongoing!$C$6:$C$50000,Projections!$C14,Achievement_forecast_ongoing!$E$6:$E$50000,Projections!$E14,Achievement_forecast_ongoing!$F$6:$F$50000,Projections!$F14) -> 0.5109584923 | U14: =SUMIFS(Achievement_forecast_ongoing!H$6:H$50000,Achievement_forecast_ongoing!$C$6:$C$50000,Projections!$C14,Achievement_forecast_ongoing!$E$6:$E$50000,Projections!$E14,Achievement_forecast_ongoing!$F$6:$F$50000,Projections!$F14) -> 3.576709446 | V14: =SUMIFS(Achievement_forecast_ongoing!I$6:I$50000,Achievement_forecast_ongoing!$C$6:$C$50000,Projections!$C14,Achievement_forecast_ongoing!$E$6:$E$50000,Projections!$E14,Achievement_forecast_ongoing!$F$6:$F$50000,Projections!$F14) -> 5.620543415 | W14: =SUMIFS(Achievement_forecast_ongoing!J$6:J$50000,Achievement_forecast_ongoing!$C$6:$C$50000,Projections!$C14,Achievement_forecast_ongoing!$E$6:$E$50000,Projections!$E14,Achievement_forecast_ongoing!$F$6:$F$50000,Projections!$F14) -> 5.620543415 | X14: =SUMIFS(Achievement_forecasts_future!G$4:G$71,Achievement_forecasts_future!$B$4:$B$71,Projections!$C14,Achievement_forecasts_future!$D$4:$D$71,Projections!$E14,Achievement_forecasts_future!$E$4:$E$71,Projections!$F14) -> 0 | Y14: =SUMIFS(Achievement_forecasts_future!H$4:H$71,Achievement_forecasts_future!$B$4:$B$71,Projections!$C14,Achievement_forecasts_future!$D$4:$D$71,Projections!$E14,Achievement_forecasts_future!$E$4:$E$71,Projections!$F14) -> 0 | Z14: =SUMIFS(Achievement_forecasts_future!I$4:I$71,Achievement_forecasts_future!$B$4:$B$71,Projections!$C14,Achievement_forecasts_future!$D$4:$D$71,Projections!$E14,Achievement_forecasts_future!$E$4:$E$71,Projections!$F14) -> 0 | AA14: =SUMIFS(Achievement_forecasts_future!J$4:J$71,Achievement_forecasts_future!$B$4:$B$71,Projections!$C14,Achievement_forecasts_future!$D$4:$D$71,Projections!$E14,Achievement_forecasts_future!$E$4:$E$71,Projections!$F14) -> 0
C15: 3 | D15: All | E15: CO31 | F15: Less developed | G15: 33385 | H15: 26.93656261 | I15: 52.86557265 | J15: 58.81897345 | K15: 59.02993218 | L15: 8992.771429 | M15: 17649.17143 | N15: 19636.71429 | O15: 19707.14286 | P15: =SUMIFS(Achievement_finalised!$G$4:$G$71,Achievement_finalised!$B$4:$B$71,Projections!$C15,Achievement_finalised!$D$4:$D$71,Projections!$E15,Achievement_finalised!$E$4:$E$71,Projections!$F15) -> 2610 | Q15: =SUMIFS(Achievement_finalised!$G$4:$G$71,Achievement_finalised!$B$4:$B$71,Projections!$C15,Achievement_finalised!$D$4:$D$71,Projections!$E15,Achievement_finalised!$E$4:$E$71,Projections!$F15) -> 2610 | R15: =SUMIFS(Achievement_finalised!$G$4:$G$71,Achievement_finalised!$B$4:$B$71,Projections!$C15,Achievement_finalised!$D$4:$D$71,Projections!$E15,Achievement_finalised!$E$4:$E$71,Projections!$F15) -> 2610 | S15: =SUMIFS(Achievement_finalised!$G$4:$G$71,Achievement_finalised!$B$4:$B$71,Projections!$C15,Achievement_finalised!$D$4:$D$71,Projections!$E15,Achievement_finalised!$E$4:$E$71,Projections!$F15) -> 2610 | T15: =SUMIFS(Achievement_forecast_ongoing!G$6:G$50000,Achievement_forecast_ongoing!$C$6:$C$50000,Projections!$C15,Achievement_forecast_ongoing!$E$6:$E$50000,Projections!$E15,Achievement_forecast_ongoing!$F$6:$F$50000,Projections!$F15) -> 6382.771429 | U15: =SUMIFS(Achievement_forecast_ongoing!H$6:H$50000,Achievement_forecast_ongoing!$C$6:$C$50000,Projections!$C15,Achievement_forecast_ongoing!$E$6:$E$50000,Projections!$E15,Achievement_forecast_ongoing!$F$6:$F$50000,Projections!$F15) -> 15039.17143 | V15: =SUMIFS(Achievement_forecast_ongoing!I$6:I$50000,Achievement_forecast_ongoing!$C$6:$C$50000,Projections!$C15,Achievement_forecast_ongoing!$E$6:$E$50000,Projections!$E15,Achievement_forecast_ongoing!$F$6:$F$50000,Projections!$F15) -> 17026.71429 | W15: =SUMIFS(Achievement_forecast_ongoing!J$6:J$50000,Achievement_forecast_ongoing!$C$6:$C$50000,Projections!$C15,Achievement_forecast_ongoing!$E$6:$E$50000,Projections!$E15,Achievement_forecast_ongoing!$F$6:$F$50000,Projections!$F15) -> 17097.14286 | X15: =SUMIFS(Achievement_forecasts_future!G$4:G$71,Achievement_forecasts_future!$B$4:$B$71,Projections!$C15,Achievement_forecasts_future!$D$4:$D$71,Projections!$E15,Achievement_forecasts_future!$E$4:$E$71,Projections!$F15) -> 0 | Y15: =SUMIFS(Achievement_forecasts_future!H$4:H$71,Achievement_forecasts_future!$B$4:$B$71,Projections!$C15,Achievement_forecasts_future!$D$4:$D$71,Projections!$E15,Achievement_forecasts_future!$E$4:$E$71,Projections!$F15) -> 0 | Z15: =SUMIFS(Achievement_forecasts_future!I$4:I$71,Achievement_forecasts_future!$B$4:$B$71,Projections!$C15,Achievement_forecasts_future!$D$4:$D$71,Projections!$E15,Achievement_forecasts_future!$E$4:$E$71,Projections!$F15) -> 0 | AA15: =SUMIFS(Achievement_forecasts_future!J$4:J$71,Achievement_forecasts_future!$B$4:$B$71,Projections!$C15,Achievement_forecasts_future!$D$4:$D$71,Projections!$E15,Achievement_forecasts_future!$E$4:$E$71,Projections!$F15) -> 0
C16: 3 | D16: All | E16: CO31 | F16: More developed | G16: 17621 | H16: 145.8260031 | I16: 158.8259488 | J16: 158.8259488 | K16: 158.8259488 | L16: 25696 | M16: 27986.72043 | N16: 27986.72043 | O16: 27986.72043 | P16: =SUMIFS(Achievement_finalised!$G$4:$G$71,Achievement_finalised!$B$4:$B$71,Projections!$C16,Achievement_finalised!$D$4:$D$71,Projections!$E16,Achievement_finalised!$E$4:$E$71,Projections!$F16) -> 20471 | Q16: =SUMIFS(Achievement_finalised!$G$4:$G$71,Achievement_finalised!$B$4:$B$71,Projections!$C16,Achievement_finalised!$D$4:$D$71,Projections!$E16,Achievement_finalised!$E$4:$E$71,Projections!$F16) -> 20471 | R16: =SUMIFS(Achievement_finalised!$G$4:$G$71,Achievement_finalised!$B$4:$B$71,Projections!$C16,Achievement_finalised!$D$4:$D$71,Projections!$E16,Achievement_finalised!$E$4:$E$71,Projections!$F16) -> 20471 | S16: =SUMIFS(Achievement_finalised!$G$4:$G$71,Achievement_finalised!$B$4:$B$71,Projections!$C16,Achievement_finalised!$D$4:$D$71,Projections!$E16,Achievement_finalised!$E$4:$E$71,Projections!$F16) -> 20471 | T16: =SUMIFS(Achievement_forecast_ongoing!G$6:G$50000,Achievement_forecast_ongoing!$C$6:$C$50000,Projections!$C16,Achievement_forecast_ongoing!$E$6:$E$50000,Projections!$E16,Achievement_forecast_ongoing!$F$6:$F$50000,Projections!$F16) -> 5225 | U16: =SUMIFS(Achievement_forecast_ongoing!H$6:H$50000,Achievement_forecast_ongoing!$C$6:$C$50000,Projections!$C16,Achievement_forecast_ongoing!$E$6:$E$50000,Projections!$E16,Achievement_forecast_ongoing!$F$6:$F$50000,Projections!$F16) -> 7515.72043 | V16: =SUMIFS(Achievement_forecast_ongoing!I$6:I$50000,Achievement_forecast_ongoing!$C$6:$C$50000,Projections!$C16,Achievement_forecast_ongoing!$E$6:$E$50000,Projections!$E16,Achievement_forecast_ongoing!$F$6:$F$50000,Projections!$F16) -> 7515.72043 | W16: =SUMIFS(Achievement_forecast_ongoing!J$6:J$50000,Achievement_forecast_ongoing!$C$6:$C$50000,Projections!$C16,Achievement_forecast_ongoing!$E$6:$E$50000,Projections!$E16,Achievement_forecast_ongoing!$F$6:$F$50000,Projections!$F16) -> 7515.72043 | X16: =SUMIFS(Achievement_forecasts_future!G$4:G$71,Achievement_forecasts_future!$B$4:$B$71,Projections!$C16,Achievement_forecasts_future!$D$4:$D$71,Projections!$E16,Achievement_forecasts_future!$E$4:$E$71,Projections!$F16) -> 0 | Y16: =SUMIFS(Achievement_forecasts_future!H$4:H$71,Achievement_forecasts_future!$B$4:$B$71,Projections!$C16,Achievement_forecasts_future!$D$4:$D$71,Projections!$E16,Achievement_forecasts_future!$E$4:$E$71,Projections!$F16) -> 0 | Z16: =SUMIFS(Achievement_forecasts_future!I$4:I$71,Achievement_forecasts_future!$B$4:$B$71,Projections!$C16,Achievement_forecasts_future!$D$4:$D$71,Projections!$E16,Achievement_forecasts_future!$E$4:$E$71,Projections!$F16) -> 0 | AA16: =SUMIFS(Achievement_forecasts_future!J$4:J$71,Achievement_forecasts_future!$B$4:$B$71,Projections!$C16,Achievement_forecasts_future!$D$4:$D$71,Projections!$E16,Achievement_forecasts_future!$E$4:$E$71,Projections!$F16) -> 0
C17: 4 | D17: All | E17: 1F | F17: All | G17: =1303647061*G52 -> 6313823446 | H17: 83.83689715 | I17: 113.2891152 | J17: 143.0630466 | K17: 157.8236532 | L17: 5293313668 | M17: 7152874716 | N17: 9032748180 | O17: 9964706817 | P17: =SUMIFS(Achievement_finalised!$G$4:$G$71,Achievement_finalised!$B$4:$B$71,Projections!$C17,Achievement_finalised!$D$4:$D$71,Projections!$E17,Achievement_finalised!$E$4:$E$71,Projections!$F17) -> 138234603.7 | Q17: =SUMIFS(Achievement_finalised!$G$4:$G$71,Achievement_finalised!$B$4:$B$71,Projections!$C17,Achievement_finalised!$D$4:$D$71,Projections!$E17,Achievement_finalised!$E$4:$E$71,Projections!$F17) -> 138234603.7 | R17: =SUMIFS(Achievement_finalised!$G$4:$G$71,Achievement_finalised!$B$4:$B$71,Projections!$C17,Achievement_finalised!$D$4:$D$71,Projections!$E17,Achievement_finalised!$E$4:$E$71,Projections!$F17) -> 138234603.7 | S17: =SUMIFS(Achievement_finalised!$G$4:$G$71,Achievement_finalised!$B$4:$B$71,Projections!$C17,Achievement_finalised!$D$4:$D$71,Projections!$E17,Achievement_finalised!$E$4:$E$71,Projections!$F17) -> 138234603.7 | T17: =SUMIFS(Achievement_forecast_ongoing!G$6:G$50000,Achievement_forecast_ongoing!$C$6:$C$50000,Projections!$C17,Achievement_forecast_ongoing!$E$6:$E$50000,Projections!$E17,Achievement_forecast_ongoing!$F$6:$F$50000,Projections!$F17) -> 5090707466 | U17: =SUMIFS(Achievement_forecast_ongoing!H$6:H$50000,Achievement_forecast_ongoing!$C$6:$C$50000,Projections!$C17,Achievement_forecast_ongoing!$E$6:$E$50000,Projections!$E17,Achievement_forecast_ongoing!$F$6:$F$50000,Projections!$F17) -> 6049199155 | V17: =SUMIFS(Achievement_forecast_ongoing!I$6:I$50000,Achievement_forecast_ongoing!$C$6:$C$50000,Projections!$C17,Achievement_forecast_ongoing!$E$6:$E$50000,Projections!$E17,Achievement_forecast_ongoing!$F$6:$F$50000,Projections!$F17) -> 6448221805 | W17: =SUMIFS(Achievement_forecast_ongoing!J$6:J$50000,Achievement_forecast_ongoing!$C$6:$C$50000,Projections!$C17,Achievement_forecast_ongoing!$E$6:$E$50000,Projections!$E17,Achievement_forecast_ongoing!$F$6:$F$50000,Projections!$F17) -> 6522243038 | X17: =SUMIFS(Achievement_forecasts_future!G$4:G$71,Achievement_forecasts_future!$B$4:$B$71,Projections!$C17,Achievement_forecasts_future!$D$4:$D$71,Projections!$E17,Achievement_forecasts_future!$E$4:$E$71,Projections!$F17) -> 64371598.8 | Y17: =SUMIFS(Achievement_forecasts_future!H$4:H$71,Achievement_forecasts_future!$B$4:$B$71,Projections!$C17,Achievement_forecasts_future!$D$4:$D$71,Projections!$E17,Achievement_forecasts_future!$E$4:$E$71,Projections!$F17) -> 965440957.3 | Z17: =SUMIFS(Achievement_forecasts_future!I$4:I$71,Achievement_forecasts_future!$B$4:$B$71,Projections!$C17,Achievement_forecasts_future!$D$4:$D$71,Projections!$E17,Achievement_forecasts_future!$E$4:$E$71,Projections!$F17) -> 2446291771 | AA17: =SUMIFS(Achievement_forecasts_future!J$4:J$71,Achievement_forecasts_future!$B$4:$B$71,Projections!$C17,Achievement_forecasts_future!$D$4:$D$71,Projections!$E17,Achievement_forecasts_future!$E$4:$E$71,Projections!$F17) -> 3304229176
C18: 4 | D18: All | E18: 1S11 | F18: All | G18: 50 | H18: 14.4 | I18: 99.54577749 | J18: 189.5457775 | K18: 257.9457775 | L18: 7.2 | M18: 49.77288874 | N18: 94.77288874 | O18: 128.9728887 | P18: =SUMIFS(Achievement_finalised!$G$4:$G$71,Achievement_finalised!$B$4:$B$71,Projections!$C18,Achievement_finalised!$D$4:$D$71,Projections!$E18,Achievement_finalised!$E$4:$E$71,Projections!$F18) -> 3 | Q18: =SUMIFS(Achievement_finalised!$G$4:$G$71,Achievement_finalised!$B$4:$B$71,Projections!$C18,Achievement_finalised!$D$4:$D$71,Projections!$E18,Achievement_finalised!$E$4:$E$71,Projections!$F18) -> 3 | R18: =SUMIFS(Achievement_finalised!$G$4:$G$71,Achievement_finalised!$B$4:$B$71,Projections!$C18,Achievement_finalised!$D$4:$D$71,Projections!$E18,Achievement_finalised!$E$4:$E$71,Projections!$F18) -> 3 | S18: =SUMIFS(Achievement_finalised!$G$4:$G$71,Achievement_finalised!$B$4:$B$71,Projections!$C18,Achievement_finalised!$D$4:$D$71,Projections!$E18,Achievement_finalised!$E$4:$E$71,Projections!$F18) -> 3 | T18: =SUMIFS(Achievement_forecast_ongoing!G$6:G$50000,Achievement_forecast_ongoing!$C$6:$C$50000,Projections!$C18,Achievement_forecast_ongoing!$E$6:$E$50000,Projections!$E18,Achievement_forecast_ongoing!$F$6:$F$50000,Projections!$F18) -> 4.2 | U18: =SUMIFS(Achievement_forecast_ongoing!H$6:H$50000,Achievement_forecast_ongoing!$C$6:$C$50000,Projections!$C18,Achievement_forecast_ongoing!$E$6:$E$50000,Projections!$E18,Achievement_forecast_ongoing!$F$6:$F$50000,Projections!$F18) -> 46.77288874 | V18: =SUMIFS(Achievement_forecast_ongoing!I$6:I$50000,Achievement_forecast_ongoing!$C$6:$C$50000,Projections!$C18,Achievement_forecast_ongoing!$E$6:$E$50000,Projections!$E18,Achievement_forecast_ongoing!$F$6:$F$50000,Projections!$F18) -> 91.77288874 | W18: =SUMIFS(Achievement_forecast_ongoing!J$6:J$50000,Achievement_forecast_ongoing!$C$6:$C$50000,Projections!$C18,Achievement_forecast_ongoing!$E$6:$E$50000,Projections!$E18,Achievement_forecast_ongoing!$F$6:$F$50000,Projections!$F18) -> 125.9728887 | X18: =SUMIFS(Achievement_forecasts_future!G$4:G$71,Achievement_forecasts_future!$B$4:$B$71,Projections!$C18,Achievement_forecasts_future!$D$4:$D$71,Projections!$E18,Achievement_forecasts_future!$E$4:$E$71,Projections!$F18) -> 0 | Y18: =SUMIFS(Achievement_forecasts_future!H$4:H$71,Achievement_forecasts_future!$B$4:$B$71,Projections!$C18,Achievement_forecasts_future!$D$4:$D$71,Projections!$E18,Achievement_forecasts_future!$E$4:$E$71,Projections!$F18) -> 0 | Z18: =SUMIFS(Achievement_forecasts_future!I$4:I$71,Achievement_forecasts_future!$B$4:$B$71,Projections!$C18,Achievement_forecasts_future!$D$4:$D$71,Projections!$E18,Achievement_forecasts_future!$E$4:$E$71,Projections!$F18) -> 0 | AA18: =SUMIFS(Achievement_forecasts_future!J$4:J$71,Achievement_forecasts_future!$B$4:$B$71,Projections!$C18,Achievement_forecasts_future!$D$4:$D$71,Projections!$E18,Achievement_forecasts_future!$E$4:$E$71,Projections!$F18) -> 0
C19: 4 | D19: All | E19: CO15 | F19: All | G19: 50 | H19: 4.32 | I19: 29.04323761 | J19: 51.71140016 | K19: 97.83999706 | L19: =P19+T19+X19 -> 2.16 | M19: =Q19+U19+Y19 -> 14.5216188 | N19: =R19+V19+Z19 -> 25.85570008 | O19: =S19+W19+AA19 -> 48.91999853 | P19: =SUMIFS(Achievement_finalised!$G$4:$G$71,Achievement_finalised!$B$4:$B$71,Projections!$C19,Achievement_finalised!$D$4:$D$71,Projections!$E19,Achievement_finalised!$E$4:$E$71,Projections!$F19) -> 2.16 | Q19: =SUMIFS(Achievement_finalised!$G$4:$G$71,Achievement_finalised!$B$4:$B$71,Projections!$C19,Achievement_finalised!$D$4:$D$71,Projections!$E19,Achievement_finalised!$E$4:$E$71,Projections!$F19) -> 2.16 | R19: =SUMIFS(Achievement_finalised!$G$4:$G$71,Achievement_finalised!$B$4:$B$71,Projections!$C19,Achievement_finalised!$D$4:$D$71,Projections!$E19,Achievement_finalised!$E$4:$E$71,Projections!$F19) -> 2.16 | S19: =SUMIFS(Achievement_finalised!$G$4:$G$71,Achievement_finalised!$B$4:$B$71,Projections!$C19,Achievement_finalised!$D$4:$D$71,Projections!$E19,Achievement_finalised!$E$4:$E$71,Projections!$F19) -> 2.16 | T19: =SUMIFS(Achievement_forecast_ongoing!G$6:G$50000,Achievement_forecast_ongoing!$C$6:$C$50000,Projections!$C19,Achievement_forecast_ongoing!$E$6:$E$50000,Projections!$E19,Achievement_forecast_ongoing!$F$6:$F$50000,Projections!$F19) -> 0 | U19: =SUMIFS(Achievement_forecast_ongoing!H$6:H$50000,Achievement_forecast_ongoing!$C$6:$C$50000,Projections!$C19,Achievement_forecast_ongoing!$E$6:$E$50000,Projections!$E19,Achievement_forecast_ongoing!$F$6:$F$50000,Projections!$F19) -> 12.3616188 | V19: =SUMIFS(Achievement_forecast_ongoing!I$6:I$50000,Achievement_forecast_ongoing!$C$6:$C$50000,Projections!$C19,Achievement_forecast_ongoing!$E$6:$E$50000,Projections!$E19,Achievement_forecast_ongoing!$F$6:$F$50000,Projections!$F19) -> 23.69570008 | W19: =SUMIFS(Achievement_forecast_ongoing!J$6:J$50000,Achievement_forecast_ongoing!$C$6:$C$50000,Projections!$C19,Achievement_forecast_ongoing!$E$6:$E$50000,Projections!$E19,Achievement_forecast_ongoing!$F$6:$F$50000,Projections!$F19) -> 46.75999853 | X19: =SUMIFS(Achievement_forecasts_future!G$4:G$71,Achievement_forecasts_future!$B$4:$B$71,Projections!$C19,Achievement_forecasts_future!$D$4:$D$71,Projections!$E19,Achievement_forecasts_future!$E$4:$E$71,Projections!$F19) -> 0 | Y19: =SUMIFS(Achievement_forecasts_future!H$4:H$71,Achievement_forecasts_future!$B$4:$B$71,Projections!$C19,Achievement_forecasts_future!$D$4:$D$71,Projections!$E19,Achievement_forecasts_future!$E$4:$E$71,Projections!$F19) -> 0 | Z19: =SUMIFS(Achievement_forecasts_future!I$4:I$71,Achievement_forecasts_future!$B$4:$B$71,Projections!$C19,Achievement_forecasts_future!$D$4:$D$71,Projections!$E19,Achievement_forecasts_future!$E$4:$E$71,Projections!$F19) -> 0 | AA19: =SUMIFS(Achievement_forecasts_future!J$4:J$71,Achievement_forecasts_future!$B$4:$B$71,Projections!$C19,Achievement_forecasts_future!$D$4:$D$71,Projections!$E19,Achievement_forecasts_future!$E$4:$E$71,Projections!$F19) -> 0
C20: 5 | D20: All | E20: 1F | F20: Less developed | G20: =422291397*G52 -> 2045241694 | H20: 99.44600972 | I20: 115.687084 | J20: 122.170127 | K20: 125.658565 | L20: 2033911254 | M20: 2366080475 | N20: 2498674375 | O20: 2570021364 | P20: =SUMIFS(Achievement_finalised!$G$4:$G$71,Achievement_finalised!$B$4:$B$71,Projections!$C20,Achievement_finalised!$D$4:$D$71,Projections!$E20,Achievement_finalised!$E$4:$E$71,Projections!$F20) -> 127621960.7 | Q20: =SUMIFS(Achievement_finalised!$G$4:$G$71,Achievement_finalised!$B$4:$B$71,Projections!$C20,Achievement_finalised!$D$4:$D$71,Projections!$E20,Achievement_finalised!$E$4:$E$71,Projections!$F20) -> 127621960.7 | R20: =SUMIFS(Achievement_finalised!$G$4:$G$71,Achievement_finalised!$B$4:$B$71,Projections!$C20,Achievement_finalised!$D$4:$D$71,Projections!$E20,Achievement_finalised!$E$4:$E$71,Projections!$F20) -> 127621960.7 | S20: =SUMIFS(Achievement_finalised!$G$4:$G$71,Achievement_finalised!$B$4:$B$71,Projections!$C20,Achievement_finalised!$D$4:$D$71,Projections!$E20,Achievement_finalised!$E$4:$E$71,Projections!$F20) -> 127621960.7 | T20: =SUMIFS(Achievement_forecast_ongoing!G$6:G$50000,Achievement_forecast_ongoing!$C$6:$C$50000,Projections!$C20,Achievement_forecast_ongoing!$E$6:$E$50000,Projections!$E20,Achievement_forecast_ongoing!$F$6:$F$50000,Projections!$F20) -> 1849777440 | U20: =SUMIFS(Achievement_forecast_ongoing!H$6:H$50000,Achievement_forecast_ongoing!$C$6:$C$50000,Projections!$C20,Achievement_forecast_ongoing!$E$6:$E$50000,Projections!$E20,Achievement_forecast_ongoing!$F$6:$F$50000,Projections!$F20) -> 1946807417 | V20: =SUMIFS(Achievement_forecast_ongoing!I$6:I$50000,Achievement_forecast_ongoing!$C$6:$C$50000,Projections!$C20,Achievement_forecast_ongoing!$E$6:$E$50000,Projections!$E20,Achievement_forecast_ongoing!$F$6:$F$50000,Projections!$F20) -> 1971958934 | W20: =SUMIFS(Achievement_forecast_ongoing!J$6:J$50000,Achievement_forecast_ongoing!$C$6:$C$50000,Projections!$C20,Achievement_forecast_ongoing!$E$6:$E$50000,Projections!$E20,Achievement_forecast_ongoing!$F$6:$F$50000,Projections!$F20) -> 1978489174 | X20: =SUMIFS(Achievement_forecasts_future!G$4:G$71,Achievement_forecasts_future!$B$4:$B$71,Projections!$C20,Achievement_forecasts_future!$D$4:$D$71,Projections!$E20,Achievement_forecasts_future!$E$4:$E$71,Projections!$F20) -> 56511853.13 | Y20: =SUMIFS(Achievement_forecasts_future!H$4:H$71,Achievement_forecasts_future!$B$4:$B$71,Projections!$C20,Achievement_forecasts_future!$D$4:$D$71,Projections!$E20,Achievement_forecasts_future!$E$4:$E$71,Projections!$F20) -> 291651097.3 | Z20: =SUMIFS(Achievement_forecasts_future!I$4:I$71,Achievement_forecasts_future!$B$4:$B$71,Projections!$C20,Achievement_forecasts_future!$D$4:$D$71,Projections!$E20,Achievement_forecasts_future!$E$4:$E$71,Projections!$F20) -> 399093480.1 | AA20: =SUMIFS(Achievement_forecasts_future!J$4:J$71,Achievement_forecasts_future!$B$4:$B$71,Projections!$C20,Achievement_forecasts_future!$D$4:$D$71,Projections!$E20,Achievement_forecasts_future!$E$4:$E$71,Projections!$F20) -> 463910229.6
C21: 5 | D21: All | E21: 1F | F21: More developed | G21: =40771278*G52 -> 197463453.6 | H21: 64.45992994 | I21: 75.31972268 | J21: 80.07028653 | K21: 82.3748331 | L21: 127284803.8 | M21: 148728925.6 | N21: 158109553.1 | O21: 162660190.4 | P21: =SUMIFS(Achievement_finalised!$G$4:$G$71,Achievement_finalised!$B$4:$B$71,Projections!$C21,Achievement_finalised!$D$4:$D$71,Projections!$E21,Achievement_finalised!$E$4:$E$71,Projections!$F21) -> 7218444.06 | Q21: =SUMIFS(Achievement_finalised!$G$4:$G$71,Achievement_finalised!$B$4:$B$71,Projections!$C21,Achievement_finalised!$D$4:$D$71,Projections!$E21,Achievement_finalised!$E$4:$E$71,Projections!$F21) -> 7218444.06 | R21: =SUMIFS(Achievement_finalised!$G$4:$G$71,Achievement_finalised!$B$4:$B$71,Projections!$C21,Achievement_finalised!$D$4:$D$71,Projections!$E21,Achievement_finalised!$E$4:$E$71,Projections!$F21) -> 7218444.06 | S21: =SUMIFS(Achievement_finalised!$G$4:$G$71,Achievement_finalised!$B$4:$B$71,Projections!$C21,Achievement_finalised!$D$4:$D$71,Projections!$E21,Achievement_finalised!$E$4:$E$71,Projections!$F21) -> 7218444.06 | T21: =SUMIFS(Achievement_forecast_ongoing!G$6:G$50000,Achievement_forecast_ongoing!$C$6:$C$50000,Projections!$C21,Achievement_forecast_ongoing!$E$6:$E$50000,Projections!$E21,Achievement_forecast_ongoing!$F$6:$F$50000,Projections!$F21) -> 116963732.7 | U21: =SUMIFS(Achievement_forecast_ongoing!H$6:H$50000,Achievement_forecast_ongoing!$C$6:$C$50000,Projections!$C21,Achievement_forecast_ongoing!$E$6:$E$50000,Projections!$E21,Achievement_forecast_ongoing!$F$6:$F$50000,Projections!$F21) -> 125398686.2 | V21: =SUMIFS(Achievement_forecast_ongoing!I$6:I$50000,Achievement_forecast_ongoing!$C$6:$C$50000,Projections!$C21,Achievement_forecast_ongoing!$E$6:$E$50000,Projections!$E21,Achievement_forecast_ongoing!$F$6:$F$50000,Projections!$F21) -> 128650904 | W21: =SUMIFS(Achievement_forecast_ongoing!J$6:J$50000,Achievement_forecast_ongoing!$C$6:$C$50000,Projections!$C21,Achievement_forecast_ongoing!$E$6:$E$50000,Projections!$E21,Achievement_forecast_ongoing!$F$6:$F$50000,Projections!$F21) -> 129326697.7 | X21: =SUMIFS(Achievement_forecasts_future!G$4:G$71,Achievement_forecasts_future!$B$4:$B$71,Projections!$C21,Achievement_forecasts_future!$D$4:$D$71,Projections!$E21,Achievement_forecasts_future!$E$4:$E$71,Projections!$F21) -> 3102627.05 | Y21: =SUMIFS(Achievement_forecasts_future!H$4:H$71,Achievement_forecasts_future!$B$4:$B$71,Projections!$C21,Achievement_forecasts_future!$D$4:$D$71,Projections!$E21,Achievement_forecasts_future!$E$4:$E$71,Projections!$F21) -> 16111795.42 | Z21: =SUMIFS(Achievement_forecasts_future!I$4:I$71,Achievement_forecasts_future!$B$4:$B$71,Projections!$C21,Achievement_forecasts_future!$D$4:$D$71,Projections!$E21,Achievement_forecasts_future!$E$4:$E$71,Projections!$F21) -> 22240205.07 | AA21: =SUMIFS(Achievement_forecasts_future!J$4:J$71,Achievement_forecasts_future!$B$4:$B$71,Projections!$C21,Achievement_forecasts_future!$D$4:$D$71,Projections!$E21,Achievement_forecasts_future!$E$4:$E$71,Projections!$F21) -> 26115048.58
C22: 5 | D22: All | E22: 1S23 | F22: Less developed | G22: 157 | H22: 15.79617834 | I22: 40.16985138 | J22: 52.65392781 | K22: 56.51804671 | L22: 24.8 | M22: 63.06666667 | N22: 82.66666667 | O22: 88.73333333 | P22: =SUMIFS(Achievement_finalised!$G$4:$G$71,Achievement_finalised!$B$4:$B$71,Projections!$C22,Achievement_finalised!$D$4:$D$71,Projections!$E22,Achievement_finalised!$E$4:$E$71,Projections!$F22) -> 8 | Q22: =SUMIFS(Achievement_finalised!$G$4:$G$71,Achievement_finalised!$B$4:$B$71,Projections!$C22,Achievement_finalised!$D$4:$D$71,Projections!$E22,Achievement_finalised!$E$4:$E$71,Projections!$F22) -> 8 | R22: =SUMIFS(Achievement_finalised!$G$4:$G$71,Achievement_finalised!$B$4:$B$71,Projections!$C22,Achievement_finalised!$D$4:$D$71,Projections!$E22,Achievement_finalised!$E$4:$E$71,Projections!$F22) -> 8 | S22: =SUMIFS(Achievement_finalised!$G$4:$G$71,Achievement_finalised!$B$4:$B$71,Projections!$C22,Achievement_finalised!$D$4:$D$71,Projections!$E22,Achievement_finalised!$E$4:$E$71,Projections!$F22) -> 8 | T22: =SUMIFS(Achievement_forecast_ongoing!G$6:G$50000,Achievement_forecast_ongoing!$C$6:$C$50000,Projections!$C22,Achievement_forecast_ongoing!$E$6:$E$50000,Projections!$E22,Achievement_forecast_ongoing!$F$6:$F$50000,Projections!$F22) -> 16.8 | U22: =SUMIFS(Achievement_forecast_ongoing!H$6:H$50000,Achievement_forecast_ongoing!$C$6:$C$50000,Projections!$C22,Achievement_forecast_ongoing!$E$6:$E$50000,Projections!$E22,Achievement_forecast_ongoing!$F$6:$F$50000,Projections!$F22) -> 55.06666667 | V22: =SUMIFS(Achievement_forecast_ongoing!I$6:I$50000,Achievement_forecast_ongoing!$C$6:$C$50000,Projections!$C22,Achievement_forecast_ongoing!$E$6:$E$50000,Projections!$E22,Achievement_forecast_ongoing!$F$6:$F$50000,Projections!$F22) -> 74.66666667 | W22: =SUMIFS(Achievement_forecast_ongoing!J$6:J$50000,Achievement_forecast_ongoing!$C$6:$C$50000,Projections!$C22,Achievement_forecast_ongoing!$E$6:$E$50000,Projections!$E22,Achievement_forecast_ongoing!$F$6:$F$50000,Projections!$F22) -> 80.73333333 | X22: =SUMIFS(Achievement_forecasts_future!G$4:G$71,Achievement_forecasts_future!$B$4:$B$71,Projections!$C22,Achievement_forecasts_future!$D$4:$D$71,Projections!$E22,Achievement_forecasts_future!$E$4:$E$71,Projections!$F22) -> 0 | Y22: =SUMIFS(Achievement_forecasts_future!H$4:H$71,Achievement_forecasts_future!$B$4:$B$71,Projections!$C22,Achievement_forecasts_future!$D$4:$D$71,Projections!$E22,Achievement_forecasts_future!$E$4:$E$71,Projections!$F22) -> 0 | Z22: =SUMIFS(Achievement_forecasts_future!I$4:I$71,Achievement_forecasts_future!$B$4:$B$71,Projections!$C22,Achievement_forecasts_future!$D$4:$D$71,Projections!$E22,Achievement_forecasts_future!$E$4:$E$71,Projections!$F22) -> 0 | AA22: =SUMIFS(Achievement_forecasts_future!J$4:J$71,Achievement_forecasts_future!$B$4:$B$71,Projections!$C22,Achievement_forecasts_future!$D$4:$D$71,Projections!$E22,Achievement_forecasts_future!$E$4:$E$71,Projections!$F22) -> 0
C23: 5 | D23: All | E23: 1S23 | F23: More developed | G23: 7 | H23: 0 | I23: 0 | J23: 0 | K23: 0 | L23: 0 | M23: 0 | N23: 0 | O23: 0 | P23: =SUMIFS(Achievement_finalised!$G$4:$G$71,Achievement_finalised!$B$4:$B$71,Projections!$C23,Achievement_finalised!$D$4:$D$71,Projections!$E23,Achievement_finalised!$E$4:$E$71,Projections!$F23) -> 0 | Q23: =SUMIFS(Achievement_finalised!$G$4:$G$71,Achievement_finalised!$B$4:$B$71,Projections!$C23,Achievement_finalised!$D$4:$D$71,Projections!$E23,Achievement_finalised!$E$4:$E$71,Projections!$F23) -> 0 | R23: =SUMIFS(Achievement_finalised!$G$4:$G$71,Achievement_finalised!$B$4:$B$71,Projections!$C23,Achievement_finalised!$D$4:$D$71,Projections!$E23,Achievement_finalised!$E$4:$E$71,Projections!$F23) -> 0 | S23: =SUMIFS(Achievement_finalised!$G$4:$G$71,Achievement_finalised!$B$4:$B$71,Projections!$C23,Achievement_finalised!$D$4:$D$71,Projections!$E23,Achievement_finalised!$E$4:$E$71,Projections!$F23) -> 0 | T23: =SUMIFS(Achievement_forecast_ongoing!G$6:G$50000,Achievement_forecast_ongoing!$C$6:$C$50000,Projections!$C23,Achievement_forecast_ongoing!$E$6:$E$50000,Projections!$E23,Achievement_forecast_ongoing!$F$6:$F$50000,Projections!$F23) -> 0 | U23: =SUMIFS(Achievement_forecast_ongoing!H$6:H$50000,Achievement_forecast_ongoing!$C$6:$C$50000,Projections!$C23,Achievement_forecast_ongoing!$E$6:$E$50000,Projections!$E23,Achievement_forecast_ongoing!$F$6:$F$50000,Projections!$F23) -> 0 | V23: =SUMIFS(Achievement_forecast_ongoing!I$6:I$50000,Achievement_forecast_ongoing!$C$6:$C$50000,Projections!$C23,Achievement_forecast_ongoing!$E$6:$E$50000,Projections!$E23,Achievement_forecast_ongoing!$F$6:$F$50000,Projections!$F23) -> 0 | W23: =SUMIFS(Achievement_forecast_ongoing!J$6:J$50000,Achievement_forecast_ongoing!$C$6:$C$50000,Projections!$C23,Achievement_forecast_ongoing!$E$6:$E$50000,Projections!$E23,Achievement_forecast_ongoing!$F$6:$F$50000,Projections!$F23) -> 0 | X23: =SUMIFS(Achievement_forecasts_future!G$4:G$71,Achievement_forecasts_future!$B$4:$B$71,Projections!$C23,Achievement_forecasts_future!$D$4:$D$71,Projections!$E23,Achievement_forecasts_future!$E$4:$E$71,Projections!$F23) -> 0 | Y23: =SUMIFS(Achievement_forecasts_future!H$4:H$71,Achievement_forecasts_future!$B$4:$B$71,Projections!$C23,Achievement_forecasts_future!$D$4:$D$71,Projections!$E23,Achievement_forecasts_future!$E$4:$E$71,Projections!$F23) -> 0 | Z23: =SUMIFS(Achievement_forecasts_future!I$4:I$71,Achievement_forecasts_future!$B$4:$B$71,Projections!$C23,Achievement_forecasts_future!$D$4:$D$71,Projections!$E23,Achievement_forecasts_future!$E$4:$E$71,Projections!$F23) -> 0 | AA23: =SUMIFS(Achievement_forecasts_future!J$4:J$71,Achievement_forecasts_future!$B$4:$B$71,Projections!$C23,Achievement_forecasts_future!$D$4:$D$71,Projections!$E23,Achievement_forecasts_future!$E$4:$E$71,Projections!$F23) -> 0
C24: 6 | D24: All | E24: 1F | F24: Less developed | G24: =961350678*G52 -> 4656013604 | H24: 157.319122 | I24: 172.1420143 | J24: 178.06989 | K24: 180.5385178 | L24: 7324799721 | M24: 8014955606 | N24: 8290958302 | O24: 8405897949 | P24: =SUMIFS(Achievement_finalised!$G$4:$G$71,Achievement_finalised!$B$4:$B$71,Projections!$C24,Achievement_finalised!$D$4:$D$71,Projections!$E24,Achievement_finalised!$E$4:$E$71,Projections!$F24) -> 110385276.6 | Q24: =SUMIFS(Achievement_finalised!$G$4:$G$71,Achievement_finalised!$B$4:$B$71,Projections!$C24,Achievement_finalised!$D$4:$D$71,Projections!$E24,Achievement_finalised!$E$4:$E$71,Projections!$F24) -> 110385276.6 | R24: =SUMIFS(Achievement_finalised!$G$4:$G$71,Achievement_finalised!$B$4:$B$71,Projections!$C24,Achievement_finalised!$D$4:$D$71,Projections!$E24,Achievement_finalised!$E$4:$E$71,Projections!$F24) -> 110385276.6 | S24: =SUMIFS(Achievement_finalised!$G$4:$G$71,Achievement_finalised!$B$4:$B$71,Projections!$C24,Achievement_finalised!$D$4:$D$71,Projections!$E24,Achievement_finalised!$E$4:$E$71,Projections!$F24) -> 110385276.6 | T24: =SUMIFS(Achievement_forecast_ongoing!G$6:G$50000,Achievement_forecast_ongoing!$C$6:$C$50000,Projections!$C24,Achievement_forecast_ongoing!$E$6:$E$50000,Projections!$E24,Achievement_forecast_ongoing!$F$6:$F$50000,Projections!$F24) -> 7170065715 | U24: =SUMIFS(Achievement_forecast_ongoing!H$6:H$50000,Achievement_forecast_ongoing!$C$6:$C$50000,Projections!$C24,Achievement_forecast_ongoing!$E$6:$E$50000,Projections!$E24,Achievement_forecast_ongoing!$F$6:$F$50000,Projections!$F24) -> 7671106790 | V24: =SUMIFS(Achievement_forecast_ongoing!I$6:I$50000,Achievement_forecast_ongoing!$C$6:$C$50000,Projections!$C24,Achievement_forecast_ongoing!$E$6:$E$50000,Projections!$E24,Achievement_forecast_ongoing!$F$6:$F$50000,Projections!$F24) -> 7851492623 | W24: =SUMIFS(Achievement_forecast_ongoing!J$6:J$50000,Achievement_forecast_ongoing!$C$6:$C$50000,Projections!$C24,Achievement_forecast_ongoing!$E$6:$E$50000,Projections!$E24,Achievement_forecast_ongoing!$F$6:$F$50000,Projections!$F24) -> 7900762725 | X24: =SUMIFS(Achievement_forecasts_future!G$4:G$71,Achievement_forecasts_future!$B$4:$B$71,Projections!$C24,Achievement_forecasts_future!$D$4:$D$71,Projections!$E24,Achievement_forecasts_future!$E$4:$E$71,Projections!$F24) -> 44348729.29 | Y24: =SUMIFS(Achievement_forecasts_future!H$4:H$71,Achievement_forecasts_future!$B$4:$B$71,Projections!$C24,Achievement_forecasts_future!$D$4:$D$71,Projections!$E24,Achievement_forecasts_future!$E$4:$E$71,Projections!$F24) -> 233463538.8 | Z24: =SUMIFS(Achievement_forecasts_future!I$4:I$71,Achievement_forecasts_future!$B$4:$B$71,Projections!$C24,Achievement_forecasts_future!$D$4:$D$71,Projections!$E24,Achievement_forecasts_future!$E$4:$E$71,Projections!$F24) -> 329080402.2 | AA24: =SUMIFS(Achievement_forecasts_future!J$4:J$71,Achievement_forecasts_future!$B$4:$B$71,Projections!$C24,Achievement_forecasts_future!$D$4:$D$71,Projections!$E24,Achievement_forecasts_future!$E$4:$E$71,Projections!$F24) -> 394749948.2
C25: 6 | D25: All | E25: 1F | F25: More developed | G25: =12500000*G52 -> 60540000 | H25: 71.77640521 | I25: 81.83207131 | J25: 81.83207131 | K25: 81.83207131 | L25: 43453435.72 | M25: 49541135.97 | N25: 49541135.97 | O25: 49541135.97 | P25: =SUMIFS(Achievement_finalised!$G$4:$G$71,Achievement_finalised!$B$4:$B$71,Projections!$C25,Achievement_finalised!$D$4:$D$71,Projections!$E25,Achievement_finalised!$E$4:$E$71,Projections!$F25) -> 0 | Q25: =SUMIFS(Achievement_finalised!$G$4:$G$71,Achievement_finalised!$B$4:$B$71,Projections!$C25,Achievement_finalised!$D$4:$D$71,Projections!$E25,Achievement_finalised!$E$4:$E$71,Projections!$F25) -> 0 | R25: =SUMIFS(Achievement_finalised!$G$4:$G$71,Achievement_finalised!$B$4:$B$71,Projections!$C25,Achievement_finalised!$D$4:$D$71,Projections!$E25,Achievement_finalised!$E$4:$E$71,Projections!$F25) -> 0 | S25: =SUMIFS(Achievement_finalised!$G$4:$G$71,Achievement_finalised!$B$4:$B$71,Projections!$C25,Achievement_finalised!$D$4:$D$71,Projections!$E25,Achievement_finalised!$E$4:$E$71,Projections!$F25) -> 0 | T25: =SUMIFS(Achievement_forecast_ongoing!G$6:G$50000,Achievement_forecast_ongoing!$C$6:$C$50000,Projections!$C25,Achievement_forecast_ongoing!$E$6:$E$50000,Projections!$E25,Achievement_forecast_ongoing!$F$6:$F$50000,Projections!$F25) -> 43453435.72 | U25: =SUMIFS(Achievement_forecast_ongoing!H$6:H$50000,Achievement_forecast_ongoing!$C$6:$C$50000,Projections!$C25,Achievement_forecast_ongoing!$E$6:$E$50000,Projections!$E25,Achievement_forecast_ongoing!$F$6:$F$50000,Projections!$F25) -> 49541135.97 | V25: =SUMIFS(Achievement_forecast_ongoing!I$6:I$50000,Achievement_forecast_ongoing!$C$6:$C$50000,Projections!$C25,Achievement_forecast_ongoing!$E$6:$E$50000,Projections!$E25,Achievement_forecast_ongoing!$F$6:$F$50000,Projections!$F25) -> 49541135.97 | W25: =SUMIFS(Achievement_forecast_ongoing!J$6:J$50000,Achievement_forecast_ongoing!$C$6:$C$50000,Projections!$C25,Achievement_forecast_ongoing!$E$6:$E$50000,Projections!$E25,Achievement_forecast_ongoing!$F$6:$F$50000,Projections!$F25) -> 49541135.97 | X25: =SUMIFS(Achievement_forecasts_future!G$4:G$71,Achievement_forecasts_future!$B$4:$B$71,Projections!$C25,Achievement_forecasts_future!$D$4:$D$71,Projections!$E25,Achievement_forecasts_future!$E$4:$E$71,Projections!$F25) -> 0 | Y25: =SUMIFS(Achievement_forecasts_future!H$4:H$71,Achievement_forecasts_future!$B$4:$B$71,Projections!$C25,Achievement_forecasts_future!$D$4:$D$71,Projections!$E25,Achievement_forecasts_future!$E$4:$E$71,Projections!$F25) -> 0 | Z25: =SUMIFS(Achievement_forecasts_future!I$4:I$71,Achievement_forecasts_future!$B$4:$B$71,Projections!$C25,Achievement_forecasts_future!$D$4:$D$71,Projections!$E25,Achievement_forecasts_future!$E$4:$E$71,Projections!$F25) -> 0 | AA25: =SUMIFS(Achievement_forecasts_future!J$4:J$71,Achievement_forecasts_future!$B$4:$B$71,Projections!$C25,Achievement_forecasts_future!$D$4:$D$71,Projections!$E25,Achievement_forecasts_future!$E$4:$E$71,Projections!$F25) -> 0
C26: 6 | D26: All | E26: CO14 | F26: Less developed | G26: 1932 | H26: 16.85694402 | I26: 73.90427755 | J26: 120.8706535 | K26: 149.3581029 | L26: 325.6761585 | M26: 1427.830642 | N26: 2335.221026 | O26: 2885.598548 | P26: =SUMIFS(Achievement_finalised!$G$4:$G$71,Achievement_finalised!$B$4:$B$71,Projections!$C26,Achievement_finalised!$D$4:$D$71,Projections!$E26,Achievement_finalised!$E$4:$E$71,Projections!$F26) -> 49.844 | Q26: =SUMIFS(Achievement_finalised!$G$4:$G$71,Achievement_finalised!$B$4:$B$71,Projections!$C26,Achievement_finalised!$D$4:$D$71,Projections!$E26,Achievement_finalised!$E$4:$E$71,Projections!$F26) -> 49.844 | R26: =SUMIFS(Achievement_finalised!$G$4:$G$71,Achievement_finalised!$B$4:$B$71,Projections!$C26,Achievement_finalised!$D$4:$D$71,Projections!$E26,Achievement_finalised!$E$4:$E$71,Projections!$F26) -> 49.844 | S26: =SUMIFS(Achievement_finalised!$G$4:$G$71,Achievement_finalised!$B$4:$B$71,Projections!$C26,Achievement_finalised!$D$4:$D$71,Projections!$E26,Achievement_finalised!$E$4:$E$71,Projections!$F26) -> 49.844 | T26: =SUMIFS(Achievement_forecast_ongoing!G$6:G$50000,Achievement_forecast_ongoing!$C$6:$C$50000,Projections!$C26,Achievement_forecast_ongoing!$E$6:$E$50000,Projections!$E26,Achievement_forecast_ongoing!$F$6:$F$50000,Projections!$F26) -> 275.8321585 | U26: =SUMIFS(Achievement_forecast_ongoing!H$6:H$50000,Achievement_forecast_ongoing!$C$6:$C$50000,Projections!$C26,Achievement_forecast_ongoing!$E$6:$E$50000,Projections!$E26,Achievement_forecast_ongoing!$F$6:$F$50000,Projections!$F26) -> 1377.986642 | V26: =SUMIFS(Achievement_forecast_ongoing!I$6:I$50000,Achievement_forecast_ongoing!$C$6:$C$50000,Projections!$C26,Achievement_forecast_ongoing!$E$6:$E$50000,Projections!$E26,Achievement_forecast_ongoing!$F$6:$F$50000,Projections!$F26) -> 2285.377026 | W26: =SUMIFS(Achievement_forecast_ongoing!J$6:J$50000,Achievement_forecast_ongoing!$C$6:$C$50000,Projections!$C26,Achievement_forecast_ongoing!$E$6:$E$50000,Projections!$E26,Achievement_forecast_ongoing!$F$6:$F$50000,Projections!$F26) -> 2835.754548 | X26: =SUMIFS(Achievement_forecasts_future!G$4:G$71,Achievement_forecasts_future!$B$4:$B$71,Projections!$C26,Achievement_forecasts_future!$D$4:$D$71,Projections!$E26,Achievement_forecasts_future!$E$4:$E$71,Projections!$F26) -> 0 | Y26: =SUMIFS(Achievement_forecasts_future!H$4:H$71,Achievement_forecasts_future!$B$4:$B$71,Projections!$C26,Achievement_forecasts_future!$D$4:$D$71,Projections!$E26,Achievement_forecasts_future!$E$4:$E$71,Projections!$F26) -> 0 | Z26: =SUMIFS(Achievement_forecasts_future!I$4:I$71,Achievement_forecasts_future!$B$4:$B$71,Projections!$C26,Achievement_forecasts_future!$D$4:$D$71,Projections!$E26,Achievement_forecasts_future!$E$4:$E$71,Projections!$F26) -> 0 | AA26: =SUMIFS(Achievement_forecasts_future!J$4:J$71,Achievement_forecasts_future!$B$4:$B$71,Projections!$C26,Achievement_forecasts_future!$D$4:$D$71,Projections!$E26,Achievement_forecasts_future!$E$4:$E$71,Projections!$F26) -> 0
C27: 6 | D27: All | E27: CO14 | F27: More developed | G27: 23 | H27: 0 | I27: 0 | J27: 0 | K27: 0 | L27: 0 | M27: 0 | N27: 0 | O27: 0 | P27: =SUMIFS(Achievement_finalised!$G$4:$G$71,Achievement_finalised!$B$4:$B$71,Projections!$C27,Achievement_finalised!$D$4:$D$71,Projections!$E27,Achievement_finalised!$E$4:$E$71,Projections!$F27) -> 0 | Q27: =SUMIFS(Achievement_finalised!$G$4:$G$71,Achievement_finalised!$B$4:$B$71,Projections!$C27,Achievement_finalised!$D$4:$D$71,Projections!$E27,Achievement_finalised!$E$4:$E$71,Projections!$F27) -> 0 | R27: =SUMIFS(Achievement_finalised!$G$4:$G$71,Achievement_finalised!$B$4:$B$71,Projections!$C27,Achievement_finalised!$D$4:$D$71,Projections!$E27,Achievement_finalised!$E$4:$E$71,Projections!$F27) -> 0 | S27: =SUMIFS(Achievement_finalised!$G$4:$G$71,Achievement_finalised!$B$4:$B$71,Projections!$C27,Achievement_finalised!$D$4:$D$71,Projections!$E27,Achievement_finalised!$E$4:$E$71,Projections!$F27) -> 0 | T27: =SUMIFS(Achievement_forecast_ongoing!G$6:G$50000,Achievement_forecast_ongoing!$C$6:$C$50000,Projections!$C27,Achievement_forecast_ongoing!$E$6:$E$50000,Projections!$E27,Achievement_forecast_ongoing!$F$6:$F$50000,Projections!$F27) -> 0 | U27: =SUMIFS(Achievement_forecast_ongoing!H$6:H$50000,Achievement_forecast_ongoing!$C$6:$C$50000,Projections!$C27,Achievement_forecast_ongoing!$E$6:$E$50000,Projections!$E27,Achievement_forecast_ongoing!$F$6:$F$50000,Projections!$F27) -> 0 | V27: =SUMIFS(Achievement_forecast_ongoing!I$6:I$50000,Achievement_forecast_ongoing!$C$6:$C$50000,Projections!$C27,Achievement_forecast_ongoing!$E$6:$E$50000,Projections!$E27,Achievement_forecast_ongoing!$F$6:$F$50000,Projections!$F27) -> 0 | W27: =SUMIFS(Achievement_forecast_ongoing!J$6:J$50000,Achievement_forecast_ongoing!$C$6:$C$50000,Projections!$C27,Achievement_forecast_ongoing!$E$6:$E$50000,Projections!$E27,Achievement_forecast_ongoing!$F$6:$F$50000,Projections!$F27) -> 0 | X27: =SUMIFS(Achievement_forecasts_future!G$4:G$71,Achievement_forecasts_future!$B$4:$B$71,Projections!$C27,Achievement_forecasts_future!$D$4:$D$71,Projections!$E27,Achievement_forecasts_future!$E$4:$E$71,Projections!$F27) -> 0 | Y27: =SUMIFS(Achievement_forecasts_future!H$4:H$71,Achievement_forecasts_future!$B$4:$B$71,Projections!$C27,Achievement_forecasts_future!$D$4:$D$71,Projections!$E27,Achievement_forecasts_future!$E$4:$E$71,Projections!$F27) -> 0 | Z27: =SUMIFS(Achievement_forecasts_future!I$4:I$71,Achievement_forecasts_future!$B$4:$B$71,Projections!$C27,Achievement_forecasts_future!$D$4:$D$71,Projections!$E27,Achievement_forecasts_future!$E$4:$E$71,Projections!$F27) -> 0 | AA27: =SUMIFS(Achievement_forecasts_future!J$4:J$71,Achievement_forecasts_future!$B$4:$B$71,Projections!$C27,Achievement_forecasts_future!$D$4:$D$71,Projections!$E27,Achievement_forecasts_future!$E$4:$E$71,Projections!$F27) -> 0
C28: 7 | D28: All | E28: 1F | F28: All | G28: =109029663*G52 -> 528052463.8 | H28: 22.60908515 | I28: 24.70147561 | J28: 25.37416322 | K28: 25.76217637 | L28: 119387831.2 | M28: 130436750.6 | N28: 133988894.1 | O28: 136037807.1 | P28: =SUMIFS(Achievement_finalised!$G$4:$G$71,Achievement_finalised!$B$4:$B$71,Projections!$C28,Achievement_finalised!$D$4:$D$71,Projections!$E28,Achievement_finalised!$E$4:$E$71,Projections!$F28) -> 962168.48 | Q28: =SUMIFS(Achievement_finalised!$G$4:$G$71,Achievement_finalised!$B$4:$B$71,Projections!$C28,Achievement_finalised!$D$4:$D$71,Projections!$E28,Achievement_finalised!$E$4:$E$71,Projections!$F28) -> 962168.48 | R28: =SUMIFS(Achievement_finalised!$G$4:$G$71,Achievement_finalised!$B$4:$B$71,Projections!$C28,Achievement_finalised!$D$4:$D$71,Projections!$E28,Achievement_finalised!$E$4:$E$71,Projections!$F28) -> 962168.48 | S28: =SUMIFS(Achievement_finalised!$G$4:$G$71,Achievement_finalised!$B$4:$B$71,Projections!$C28,Achievement_finalised!$D$4:$D$71,Projections!$E28,Achievement_finalised!$E$4:$E$71,Projections!$F28) -> 962168.48 | T28: =SUMIFS(Achievement_forecast_ongoing!G$6:G$50000,Achievement_forecast_ongoing!$C$6:$C$50000,Projections!$C28,Achievement_forecast_ongoing!$E$6:$E$50000,Projections!$E28,Achievement_forecast_ongoing!$F$6:$F$50000,Projections!$F28) -> 116656796.2 | U28: =SUMIFS(Achievement_forecast_ongoing!H$6:H$50000,Achievement_forecast_ongoing!$C$6:$C$50000,Projections!$C28,Achievement_forecast_ongoing!$E$6:$E$50000,Projections!$E28,Achievement_forecast_ongoing!$F$6:$F$50000,Projections!$F28) -> 120371233.4 | V28: =SUMIFS(Achievement_forecast_ongoing!I$6:I$50000,Achievement_forecast_ongoing!$C$6:$C$50000,Projections!$C28,Achievement_forecast_ongoing!$E$6:$E$50000,Projections!$E28,Achievement_forecast_ongoing!$F$6:$F$50000,Projections!$F28) -> 120627449.4 | W28: =SUMIFS(Achievement_forecast_ongoing!J$6:J$50000,Achievement_forecast_ongoing!$C$6:$C$50000,Projections!$C28,Achievement_forecast_ongoing!$E$6:$E$50000,Projections!$E28,Achievement_forecast_ongoing!$F$6:$F$50000,Projections!$F28) -> 120657388.5 | X28: =SUMIFS(Achievement_forecasts_future!G$4:G$71,Achievement_forecasts_future!$B$4:$B$71,Projections!$C28,Achievement_forecasts_future!$D$4:$D$71,Projections!$E28,Achievement_forecasts_future!$E$4:$E$71,Projections!$F28) -> 1768866.453 | Y28: =SUMIFS(Achievement_forecasts_future!H$4:H$71,Achievement_forecasts_future!$B$4:$B$71,Projections!$C28,Achievement_forecasts_future!$D$4:$D$71,Projections!$E28,Achievement_forecasts_future!$E$4:$E$71,Projections!$F28) -> 9103348.653 | Z28: =SUMIFS(Achievement_forecasts_future!I$4:I$71,Achievement_forecasts_future!$B$4:$B$71,Projections!$C28,Achievement_forecasts_future!$D$4:$D$71,Projections!$E28,Achievement_forecasts_future!$E$4:$E$71,Projections!$F28) -> 12399276.18 | AA28: =SUMIFS(Achievement_forecasts_future!J$4:J$71,Achievement_forecasts_future!$B$4:$B$71,Projections!$C28,Achievement_forecasts_future!$D$4:$D$71,Projections!$E28,Achievement_forecasts_future!$E$4:$E$71,Projections!$F28) -> 14418250.08
C29: 7 | D29: All | E29: 1S27 | F29: All | G29: 1421324 | H29: 4.167998115 | I29: 43.69857 | J29: 50.47500258 | K29: 53.13263893 | L29: 59240.75753 | M29: 621098.263 | N29: 717413.3257 | O29: 755186.949 | P29: =SUMIFS(Achievement_finalised!$G$4:$G$71,Achievement_finalised!$B$4:$B$71,Projections!$C29,Achievement_finalised!$D$4:$D$71,Projections!$E29,Achievement_finalised!$E$4:$E$71,Projections!$F29) -> 0 | Q29: =SUMIFS(Achievement_finalised!$G$4:$G$71,Achievement_finalised!$B$4:$B$71,Projections!$C29,Achievement_finalised!$D$4:$D$71,Projections!$E29,Achievement_finalised!$E$4:$E$71,Projections!$F29) -> 0 | R29: =SUMIFS(Achievement_finalised!$G$4:$G$71,Achievement_finalised!$B$4:$B$71,Projections!$C29,Achievement_finalised!$D$4:$D$71,Projections!$E29,Achievement_finalised!$E$4:$E$71,Projections!$F29) -> 0 | S29: =SUMIFS(Achievement_finalised!$G$4:$G$71,Achievement_finalised!$B$4:$B$71,Projections!$C29,Achievement_finalised!$D$4:$D$71,Projections!$E29,Achievement_finalised!$E$4:$E$71,Projections!$F29) -> 0 | T29: =SUMIFS(Achievement_forecast_ongoing!G$6:G$50000,Achievement_forecast_ongoing!$C$6:$C$50000,Projections!$C29,Achievement_forecast_ongoing!$E$6:$E$50000,Projections!$E29,Achievement_forecast_ongoing!$F$6:$F$50000,Projections!$F29) -> 59240.75753 | U29: =SUMIFS(Achievement_forecast_ongoing!H$6:H$50000,Achievement_forecast_ongoing!$C$6:$C$50000,Projections!$C29,Achievement_forecast_ongoing!$E$6:$E$50000,Projections!$E29,Achievement_forecast_ongoing!$F$6:$F$50000,Projections!$F29) -> 621098.263 | V29: =SUMIFS(Achievement_forecast_ongoing!I$6:I$50000,Achievement_forecast_ongoing!$C$6:$C$50000,Projections!$C29,Achievement_forecast_ongoing!$E$6:$E$50000,Projections!$E29,Achievement_forecast_ongoing!$F$6:$F$50000,Projections!$F29) -> 717413.3257 | W29: =SUMIFS(Achievement_forecast_ongoing!J$6:J$50000,Achievement_forecast_ongoing!$C$6:$C$50000,Projections!$C29,Achievement_forecast_ongoing!$E$6:$E$50000,Projections!$E29,Achievement_forecast_ongoing!$F$6:$F$50000,Projections!$F29) -> 755186.949 | X29: =SUMIFS(Achievement_forecasts_future!G$4:G$71,Achievement_forecasts_future!$B$4:$B$71,Projections!$C29,Achievement_forecasts_future!$D$4:$D$71,Projections!$E29,Achievement_forecasts_future!$E$4:$E$71,Projections!$F29) -> 0 | Y29: =SUMIFS(Achievement_forecasts_future!H$4:H$71,Achievement_forecasts_future!$B$4:$B$71,Projections!$C29,Achievement_forecasts_future!$D$4:$D$71,Projections!$E29,Achievement_forecasts_future!$E$4:$E$71,Projections!$F29) -> 0 | Z29: =SUMIFS(Achievement_forecasts_future!I$4:I$71,Achievement_forecasts_future!$B$4:$B$71,Projections!$C29,Achievement_forecasts_future!$D$4:$D$71,Projections!$E29,Achievement_forecasts_future!$E$4:$E$71,Projections!$F29) -> 0 | AA29: =SUMIFS(Achievement_forecasts_future!J$4:J$71,Achievement_forecasts_future!$B$4:$B$71,Projections!$C29,Achievement_forecasts_future!$D$4:$D$71,Projections!$E29,Achievement_forecasts_future!$E$4:$E$71,Projections!$F29) -> 0
C30: 8 | D30: All | E30: 1F | F30: All | G30: =574163632*G52 -> 2780789303 | H30: 98.43374788 | I30: 153.029476 | J30: 173.9162103 | K30: 182.4951544 | L30: 2737235131 | M30: 4255427299 | N30: 4836243372 | O30: 5074805731 | P30: =SUMIFS(Achievement_finalised!$G$4:$G$71,Achievement_finalised!$B$4:$B$71,Projections!$C30,Achievement_finalised!$D$4:$D$71,Projections!$E30,Achievement_finalised!$E$4:$E$71,Projections!$F30) -> 484574491.4 | Q30: =SUMIFS(Achievement_finalised!$G$4:$G$71,Achievement_finalised!$B$4:$B$71,Projections!$C30,Achievement_finalised!$D$4:$D$71,Projections!$E30,Achievement_finalised!$E$4:$E$71,Projections!$F30) -> 484574491.4 | R30: =SUMIFS(Achievement_finalised!$G$4:$G$71,Achievement_finalised!$B$4:$B$71,Projections!$C30,Achievement_finalised!$D$4:$D$71,Projections!$E30,Achievement_finalised!$E$4:$E$71,Projections!$F30) -> 484574491.4 | S30: =SUMIFS(Achievement_finalised!$G$4:$G$71,Achievement_finalised!$B$4:$B$71,Projections!$C30,Achievement_finalised!$D$4:$D$71,Projections!$E30,Achievement_finalised!$E$4:$E$71,Projections!$F30) -> 484574491.4 | T30: =SUMIFS(Achievement_forecast_ongoing!G$6:G$50000,Achievement_forecast_ongoing!$C$6:$C$50000,Projections!$C30,Achievement_forecast_ongoing!$E$6:$E$50000,Projections!$E30,Achievement_forecast_ongoing!$F$6:$F$50000,Projections!$F30) -> 1929265525 | U30: =SUMIFS(Achievement_forecast_ongoing!H$6:H$50000,Achievement_forecast_ongoing!$C$6:$C$50000,Projections!$C30,Achievement_forecast_ongoing!$E$6:$E$50000,Projections!$E30,Achievement_forecast_ongoing!$F$6:$F$50000,Projections!$F30) -> 2133853094 | V30: =SUMIFS(Achievement_forecast_ongoing!I$6:I$50000,Achievement_forecast_ongoing!$C$6:$C$50000,Projections!$C30,Achievement_forecast_ongoing!$E$6:$E$50000,Projections!$E30,Achievement_forecast_ongoing!$F$6:$F$50000,Projections!$F30) -> 2188908281 | W30: =SUMIFS(Achievement_forecast_ongoing!J$6:J$50000,Achievement_forecast_ongoing!$C$6:$C$50000,Projections!$C30,Achievement_forecast_ongoing!$E$6:$E$50000,Projections!$E30,Achievement_forecast_ongoing!$F$6:$F$50000,Projections!$F30) -> 2194129533 | X30: =SUMIFS(Achievement_forecasts_future!G$4:G$71,Achievement_forecasts_future!$B$4:$B$71,Projections!$C30,Achievement_forecasts_future!$D$4:$D$71,Projections!$E30,Achievement_forecasts_future!$E$4:$E$71,Projections!$F30) -> 323395114.3 | Y30: =SUMIFS(Achievement_forecasts_future!H$4:H$71,Achievement_forecasts_future!$B$4:$B$71,Projections!$C30,Achievement_forecasts_future!$D$4:$D$71,Projections!$E30,Achievement_forecasts_future!$E$4:$E$71,Projections!$F30) -> 1636999713 | Z30: =SUMIFS(Achievement_forecasts_future!I$4:I$71,Achievement_forecasts_future!$B$4:$B$71,Projections!$C30,Achievement_forecasts_future!$D$4:$D$71,Projections!$E30,Achievement_forecasts_future!$E$4:$E$71,Projections!$F30) -> 2162760600 | AA30: =SUMIFS(Achievement_forecasts_future!J$4:J$71,Achievement_forecasts_future!$B$4:$B$71,Projections!$C30,Achievement_forecasts_future!$D$4:$D$71,Projections!$E30,Achievement_forecasts_future!$E$4:$E$71,Projections!$F30) -> 2396101706
C31: 8 | D31: All | E31: 1S35 | F31: All | G31: 5188914 | H31: 43.0572618 | I31: 49.11214562 | J31: 55.42396937 | K31: 57.403818 | L31: 2234204.286 | M31: 2548387 | N31: 2875902.106 | O31: 2978634.749 | P31: =SUMIFS(Achievement_finalised!$G$4:$G$71,Achievement_finalised!$B$4:$B$71,Projections!$C31,Achievement_finalised!$D$4:$D$71,Projections!$E31,Achievement_finalised!$E$4:$E$71,Projections!$F31) -> 2078575 | Q31: =SUMIFS(Achievement_finalised!$G$4:$G$71,Achievement_finalised!$B$4:$B$71,Projections!$C31,Achievement_finalised!$D$4:$D$71,Projections!$E31,Achievement_finalised!$E$4:$E$71,Projections!$F31) -> 2078575 | R31: =SUMIFS(Achievement_finalised!$G$4:$G$71,Achievement_finalised!$B$4:$B$71,Projections!$C31,Achievement_finalised!$D$4:$D$71,Projections!$E31,Achievement_finalised!$E$4:$E$71,Projections!$F31) -> 2078575 | S31: =SUMIFS(Achievement_finalised!$G$4:$G$71,Achievement_finalised!$B$4:$B$71,Projections!$C31,Achievement_finalised!$D$4:$D$71,Projections!$E31,Achievement_finalised!$E$4:$E$71,Projections!$F31) -> 2078575 | T31: =SUMIFS(Achievement_forecast_ongoing!G$6:G$50000,Achievement_forecast_ongoing!$C$6:$C$50000,Projections!$C31,Achievement_forecast_ongoing!$E$6:$E$50000,Projections!$E31,Achievement_forecast_ongoing!$F$6:$F$50000,Projections!$F31) -> 155629.2857 | U31: =SUMIFS(Achievement_forecast_ongoing!H$6:H$50000,Achievement_forecast_ongoing!$C$6:$C$50000,Projections!$C31,Achievement_forecast_ongoing!$E$6:$E$50000,Projections!$E31,Achievement_forecast_ongoing!$F$6:$F$50000,Projections!$F31) -> 469812 | V31: =SUMIFS(Achievement_forecast_ongoing!I$6:I$50000,Achievement_forecast_ongoing!$C$6:$C$50000,Projections!$C31,Achievement_forecast_ongoing!$E$6:$E$50000,Projections!$E31,Achievement_forecast_ongoing!$F$6:$F$50000,Projections!$F31) -> 797327.1059 | W31: =SUMIFS(Achievement_forecast_ongoing!J$6:J$50000,Achievement_forecast_ongoing!$C$6:$C$50000,Projections!$C31,Achievement_forecast_ongoing!$E$6:$E$50000,Projections!$E31,Achievement_forecast_ongoing!$F$6:$F$50000,Projections!$F31) -> 900059.7488 | X31: =SUMIFS(Achievement_forecasts_future!G$4:G$71,Achievement_forecasts_future!$B$4:$B$71,Projections!$C31,Achievement_forecasts_future!$D$4:$D$71,Projections!$E31,Achievement_forecasts_future!$E$4:$E$71,Projections!$F31) -> 0 | Y31: =SUMIFS(Achievement_forecasts_future!H$4:H$71,Achievement_forecasts_future!$B$4:$B$71,Projections!$C31,Achievement_forecasts_future!$D$4:$D$71,Projections!$E31,Achievement_forecasts_future!$E$4:$E$71,Projections!$F31) -> 0 | Z31: =SUMIFS(Achievement_forecasts_future!I$4:I$71,Achievement_forecasts_future!$B$4:$B$71,Projections!$C31,Achievement_forecasts_future!$D$4:$D$71,Projections!$E31,Achievement_forecasts_future!$E$4:$E$71,Projections!$F31) -> 0 | AA31: =SUMIFS(Achievement_forecasts_future!J$4:J$71,Achievement_forecasts_future!$B$4:$B$71,Projections!$C31,Achievement_forecasts_future!$D$4:$D$71,Projections!$E31,Achievement_forecasts_future!$E$4:$E$71,Projections!$F31) -> 0
C32: 8 | D32: All | E32: 1S40 | F32: All | G32: 1140 | H32: 0.8964184075 | I32: 25.45828277 | J32: 48.63069861 | K32: 53.33689525 | L32: 10.21916985 | M32: 290.2244236 | N32: 554.3899641 | O32: 608.0406058 | P32: =SUMIFS(Achievement_finalised!$G$4:$G$71,Achievement_finalised!$B$4:$B$71,Projections!$C32,Achievement_finalised!$D$4:$D$71,Projections!$E32,Achievement_finalised!$E$4:$E$71,Projections!$F32) -> 0 | Q32: =SUMIFS(Achievement_finalised!$G$4:$G$71,Achievement_finalised!$B$4:$B$71,Projections!$C32,Achievement_finalised!$D$4:$D$71,Projections!$E32,Achievement_finalised!$E$4:$E$71,Projections!$F32) -> 0 | R32: =SUMIFS(Achievement_finalised!$G$4:$G$71,Achievement_finalised!$B$4:$B$71,Projections!$C32,Achievement_finalised!$D$4:$D$71,Projections!$E32,Achievement_finalised!$E$4:$E$71,Projections!$F32) -> 0 | S32: =SUMIFS(Achievement_finalised!$G$4:$G$71,Achievement_finalised!$B$4:$B$71,Projections!$C32,Achievement_finalised!$D$4:$D$71,Projections!$E32,Achievement_finalised!$E$4:$E$71,Projections!$F32) -> 0 | T32: =SUMIFS(Achievement_forecast_ongoing!G$6:G$50000,Achievement_forecast_ongoing!$C$6:$C$50000,Projections!$C32,Achievement_forecast_ongoing!$E$6:$E$50000,Projections!$E32,Achievement_forecast_ongoing!$F$6:$F$50000,Projections!$F32) -> 10.21916985 | U32: =SUMIFS(Achievement_forecast_ongoing!H$6:H$50000,Achievement_forecast_ongoing!$C$6:$C$50000,Projections!$C32,Achievement_forecast_ongoing!$E$6:$E$50000,Projections!$E32,Achievement_forecast_ongoing!$F$6:$F$50000,Projections!$F32) -> 290.2244236 | V32: =SUMIFS(Achievement_forecast_ongoing!I$6:I$50000,Achievement_forecast_ongoing!$C$6:$C$50000,Projections!$C32,Achievement_forecast_ongoing!$E$6:$E$50000,Projections!$E32,Achievement_forecast_ongoing!$F$6:$F$50000,Projections!$F32) -> 554.3899641 | W32: =SUMIFS(Achievement_forecast_ongoing!J$6:J$50000,Achievement_forecast_ongoing!$C$6:$C$50000,Projections!$C32,Achievement_forecast_ongoing!$E$6:$E$50000,Projections!$E32,Achievement_forecast_ongoing!$F$6:$F$50000,Projections!$F32) -> 608.0406058 | X32: =SUMIFS(Achievement_forecasts_future!G$4:G$71,Achievement_forecasts_future!$B$4:$B$71,Projections!$C32,Achievement_forecasts_future!$D$4:$D$71,Projections!$E32,Achievement_forecasts_future!$E$4:$E$71,Projections!$F32) -> 0 | Y32: =SUMIFS(Achievement_forecasts_future!H$4:H$71,Achievement_forecasts_future!$B$4:$B$71,Projections!$C32,Achievement_forecasts_future!$D$4:$D$71,Projections!$E32,Achievement_forecasts_future!$E$4:$E$71,Projections!$F32) -> 0 | Z32: =SUMIFS(Achievement_forecasts_future!I$4:I$71,Achievement_forecasts_future!$B$4:$B$71,Projections!$C32,Achievement_forecasts_future!$D$4:$D$71,Projections!$E32,Achievement_forecasts_future!$E$4:$E$71,Projections!$F32) -> 0 | AA32: =SUMIFS(Achievement_forecasts_future!J$4:J$71,Achievement_forecasts_future!$B$4:$B$71,Projections!$C32,Achievement_forecasts_future!$D$4:$D$71,Projections!$E32,Achievement_forecasts_future!$E$4:$E$71,Projections!$F32) -> 0
C33: 9 | D33: All | E33: 1F | F33: Less developed | G33: =74315790*G52 -> 359926234.1 | H33: 0 | I33: 0 | J33: 0 | K33: 0 | L33: 0 | M33: 0 | N33: 0 | O33: 0 | P33: =SUMIFS(Achievement_finalised!$G$4:$G$71,Achievement_finalised!$B$4:$B$71,Projections!$C33,Achievement_finalised!$D$4:$D$71,Projections!$E33,Achievement_finalised!$E$4:$E$71,Projections!$F33) -> 0 | Q33: =SUMIFS(Achievement_finalised!$G$4:$G$71,Achievement_finalised!$B$4:$B$71,Projections!$C33,Achievement_finalised!$D$4:$D$71,Projections!$E33,Achievement_finalised!$E$4:$E$71,Projections!$F33) -> 0 | R33: =SUMIFS(Achievement_finalised!$G$4:$G$71,Achievement_finalised!$B$4:$B$71,Projections!$C33,Achievement_finalised!$D$4:$D$71,Projections!$E33,Achievement_finalised!$E$4:$E$71,Projections!$F33) -> 0 | S33: =SUMIFS(Achievement_finalised!$G$4:$G$71,Achievement_finalised!$B$4:$B$71,Projections!$C33,Achievement_finalised!$D$4:$D$71,Projections!$E33,Achievement_finalised!$E$4:$E$71,Projections!$F33) -> 0 | T33: =SUMIFS(Achievement_forecast_ongoing!G$6:G$50000,Achievement_forecast_ongoing!$C$6:$C$50000,Projections!$C33,Achievement_forecast_ongoing!$E$6:$E$50000,Projections!$E33,Achievement_forecast_ongoing!$F$6:$F$50000,Projections!$F33) -> 0 | U33: =SUMIFS(Achievement_forecast_ongoing!H$6:H$50000,Achievement_forecast_ongoing!$C$6:$C$50000,Projections!$C33,Achievement_forecast_ongoing!$E$6:$E$50000,Projections!$E33,Achievement_forecast_ongoing!$F$6:$F$50000,Projections!$F33) -> 0 | V33: =SUMIFS(Achievement_forecast_ongoing!I$6:I$50000,Achievement_forecast_ongoing!$C$6:$C$50000,Projections!$C33,Achievement_forecast_ongoing!$E$6:$E$50000,Projections!$E33,Achievement_forecast_ongoing!$F$6:$F$50000,Projections!$F33) -> 0 | W33: =SUMIFS(Achievement_forecast_ongoing!J$6:J$50000,Achievement_forecast_ongoing!$C$6:$C$50000,Projections!$C33,Achievement_forecast_ongoing!$E$6:$E$50000,Projections!$E33,Achievement_forecast_ongoing!$F$6:$F$50000,Projections!$F33) -> 0 | X33: =SUMIFS(Achievement_forecasts_future!G$4:G$71,Achievement_forecasts_future!$B$4:$B$71,Projections!$C33,Achievement_forecasts_future!$D$4:$D$71,Projections!$E33,Achievement_forecasts_future!$E$4:$E$71,Projections!$F33) -> 0 | Y33: =SUMIFS(Achievement_forecasts_future!H$4:H$71,Achievement_forecasts_future!$B$4:$B$71,Projections!$C33,Achievement_forecasts_future!$D$4:$D$71,Projections!$E33,Achievement_forecasts_future!$E$4:$E$71,Projections!$F33) -> 0 | Z33: =SUMIFS(Achievement_forecasts_future!I$4:I$71,Achievement_forecasts_future!$B$4:$B$71,Projections!$C33,Achievement_forecasts_future!$D$4:$D$71,Projections!$E33,Achievement_forecasts_future!$E$4:$E$71,Projections!$F33) -> 0 | AA33: =SUMIFS(Achievement_forecasts_future!J$4:J$71,Achievement_forecasts_future!$B$4:$B$71,Projections!$C33,Achievement_forecasts_future!$D$4:$D$71,Projections!$E33,Achievement_forecasts_future!$E$4:$E$71,Projections!$F33) -> 0
C34: 9 | D34: All | E34: 1F | F34: More developed | G34: =9022223*G52 -> 43696430.43 | H34: 0 | I34: 0 | J34: 0 | K34: 0 | L34: 0 | M34: 0 | N34: 0 | O34: 0 | P34: =SUMIFS(Achievement_finalised!$G$4:$G$71,Achievement_finalised!$B$4:$B$71,Projections!$C34,Achievement_finalised!$D$4:$D$71,Projections!$E34,Achievement_finalised!$E$4:$E$71,Projections!$F34) -> 0 | Q34: =SUMIFS(Achievement_finalised!$G$4:$G$71,Achievement_finalised!$B$4:$B$71,Projections!$C34,Achievement_finalised!$D$4:$D$71,Projections!$E34,Achievement_finalised!$E$4:$E$71,Projections!$F34) -> 0 | R34: =SUMIFS(Achievement_finalised!$G$4:$G$71,Achievement_finalised!$B$4:$B$71,Projections!$C34,Achievement_finalised!$D$4:$D$71,Projections!$E34,Achievement_finalised!$E$4:$E$71,Projections!$F34) -> 0 | S34: =SUMIFS(Achievement_finalised!$G$4:$G$71,Achievement_finalised!$B$4:$B$71,Projections!$C34,Achievement_finalised!$D$4:$D$71,Projections!$E34,Achievement_finalised!$E$4:$E$71,Projections!$F34) -> 0 | T34: =SUMIFS(Achievement_forecast_ongoing!G$6:G$50000,Achievement_forecast_ongoing!$C$6:$C$50000,Projections!$C34,Achievement_forecast_ongoing!$E$6:$E$50000,Projections!$E34,Achievement_forecast_ongoing!$F$6:$F$50000,Projections!$F34) -> 0 | U34: =SUMIFS(Achievement_forecast_ongoing!H$6:H$50000,Achievement_forecast_ongoing!$C$6:$C$50000,Projections!$C34,Achievement_forecast_ongoing!$E$6:$E$50000,Projections!$E34,Achievement_forecast_ongoing!$F$6:$F$50000,Projections!$F34) -> 0 | V34: =SUMIFS(Achievement_forecast_ongoing!I$6:I$50000,Achievement_forecast_ongoing!$C$6:$C$50000,Projections!$C34,Achievement_forecast_ongoing!$E$6:$E$50000,Projections!$E34,Achievement_forecast_ongoing!$F$6:$F$50000,Projections!$F34) -> 0 | W34: =SUMIFS(Achievement_forecast_ongoing!J$6:J$50000,Achievement_forecast_ongoing!$C$6:$C$50000,Projections!$C34,Achievement_forecast_ongoing!$E$6:$E$50000,Projections!$E34,Achievement_forecast_ongoing!$F$6:$F$50000,Projections!$F34) -> 0 | X34: =SUMIFS(Achievement_forecasts_future!G$4:G$71,Achievement_forecasts_future!$B$4:$B$71,Projections!$C34,Achievement_forecasts_future!$D$4:$D$71,Projections!$E34,Achievement_forecasts_future!$E$4:$E$71,Projections!$F34) -> 0 | Y34: =SUMIFS(Achievement_forecasts_future!H$4:H$71,Achievement_forecasts_future!$B$4:$B$71,Projections!$C34,Achievement_forecasts_future!$D$4:$D$71,Projections!$E34,Achievement_forecasts_future!$E$4:$E$71,Projections!$F34) -> 0 | Z34: =SUMIFS(Achievement_forecasts_future!I$4:I$71,Achievement_forecasts_future!$B$4:$B$71,Projections!$C34,Achievement_forecasts_future!$D$4:$D$71,Projections!$E34,Achievement_forecasts_future!$E$4:$E$71,Projections!$F34) -> 0 | AA34: =SUMIFS(Achievement_forecasts_future!J$4:J$71,Achievement_forecasts_future!$B$4:$B$71,Projections!$C34,Achievement_forecasts_future!$D$4:$D$71,Projections!$E34,Achievement_forecasts_future!$E$4:$E$71,Projections!$F34) -> 0
C35: 9 | D35: All | E35: CO39 | F35: Less developed | G35: 42356 | H35: 0 | I35: 0 | J35: 0 | K35: 0 | L35: 0 | M35: 0 | N35: 0 | O35: 0 | P35: =SUMIFS(Achievement_finalised!$G$4:$G$71,Achievement_finalised!$B$4:$B$71,Projections!$C35,Achievement_finalised!$D$4:$D$71,Projections!$E35,Achievement_finalised!$E$4:$E$71,Projections!$F35) -> 0 | Q35: =SUMIFS(Achievement_finalised!$G$4:$G$71,Achievement_finalised!$B$4:$B$71,Projections!$C35,Achievement_finalised!$D$4:$D$71,Projections!$E35,Achievement_finalised!$E$4:$E$71,Projections!$F35) -> 0 | R35: =SUMIFS(Achievement_finalised!$G$4:$G$71,Achievement_finalised!$B$4:$B$71,Projections!$C35,Achievement_finalised!$D$4:$D$71,Projections!$E35,Achievement_finalised!$E$4:$E$71,Projections!$F35) -> 0 | S35: =SUMIFS(Achievement_finalised!$G$4:$G$71,Achievement_finalised!$B$4:$B$71,Projections!$C35,Achievement_finalised!$D$4:$D$71,Projections!$E35,Achievement_finalised!$E$4:$E$71,Projections!$F35) -> 0 | T35: =SUMIFS(Achievement_forecast_ongoing!G$6:G$50000,Achievement_forecast_ongoing!$C$6:$C$50000,Projections!$C35,Achievement_forecast_ongoing!$E$6:$E$50000,Projections!$E35,Achievement_forecast_ongoing!$F$6:$F$50000,Projections!$F35) -> 0 | U35: =SUMIFS(Achievement_forecast_ongoing!H$6:H$50000,Achievement_forecast_ongoing!$C$6:$C$50000,Projections!$C35,Achievement_forecast_ongoing!$E$6:$E$50000,Projections!$E35,Achievement_forecast_ongoing!$F$6:$F$50000,Projections!$F35) -> 0 | V35: =SUMIFS(Achievement_forecast_ongoing!I$6:I$50000,Achievement_forecast_ongoing!$C$6:$C$50000,Projections!$C35,Achievement_forecast_ongoing!$E$6:$E$50000,Projections!$E35,Achievement_forecast_ongoing!$F$6:$F$50000,Projections!$F35) -> 0 | W35: =SUMIFS(Achievement_forecast_ongoing!J$6:J$50000,Achievement_forecast_ongoing!$C$6:$C$50000,Projections!$C35,Achievement_forecast_ongoing!$E$6:$E$50000,Projections!$E35,Achievement_forecast_ongoing!$F$6:$F$50000,Projections!$F35) -> 0 | X35: =SUMIFS(Achievement_forecasts_future!G$4:G$71,Achievement_forecasts_future!$B$4:$B$71,Projections!$C35,Achievement_forecasts_future!$D$4:$D$71,Projections!$E35,Achievement_forecasts_future!$E$4:$E$71,Projections!$F35) -> 0 | Y35: =SUMIFS(Achievement_forecasts_future!H$4:H$71,Achievement_forecasts_future!$B$4:$B$71,Projections!$C35,Achievement_forecasts_future!$D$4:$D$71,Projections!$E35,Achievement_forecasts_future!$E$4:$E$71,Projections!$F35) -> 0 | Z35: =SUMIFS(Achievement_forecasts_future!I$4:I$71,Achievement_forecasts_future!$B$4:$B$71,Projections!$C35,Achievement_forecasts_future!$D$4:$D$71,Projections!$E35,Achievement_forecasts_future!$E$4:$E$71,Projections!$F35) -> 0 | AA35: =SUMIFS(Achievement_forecasts_future!J$4:J$71,Achievement_forecasts_future!$B$4:$B$71,Projections!$C35,Achievement_forecasts_future!$D$4:$D$71,Projections!$E35,Achievement_forecasts_future!$E$4:$E$71,Projections!$F35) -> 0
C36: 9 | D36: All | E36: CO39 | F36: More developed | G36: 4869 | H36: 0 | I36: 0 | J36: 0 | K36: 0 | L36: 0 | M36: 0 | N36: 0 | O36: 0 | P36: =SUMIFS(Achievement_finalised!$G$4:$G$71,Achievement_finalised!$B$4:$B$71,Projections!$C36,Achievement_finalised!$D$4:$D$71,Projections!$E36,Achievement_finalised!$E$4:$E$71,Projections!$F36) -> 0 | Q36: =SUMIFS(Achievement_finalised!$G$4:$G$71,Achievement_finalised!$B$4:$B$71,Projections!$C36,Achievement_finalised!$D$4:$D$71,Projections!$E36,Achievement_finalised!$E$4:$E$71,Projections!$F36) -> 0 | R36: =SUMIFS(Achievement_finalised!$G$4:$G$71,Achievement_finalised!$B$4:$B$71,Projections!$C36,Achievement_finalised!$D$4:$D$71,Projections!$E36,Achievement_finalised!$E$4:$E$71,Projections!$F36) -> 0 | S36: =SUMIFS(Achievement_finalised!$G$4:$G$71,Achievement_finalised!$B$4:$B$71,Projections!$C36,Achievement_finalised!$D$4:$D$71,Projections!$E36,Achievement_finalised!$E$4:$E$71,Projections!$F36) -> 0 | T36: =SUMIFS(Achievement_forecast_ongoing!G$6:G$50000,Achievement_forecast_ongoing!$C$6:$C$50000,Projections!$C36,Achievement_forecast_ongoing!$E$6:$E$50000,Projections!$E36,Achievement_forecast_ongoing!$F$6:$F$50000,Projections!$F36) -> 0 | U36: =SUMIFS(Achievement_forecast_ongoing!H$6:H$50000,Achievement_forecast_ongoing!$C$6:$C$50000,Projections!$C36,Achievement_forecast_ongoing!$E$6:$E$50000,Projections!$E36,Achievement_forecast_ongoing!$F$6:$F$50000,Projections!$F36) -> 0 | V36: =SUMIFS(Achievement_forecast_ongoing!I$6:I$50000,Achievement_forecast_ongoing!$C$6:$C$50000,Projections!$C36,Achievement_forecast_ongoing!$E$6:$E$50000,Projections!$E36,Achievement_forecast_ongoing!$F$6:$F$50000,Projections!$F36) -> 0 | W36: =SUMIFS(Achievement_forecast_ongoing!J$6:J$50000,Achievement_forecast_ongoing!$C$6:$C$50000,Projections!$C36,Achievement_forecast_ongoing!$E$6:$E$50000,Projections!$E36,Achievement_forecast_ongoing!$F$6:$F$50000,Projections!$F36) -> 0 | X36: =SUMIFS(Achievement_forecasts_future!G$4:G$71,Achievement_forecasts_future!$B$4:$B$71,Projections!$C36,Achievement_forecasts_future!$D$4:$D$71,Projections!$E36,Achievement_forecasts_future!$E$4:$E$71,Projections!$F36) -> 0 | Y36: =SUMIFS(Achievement_forecasts_future!H$4:H$71,Achievement_forecasts_future!$B$4:$B$71,Projections!$C36,Achievement_forecasts_future!$D$4:$D$71,Projections!$E36,Achievement_forecasts_future!$E$4:$E$71,Projections!$F36) -> 0 | Z36: =SUMIFS(Achievement_forecasts_future!I$4:I$71,Achievement_forecasts_future!$B$4:$B$71,Projections!$C36,Achievement_forecasts_future!$D$4:$D$71,Projections!$E36,Achievement_forecasts_future!$E$4:$E$71,Projections!$F36) -> 0 | AA36: =SUMIFS(Achievement_forecasts_future!J$4:J$71,Achievement_forecasts_future!$B$4:$B$71,Projections!$C36,Achievement_forecasts_future!$D$4:$D$71,Projections!$E36,Achievement_forecasts_future!$E$4:$E$71,Projections!$F36) -> 0
C37: 10 | D37: All | E37: 1F | F37: Less developed | G37: =267969904*G52 -> 1297831839 | H37: 137.4862908 | I37: 229.0164793 | J37: 266.4203394 | K37: 285.3801707 | L37: 1784340857 | M37: 2972248786 | N37: 3457687991 | O37: 3703754718 | P37: =SUMIFS(Achievement_finalised!$G$4:$G$71,Achievement_finalised!$B$4:$B$71,Projections!$C37,Achievement_finalised!$D$4:$D$71,Projections!$E37,Achievement_finalised!$E$4:$E$71,Projections!$F37) -> 34126180.87 | Q37: =SUMIFS(Achievement_finalised!$G$4:$G$71,Achievement_finalised!$B$4:$B$71,Projections!$C37,Achievement_finalised!$D$4:$D$71,Projections!$E37,Achievement_finalised!$E$4:$E$71,Projections!$F37) -> 34126180.87 | R37: =SUMIFS(Achievement_finalised!$G$4:$G$71,Achievement_finalised!$B$4:$B$71,Projections!$C37,Achievement_finalised!$D$4:$D$71,Projections!$E37,Achievement_finalised!$E$4:$E$71,Projections!$F37) -> 34126180.87 | S37: =SUMIFS(Achievement_finalised!$G$4:$G$71,Achievement_finalised!$B$4:$B$71,Projections!$C37,Achievement_finalised!$D$4:$D$71,Projections!$E37,Achievement_finalised!$E$4:$E$71,Projections!$F37) -> 34126180.87 | T37: =SUMIFS(Achievement_forecast_ongoing!G$6:G$50000,Achievement_forecast_ongoing!$C$6:$C$50000,Projections!$C37,Achievement_forecast_ongoing!$E$6:$E$50000,Projections!$E37,Achievement_forecast_ongoing!$F$6:$F$50000,Projections!$F37) -> 1514699735 | U37: =SUMIFS(Achievement_forecast_ongoing!H$6:H$50000,Achievement_forecast_ongoing!$C$6:$C$50000,Projections!$C37,Achievement_forecast_ongoing!$E$6:$E$50000,Projections!$E37,Achievement_forecast_ongoing!$F$6:$F$50000,Projections!$F37) -> 1741985261 | V37: =SUMIFS(Achievement_forecast_ongoing!I$6:I$50000,Achievement_forecast_ongoing!$C$6:$C$50000,Projections!$C37,Achievement_forecast_ongoing!$E$6:$E$50000,Projections!$E37,Achievement_forecast_ongoing!$F$6:$F$50000,Projections!$F37) -> 1825240397 | W37: =SUMIFS(Achievement_forecast_ongoing!J$6:J$50000,Achievement_forecast_ongoing!$C$6:$C$50000,Projections!$C37,Achievement_forecast_ongoing!$E$6:$E$50000,Projections!$E37,Achievement_forecast_ongoing!$F$6:$F$50000,Projections!$F37) -> 1857944612 | X37: =SUMIFS(Achievement_forecasts_future!G$4:G$71,Achievement_forecasts_future!$B$4:$B$71,Projections!$C37,Achievement_forecasts_future!$D$4:$D$71,Projections!$E37,Achievement_forecasts_future!$E$4:$E$71,Projections!$F37) -> 235514940.9 | Y37: =SUMIFS(Achievement_forecasts_future!H$4:H$71,Achievement_forecasts_future!$B$4:$B$71,Projections!$C37,Achievement_forecasts_future!$D$4:$D$71,Projections!$E37,Achievement_forecasts_future!$E$4:$E$71,Projections!$F37) -> 1196137344 | Z37: =SUMIFS(Achievement_forecasts_future!I$4:I$71,Achievement_forecasts_future!$B$4:$B$71,Projections!$C37,Achievement_forecasts_future!$D$4:$D$71,Projections!$E37,Achievement_forecasts_future!$E$4:$E$71,Projections!$F37) -> 1598321413 | AA37: =SUMIFS(Achievement_forecasts_future!J$4:J$71,Achievement_forecasts_future!$B$4:$B$71,Projections!$C37,Achievement_forecasts_future!$D$4:$D$71,Projections!$E37,Achievement_forecasts_future!$E$4:$E$71,Projections!$F37) -> 1811683925
C38: 10 | D38: All | E38: 1F | F38: More developed | G38: =49999999*G52 -> 242159995.2 | H38: 88.00309812 | I38: 108.6409934 | J38: 116.7311693 | K38: 120.6701305 | L38: 213108298.2 | M38: 263085024.3 | N38: 282676193.9 | O38: 292214782.1 | P38: =SUMIFS(Achievement_finalised!$G$4:$G$71,Achievement_finalised!$B$4:$B$71,Projections!$C38,Achievement_finalised!$D$4:$D$71,Projections!$E38,Achievement_finalised!$E$4:$E$71,Projections!$F38) -> 1431199.77 | Q38: =SUMIFS(Achievement_finalised!$G$4:$G$71,Achievement_finalised!$B$4:$B$71,Projections!$C38,Achievement_finalised!$D$4:$D$71,Projections!$E38,Achievement_finalised!$E$4:$E$71,Projections!$F38) -> 1431199.77 | R38: =SUMIFS(Achievement_finalised!$G$4:$G$71,Achievement_finalised!$B$4:$B$71,Projections!$C38,Achievement_finalised!$D$4:$D$71,Projections!$E38,Achievement_finalised!$E$4:$E$71,Projections!$F38) -> 1431199.77 | S38: =SUMIFS(Achievement_finalised!$G$4:$G$71,Achievement_finalised!$B$4:$B$71,Projections!$C38,Achievement_finalised!$D$4:$D$71,Projections!$E38,Achievement_finalised!$E$4:$E$71,Projections!$F38) -> 1431199.77 | T38: =SUMIFS(Achievement_forecast_ongoing!G$6:G$50000,Achievement_forecast_ongoing!$C$6:$C$50000,Projections!$C38,Achievement_forecast_ongoing!$E$6:$E$50000,Projections!$E38,Achievement_forecast_ongoing!$F$6:$F$50000,Projections!$F38) -> 201799962.4 | U38: =SUMIFS(Achievement_forecast_ongoing!H$6:H$50000,Achievement_forecast_ongoing!$C$6:$C$50000,Projections!$C38,Achievement_forecast_ongoing!$E$6:$E$50000,Projections!$E38,Achievement_forecast_ongoing!$F$6:$F$50000,Projections!$F38) -> 211489655.9 | V38: =SUMIFS(Achievement_forecast_ongoing!I$6:I$50000,Achievement_forecast_ongoing!$C$6:$C$50000,Projections!$C38,Achievement_forecast_ongoing!$E$6:$E$50000,Projections!$E38,Achievement_forecast_ongoing!$F$6:$F$50000,Projections!$F38) -> 214213841.5 | W38: =SUMIFS(Achievement_forecast_ongoing!J$6:J$50000,Achievement_forecast_ongoing!$C$6:$C$50000,Projections!$C38,Achievement_forecast_ongoing!$E$6:$E$50000,Projections!$E38,Achievement_forecast_ongoing!$F$6:$F$50000,Projections!$F38) -> 214804332.7 | X38: =SUMIFS(Achievement_forecasts_future!G$4:G$71,Achievement_forecasts_future!$B$4:$B$71,Projections!$C38,Achievement_forecasts_future!$D$4:$D$71,Projections!$E38,Achievement_forecasts_future!$E$4:$E$71,Projections!$F38) -> 9877135.988 | Y38: =SUMIFS(Achievement_forecasts_future!H$4:H$71,Achievement_forecasts_future!$B$4:$B$71,Projections!$C38,Achievement_forecasts_future!$D$4:$D$71,Projections!$E38,Achievement_forecasts_future!$E$4:$E$71,Projections!$F38) -> 50164168.61 | Z38: =SUMIFS(Achievement_forecasts_future!I$4:I$71,Achievement_forecasts_future!$B$4:$B$71,Projections!$C38,Achievement_forecasts_future!$D$4:$D$71,Projections!$E38,Achievement_forecasts_future!$E$4:$E$71,Projections!$F38) -> 67031152.62 | AA38: =SUMIFS(Achievement_forecasts_future!J$4:J$71,Achievement_forecasts_future!$B$4:$B$71,Projections!$C38,Achievement_forecasts_future!$D$4:$D$71,Projections!$E38,Achievement_forecasts_future!$E$4:$E$71,Projections!$F38) -> 75979249.67
C39: 10 | D39: All | E39: 1S55 | F39: Less developed | G39: 42912 | H39: 30.58789489 | I39: 47.9151413 | J39: 65.50791657 | K39: 76.21718363 | L39: 13125.87746 | M39: 20561.34544 | N39: 28110.75716 | O39: 32706.31784 | P39: =SUMIFS(Achievement_finalised!$G$4:$G$71,Achievement_finalised!$B$4:$B$71,Projections!$C39,Achievement_finalised!$D$4:$D$71,Projections!$E39,Achievement_finalised!$E$4:$E$71,Projections!$F39) -> 2151 | Q39: =SUMIFS(Achievement_finalised!$G$4:$G$71,Achievement_finalised!$B$4:$B$71,Projections!$C39,Achievement_finalised!$D$4:$D$71,Projections!$E39,Achievement_finalised!$E$4:$E$71,Projections!$F39) -> 2151 | R39: =SUMIFS(Achievement_finalised!$G$4:$G$71,Achievement_finalised!$B$4:$B$71,Projections!$C39,Achievement_finalised!$D$4:$D$71,Projections!$E39,Achievement_finalised!$E$4:$E$71,Projections!$F39) -> 2151 | S39: =SUMIFS(Achievement_finalised!$G$4:$G$71,Achievement_finalised!$B$4:$B$71,Projections!$C39,Achievement_finalised!$D$4:$D$71,Projections!$E39,Achievement_finalised!$E$4:$E$71,Projections!$F39) -> 2151 | T39: =SUMIFS(Achievement_forecast_ongoing!G$6:G$50000,Achievement_forecast_ongoing!$C$6:$C$50000,Projections!$C39,Achievement_forecast_ongoing!$E$6:$E$50000,Projections!$E39,Achievement_forecast_ongoing!$F$6:$F$50000,Projections!$F39) -> 10974.87746 | U39: =SUMIFS(Achievement_forecast_ongoing!H$6:H$50000,Achievement_forecast_ongoing!$C$6:$C$50000,Projections!$C39,Achievement_forecast_ongoing!$E$6:$E$50000,Projections!$E39,Achievement_forecast_ongoing!$F$6:$F$50000,Projections!$F39) -> 18410.34544 | V39: =SUMIFS(Achievement_forecast_ongoing!I$6:I$50000,Achievement_forecast_ongoing!$C$6:$C$50000,Projections!$C39,Achievement_forecast_ongoing!$E$6:$E$50000,Projections!$E39,Achievement_forecast_ongoing!$F$6:$F$50000,Projections!$F39) -> 25959.75716 | W39: =SUMIFS(Achievement_forecast_ongoing!J$6:J$50000,Achievement_forecast_ongoing!$C$6:$C$50000,Projections!$C39,Achievement_forecast_ongoing!$E$6:$E$50000,Projections!$E39,Achievement_forecast_ongoing!$F$6:$F$50000,Projections!$F39) -> 30555.31784 | X39: =SUMIFS(Achievement_forecasts_future!G$4:G$71,Achievement_forecasts_future!$B$4:$B$71,Projections!$C39,Achievement_forecasts_future!$D$4:$D$71,Projections!$E39,Achievement_forecasts_future!$E$4:$E$71,Projections!$F39) -> 0 | Y39: =SUMIFS(Achievement_forecasts_future!H$4:H$71,Achievement_forecasts_future!$B$4:$B$71,Projections!$C39,Achievement_forecasts_future!$D$4:$D$71,Projections!$E39,Achievement_forecasts_future!$E$4:$E$71,Projections!$F39) -> 0 | Z39: =SUMIFS(Achievement_forecasts_future!I$4:I$71,Achievement_forecasts_future!$B$4:$B$71,Projections!$C39,Achievement_forecasts_future!$D$4:$D$71,Projections!$E39,Achievement_forecasts_future!$E$4:$E$71,Projections!$F39) -> 0 | AA39: =SUMIFS(Achievement_forecasts_future!J$4:J$71,Achievement_forecasts_future!$B$4:$B$71,Projections!$C39,Achievement_forecasts_future!$D$4:$D$71,Projections!$E39,Achievement_forecasts_future!$E$4:$E$71,Projections!$F39) -> 0
C40: 10 | D40: All | E40: 1S55 | F40: More developed | G40: 7648 | H40: 1.877344879 | I40: 29.75023753 | J40: 36.65165126 | K40: 48.48360066 | L40: 143.5793363 | M40: 2275.298166 | N40: 2803.118289 | O40: 3708.025778 | P40: =SUMIFS(Achievement_finalised!$G$4:$G$71,Achievement_finalised!$B$4:$B$71,Projections!$C40,Achievement_finalised!$D$4:$D$71,Projections!$E40,Achievement_finalised!$E$4:$E$71,Projections!$F40) -> 0 | Q40: =SUMIFS(Achievement_finalised!$G$4:$G$71,Achievement_finalised!$B$4:$B$71,Projections!$C40,Achievement_finalised!$D$4:$D$71,Projections!$E40,Achievement_finalised!$E$4:$E$71,Projections!$F40) -> 0 | R40: =SUMIFS(Achievement_finalised!$G$4:$G$71,Achievement_finalised!$B$4:$B$71,Projections!$C40,Achievement_finalised!$D$4:$D$71,Projections!$E40,Achievement_finalised!$E$4:$E$71,Projections!$F40) -> 0 | S40: =SUMIFS(Achievement_finalised!$G$4:$G$71,Achievement_finalised!$B$4:$B$71,Projections!$C40,Achievement_finalised!$D$4:$D$71,Projections!$E40,Achievement_finalised!$E$4:$E$71,Projections!$F40) -> 0 | T40: =SUMIFS(Achievement_forecast_ongoing!G$6:G$50000,Achievement_forecast_ongoing!$C$6:$C$50000,Projections!$C40,Achievement_forecast_ongoing!$E$6:$E$50000,Projections!$E40,Achievement_forecast_ongoing!$F$6:$F$50000,Projections!$F40) -> 143.5793363 | U40: =SUMIFS(Achievement_forecast_ongoing!H$6:H$50000,Achievement_forecast_ongoing!$C$6:$C$50000,Projections!$C40,Achievement_forecast_ongoing!$E$6:$E$50000,Projections!$E40,Achievement_forecast_ongoing!$F$6:$F$50000,Projections!$F40) -> 2275.298166 | V40: =SUMIFS(Achievement_forecast_ongoing!I$6:I$50000,Achievement_forecast_ongoing!$C$6:$C$50000,Projections!$C40,Achievement_forecast_ongoing!$E$6:$E$50000,Projections!$E40,Achievement_forecast_ongoing!$F$6:$F$50000,Projections!$F40) -> 2803.118289 | W40: =SUMIFS(Achievement_forecast_ongoing!J$6:J$50000,Achievement_forecast_ongoing!$C$6:$C$50000,Projections!$C40,Achievement_forecast_ongoing!$E$6:$E$50000,Projections!$E40,Achievement_forecast_ongoing!$F$6:$F$50000,Projections!$F40) -> 3708.025778 | X40: =SUMIFS(Achievement_forecasts_future!G$4:G$71,Achievement_forecasts_future!$B$4:$B$71,Projections!$C40,Achievement_forecasts_future!$D$4:$D$71,Projections!$E40,Achievement_forecasts_future!$E$4:$E$71,Projections!$F40) -> 0 | Y40: =SUMIFS(Achievement_forecasts_future!H$4:H$71,Achievement_forecasts_future!$B$4:$B$71,Projections!$C40,Achievement_forecasts_future!$D$4:$D$71,Projections!$E40,Achievement_forecasts_future!$E$4:$E$71,Projections!$F40) -> 0 | Z40: =SUMIFS(Achievement_forecasts_future!I$4:I$71,Achievement_forecasts_future!$B$4:$B$71,Projections!$C40,Achievement_forecasts_future!$D$4:$D$71,Projections!$E40,Achievement_forecasts_future!$E$4:$E$71,Projections!$F40) -> 0 | AA40: =SUMIFS(Achievement_forecasts_future!J$4:J$71,Achievement_forecasts_future!$B$4:$B$71,Projections!$C40,Achievement_forecasts_future!$D$4:$D$71,Projections!$E40,Achievement_forecasts_future!$E$4:$E$71,Projections!$F40) -> 0
C41: 10 | D41: All | E41: 1S66 | F41: Less developed | G41: 32077 | H41: 4.358208171 | I41: 69.92725895 | J41: 100.9062182 | K41: 112.0088172 | L41: =P41+T41+X41 -> 1397.982435 | M41: =Q41+U41+Y41 -> 22430.56685 | N41: =R41+V41+Z41 -> 32367.68761 | O41: =S41+W41+AA41 -> 35929.0683 | P41: =SUMIFS(Achievement_finalised!$G$4:$G$71,Achievement_finalised!$B$4:$B$71,Projections!$C41,Achievement_finalised!$D$4:$D$71,Projections!$E41,Achievement_finalised!$E$4:$E$71,Projections!$F41) -> 0 | Q41: =SUMIFS(Achievement_finalised!$G$4:$G$71,Achievement_finalised!$B$4:$B$71,Projections!$C41,Achievement_finalised!$D$4:$D$71,Projections!$E41,Achievement_finalised!$E$4:$E$71,Projections!$F41) -> 0 | R41: =SUMIFS(Achievement_finalised!$G$4:$G$71,Achievement_finalised!$B$4:$B$71,Projections!$C41,Achievement_finalised!$D$4:$D$71,Projections!$E41,Achievement_finalised!$E$4:$E$71,Projections!$F41) -> 0 | S41: =SUMIFS(Achievement_finalised!$G$4:$G$71,Achievement_finalised!$B$4:$B$71,Projections!$C41,Achievement_finalised!$D$4:$D$71,Projections!$E41,Achievement_finalised!$E$4:$E$71,Projections!$F41) -> 0 | T41: =SUMIFS(Achievement_forecast_ongoing!G$6:G$50000,Achievement_forecast_ongoing!$C$6:$C$50000,Projections!$C41,Achievement_forecast_ongoing!$E$6:$E$50000,Projections!$E41,Achievement_forecast_ongoing!$F$6:$F$50000,Projections!$F41) -> 1397.982435 | U41: =SUMIFS(Achievement_forecast_ongoing!H$6:H$50000,Achievement_forecast_ongoing!$C$6:$C$50000,Projections!$C41,Achievement_forecast_ongoing!$E$6:$E$50000,Projections!$E41,Achievement_forecast_ongoing!$F$6:$F$50000,Projections!$F41) -> 22430.56685 | V41: =SUMIFS(Achievement_forecast_ongoing!I$6:I$50000,Achievement_forecast_ongoing!$C$6:$C$50000,Projections!$C41,Achievement_forecast_ongoing!$E$6:$E$50000,Projections!$E41,Achievement_forecast_ongoing!$F$6:$F$50000,Projections!$F41) -> 32367.68761 | W41: =SUMIFS(Achievement_forecast_ongoing!J$6:J$50000,Achievement_forecast_ongoing!$C$6:$C$50000,Projections!$C41,Achievement_forecast_ongoing!$E$6:$E$50000,Projections!$E41,Achievement_forecast_ongoing!$F$6:$F$50000,Projections!$F41) -> 35929.0683 | X41: =SUMIFS(Achievement_forecasts_future!G$4:G$71,Achievement_forecasts_future!$B$4:$B$71,Projections!$C41,Achievement_forecasts_future!$D$4:$D$71,Projections!$E41,Achievement_forecasts_future!$E$4:$E$71,Projections!$F41) -> 0 | Y41: =SUMIFS(Achievement_forecasts_future!H$4:H$71,Achievement_forecasts_future!$B$4:$B$71,Projections!$C41,Achievement_forecasts_future!$D$4:$D$71,Projections!$E41,Achievement_forecasts_future!$E$4:$E$71,Projections!$F41) -> 0 | Z41: =SUMIFS(Achievement_forecasts_future!I$4:I$71,Achievement_forecasts_future!$B$4:$B$71,Projections!$C41,Achievement_forecasts_future!$D$4:$D$71,Projections!$E41,Achievement_forecasts_future!$E$4:$E$71,Projections!$F41) -> 0 | AA41: =SUMIFS(Achievement_forecasts_future!J$4:J$71,Achievement_forecasts_future!$B$4:$B$71,Projections!$C41,Achievement_forecasts_future!$D$4:$D$71,Projections!$E41,Achievement_forecasts_future!$E$4:$E$71,Projections!$F41) -> 0
C42: 10 | D42: All | E42: 1S66 | F42: More developed | G42: 5238 | H42: 52.59809451 | I42: 69.11303776 | J42: 69.11303776 | K42: 76.42916737 | L42: 2755.08819 | M42: 3620.140918 | N42: 3620.140918 | O42: 4003.359787 | P42: =SUMIFS(Achievement_finalised!$G$4:$G$71,Achievement_finalised!$B$4:$B$71,Projections!$C42,Achievement_finalised!$D$4:$D$71,Projections!$E42,Achievement_finalised!$E$4:$E$71,Projections!$F42) -> 0 | Q42: =SUMIFS(Achievement_finalised!$G$4:$G$71,Achievement_finalised!$B$4:$B$71,Projections!$C42,Achievement_finalised!$D$4:$D$71,Projections!$E42,Achievement_finalised!$E$4:$E$71,Projections!$F42) -> 0 | R42: =SUMIFS(Achievement_finalised!$G$4:$G$71,Achievement_finalised!$B$4:$B$71,Projections!$C42,Achievement_finalised!$D$4:$D$71,Projections!$E42,Achievement_finalised!$E$4:$E$71,Projections!$F42) -> 0 | S42: =SUMIFS(Achievement_finalised!$G$4:$G$71,Achievement_finalised!$B$4:$B$71,Projections!$C42,Achievement_finalised!$D$4:$D$71,Projections!$E42,Achievement_finalised!$E$4:$E$71,Projections!$F42) -> 0 | T42: =SUMIFS(Achievement_forecast_ongoing!G$6:G$50000,Achievement_forecast_ongoing!$C$6:$C$50000,Projections!$C42,Achievement_forecast_ongoing!$E$6:$E$50000,Projections!$E42,Achievement_forecast_ongoing!$F$6:$F$50000,Projections!$F42) -> 2755.08819 | U42: =SUMIFS(Achievement_forecast_ongoing!H$6:H$50000,Achievement_forecast_ongoing!$C$6:$C$50000,Projections!$C42,Achievement_forecast_ongoing!$E$6:$E$50000,Projections!$E42,Achievement_forecast_ongoing!$F$6:$F$50000,Projections!$F42) -> 3620.140918 | V42: =SUMIFS(Achievement_forecast_ongoing!I$6:I$50000,Achievement_forecast_ongoing!$C$6:$C$50000,Projections!$C42,Achievement_forecast_ongoing!$E$6:$E$50000,Projections!$E42,Achievement_forecast_ongoing!$F$6:$F$50000,Projections!$F42) -> 3620.140918 | W42: =SUMIFS(Achievement_forecast_ongoing!J$6:J$50000,Achievement_forecast_ongoing!$C$6:$C$50000,Projections!$C42,Achievement_forecast_ongoing!$E$6:$E$50000,Projections!$E42,Achievement_forecast_ongoing!$F$6:$F$50000,Projections!$F42) -> 4003.359787 | X42: =SUMIFS(Achievement_forecasts_future!G$4:G$71,Achievement_forecasts_future!$B$4:$B$71,Projections!$C42,Achievement_forecasts_future!$D$4:$D$71,Projections!$E42,Achievement_forecasts_future!$E$4:$E$71,Projections!$F42) -> 0 | Y42: =SUMIFS(Achievement_forecasts_future!H$4:H$71,Achievement_forecasts_future!$B$4:$B$71,Projections!$C42,Achievement_forecasts_future!$D$4:$D$71,Projections!$E42,Achievement_forecasts_future!$E$4:$E$71,Projections!$F42) -> 0 | Z42: =SUMIFS(Achievement_forecasts_future!I$4:I$71,Achievement_forecasts_future!$B$4:$B$71,Projections!$C42,Achievement_forecasts_future!$D$4:$D$71,Projections!$E42,Achievement_forecasts_future!$E$4:$E$71,Projections!$F42) -> 0 | AA42: =SUMIFS(Achievement_forecasts_future!J$4:J$71,Achievement_forecasts_future!$B$4:$B$71,Projections!$C42,Achievement_forecasts_future!$D$4:$D$71,Projections!$E42,Achievement_forecasts_future!$E$4:$E$71,Projections!$F42) -> 0
C43: 11 | D43: All | E43: 1F | F43: All | G43: =280264744*G52 -> 1357378208 | H43: 86.57455135 | I43: 91.27854203 | J43: 95.06000601 | K43: 98.09986531 | L43: 1175144094 | M43: 1238995038 | N43: 1290323806 | O43: 1331586194 | P43: =SUMIFS(Achievement_finalised!$G$4:$G$71,Achievement_finalised!$B$4:$B$71,Projections!$C43,Achievement_finalised!$D$4:$D$71,Projections!$E43,Achievement_finalised!$E$4:$E$71,Projections!$F43) -> 0 | Q43: =SUMIFS(Achievement_finalised!$G$4:$G$71,Achievement_finalised!$B$4:$B$71,Projections!$C43,Achievement_finalised!$D$4:$D$71,Projections!$E43,Achievement_finalised!$E$4:$E$71,Projections!$F43) -> 0 | R43: =SUMIFS(Achievement_finalised!$G$4:$G$71,Achievement_finalised!$B$4:$B$71,Projections!$C43,Achievement_finalised!$D$4:$D$71,Projections!$E43,Achievement_finalised!$E$4:$E$71,Projections!$F43) -> 0 | S43: =SUMIFS(Achievement_finalised!$G$4:$G$71,Achievement_finalised!$B$4:$B$71,Projections!$C43,Achievement_finalised!$D$4:$D$71,Projections!$E43,Achievement_finalised!$E$4:$E$71,Projections!$F43) -> 0 | T43: =SUMIFS(Achievement_forecast_ongoing!G$6:G$50000,Achievement_forecast_ongoing!$C$6:$C$50000,Projections!$C43,Achievement_forecast_ongoing!$E$6:$E$50000,Projections!$E43,Achievement_forecast_ongoing!$F$6:$F$50000,Projections!$F43) -> 1175144094 | U43: =SUMIFS(Achievement_forecast_ongoing!H$6:H$50000,Achievement_forecast_ongoing!$C$6:$C$50000,Projections!$C43,Achievement_forecast_ongoing!$E$6:$E$50000,Projections!$E43,Achievement_forecast_ongoing!$F$6:$F$50000,Projections!$F43) -> 1238995038 | V43: =SUMIFS(Achievement_forecast_ongoing!I$6:I$50000,Achievement_forecast_ongoing!$C$6:$C$50000,Projections!$C43,Achievement_forecast_ongoing!$E$6:$E$50000,Projections!$E43,Achievement_forecast_ongoing!$F$6:$F$50000,Projections!$F43) -> 1290323806 | W43: =SUMIFS(Achievement_forecast_ongoing!J$6:J$50000,Achievement_forecast_ongoing!$C$6:$C$50000,Projections!$C43,Achievement_forecast_ongoing!$E$6:$E$50000,Projections!$E43,Achievement_forecast_ongoing!$F$6:$F$50000,Projections!$F43) -> 1331586194 | X43: =SUMIFS(Achievement_forecasts_future!G$4:G$71,Achievement_forecasts_future!$B$4:$B$71,Projections!$C43,Achievement_forecasts_future!$D$4:$D$71,Projections!$E43,Achievement_forecasts_future!$E$4:$E$71,Projections!$F43) -> 0 | Y43: =SUMIFS(Achievement_forecasts_future!H$4:H$71,Achievement_forecasts_future!$B$4:$B$71,Projections!$C43,Achievement_forecasts_future!$D$4:$D$71,Projections!$E43,Achievement_forecasts_future!$E$4:$E$71,Projections!$F43) -> 0 | Z43: =SUMIFS(Achievement_forecasts_future!I$4:I$71,Achievement_forecasts_future!$B$4:$B$71,Projections!$C43,Achievement_forecasts_future!$D$4:$D$71,Projections!$E43,Achievement_forecasts_future!$E$4:$E$71,Projections!$F43) -> 0 | AA43: =SUMIFS(Achievement_forecasts_future!J$4:J$71,Achievement_forecasts_future!$B$4:$B$71,Projections!$C43,Achievement_forecasts_future!$D$4:$D$71,Projections!$E43,Achievement_forecasts_future!$E$4:$E$71,Projections!$F43) -> 0
C44: 11 | D44: All | E44: 1S57 | F44: All | G44: 5756387 | H44: 0 | I44: 0 | J44: 0 | K44: 0.0863736229 | L44: 0 | M44: 0 | N44: 0 | O44: 4972 | P44: =SUMIFS(Achievement_finalised!$G$4:$G$71,Achievement_finalised!$B$4:$B$71,Projections!$C44,Achievement_finalised!$D$4:$D$71,Projections!$E44,Achievement_finalised!$E$4:$E$71,Projections!$F44) -> 0 | Q44: =SUMIFS(Achievement_finalised!$G$4:$G$71,Achievement_finalised!$B$4:$B$71,Projections!$C44,Achievement_finalised!$D$4:$D$71,Projections!$E44,Achievement_finalised!$E$4:$E$71,Projections!$F44) -> 0 | R44: =SUMIFS(Achievement_finalised!$G$4:$G$71,Achievement_finalised!$B$4:$B$71,Projections!$C44,Achievement_finalised!$D$4:$D$71,Projections!$E44,Achievement_finalised!$E$4:$E$71,Projections!$F44) -> 0 | S44: =SUMIFS(Achievement_finalised!$G$4:$G$71,Achievement_finalised!$B$4:$B$71,Projections!$C44,Achievement_finalised!$D$4:$D$71,Projections!$E44,Achievement_finalised!$E$4:$E$71,Projections!$F44) -> 0 | T44: =SUMIFS(Achievement_forecast_ongoing!G$6:G$50000,Achievement_forecast_ongoing!$C$6:$C$50000,Projections!$C44,Achievement_forecast_ongoing!$E$6:$E$50000,Projections!$E44,Achievement_forecast_ongoing!$F$6:$F$50000,Projections!$F44) -> 0 | U44: =SUMIFS(Achievement_forecast_ongoing!H$6:H$50000,Achievement_forecast_ongoing!$C$6:$C$50000,Projections!$C44,Achievement_forecast_ongoing!$E$6:$E$50000,Projections!$E44,Achievement_forecast_ongoing!$F$6:$F$50000,Projections!$F44) -> 0 | V44: =SUMIFS(Achievement_forecast_ongoing!I$6:I$50000,Achievement_forecast_ongoing!$C$6:$C$50000,Projections!$C44,Achievement_forecast_ongoing!$E$6:$E$50000,Projections!$E44,Achievement_forecast_ongoing!$F$6:$F$50000,Projections!$F44) -> 0 | W44: =SUMIFS(Achievement_forecast_ongoing!J$6:J$50000,Achievement_forecast_ongoing!$C$6:$C$50000,Projections!$C44,Achievement_forecast_ongoing!$E$6:$E$50000,Projections!$E44,Achievement_forecast_ongoing!$F$6:$F$50000,Projections!$F44) -> 4972 | X44: =SUMIFS(Achievement_forecasts_future!G$4:G$71,Achievement_forecasts_future!$B$4:$B$71,Projections!$C44,Achievement_forecasts_future!$D$4:$D$71,Projections!$E44,Achievement_forecasts_future!$E$4:$E$71,Projections!$F44) -> 0 | Y44: =SUMIFS(Achievement_forecasts_future!H$4:H$71,Achievement_forecasts_future!$B$4:$B$71,Projections!$C44,Achievement_forecasts_future!$D$4:$D$71,Projections!$E44,Achievement_forecasts_future!$E$4:$E$71,Projections!$F44) -> 0 | Z44: =SUMIFS(Achievement_forecasts_future!I$4:I$71,Achievement_forecasts_future!$B$4:$B$71,Projections!$C44,Achievement_forecasts_future!$D$4:$D$71,Projections!$E44,Achievement_forecasts_future!$E$4:$E$71,Projections!$F44) -> 0 | AA44: =SUMIFS(Achievement_forecasts_future!J$4:J$71,Achievement_forecasts_future!$B$4:$B$71,Projections!$C44,Achievement_forecasts_future!$D$4:$D$71,Projections!$E44,Achievement_forecasts_future!$E$4:$E$71,Projections!$F44) -> 0
C45: 13 | D45: All | E45: 1F | F45: All | G45: =287036048*G52 -> 1390172988 | H45: 64.66367431 | I45: 120.1179157 | J45: 145.7857807 | K45: 159.3635905 | L45: 898936933.1 | M45: 1669846818 | N45: 2026674543 | O45: 2215429587 | P45: =SUMIFS(Achievement_finalised!$G$4:$G$71,Achievement_finalised!$B$4:$B$71,Projections!$C45,Achievement_finalised!$D$4:$D$71,Projections!$E45,Achievement_finalised!$E$4:$E$71,Projections!$F45) -> 0 | Q45: =SUMIFS(Achievement_finalised!$G$4:$G$71,Achievement_finalised!$B$4:$B$71,Projections!$C45,Achievement_finalised!$D$4:$D$71,Projections!$E45,Achievement_finalised!$E$4:$E$71,Projections!$F45) -> 0 | R45: =SUMIFS(Achievement_finalised!$G$4:$G$71,Achievement_finalised!$B$4:$B$71,Projections!$C45,Achievement_finalised!$D$4:$D$71,Projections!$E45,Achievement_finalised!$E$4:$E$71,Projections!$F45) -> 0 | S45: =SUMIFS(Achievement_finalised!$G$4:$G$71,Achievement_finalised!$B$4:$B$71,Projections!$C45,Achievement_finalised!$D$4:$D$71,Projections!$E45,Achievement_finalised!$E$4:$E$71,Projections!$F45) -> 0 | T45: =SUMIFS(Achievement_forecast_ongoing!G$6:G$50000,Achievement_forecast_ongoing!$C$6:$C$50000,Projections!$C45,Achievement_forecast_ongoing!$E$6:$E$50000,Projections!$E45,Achievement_forecast_ongoing!$F$6:$F$50000,Projections!$F45) -> 748178653.9 | U45: =SUMIFS(Achievement_forecast_ongoing!H$6:H$50000,Achievement_forecast_ongoing!$C$6:$C$50000,Projections!$C45,Achievement_forecast_ongoing!$E$6:$E$50000,Projections!$E45,Achievement_forecast_ongoing!$F$6:$F$50000,Projections!$F45) -> 888257226.5 | V45: =SUMIFS(Achievement_forecast_ongoing!I$6:I$50000,Achievement_forecast_ongoing!$C$6:$C$50000,Projections!$C45,Achievement_forecast_ongoing!$E$6:$E$50000,Projections!$E45,Achievement_forecast_ongoing!$F$6:$F$50000,Projections!$F45) -> 960788299 | W45: =SUMIFS(Achievement_forecast_ongoing!J$6:J$50000,Achievement_forecast_ongoing!$C$6:$C$50000,Projections!$C45,Achievement_forecast_ongoing!$E$6:$E$50000,Projections!$E45,Achievement_forecast_ongoing!$F$6:$F$50000,Projections!$F45) -> 981184403.7 | X45: =SUMIFS(Achievement_forecasts_future!G$4:G$71,Achievement_forecasts_future!$B$4:$B$71,Projections!$C45,Achievement_forecasts_future!$D$4:$D$71,Projections!$E45,Achievement_forecasts_future!$E$4:$E$71,Projections!$F45) -> 150758279.2 | Y45: =SUMIFS(Achievement_forecasts_future!H$4:H$71,Achievement_forecasts_future!$B$4:$B$71,Projections!$C45,Achievement_forecasts_future!$D$4:$D$71,Projections!$E45,Achievement_forecasts_future!$E$4:$E$71,Projections!$F45) -> 781589591.5 | Z45: =SUMIFS(Achievement_forecasts_future!I$4:I$71,Achievement_forecasts_future!$B$4:$B$71,Projections!$C45,Achievement_forecasts_future!$D$4:$D$71,Projections!$E45,Achievement_forecasts_future!$E$4:$E$71,Projections!$F45) -> 1065886244 | AA45: =SUMIFS(Achievement_forecasts_future!J$4:J$71,Achievement_forecasts_future!$B$4:$B$71,Projections!$C45,Achievement_forecasts_future!$D$4:$D$71,Projections!$E45,Achievement_forecasts_future!$E$4:$E$71,Projections!$F45) -> 1234245183
C46: 13 | D46: All | E46: CO39 | F46: All | G46: 84654 | H46: 0 | I46: 0 | J46: 0 | K46: 0 | L46: 0 | M46: 0 | N46: 0 | O46: 0 | P46: =SUMIFS(Achievement_finalised!$G$4:$G$71,Achievement_finalised!$B$4:$B$71,Projections!$C46,Achievement_finalised!$D$4:$D$71,Projections!$E46,Achievement_finalised!$E$4:$E$71,Projections!$F46) -> 0 | Q46: =SUMIFS(Achievement_finalised!$G$4:$G$71,Achievement_finalised!$B$4:$B$71,Projections!$C46,Achievement_finalised!$D$4:$D$71,Projections!$E46,Achievement_finalised!$E$4:$E$71,Projections!$F46) -> 0 | R46: =SUMIFS(Achievement_finalised!$G$4:$G$71,Achievement_finalised!$B$4:$B$71,Projections!$C46,Achievement_finalised!$D$4:$D$71,Projections!$E46,Achievement_finalised!$E$4:$E$71,Projections!$F46) -> 0 | S46: =SUMIFS(Achievement_finalised!$G$4:$G$71,Achievement_finalised!$B$4:$B$71,Projections!$C46,Achievement_finalised!$D$4:$D$71,Projections!$E46,Achievement_finalised!$E$4:$E$71,Projections!$F46) -> 0 | T46: =SUMIFS(Achievement_forecast_ongoing!G$6:G$50000,Achievement_forecast_ongoing!$C$6:$C$50000,Projections!$C46,Achievement_forecast_ongoing!$E$6:$E$50000,Projections!$E46,Achievement_forecast_ongoing!$F$6:$F$50000,Projections!$F46) -> 0 | U46: =SUMIFS(Achievement_forecast_ongoing!H$6:H$50000,Achievement_forecast_ongoing!$C$6:$C$50000,Projections!$C46,Achievement_forecast_ongoing!$E$6:$E$50000,Projections!$E46,Achievement_forecast_ongoing!$F$6:$F$50000,Projections!$F46) -> 0 | V46: =SUMIFS(Achievement_forecast_ongoing!I$6:I$50000,Achievement_forecast_ongoing!$C$6:$C$50000,Projections!$C46,Achievement_forecast_ongoing!$E$6:$E$50000,Projections!$E46,Achievement_forecast_ongoing!$F$6:$F$50000,Projections!$F46) -> 0 | W46: =SUMIFS(Achievement_forecast_ongoing!J$6:J$50000,Achievement_forecast_ongoing!$C$6:$C$50000,Projections!$C46,Achievement_forecast_ongoing!$E$6:$E$50000,Projections!$E46,Achievement_forecast_ongoing!$F$6:$F$50000,Projections!$F46) -> 0 | X46: =SUMIFS(Achievement_forecasts_future!G$4:G$71,Achievement_forecasts_future!$B$4:$B$71,Projections!$C46,Achievement_forecasts_future!$D$4:$D$71,Projections!$E46,Achievement_forecasts_future!$E$4:$E$71,Projections!$F46) -> 0 | Y46: =SUMIFS(Achievement_forecasts_future!H$4:H$71,Achievement_forecasts_future!$B$4:$B$71,Projections!$C46,Achievement_forecasts_future!$D$4:$D$71,Projections!$E46,Achievement_forecasts_future!$E$4:$E$71,Projections!$F46) -> 0 | Z46: =SUMIFS(Achievement_forecasts_future!I$4:I$71,Achievement_forecasts_future!$B$4:$B$71,Projections!$C46,Achievement_forecasts_future!$D$4:$D$71,Projections!$E46,Achievement_forecasts_future!$E$4:$E$71,Projections!$F46) -> 0 | AA46: =SUMIFS(Achievement_forecasts_future!J$4:J$71,Achievement_forecasts_future!$B$4:$B$71,Projections!$C46,Achievement_forecasts_future!$D$4:$D$71,Projections!$E46,Achievement_forecasts_future!$E$4:$E$71,Projections!$F46) -> 0
C47: 13 | D47: All | E47: 1K7 | F47: All | G47: 90 | H47: 125.5555556 | I47: 182.2222222 | J47: 182.2222222 | K47: 182.2222222 | L47: =Project_characteristics!I366 -> 113 | M47: =Project_characteristics!J366 -> 164 | N47: =Project_characteristics!K366 -> 164 | O47: =Project_characteristics!L366 -> 164 | P47: 0 | Q47: 0 | R47: 0 | S47: 0 | T47: 0 | U47: 0 | V47: 0 | W47: 0 | X47: 0 | Y47: 0 | Z47: 0 | AA47: 0
C48: 14 | D48: All | E48: 1F | F48: All | G48: =G52*282000000 -> 1365782400 | H48: 6.087688973 | I48: 20.85435023 | J48: 28.22367226 | K48: 33.89467364 | L48: 83144584.56 | M48: 284825045.1 | N48: 385473948.4 | O48: 462927487.1 | P48: =SUMIFS(Achievement_finalised!$G$4:$G$71,Achievement_finalised!$B$4:$B$71,Projections!$C48,Achievement_finalised!$D$4:$D$71,Projections!$E48,Achievement_finalised!$E$4:$E$71,Projections!$F48) -> 0 | Q48: =SUMIFS(Achievement_finalised!$G$4:$G$71,Achievement_finalised!$B$4:$B$71,Projections!$C48,Achievement_finalised!$D$4:$D$71,Projections!$E48,Achievement_finalised!$E$4:$E$71,Projections!$F48) -> 0 | R48: =SUMIFS(Achievement_finalised!$G$4:$G$71,Achievement_finalised!$B$4:$B$71,Projections!$C48,Achievement_finalised!$D$4:$D$71,Projections!$E48,Achievement_finalised!$E$4:$E$71,Projections!$F48) -> 0 | S48: =SUMIFS(Achievement_finalised!$G$4:$G$71,Achievement_finalised!$B$4:$B$71,Projections!$C48,Achievement_finalised!$D$4:$D$71,Projections!$E48,Achievement_finalised!$E$4:$E$71,Projections!$F48) -> 0 | T48: =SUMIFS(Achievement_forecast_ongoing!G$6:G$50000,Achievement_forecast_ongoing!$C$6:$C$50000,Projections!$C48,Achievement_forecast_ongoing!$E$6:$E$50000,Projections!$E48,Achievement_forecast_ongoing!$F$6:$F$50000,Projections!$F48) -> 0 | U48: =SUMIFS(Achievement_forecast_ongoing!H$6:H$50000,Achievement_forecast_ongoing!$C$6:$C$50000,Projections!$C48,Achievement_forecast_ongoing!$E$6:$E$50000,Projections!$E48,Achievement_forecast_ongoing!$F$6:$F$50000,Projections!$F48) -> 0 | V48: =SUMIFS(Achievement_forecast_ongoing!I$6:I$50000,Achievement_forecast_ongoing!$C$6:$C$50000,Projections!$C48,Achievement_forecast_ongoing!$E$6:$E$50000,Projections!$E48,Achievement_forecast_ongoing!$F$6:$F$50000,Projections!$F48) -> 0 | W48: =SUMIFS(Achievement_forecast_ongoing!J$6:J$50000,Achievement_forecast_ongoing!$C$6:$C$50000,Projections!$C48,Achievement_forecast_ongoing!$E$6:$E$50000,Projections!$E48,Achievement_forecast_ongoing!$F$6:$F$50000,Projections!$F48) -> 0 | X48: =SUMIFS(Achievement_forecasts_future!G$4:G$71,Achievement_forecasts_future!$B$4:$B$71,Projections!$C48,Achievement_forecasts_future!$D$4:$D$71,Projections!$E48,Achievement_forecasts_future!$E$4:$E$71,Projections!$F48) -> 83144584.56 | Y48: =SUMIFS(Achievement_forecasts_future!H$4:H$71,Achievement_forecasts_future!$B$4:$B$71,Projections!$C48,Achievement_forecasts_future!$D$4:$D$71,Projections!$E48,Achievement_forecasts_future!$E$4:$E$71,Projections!$F48) -> 284825045.1 | Z48: =SUMIFS(Achievement_forecasts_future!I$4:I$71,Achievement_forecasts_future!$B$4:$B$71,Projections!$C48,Achievement_forecasts_future!$D$4:$D$71,Projections!$E48,Achievement_forecasts_future!$E$4:$E$71,Projections!$F48) -> 385473948.4 | AA48: =SUMIFS(Achievement_forecasts_future!J$4:J$71,Achievement_forecasts_future!$B$4:$B$71,Projections!$C48,Achievement_forecasts_future!$D$4:$D$71,Projections!$E48,Achievement_forecasts_future!$E$4:$E$71,Projections!$F48) -> 462927487.1
C49: 14 | D49: All | E49: 1K17 | F49: All | G49: 3 | H49: =H50 -> 0 | I49: =I50 -> 0 | J49: 0 | K49: 0 | L49: 0 | M49: 0 | N49: 0 | O49: 0 | P49: 0 | Q49: 0 | R49: 0 | S49: 0 | T49: 0 | U49: 0 | V49: 0 | W49: 0 | X49: 0 | Y49: 0 | Z49: 0 | AA49: 0
C50: 14 | D50: All | E50: 1S39 | F50: All | G50: 3 | H50: 0 | I50: 0 | J50: 0 | K50: 0 | L50: 0 | M50: 0 | N50: 0 | O50: 0 | P50: =SUMIFS(Achievement_finalised!$G$4:$G$71,Achievement_finalised!$B$4:$B$71,Projections!$C50,Achievement_finalised!$D$4:$D$71,Projections!$E50,Achievement_finalised!$E$4:$E$71,Projections!$F50) -> 0 | Q50: =SUMIFS(Achievement_finalised!$G$4:$G$71,Achievement_finalised!$B$4:$B$71,Projections!$C50,Achievement_finalised!$D$4:$D$71,Projections!$E50,Achievement_finalised!$E$4:$E$71,Projections!$F50) -> 0 | R50: =SUMIFS(Achievement_finalised!$G$4:$G$71,Achievement_finalised!$B$4:$B$71,Projections!$C50,Achievement_finalised!$D$4:$D$71,Projections!$E50,Achievement_finalised!$E$4:$E$71,Projections!$F50) -> 0 | S50: =SUMIFS(Achievement_finalised!$G$4:$G$71,Achievement_finalised!$B$4:$B$71,Projections!$C50,Achievement_finalised!$D$4:$D$71,Projections!$E50,Achievement_finalised!$E$4:$E$71,Projections!$F50) -> 0 | T50: =SUMIFS(Achievement_forecast_ongoing!G$6:G$50000,Achievement_forecast_ongoing!$C$6:$C$50000,Projections!$C50,Achievement_forecast_ongoing!$E$6:$E$50000,Projections!$E50,Achievement_forecast_ongoing!$F$6:$F$50000,Projections!$F50) -> 0 | U50: =SUMIFS(Achievement_forecast_ongoing!H$6:H$50000,Achievement_forecast_ongoing!$C$6:$C$50000,Projections!$C50,Achievement_forecast_ongoing!$E$6:$E$50000,Projections!$E50,Achievement_forecast_ongoing!$F$6:$F$50000,Projections!$F50) -> 0 | V50: =SUMIFS(Achievement_forecast_ongoing!I$6:I$50000,Achievement_forecast_ongoing!$C$6:$C$50000,Projections!$C50,Achievement_forecast_ongoing!$E$6:$E$50000,Projections!$E50,Achievement_forecast_ongoing!$F$6:$F$50000,Projections!$F50) -> 0 | W50: =SUMIFS(Achievement_forecast_ongoing!J$6:J$50000,Achievement_forecast_ongoing!$C$6:$C$50000,Projections!$C50,Achievement_forecast_ongoing!$E$6:$E$50000,Projections!$E50,Achievement_forecast_ongoing!$F$6:$F$50000,Projections!$F50) -> 0 | X50: =SUMIFS(Achievement_forecasts_future!G$4:G$71,Achievement_forecasts_future!$B$4:$B$71,Projections!$C50,Achievement_forecasts_future!$D$4:$D$71,Projections!$E50,Achievement_forecasts_future!$E$4:$E$71,Projections!$F50) -> 0 | Y50: =SUMIFS(Achievement_forecasts_future!H$4:H$71,Achievement_forecasts_future!$B$4:$B$71,Projections!$C50,Achievement_forecasts_future!$D$4:$D$71,Projections!$E50,Achievement_forecasts_future!$E$4:$E$71,Projections!$F50) -> 0 | Z50: =SUMIFS(Achievement_forecasts_future!I$4:I$71,Achievement_forecasts_future!$B$4:$B$71,Projections!$C50,Achievement_forecasts_future!$D$4:$D$71,Projections!$E50,Achievement_forecasts_future!$E$4:$E$71,Projections!$F50) -> 0 | AA50: =SUMIFS(Achievement_forecasts_future!J$4:J$71,Achievement_forecasts_future!$B$4:$B$71,Projections!$C50,Achievement_forecasts_future!$D$4:$D$71,Projections!$E50,Achievement_forecasts_future!$E$4:$E$71,Projections!$F50) -> 0
G52: 4.8432
H55: Annual growth (%)
C56: PA | D56: PI | E56: Indicator | F56: Region | G56: Target | H56: 2020 | I56: =+H56+1 -> 2021 | J56: =+I56+1 -> 2022 | K56: =+J56+1 -> 2023
C57: 1 | D57: All | E57: 1F | F57: All | G57: 759983412.3 | H57: =L57/$G57*100 -> 0 | I57: =(M4-L4)/M4 -> 0.3865721381 | J57: =(N4-M4)/N4 -> 0.1304260432 | K57: =(O4-N4)/O4 -> 0.0448335461
C58: 1 | D58: All | E58: 1S2 | F58: All | G58: 17 | H58: =L58/$G58*100 -> 0 | I58: =(M5-L5)/M5 -> 1 | J58: =(N5-M5)/N5 -> 0.6666666667 | K58: =(O5-N5)/O5 -> 0
C59: 1 | D59: All | E59: 1K8 | F59: All | G59: 17 | H59: =H58 -> 0 | I59: 1 | J59: 0.6666666667 | K59: 0
C60: 1 | D60: All | E60: CO02 | F60: All | G60: 270 | H60: =L60/$G60*100 -> 0 | I60: 0.5 | J60: 0.6666666667 | K60: 0
C61: 1 | D61: All | E61: 1K9 | F61: All | G61: 144 | H61: =H60 -> 0 | I61: 0.5 | J61: 0.6666666667 | K61: 0
C62: 2 | D62: All | E62: 1F | F62: All | G62: 6739621927 | H62: =L62/$G62*100 -> 0 | I62: 0.2768568721 | J62: 0.07316778886 | K62: 0.01631173465
C63: 2 | D63: All | E63: CO01 | F63: All | G63: 4574 | H63: 0 | I63: 0.1475032675 | J63: 0.1990492553 | K63: 0.2171428787
C64: 3 | D64: All | E64: 1F | F64: Less developed | G64: 6258261243 | H64: 0 | I64: 0.2079338725 | J64: 0.07344801561 | K64: 0.03317678764
C65: 3 | D65: All | E65: 1F | F65: More developed | G65: 1476078574 | H65: 0 | I65: 0.395359124 | J65: 0.1457531551 | K65: 0.07173665261
C66: 3 | D66: All | E66: 1S11 | F66: Less developed | G66: 7 | H66: 0 | I66: 0.825 | J66: 0.4520547945 | K66: 0.1411764706
C67: 3 | D67: All | E67: 1S11 | F67: More developed | G67: 7 | H67: 0 | I67: 0.8571428571 | J67: 0.3636363636 | K67: 0
C68: 3 | D68: All | E68: CO31 | F68: Less developed | G68: 33385 | H68: 0 | I68: 0.490470617 | J68: 0.1012156529 | K68: 0.003573758608
C69: 3 | D69: All | E69: CO31 | F69: More developed | G69: 17621 | H69: 0 | I69: 0.08185026309 | J69: 0 | K69: 0
C70: 4 | D70: All | E70: 1F | F70: All | G70: 6313823446 | H70: 0 | I70: 0.2599739436 | J70: 0.2081175547 | K70: 0.09352594653
C71: 4 | D71: All | E71: 1S11 | F71: All | G71: 50 | H71: 0 | I71: 0.855342935 | J71: 0.4748193349 | K71: 0.2651720089
C72: 4 | D72: All | E72: CO15 | F72: All | G72: 50 | H72: 0 | I72: 0.8512562525 | J72: 0.4383590945 | K72: 0.471469729
C73: 5 | D73: All | E73: 1F | F73: Less developed | G73: 2045241694 | H73: 0 | I73: 0.1403879645 | J73: 0.05306569798 | K73: 0.02776124355
C74: 5 | D74: All | E74: 1F | F74: More developed | G74: 197463453.6 | H74: 0 | I74: 0.1441825906 | J74: 0.05932992202 | K74: 0.02797634285
C75: 5 | D75: All | E75: 1S23 | F75: Less developed | G75: 157 | H75: 0 | I75: 0.6067653277 | J75: 0.2370967742 | K75: 0.06836964688
C76: 5 | D76: All | E76: 1S23 | F76: More developed | G76: 7 | H76: 0 | I76: =M76/$G76*100 -> 0 | J76: =N76/$G76*100 -> 0 | K76: =O76/$G76*100 -> 0
C77: 6 | D77: All | E77: 1F | F77: Less developed | G77: 4656013604 | H77: 0 | I77: 0.08610850997 | J77: 0.03328960134 | K77: 0.01367369054
C78: 6 | D78: All | E78: 1F | F78: More developed | G78: 60540000 | H78: 0 | I78: 0.1228817251 | J78: 0 | K78: 0
C79: 6 | D79: All | E79: CO14 | F79: Less developed | G79: 1932 | H79: 0 | I79: 0.7719084121 | J79: 0.3885672379 | K79: 0.1907325334
C80: 6 | D80: All | E80: CO14 | F80: More developed | G80: 23 | H80: 0 | I80: =M80/$G80*100 -> 0 | J80: =N80/$G80*100 -> 0 | K80: =O80/$G80*100 -> 0
C81: 7 | D81: All | E81: 1F | F81: All | G81: 528052463.8 | H81: 0 | I81: 0.08470710391 | J81: 0.02651073087 | K81: 0.01506134971
C82: 7 | D82: All | E82: 1S27 | F82: All | G82: 1421324 | H82: 0 | I82: 0.9046193476 | J82: 0.134253239 | K82: 0.05001890379
C83: 8 | D83: All | E83: 1F | F83: All | G83: 2780789303 | H83: 0 | I83: 0.3567660921 | J83: 0.1200965353 | K83: 0.04700916088
C84: 8 | D84: All | E84: 1S35 | F84: All | G84: 5188914 | H84: 0 | I84: 0.1232868926 | J84: 0.1138825641 | K84: 0.03448984233
C85: 8 | D85: All | E85: 1S40 | F85: All | G85: 1140 | H85: 0 | I85: 0.9647887324 | J85: 0.4764976959 | K85: 0.08823529412
C86: 9 | D86: All | E86: 1F | F86: Less developed | G86: 359926234.1 | H86: 0 | I86: =M86/$G86*100 -> 0 | J86: 0 | K86: 0
C87: 9 | D87: All | E87: 1F | F87: More developed | G87: 43696430.43 | H87: 0 | I87: 0 | J87: 0 | K87: 0
C88: 9 | D88: All | E88: CO39 | F88: Less developed | G88: 42356 | H88: 0 | I88: 0 | J88: 0 | K88: 0
C89: 9 | D89: All | E89: CO39 | F89: More developed | G89: 4869 | H89: 0 | I89: 0 | J89: 0 | K89: 0
C90: 10 | D90: All | E90: 1F | F90: Less developed | G90: 1297831839 | H90: 0 | I90: 0.3996663854 | J90: 0.1403941612 | K90: 0.06643710123
C91: 10 | D91: All | E91: 1F | F91: More developed | G91: 242159995.2 | H91: 0 | I91: 0.1899641619 | J91: 0.06930604688 | K91: 0.03264238786
C92: 10 | D92: All | E92: 1S55 | F92: Less developed | G92: 42912 | H92: 0 | I92: 0.3616236108 | J92: 0.2685595297 | K92: 0.1405098765
C93: 10 | D93: All | E93: 1S55 | F93: More developed | G93: 7648 | H93: 0 | I93: 0.9368964743 | J93: 0.1882974845 | K93: 0.244040237
C94: 10 | D94: All | E94: 1S66 | F94: Less developed | G94: 32077 | H94: 0 | I94: 0.9376751179 | J94: 0.3070074352 | K94: 0.09912254505
C95: 10 | D95: All | E95: 1S66 | F95: More developed | G95: 5238 | H95: 0 | I95: 0.2389555399 | J95: 0 | K95: 0.09572431398
C96: 11 | D96: All | E96: 1F | F96: All | G96: 1357378208 | H96: 0 | I96: 0.0515344634 | J96: 0.03977975739 | K96: 0.03098739521
C97: 11 | D97: All | E97: 1S57 | F97: All | G97: 5756387 | H97: 0 | I97: =M97/$G97*100 -> 0 | J97: =N97/$G97*100 -> 0 | K97: =O97/$G97*100 -> 0
C98: 13 | D98: All | E98: 1F | F98: All | G98: 1390172988 | H98: 0 | I98: 0.4616650321 | J98: 0.1760656275 | K98: 0.08520020009
C99: 13 | D99: All | E99: CO39 | F99: All | G99: 84654 | H99: 0 | I99: =M99/$G99*100 -> 0 | J99: 0 | K99: 0
C100: 13 | D100: All | E100: 1K7 | F100: All | G100: 90 | H100: 0 | I100: 0 | J100: 0 | K100: 0
C101: 14 | D101: All | E101: 1F | F101: All | G101: 1365782400 | H101: 0 | I101: 0.708085416 | J101: 0.2611042943 | K101: 0.1673124643
C102: 14 | D102: All | E102: 1K17 | F102: All | G102: 3 | H102: =H103 -> 0 | I102: =I103 -> 0 | J102: 0 | K102: 0
C103: 14 | D103: All | E103: 1S39 | F103: All | G103: 3 | H103: =H104 -> 0 | I103: 0 | J103: 0 | K103: 0

Sheet Achievement_finalised
B1: Date of extraction | D1: 2020-06-23
B2: Characteristics
B3: PA | C3: PI | D3: Indicator | E3: Region | F3: Type | G3: Cumulative achievement
B4: 1 | C4: 1 | D4: 1F | E4: All | F4: Financial | G4: 0
B5: 1 | C5: 1 | D5: 1S2 | E5: All | F5: Physical | G5: 0
B6: 1 | C6: 1 | D6: CO02 | E6: All | F6: Physical | G6: 0
B7: 2 | C7: 1 | D7: 1F | E7: All | F7: Financial | G7: 1024216481
B8: 2 | C8: 2 | D8: 1F | E8: All | F8: Financial | G8: 1075255955
B9: 2 | C9: 1 | D9: CO01 | E9: All | F9: Physical | G9: 1734
B10: 2 | C10: 2 | D10: CO01 | E10: All | F10: Physical | G10: 337
B11: 3 | C11: 1 | D11: 1F | E11: Less developed | F11: Financial | G11: 117855940.8
B12: 3 | C12: 2 | D12: 1F | E12: Less developed | F12: Financial | G12: 0
B13: 3 | C13: 1 | D13: 1F | E13: More developed | F13: Financial | G13: 248506204.2
B14: 3 | C14: 2 | D14: 1F | E14: More developed | F14: Financial | G14: 0
B15: 3 | C15: 1 | D15: 1S11 | E15: Less developed | F15: Physical | G15: 0
B16: 3 | C16: 2 | D16: 1S11 | E16: Less developed | F16: Physical | G16: 0
B17: 3 | C17: 1 | D17: 1S11 | E17: More developed | F17: Physical | G17: 0
B18: 3 | C18: 2 | D18: 1S11 | E18: More developed | F18: Physical | G18: 0
B19: 3 | C19: 1 | D19: CO31 | E19: Less developed | F19: Physical | G19: 2610
B20: 3 | C20: 2 | D20: CO31 | E20: Less developed | F20: Physical | G20: 0
B21: 3 | C21: 1 | D21: CO31 | E21: More developed | F21: Physical | G21: 20471
B22: 3 | C22: 2 | D22: CO31 | E22: More developed | F22: Physical | G22: 0
B23: 4 | C23: 1 | D23: 1F | E23: All | F23: Financial | G23: 4769247.5
B24: 4 | C24: 2 | D24: 1F | E24: All | F24: Financial | G24: 132112597.1
B25: 4 | C25: 3 | D25: 1F | E25: All | F25: Financial | G25: 0
B26: 4 | C26: 4 | D26: 1F | E26: All | F26: Financial | G26: 1352759.1
B27: 4 | C27: 1 | D27: 1S11 | E27: All | F27: Physical | G27: 0
B28: 4 | C28: 2 | D28: 1S11 | E28: All | F28: Physical | G28: 3
B29: 4 | C29: 3 | D29: 1S11 | E29: All | F29: Physical | G29: 0
B30: 4 | C30: 4 | D30: 1S11 | E30: All | F30: Physical | G30: 0
B31: 4 | C31: 1 | D31: CO15 | E31: All | F31: Physical | G31: 0
B32: 4 | C32: 2 | D32: CO15 | E32: All | F32: Physical | G32: 2.16
B33: 4 | C33: 3 | D33: CO15 | E33: All | F33: Physical | G33: 0
B34: 4 | C34: 4 | D34: CO15 | E34: All | F34: Physical | G34: 0
B35: 5 | C35: 1 | D35: 1F | E35: Less developed | F35: Financial | G35: 104718463.3
B36: 5 | C36: 2 | D36: 1F | E36: Less developed | F36: Financial | G36: 22903497.39
B37: 5 | C37: 1 | D37: 1F | E37: More developed | F37: Financial | G37: 7218444.06
B38: 5 | C38: 2 | D38: 1F | E38: More developed | F38: Financial | G38: 0
B39: 5 | C39: 1 | D39: 1S23 | E39: Less developed | F39: Physical | G39: 8
B40: 5 | C40: 2 | D40: 1S23 | E40: Less developed | F40: Physical | G40: 0
B41: 5 | C41: 1 | D41: 1S23 | E41: More developed | F41: Physical | G41: 0
B42: 5 | C42: 2 | D42: 1S23 | E42: More developed | F42: Physical | G42: 0
B43: 6 | C43: 1 | D43: 1F | E43: Less developed | F43: Financial | G43: 110385276.6
B44: 6 | C44: 2 | D44: 1F | E44: Less developed | F44: Financial | G44: 0
B45: 6 | C45: 1 | D45: 1F | E45: More developed | F45: Financial | G45: 0
B46: 6 | C46: 2 | D46: 1F | E46: More developed | F46: Financial | G46: 0
B47: 6 | C47: 1 | D47: CO14 | E47: Less developed | F47: Physical | G47: 49.844
B48: 6 | C48: 2 | D48: CO14 | E48: Less developed | F48: Physical | G48: 0
B49: 6 | C49: 1 | D49: CO14 | E49: More developed | F49: Physical | G49: 0
B50: 6 | C50: 2 | D50: CO14 | E50: More developed | F50: Physical | G50: 0
B51: 7 | C51: 1 | D51: 1F | E51: All | F51: Financial | G51: 962168.48
B52: 7 | C52: 1 | D52: 1S27 | E52: All | F52: Physical | G52: 0
B53: 8 | C53: 1 | D53: 1F | E53: All | F53: Financial | G53: 484574491.4
B54: 8 | C54: 1 | D54: 1S35 | E54: All | F54: Physical | G54: 2078575
B55: 8 | C55: 1 | D55: 1S40 | E55: All | F55: Physical | G55: 0
B56: 9 | C56: 1 | D56: 1F | E56: Less developed | F56: Financial | G56: 0
B57: 9 | C57: 1 | D57: 1F | E57: More developed | F57: Financial | G57: 0
B58: 9 | C58: 1 | D58: CO39 | E58: Less developed | F58: Physical | G58: 0
B59: 9 | C59: 1 | D59: CO39 | E59: More developed | F59: Physical | G59: 0
B60: 10 | C60: 1 | D60: 1F | E60: Less developed | F60: Financial | G60: 34126180.87
B61: 10 | C61: 1 | D61: 1F | E61: More developed | F61: Financial | G61: 1431199.77
B62: 10 | C62: 1 | D62: 1S55 | E62: Less developed | F62: Physical | G62: 2151
B63: 10 | C63: 1 | D63: 1S55 | E63: More developed | F63: Physical | G63: 0
B64: 10 | C64: 1 | D64: 1S66 | E64: Less developed | F64: Physical | G64: 0
B65: 10 | C65: 1 | D65: 1S66 | E65: More developed | F65: Physical | G65: 0
B66: 11 | C66: 1 | D66: 1F | E66: All | F66: Financial | G66: 0
B67: 11 | C67: 1 | D67: 1S57 | E67: All | F67: Physical | G67: 0
B68: 13 | C68: 1 | D68: 1F | E68: All | F68: Financial | G68: 0
B69: 13 | C69: 1 | D69: CO39 | E69: All | F69: Physical | G69: 0
B70: 14 | C70: 1 | D70: 1F | E70: All | F70: Financial | G70: 0
B71: 14 | C71: 1 | D71: 1S39 | E71: All | F71: Physical | G71: 0

Sheet Achievement_to_date_ongoing
C2: Characteristics | K2: Expected achievement | M2: % complete by the end of year
B3: SMIS CODE | C3: PA | D3: PI | E3: Indicator | F3: Region | G3: Type | H3: Value | I3: Start date | J3: End date | K3: Expected | M3: 2020 | N3: 2021 | O3: 2022 | P3: 2023
B4: 125978 | C4: 1 | D4: 1 | E4: 1F | F4: All | G4: Financial | H4: 0 | I4: 2018-06-01 | J4: 2020-09-30 | K4: 675435.9118 | M4: 1 | N4: 1 | O4: 1 | P4: 1
B5: 128789 | C5: 1 | D5: 1 | E5: 1F | F5: All | G5: Financial | H5: 0 | I5: 2020-06-01 | J5: 2022-05-31 | K5: 3189878.89 | M5: 0.528617479 | N5: 0.9261275964 | O5: 1 | P5: 1
B6: 127057 | C6: 1 | D6: 1 | E6: 1F | F6: All | G6: Financial | H6: 0 | I6: 2017-10-01 | J6: 2022-09-30 | K6: 11012822.05 | M6: 0.854315947 | N6: 0.9507898722 | O6: 1 | P6: 1
B7: 128795 | C7: 1 | D7: 1 | E7: 1F | F7: All | G7: Financial | H7: 0 | I7: 2018-10-01 | J7: 2022-05-31 | K7: 10767357.02 | M7: 0.829433002 | N7: 0.9655254176 | O7: 1 | P7: 1
B8: 128309 | C8: 1 | D8: 1 | E8: 1F | F8: All | G8: Financial | H8: 0 | I8: 2018-10-01 | J8: 2021-08-31 | K8: 844828.5583 | M8: 0.9171624253 | N8: 1 | O8: 1 | P8: 1
B9: 128862 | C9: 1 | D9: 1 | E9: 1F | F9: All | G9: Financial | H9: 0 | I9: 2018-12-01 | J9: 2022-12-31 | K9: 2807268.773 | M9: 0.7568340478 | N9: 0.9125309037 | O9: 1 | P9: 1
B10: 128947 | C10: 1 | D10: 1 | E10: 1F | F10: All | G10: Financial | H10: 23460.3 | I10: 2017-03-01 | J10: 2021-11-30 | K10: 775709.5269 | M10: 0.9347097698 | N10: 1 | O10: 1 | P10: 1
B11: 125978 | C11: 1 | D11: 1 | E11: 1S2 | F11: All | G11: Physical | I11: 2018-06-01 | J11: 2020-09-30 | K11: 0 | M11: 1 | N11: 1 | O11: 1 | P11: 1
B12: 128789 | C12: 1 | D12: 1 | E12: 1S2 | F12: All | G12: Physical | I12: 2020-06-01 | J12: 2022-05-31 | K12: 1 | M12: 0 | N12: 0 | O12: 1 | P12: 1
B13: 127057 | C13: 1 | D13: 1 | E13: 1S2 | F13: All | G13: Physical | I13: 2017-10-01 | J13: 2022-09-30 | K13: 1 | M13: 0 | N13: 0 | O13: 1 | P13: 1
B14: 128795 | C14: 1 | D14: 1 | E14: 1S2 | F14: All | G14: Physical | I14: 2018-10-01 | J14: 2022-05-31 | K14: 1 | M14: 0 | N14: 0 | O14: 1 | P14: 1
B15: 128309 | C15: 1 | D15: 1 | E15: 1S2 | F15: All | G15: Physical | I15: 2018-10-01 | J15: 2021-08-31 | K15: 1 | M15: 0 | N15: 1 | O15: 1 | P15: 1
B16: 128862 | C16: 1 | D16: 1 | E16: 1S2 | F16: All | G16: Physical | I16: 2018-12-01 | J16: 2022-12-31 | K16: 1 | M16: 0 | N16: 0 | O16: 1 | P16: 1
B17: 128947 | C17: 1 | D17: 1 | E17: 1S2 | F17: All | G17: Physical | I17: 2017-03-01 | J17: 2021-11-30 | K17: 1 | M17: 0 | N17: 1 | O17: 1 | P17: 1
B18: 125978 | C18: 1 | D18: 1 | E18: CO02 | F18: All | G18: Physical | I18: 2018-06-01 | J18: 2020-09-30 | K18: 1 | M18: 1 | N18: 1 | O18: 1 | P18: 1
B19: 128789 | C19: 1 | D19: 1 | E19: CO02 | F19: All | G19: Physical | I19: 2020-06-01 | J19: 2022-05-31 | K19: 1 | M19: 0 | N19: 0 | O19: 1 | P19: 1
B20: 127057 | C20: 1 | D20: 1 | E20: CO02 | F20: All | G20: Physical | I20: 2017-10-01 | J20: 2022-09-30 | K20: 1 | M20: 0 | N20: 0 | O20: 1 | P20: 1
B21: 128795 | C21: 1 | D21: 1 | E21: CO02 | F21: All | G21: Physical | I21: 2018-10-01 | J21: 2022-05-31 | K21: 1 | M21: 0 | N21: 0 | O21: 1 | P21: 1
B22: 128309 | C22: 1 | D22: 1 | E22: CO02 | F22: All | G22: Physical | I22: 2018-10-01 | J22: 2021-08-31 | K22: 1 | M22: 0 | N22: 1 | O22: 1 | P22: 1
B23: 128862 | C23: 1 | D23: 1 | E23: CO02 | F23: All | G23: Physical | I23: 2018-12-01 | J23: 2022-12-31 | K23: 1 | M23: 0 | N23: 0 | O23: 1 | P23: 1
B24: 110110 | C24: 2 | D24: 2 | E24: 1F | F24: All | G24: Financial | H24: 900000 | I24: 2016-08-01 | J24: 2021-08-31 | K24: 3722407.073 | M24: 0.9583184578 | N24: 1 | O24: 1 | P24: 1
B25: 110217 | C25: 2 | D25: 2 | E25: 1F | F25: All | G25: Financial | H25: 139309.2 | I25: 2018-03-01 | J25: 2020-08-31 | K25: 3604282.453 | M25: 1 | N25: 1 | O25: 1 | P25: 1
B26: 110496 | C26: 2 | D26: 2 | E26: 1F | F26: All | G26: Financial | H26: 853591.48 | I26: 2018-06-01 | J26: 2021-05-31 | K26: 2444338.805 | M26: 0.9545952506 | N26: 1 | O26: 1 | P26: 1
B27: 110567 | C27: 2 | D27: 2 | E27: 1F | F27: All | G27: Financial | H27: 934354.11 | I27: 2018-06-14 | J27: 2021-09-30 | K27: 996774.247 | M27: 0.9171624253 | N27: 1 | O27: 1 | P27: 1
B28: 110996 | C28: 2 | D28: 2 | E28: 1F | F28: All | G28: Financial | H28: 1051170.9 | I28: 2017-02-23 | J28: 2021-12-31 | K28: 2200430.834 | M28: 0.9261275964 | N28: 1 | O28: 1 | P28: 1
B29: 111168 | C29: 2 | D29: 2 | E29: 1F | F29: All | G29: Financial | H29: 3910831.98 | I29: 2018-03-09 | J29: 2021-03-31 | K29: 4177834.462 | M29: 0.9757627039 | N29: 1 | O29: 1 | P29: 1
B30: 111415 | C30: 2 | D30: 2 | E30: 1F | F30: All | G30: Financial | H30: 3395655.02 | I30: 2018-04-13 | J30: 2020-12-31 | K30: 4197259.408 | M30: 1 | N30: 1 | O30: 1 | P30: 1
B31: 111416 | C31: 2 | D31: 2 | E31: 1F | F31: All | G31: Financial | H31: 353374.69 | I31: 2017-02-01 | J31: 2021-06-30 | K31: 3987389.942 | M31: 0.9655254176 | N31: 1 | O31: 1 | P31: 1
B32: 111670 | C32: 2 | D32: 2 | E32: 1F | F32: All | G32: Financial | H32: 4220322.89 | I32: 2017-01-10 | J32: 2020-09-30 | K32: 4323384.962 | M32: 1 | N32: 1 | O32: 1 | P32: 1
B33: 111704 | C33: 2 | D33: 2 | E33: 1F | F33: All | G33: Financial | H33: 2291771.53 | I33: 2018-04-01 | J33: 2020-09-30 | K33: 4301285.763 | M33: 1 | N33: 1 | O33: 1 | P33: 1
B34: 111729 | C34: 2 | D34: 2 | E34: 1F | F34: All | G34: Financial | H34: 3859921.48 | I34: 2018-04-01 | J34: 2020-08-31 | K34: 3900328.819 | M34: 1 | N34: 1 | O34: 1 | P34: 1
B35: 111891 | C35: 2 | D35: 2 | E35: 1F | F35: All | G35: Financial | H35: 295609.52 | I35: 2018-05-01 | J35: 2022-05-30 | K35: 2042083.013 | M35: 0.854315947 | N35: 0.9690126048 | O35: 1 | P35: 1
B36: 111942 | C36: 2 | D36: 2 | E36: 1F | F36: All | G36: Financial | H36: 3372839.71 | I36: 2017-06-20 | J36: 2020-09-30 | K36: 3445698.307 | M36: 1 | N36: 1 | O36: 1 | P36: 1
B37: 111960 | C37: 2 | D37: 2 | E37: 1F | F37: All | G37: Financial | H37: 42660 | I37: 2018-09-01 | J37: 2021-08-31 | K37: 4178445.201 | M37: 0.9216939363 | N37: 1 | O37: 1 | P37: 1
B38: 112212 | C38: 2 | D38: 2 | E38: 1F | F38: All | G38: Financial | H38: 1304000.84 | I38: 2017-01-01 | J38: 2021-07-31 | K38: 4299678.063 | M38: 0.9583184578 | N38: 1 | O38: 1 | P38: 1
B39: 112245 | C39: 2 | D39: 2 | E39: 1F | F39: All | G39: Financial | H39: 3820901.96 | I39: 2016-12-21 | J39: 2021-05-31 | K39: 4323676.251 | M39: 0.9724244916 | N39: 1 | O39: 1 | P39: 1
B40: 112726 | C40: 2 | D40: 2 | E40: 1F | F40: All | G40: Financial | H40: 0 | I40: 2018-02-01 | J40: 2021-02-01 | K40: 1615085.655 | M40: 0.9914031438 | N40: 1 | O40: 1 | P40: 1
B41: 113157 | C41: 2 | D41: 2 | E41: 1F | F41: All | G41: Financial | H41: 3119292.34 | I41: 2018-03-31 | J41: 2020-09-30 | K41: 3119292.34 | M41: 1 | N41: 1 | O41: 1 | P41: 1
B42: 113319 | C42: 2 | D42: 2 | E42: 1F | F42: All | G42: Financial | H42: 1383529.87 | I42: 2016-12-10 | J42: 2020-12-28 | K42: 1600210.232 | M42: 1 | N42: 1 | O42: 1 | P42: 1
B43: 113378 | C43: 2 | D43: 2 | E43: 1F | F43: All | G43: Financial | H43: 1425327.17 | I43: 2018-08-01 | J43: 2021-07-31 | K43: 1431515.883 | M43: 0.9530716097 | N43: 1 | O43: 1 | P43: 1
B44: 113386 | C44: 2 | D44: 2 | E44: 1F | F44: All | G44: Financial | H44: 362769.08 | I44: 2016-11-01 | J44: 2021-04-30 | K44: 1407918.258 | M44: 0.9790288328 | N44: 1 | O44: 1 | P44: 1
B45: 113390 | C45: 2 | D45: 2 | E45: 1F | F45: All | G45: Financial | H45: 1001190.67 | I45: 2017-01-01 | J45: 2021-02-28 | K45: 4323908.144 | M45: 0.9884101162 | N45: 1 | O45: 1 | P45: 1
B46: 113465 | C46: 2 | D46: 2 | E46: 1F | F46: All | G46: Financial | H46: 1007377.1 | I46: 2018-03-01 | J46: 2020-12-31 | K46: 2099463.845 | M46: 1 | N46: 1 | O46: 1 | P46: 1
B47: 113479 | C47: 2 | D47: 2 | E47: 1F | F47: All | G47: Financial | H47: 2603414.12 | I47: 2017-02-01 | J47: 2020-08-31 | K47: 3250675.318 | M47: 1 | N47: 1 | O47: 1 | P47: 1
B48: 113579 | C48: 2 | D48: 2 | E48: 1F | F48: All | G48: Financial | H48: 4164927.38 | I48: 2018-05-02 | J48: 2021-04-30 | K48: 4316382.12 | M48: 0.9655254176 | N48: 1 | O48: 1 | P48: 1
B49: 113928 | C49: 2 | D49: 2 | E49: 1F | F49: All | G49: Financial | H49: 2210044.17 | I49: 2018-07-01 | J49: 2021-06-30 | K49: 3207067.032 | M49: 0.9429253075 | N49: 1 | O49: 1 | P49: 1
B50: 114154 | C50: 2 | D50: 2 | E50: 1F | F50: All | G50: Financial | H50: 259981.59 | I50: 2018-06-01 | J50: 2020-09-01 | K50: 2892106.448 | M50: 1 | N50: 1 | O50: 1 | P50: 1
B51: 114191 | C51: 2 | D51: 2 | E51: 1F | F51: All | G51: Financial | H51: 3580450.37 | I51: 2017-02-04 | J51: 2020-12-31 | K51: 4219881.799 | M51: 1 | N51: 1 | O51: 1 | P51: 1
B52: 114197 | C52: 2 | D52: 2 | E52: 1F | F52: All | G52: Financial | H52: 2178533.75 | I52: 2018-03-01 | J52: 2021-02-28 | K52: 4309671.706 | M52: 0.9853510325 | N52: 1 | O52: 1 | P52: 1
B53: 114557 | C53: 2 | D53: 2 | E53: 1F | F53: All | G53: Financial | H53: 1093980.11 | I53: 2018-09-05 | J53: 2020-08-31 | K53: 1207896.605 | M53: 1 | N53: 1 | O53: 1 | P53: 1
B54: 114620 | C54: 2 | D54: 2 | E54: 1F | F54: All | G54: Financial | H54: 1837303.89 | I54: 2017-03-01 | J54: 2020-09-30 | K54: 3994243.268 | M54: 1 | N54: 1 | O54: 1 | P54: 1
B55: 114632 | C55: 2 | D55: 2 | E55: 1F | F55: All | G55: Financial | H55: 1098482.58 | I55: 2017-03-01 | J55: 2021-07-31 | K55: 1221796.871 | M55: 0.9583184578 | N55: 1 | O55: 1 | P55: 1
B56: 114744 | C56: 2 | D56: 2 | E56: 1F | F56: All | G56: Financial | H56: 539066.5 | I56: 2017-04-01 | J56: 2021-08-30 | K56: 1819250.332 | M56: 0.9507898722 | N56: 1 | O56: 1 | P56: 1
B57: 114819 | C57: 2 | D57: 2 | E57: 1F | F57: All | G57: Financial | H57: 1168203.48 | I57: 2018-03-01 | J57: 2020-11-30 | K57: 1267949.68 | M57: 1 | N57: 1 | O57: 1 | P57: 1
B58: 114897 | C58: 2 | D58: 2 | E58: 1F | F58: All | G58: Financial | H58: 2126394.84 | I58: 2016-10-01 | J58: 2020-08-31 | K58: 4187805.516 | M58: 1 | N58: 1 | O58: 1 | P58: 1
B59: 114903 | C59: 2 | D59: 2 | E59: 1F | F59: All | G59: Financial | H59: 91800 | I59: 2018-07-10 | J59: 2020-10-31 | K59: 4303880.788 | M59: 1 | N59: 1 | O59: 1 | P59: 1
B60: 115110 | C60: 2 | D60: 2 | E60: 1F | F60: All | G60: Financial | H60: 3372807.54 | I60: 2018-06-01 | J60: 2021-05-31 | K60: 3372807.54 | M60: 0.978951024 | N60: 1 | O60: 1 | P60: 1
B61: 115112 | C61: 2 | D61: 2 | E61: 1F | F61: All | G61: Financial | H61: 3134955.06 | I61: 2019-09-27 | J61: 2021-09-01 | K61: 3134955.06 | M61: 0.9953766521 | N61: 1 | O61: 1 | P61: 1
B62: 115129 | C62: 2 | D62: 2 | E62: 1F | F62: All | G62: Financial | H62: 0 | I62: 2018-10-01 | J62: 2021-09-01 | K62: 4323716.702 | M62: 0.9171624253 | N62: 1 | O62: 1 | P62: 1
B63: 115187 | C63: 2 | D63: 2 | E63: 1F | F63: All | G63: Financial | H63: 1251955.55 | I63: 2016-01-01 | J63: 2020-12-31 | K63: 1256876.074 | M63: 1 | N63: 1 | O63: 1 | P63: 1
B64: 115313 | C64: 2 | D64: 2 | E64: 1F | F64: All | G64: Financial | H64: 437595 | I64: 2018-05-07 | J64: 2020-10-31 | K64: 1820087.91 | M64: 1 | N64: 1 | O64: 1 | P64: 1
B65: 115356 | C65: 2 | D65: 2 | E65: 1F | F65: All | G65: Financial | H65: 3533426.07 | I65: 2017-06-08 | J65: 2020-12-31 | K65: 3651217.111 | M65: 1 | N65: 1 | O65: 1 | P65: 1
B66: 115416 | C66: 2 | D66: 2 | E66: 1F | F66: All | G66: Financial | H66: 0 | I66: 2017-05-01 | J66: 2020-09-30 | K66: 2284263.948 | M66: 1 | N66: 1 | O66: 1 | P66: 1
B67: 115466 | C67: 2 | D67: 2 | E67: 1F | F67: All | G67: Financial | H67: 1492008.27 | I67: 2018-08-01 | J67: 2020-12-31 | K67: 1756091.485 | M67: 1 | N67: 1 | O67: 1 | P67: 1
B68: 115669 | C68: 2 | D68: 2 | E68: 1F | F68: All | G68: Financial | H68: 251089.78 | I68: 2018-07-24 | J68: 2021-07-31 | K68: 2557677.223 | M68: 0.9347097698 | N68: 1 | O68: 1 | P68: 1
B69: 115711 | C69: 2 | D69: 2 | E69: 1F | F69: All | G69: Financial | H69: 3549474.39 | I69: 2017-03-01 | J69: 2020-11-30 | K69: 4321446.076 | M69: 1 | N69: 1 | O69: 1 | P69: 1
B70: 115981 | C70: 2 | D70: 2 | E70: 1F | F70: All | G70: Financial | H70: 1962464.24 | I70: 2017-02-01 | J70: 2020-08-31 | K70: 4259410.888 | M70: 1 | N70: 1 | O70: 1 | P70: 1
B71: 115984 | C71: 2 | D71: 2 | E71: 1F | F71: All | G71: Financial | H71: 0 | I71: 2018-07-01 | J71: 2021-05-31 | K71: 4307823.679 | M71: 0.9545952506 | N71: 1 | O71: 1 | P71: 1
B72: 116011 | C72: 2 | D72: 2 | E72: 1F | F72: All | G72: Financial | H72: 4349676.39 | I72: 2017-03-15 | J72: 2020-12-31 | K72: 4349676.39 | M72: 1 | N72: 1 | O72: 1 | P72: 1
B73: 116091 | C73: 2 | D73: 2 | E73: 1F | F73: All | G73: Financial | H73: 832810.2 | I73: 2017-06-20 | J73: 2022-12-31 | K73: 2128943.706 | M73: 0.8482974025 | N73: 0.9388623732 | O73: 1 | P73: 1
B74: 116098 | C74: 2 | D74: 2 | E74: 1F | F74: All | G74: Financial | H74: 1249388.1 | I74: 2018-06-01 | J74: 2020-10-31 | K74: 1734740.021 | M74: 1 | N74: 1 | O74: 1 | P74: 1
B75: 116117 | C75: 2 | D75: 2 | E75: 1F | F75: All | G75: Financial | H75: 802229.57 | I75: 2018-11-01 | J75: 2020-10-30 | K75: 3081570.872 | M75: 1 | N75: 1 | O75: 1 | P75: 1
B76: 116281 | C76: 2 | D76: 2 | E76: 1F | F76: All | G76: Financial | H76: 320360.71 | I76: 2018-07-01 | J76: 2021-05-31 | K76: 4306577.181 | M76: 0.9545952506 | N76: 1 | O76: 1 | P76: 1
B77: 116329 | C77: 2 | D77: 2 | E77: 1F | F77: All | G77: Financial | H77: 1583144.33 | I77: 2018-07-01 | J77: 2020-12-31 | K77: 4303494.248 | M77: 1 | N77: 1 | O77: 1 | P77: 1
B78: 116362 | C78: 2 | D78: 2 | E78: 1F | F78: All | G78: Financial | H78: 0 | I78: 2018-10-01 | J78: 2021-09-30 | K78: 3134263.453 | M78: 0.9077971644 | N78: 1 | O78: 1 | P78: 1
B79: 116402 | C79: 2 | D79: 2 | E79: 1F | F79: All | G79: Financial | H79: 24558.03 | I79: 2018-10-01 | J79: 2021-09-30 | K79: 4238385.009 | M79: 0.9077971644 | N79: 1 | O79: 1 | P79: 1
B80: 116679 | C80: 2 | D80: 2 | E80: 1F | F80: All | G80: Financial | H80: 2223363.22 | I80: 2018-09-06 | J80: 2021-12-31 | K80: 2673611.354 | M80: 0.8825144773 | N80: 1 | O80: 1 | P80: 1
B81: 116694 | C81: 2 | D81: 2 | E81: 1F | F81: All | G81: Financial | H81: 809769.2 | I81: 2018-04-18 | J81: 2020-09-30 | K81: 3941895.952 | M81: 1 | N81: 1 | O81: 1 | P81: 1
B82: 116832 | C82: 2 | D82: 2 | E82: 1F | F82: All | G82: Financial | H82: 2026544.75 | I82: 2018-09-01 | J82: 2020-12-31 | K82: 4164459.092 | M82: 1 | N82: 1 | O82: 1 | P82: 1
B83: 117020 | C83: 2 | D83: 2 | E83: 1F | F83: All | G83: Financial | H83: 73976.6 | I83: 2018-10-01 | J83: 2021-09-30 | K83: 4278228.848 | M83: 0.9077971644 | N83: 1 | O83: 1 | P83: 1
B84: 117165 | C84: 2 | D84: 2 | E84: 1F | F84: All | G84: Financial | H84: 1674385.5 | I84: 2018-09-03 | J84: 2021-08-31 | K84: 4293412.196 | M84: 0.9216939363 | N84: 1 | O84: 1 | P84: 1
B85: 110727 | C85: 2 | D85: 2 | E85: 1F | F85: All | G85: Financial | H85: 126233.06 | I85: 2017-01-01 | J85: 2021-01-31 | K85: 3228220.325 | M85: 0.9943315416 | N85: 1 | O85: 1 | P85: 1
B86: 110753 | C86: 2 | D86: 2 | E86: 1F | F86: All | G86: Financial | H86: 1316559.86 | I86: 2017-02-27 | J86: 2020-11-30 | K86: 3500397.42 | M86: 1 | N86: 1 | O86: 1 | P86: 1
B87: 110892 | C87: 2 | D87: 2 | E87: 1F | F87: All | G87: Financial | H87: 1206745.82 | I87: 2017-01-16 | J87: 2021-06-30 | K87: 4322942.099 | M87: 0.9655254176 | N87: 1 | O87: 1 | P87: 1
B88: 110915 | C88: 2 | D88: 2 | E88: 1F | F88: All | G88: Financial | H88: 3418597 | I88: 2018-05-01 | J88: 2020-12-30 | K88: 4023926.286 | M88: 1 | N88: 1 | O88: 1 | P88: 1
B89: 111026 | C89: 2 | D89: 2 | E89: 1F | F89: All | G89: Financial | H89: 1687306.93 | I89: 2018-09-17 | J89: 2020-09-30 | K89: 1700872.933 | M89: 1 | N89: 1 | O89: 1 | P89: 1
B90: 111087 | C90: 2 | D90: 2 | E90: 1F | F90: All | G90: Financial | H90: 2929090.89 | I90: 2018-09-14 | J90: 2020-12-31 | K90: 4289591.637 | M90: 1 | N90: 1 | O90: 1 | P90: 1
B91: 111211 | C91: 2 | D91: 2 | E91: 1F | F91: All | G91: Financial | H91: 955971.42 | I91: 2017-03-30 | J91: 2020-09-30 | K91: 955971.42 | M91: 1 | N91: 1 | O91: 1 | P91: 1
B92: 111513 | C92: 2 | D92: 2 | E92: 1F | F92: All | G92: Financial | H92: 1226486.6 | I92: 2018-07-09 | J92: 2021-10-31 | K92: 1408761.196 | M92: 0.9077971644 | N92: 1 | O92: 1 | P92: 1
B93: 111797 | C93: 2 | D93: 2 | E93: 1F | F93: All | G93: Financial | H93: 1403779.02 | I93: 2018-09-12 | J93: 2020-08-31 | K93: 1511747.725 | M93: 1 | N93: 1 | O93: 1 | P93: 1
B94: 112077 | C94: 2 | D94: 2 | E94: 1F | F94: All | G94: Financial | H94: 3590266.12 | I94: 2018-06-01 | J94: 2020-12-31 | K94: 3653396.534 | M94: 1 | N94: 1 | O94: 1 | P94: 1
B95: 112294 | C95: 2 | D95: 2 | E95: 1F | F95: All | G95: Financial | H95: 1782979.18 | I95: 2016-12-02 | J95: 2020-09-30 | K95: 4319218.381 | M95: 1 | N95: 1 | O95: 1 | P95: 1
B96: 112440 | C96: 2 | D96: 2 | E96: 1F | F96: All | G96: Financial | H96: 603088.87 | I96: 2017-05-02 | J96: 2020-09-30 | K96: 1565303.738 | M96: 1 | N96: 1 | O96: 1 | P96: 1
B97: 113047 | C97: 2 | D97: 2 | E97: 1F | F97: All | G97: Financial | H97: 2699208.58 | I97: 2018-07-06 | J97: 2020-12-31 | K97: 3412725.062 | M97: 1 | N97: 1 | O97: 1 | P97: 1
B98: 113062 | C98: 2 | D98: 2 | E98: 1F | F98: All | G98: Financial | H98: 2221420.95 | I98: 2018-07-01 | J98: 2022-01-31 | K98: 2290455.402 | M98: 0.9283594517 | N98: 0.9943315416 | O98: 1 | P98: 1
B99: 113070 | C99: 2 | D99: 2 | E99: 1F | F99: All | G99: Financial | H99: 757847.39 | I99: 2016-04-01 | J99: 2021-04-30 | K99: 4313589.796 | M99: 0.9822244347 | N99: 1 | O99: 1 | P99: 1
B100: 113270 | C100: 2 | D100: 2 | E100: 1F | F100: All | G100: Financial | H100: 2983015.65 | I100: 2018-09-01 | J100: 2020-08-31 | K100: 3013570.362 | M100: 1 | N100: 1 | O100: 1 | P100: 1
B101: 113426 | C101: 2 | D101: 2 | E101: 1F | F101: All | G101: Financial | H101: 425653.2 | I101: 2017-05-01 | J101: 2021-08-31 | K101: 1223270.648 | M101: 0.9507898722 | N101: 1 | O101: 1 | P101: 1
B102: 113557 | C102: 2 | D102: 2 | E102: 1F | F102: All | G102: Financial | H102: 1385066.71 | I102: 2018-10-01 | J102: 2020-09-30 | K102: 1448654.695 | M102: 1 | N102: 1 | O102: 1 | P102: 1
B103: 114046 | C103: 2 | D103: 2 | E103: 1F | F103: All | G103: Financial | H103: 527112.2 | I103: 2016-11-01 | J103: 2020-11-30 | K103: 995207.3999 | M103: 1 | N103: 1 | O103: 1 | P103: 1
B104: 114048 | C104: 2 | D104: 2 | E104: 1F | F104: All | G104: Financial | H104: 893018.7 | I104: 2016-12-01 | J104: 2020-11-30 | K104: 893018.7 | M104: 1 | N104: 1 | O104: 1 | P104: 1
B105: 114069 | C105: 2 | D105: 2 | E105: 1F | F105: All | G105: Financial | H105: 4315351.5 | I105: 2017-01-01 | J105: 2021-03-30 | K105: 4323566.899 | M105: 0.9822244347 | N105: 1 | O105: 1 | P105: 1
B106: 114089 | C106: 2 | D106: 2 | E106: 1F | F106: All | G106: Financial | H106: 3528754.61 | I106: 2017-04-14 | J106: 2021-05-31 | K106: 4284834.648 | M106: 0.9690126048 | N106: 1 | O106: 1 | P106: 1
B107: 114107 | C107: 2 | D107: 2 | E107: 1F | F107: All | G107: Financial | H107: 3011593.21 | I107: 2017-05-30 | J107: 2020-11-30 | K107: 4095868.051 | M107: 1 | N107: 1 | O107: 1 | P107: 1
B108: 114128 | C108: 2 | D108: 2 | E108: 1F | F108: All | G108: Financial | H108: 3524753.41 | I108: 2018-07-01 | J108: 2021-06-30 | K108: 3524753.41 | M108: 0.9974129797 | N108: 1 | O108: 1 | P108: 1
B109: 114306 | C109: 2 | D109: 2 | E109: 1F | F109: All | G109: Financial | H109: 1164235.4 | I109: 2018-10-03 | J109: 2020-09-30 | K109: 4264579.763 | M109: 1 | N109: 1 | O109: 1 | P109: 1
B110: 114395 | C110: 2 | D110: 2 | E110: 1F | F110: All | G110: Financial | H110: 3553546.62 | I110: 2017-03-07 | J110: 2021-07-31 | K110: 3553546.62 | M110: 0.9705268664 | N110: 1 | O110: 1 | P110: 1
B111: 114413 | C111: 2 | D111: 2 | E111: 1F | F111: All | G111: Financial | H111: 1993138.38 | I111: 2018-09-01 | J111: 2021-04-30 | K111: 1993138.38 | M111: 0.9642048165 | N111: 1 | O111: 1 | P111: 1
B112: 114425 | C112: 2 | D112: 2 | E112: 1F | F112: All | G112: Financial | H112: 243689.93 | I112: 2017-03-29 | J112: 2020-09-30 | K112: 1022722.204 | M112: 1 | N112: 1 | O112: 1 | P112: 1
B113: 114535 | C113: 2 | D113: 2 | E113: 1F | F113: All | G113: Financial | H113: 2879571.39 | I113: 2017-02-01 | J113: 2020-08-30 | K113: 4282282.057 | M113: 1 | N113: 1 | O113: 1 | P113: 1
B114: 114643 | C114: 2 | D114: 2 | E114: 1F | F114: All | G114: Financial | H114: 1390334.22 | I114: 2017-03-02 | J114: 2020-12-31 | K114: 2178718.013 | M114: 1 | N114: 1 | O114: 1 | P114: 1
B115: 114649 | C115: 2 | D115: 2 | E115: 1F | F115: All | G115: Financial | H115: 3077511.77 | I115: 2018-07-01 | J115: 2020-12-31 | K115: 3163910.146 | M115: 1 | N115: 1 | O115: 1 | P115: 1
B116: 114738 | C116: 2 | D116: 2 | E116: 1F | F116: All | G116: Financial | H116: 1350709.2 | I116: 2016-05-01 | J116: 2021-08-31 | K116: 1675320.485 | M116: 0.9619612681 | N116: 1 | O116: 1 | P116: 1
B117: 114887 | C117: 2 | D117: 2 | E117: 1F | F117: All | G117: Financial | H117: 44097.37 | I117: 2017-06-16 | J117: 2023-12-31 | K117: 3676826.848 | M117: 0.7803006113 | N117: 0.8771182749 | O117: 0.9507898722 | P117: 1
B118: 114914 | C118: 2 | D118: 2 | E118: 1F | F118: All | G118: Financial | H118: 2958322.09 | I118: 2017-03-02 | J118: 2021-06-30 | K118: 2984672.81 | M118: 0.9655254176 | N118: 1 | O118: 1 | P118: 1
B119: 115041 | C119: 2 | D119: 2 | E119: 1F | F119: All | G119: Financial | H119: 1180034.37 | I119: 2017-04-03 | J119: 2020-08-31 | K119: 2773523.43 | M119: 1 | N119: 1 | O119: 1 | P119: 1
B120: 115215 | C120: 2 | D120: 2 | E120: 1F | F120: All | G120: Financial | H120: 475989.94 | I120: 2017-03-01 | J120: 2021-06-30 | K120: 888680.2 | M120: 0.9655254176 | N120: 1 | O120: 1 | P120: 1
B121: 115248 | C121: 2 | D121: 2 | E121: 1F | F121: All | G121: Financial | H121: 1797187.62 | I121: 2018-08-01 | J121: 2021-04-30 | K121: 1985037.923 | M121: 0.9619612681 | N121: 1 | O121: 1 | P121: 1
B122: 115687 | C122: 2 | D122: 2 | E122: 1F | F122: All | G122: Financial | H122: 711343.36 | I122: 2017-05-25 | J122: 2020-12-31 | K122: 1337706.45 | M122: 1 | N122: 1 | O122: 1 | P122: 1
B123: 115877 | C123: 2 | D123: 2 | E123: 1F | F123: All | G123: Financial | H123: 2269057.98 | I123: 2017-03-01 | J123: 2021-02-28 | K123: 2269057.98 | M123: 0.9884101162 | N123: 1 | O123: 1 | P123: 1
B124: 115927 | C124: 2 | D124: 2 | E124: 1F | F124: All | G124: Financial | H124: 930824.78 | I124: 2017-06-07 | J124: 2021-08-31 | K124: 2076541.284 | M124: 0.946900509 | N124: 1 | O124: 1 | P124: 1
B125: 116022 | C125: 2 | D125: 2 | E125: 1F | F125: All | G125: Financial | H125: 1831774.32 | I125: 2018-08-30 | J125: 2021-12-31 | K125: 4294833.327 | M125: 0.8825144773 | N125: 1 | O125: 1 | P125: 1
B126: 116041 | C126: 2 | D126: 2 | E126: 1F | F126: All | G126: Financial | H126: 139230 | I126: 2018-10-01 | J126: 2020-11-30 | K126: 4323126.18 | M126: 1 | N126: 1 | O126: 1 | P126: 1
B127: 116050 | C127: 2 | D127: 2 | E127: 1F | F127: All | G127: Financial | H127: 167707.4 | I127: 2017-07-01 | J127: 2021-01-31 | K127: 903868.7745 | M127: 0.9943315416 | N127: 1 | O127: 1 | P127: 1
B128: 116072 | C128: 2 | D128: 2 | E128: 1F | F128: All | G128: Financial | H128: 701721.09 | I128: 2019-02-05 | J128: 2021-10-31 | K128: 4319398.987 | M128: 0.8825144773 | N128: 1 | O128: 1 | P128: 1
B129: 116205 | C129: 2 | D129: 2 | E129: 1F | F129: All | G129: Financial | H129: 1800496.42 | I129: 2017-04-20 | J129: 2020-11-30 | K129: 2300218.166 | M129: 1 | N129: 1 | O129: 1 | P129: 1
B130: 116254 | C130: 2 | D130: 2 | E130: 1F | F130: All | G130: Financial | H130: 1979521.9 | I130: 2017-08-17 | J130: 2022-08-31 | K130: 1979521.9 | M130: 0.9806124293 | N130: 0.9806124293 | O130: 1 | P130: 1
B131: 116313 | C131: 2 | D131: 2 | E131: 1F | F131: All | G131: Financial | H131: 1230911.18 | I131: 2017-02-01 | J131: 2021-07-31 | K131: 1822442.57 | M131: 0.9583184578 | N131: 1 | O131: 1 | P131: 1
B132: 116373 | C132: 2 | D132: 2 | E132: 1F | F132: All | G132: Financial | H132: 2604873.58 | I132: 2017-07-03 | J132: 2020-10-31 | K132: 3978304.155 | M132: 1 | N132: 1 | O132: 1 | P132: 1
B133: 116430 | C133: 2 | D133: 2 | E133: 1F | F133: All | G133: Financial | H133: 2518805.6 | I133: 2017-07-03 | J133: 2021-07-31 | K133: 4307808.488 | M133: 0.9545952506 | N133: 1 | O133: 1 | P133: 1
B134: 116750 | C134: 2 | D134: 2 | E134: 1F | F134: All | G134: Financial | H134: 875670.2 | I134: 2018-08-01 | J134: 2020-10-31 | K134: 881412.5079 | M134: 1 | N134: 1 | O134: 1 | P134: 1
B135: 116892 | C135: 2 | D135: 2 | E135: 1F | F135: All | G135: Financial | H135: 941632.34 | I135: 2018-10-01 | J135: 2020-09-30 | K135: 2475823.771 | M135: 1 | N135: 1 | O135: 1 | P135: 1
B136: 116997 | C136: 2 | D136: 2 | E136: 1F | F136: All | G136: Financial | H136: 929158.7 | I136: 2018-05-31 | J136: 2020-09-30 | K136: 1204214.257 | M136: 1 | N136: 1 | O136: 1 | P136: 1
B137: 117083 | C137: 2 | D137: 2 | E137: 1F | F137: All | G137: Financial | H137: 222035.88 | I137: 2018-10-01 | J137: 2020-09-30 | K137: 1749902.425 | M137: 1 | N137: 1 | O137: 1 | P137: 1
B138: 117236 | C138: 2 | D138: 2 | E138: 1F | F138: All | G138: Financial | H138: 2014829.49 | I138: 2018-10-01 | J138: 2020-09-30 | K138: 4099085.194 | M138: 1 | N138: 1 | O138: 1 | P138: 1
B139: 110078 | C139: 2 | D139: 2 | E139: 1F | F139: All | G139: Financial | H139: 1808483.89 | I139: 2017-01-01 | J139: 2020-12-31 | K139: 1808483.89 | M139: 1 | N139: 1 | O139: 1 | P139: 1
B140: 110303 | C140: 2 | D140: 2 | E140: 1F | F140: All | G140: Financial | H140: 3403052.69 | I140: 2014-01-01 | J140: 2021-03-31 | K140: 3670055.661 | M140: 0.9914031438 | N140: 1 | O140: 1 | P140: 1
B141: 110654 | C141: 2 | D141: 2 | E141: 1F | F141: All | G141: Financial | H141: 945388.32 | I141: 2017-02-10 | J141: 2020-11-30 | K141: 1069898.338 | M141: 1 | N141: 1 | O141: 1 | P141: 1
B142: 110671 | C142: 2 | D142: 2 | E142: 1F | F142: All | G142: Financial | H142: 4445815.32 | I142: 2017-01-05 | J142: 2021-04-30 | K142: 4445815.32 | M142: 0.9842873495 | N142: 1 | O142: 1 | P142: 1
B143: 110698 | C143: 2 | D143: 2 | E143: 1F | F143: All | G143: Financial | H143: 676912.41 | I143: 2016-12-05 | J143: 2020-10-31 | K143: 2865070.172 | M143: 1 | N143: 1 | O143: 1 | P143: 1
B144: 111045 | C144: 2 | D144: 2 | E144: 1F | F144: All | G144: Financial | H144: 4321030.29 | I144: 2017-01-10 | J144: 2020-11-30 | K144: 4321030.29 | M144: 1 | N144: 1 | O144: 1 | P144: 1
B145: 111518 | C145: 2 | D145: 2 | E145: 1F | F145: All | G145: Financial | H145: 228376.04 | I145: 2017-07-10 | J145: 2020-11-30 | K145: 4313759.04 | M145: 1 | N145: 1 | O145: 1 | P145: 1
B146: 111738 | C146: 2 | D146: 2 | E146: 1F | F146: All | G146: Financial | H146: 1394104.44 | I146: 2017-02-23 | J146: 2020-08-31 | K146: 1402706.528 | M146: 1 | N146: 1 | O146: 1 | P146: 1
B147: 111764 | C147: 2 | D147: 2 | E147: 1F | F147: All | G147: Financial | H147: 1425015.7 | I147: 2017-03-01 | J147: 2020-12-31 | K147: 1540185.308 | M147: 1 | N147: 1 | O147: 1 | P147: 1
B148: 111807 | C148: 2 | D148: 2 | E148: 1F | F148: All | G148: Financial | H148: 4273100.11 | I148: 2017-03-01 | J148: 2020-12-31 | K148: 4273100.11 | M148: 1 | N148: 1 | O148: 1 | P148: 1
B149: 111911 | C149: 2 | D149: 2 | E149: 1F | F149: All | G149: Financial | H149: 340268.37 | I149: 2017-01-09 | J149: 2021-03-31 | K149: 1571530.991 | M149: 0.9822244347 | N149: 1 | O149: 1 | P149: 1
B150: 111922 | C150: 2 | D150: 2 | E150: 1F | F150: All | G150: Financial | H150: 1145656.17 | I150: 2016-12-20 | J150: 2020-11-30 | K150: 1490737.937 | M150: 1 | N150: 1 | O150: 1 | P150: 1
B151: 111945 | C151: 2 | D151: 2 | E151: 1F | F151: All | G151: Financial | H151: 656750.4 | I151: 2017-03-01 | J151: 2021-03-31 | K151: 1433937.04 | M151: 0.9822244347 | N151: 1 | O151: 1 | P151: 1
B152: 111950 | C152: 2 | D152: 2 | E152: 1F | F152: All | G152: Financial | H152: 0 | I152: 2017-03-01 | J152: 2020-09-30 | K152: 4323908.144 | M152: 1 | N152: 1 | O152: 1 | P152: 1
B153: 111988 | C153: 2 | D153: 2 | E153: 1F | F153: All | G153: Financial | H153: 2318886.1 | I153: 2016-10-03 | J153: 2021-02-28 | K153: 4323194.066 | M153: 0.9884101162 | N153: 1 | O153: 1 | P153: 1
B154: 112214 | C154: 2 | D154: 2 | E154: 1F | F154: All | G154: Financial | H154: 1012707.4 | I154: 2017-04-01 | J154: 2020-09-30 | K154: 1151831.458 | M154: 1 | N154: 1 | O154: 1 | P154: 1
B155: 112223 | C155: 2 | D155: 2 | E155: 1F | F155: All | G155: Financial | H155: 3449949.09 | I155: 2017-03-01 | J155: 2021-05-31 | K155: 4322994.526 | M155: 0.9690126048 | N155: 1 | O155: 1 | P155: 1
B156: 112253 | C156: 2 | D156: 2 | E156: 1F | F156: All | G156: Financial | H156: 1453761.61 | I156: 2017-02-06 | J156: 2020-09-30 | K156: 1453761.61 | M156: 1 | N156: 1 | O156: 1 | P156: 1
B157: 112298 | C157: 2 | D157: 2 | E157: 1F | F157: All | G157: Financial | H157: 4036960.35 | I157: 2015-08-19 | J157: 2021-01-31 | K157: 4299037.565 | M157: 0.9943315416 | N157: 1 | O157: 1 | P157: 1
B158: 112309 | C158: 2 | D158: 2 | E158: 1F | F158: All | G158: Financial | H158: 0 | I158: 2017-06-01 | J158: 2020-11-30 | K158: 2065555.08 | M158: 1 | N158: 1 | O158: 1 | P158: 1
B159: 112342 | C159: 2 | D159: 2 | E159: 1F | F159: All | G159: Financial | H159: 125835.69 | I159: 2016-09-01 | J159: 2021-12-30 | K159: 2473165.973 | M159: 0.9347097698 | N159: 1 | O159: 1 | P159: 1
B160: 112443 | C160: 2 | D160: 2 | E160: 1F | F160: All | G160: Financial | H160: 1244144.77 | I160: 2016-09-01 | J160: 2020-11-30 | K160: 1317365.598 | M160: 1 | N160: 1 | O160: 1 | P160: 1
B161: 112499 | C161: 2 | D161: 2 | E161: 1F | F161: All | G161: Financial | H161: 2208000 | I161: 2017-01-01 | J161: 2021-06-30 | K161: 3709846.135 | M161: 0.9655254176 | N161: 1 | O161: 1 | P161: 1
B162: 112594 | C162: 2 | D162: 2 | E162: 1F | F162: All | G162: Financial | H162: 1071610.99 | I162: 2017-01-01 | J162: 2020-09-30 | K162: 1071610.99 | M162: 1 | N162: 1 | O162: 1 | P162: 1
B163: 112609 | C163: 2 | D163: 2 | E163: 1F | F163: All | G163: Financial | H163: 358493.65 | I163: 2017-03-01 | J163: 2020-08-31 | K163: 4197299.917 | M163: 1 | N163: 1 | O163: 1 | P163: 1
B164: 112668 | C164: 2 | D164: 2 | E164: 1F | F164: All | G164: Financial | H164: 74675.48 | I164: 2017-03-01 | J164: 2020-09-30 | K164: 2409206.132 | M164: 1 | N164: 1 | O164: 1 | P164: 1
B165: 112697 | C165: 2 | D165: 2 | E165: 1F | F165: All | G165: Financial | H165: 4337513.69 | I165: 2017-01-01 | J165: 2020-11-30 | K165: 4337513.69 | M165: 1 | N165: 1 | O165: 1 | P165: 1
B166: 112708 | C166: 2 | D166: 2 | E166: 1F | F166: All | G166: Financial | H166: 3949047.95 | I166: 2017-02-01 | J166: 2020-08-28 | K166: 3971799.474 | M166: 1 | N166: 1 | O166: 1 | P166: 1
B167: 112751 | C167: 2 | D167: 2 | E167: 1F | F167: All | G167: Financial | H167: 1827481.15 | I167: 2016-12-01 | J167: 2020-12-30 | K167: 2417126.278 | M167: 1 | N167: 1 | O167: 1 | P167: 1
B168: 112779 | C168: 2 | D168: 2 | E168: 1F | F168: All | G168: Financial | H168: 3383419.47 | I168: 2017-02-20 | J168: 2020-08-31 | K168: 3383419.47 | M168: 1 | N168: 1 | O168: 1 | P168: 1
B169: 113133 | C169: 2 | D169: 2 | E169: 1F | F169: All | G169: Financial | H169: 3141204.13 | I169: 2016-01-01 | J169: 2020-09-30 | K169: 4273747.287 | M169: 1 | N169: 1 | O169: 1 | P169: 1
B170: 113252 | C170: 2 | D170: 2 | E170: 1F | F170: All | G170: Financial | H170: 4244398.74 | I170: 2017-01-01 | J170: 2020-12-31 | K170: 4320297.855 | M170: 1 | N170: 1 | O170: 1 | P170: 1
B171: 113311 | C171: 2 | D171: 2 | E171: 1F | F171: All | G171: Financial | H171: 179431.2 | I171: 2017-03-01 | J171: 2020-12-31 | K171: 1569484.735 | M171: 1 | N171: 1 | O171: 1 | P171: 1
B172: 113351 | C172: 2 | D172: 2 | E172: 1F | F172: All | G172: Financial | H172: 2150581.69 | I172: 2016-09-22 | J172: 2021-01-31 | K172: 4318599.947 | M172: 0.9943315416 | N172: 1 | O172: 1 | P172: 1
B173: 113733 | C173: 2 | D173: 2 | E173: 1F | F173: All | G173: Financial | H173: 1223962.89 | I173: 2017-01-16 | J173: 2020-09-30 | K173: 2497275.197 | M173: 1 | N173: 1 | O173: 1 | P173: 1
B174: 113741 | C174: 2 | D174: 2 | E174: 1F | F174: All | G174: Financial | H174: 2062062.1 | I174: 2016-11-01 | J174: 2020-09-30 | K174: 3343144.275 | M174: 1 | N174: 1 | O174: 1 | P174: 1
B175: 113796 | C175: 2 | D175: 2 | E175: 1F | F175: All | G175: Financial | H175: 4320256.39 | I175: 2017-02-03 | J175: 2021-03-31 | K175: 4323889.775 | M175: 0.9822244347 | N175: 1 | O175: 1 | P175: 1
B176: 114062 | C176: 2 | D176: 2 | E176: 1F | F176: All | G176: Financial | H176: 3826353.35 | I176: 2017-05-02 | J176: 2020-10-31 | K176: 4318609.548 | M176: 1 | N176: 1 | O176: 1 | P176: 1
B177: 114080 | C177: 2 | D177: 2 | E177: 1F | F177: All | G177: Financial | H177: 1012707.05 | I177: 2016-09-01 | J177: 2021-02-28 | K177: 4290887.105 | M177: 0.9884101162 | N177: 1 | O177: 1 | P177: 1
B178: 114100 | C178: 2 | D178: 2 | E178: 1F | F178: All | G178: Financial | H178: 249082.19 | I178: 2017-03-01 | J178: 2020-08-31 | K178: 4160179.57 | M178: 1 | N178: 1 | O178: 1 | P178: 1
B179: 114106 | C179: 2 | D179: 2 | E179: 1F | F179: All | G179: Financial | H179: 188064.19 | I179: 2018-05-04 | J179: 2021-02-28 | K179: 2868430.601 | M179: 0.9822244347 | N179: 1 | O179: 1 | P179: 1
B180: 114136 | C180: 2 | D180: 2 | E180: 1F | F180: All | G180: Financial | H180: 2418473.38 | I180: 2017-01-01 | J180: 2021-03-31 | K180: 3802999.64 | M180: 0.9822244347 | N180: 1 | O180: 1 | P180: 1
B181: 114156 | C181: 2 | D181: 2 | E181: 1F | F181: All | G181: Financial | H181: 4432233.42 | I181: 2017-02-01 | J181: 2020-10-31 | K181: 4432233.42 | M181: 1 | N181: 1 | O181: 1 | P181: 1
B182: 114161 | C182: 2 | D182: 2 | E182: 1F | F182: All | G182: Financial | H182: 1615959.93 | I182: 2017-04-01 | J182: 2020-10-31 | K182: 4235040.594 | M182: 1 | N182: 1 | O182: 1 | P182: 1
B183: 114187 | C183: 2 | D183: 2 | E183: 1F | F183: All | G183: Financial | H183: 1129822.92 | I183: 2017-05-10 | J183: 2020-09-30 | K183: 1129822.92 | M183: 1 | N183: 1 | O183: 1 | P183: 1
B184: 114290 | C184: 2 | D184: 2 | E184: 1F | F184: All | G184: Financial | H184: 2665232.88 | I184: 2016-04-08 | J184: 2021-01-15 | K184: 3822032.513 | M184: 0.9971967052 | N184: 1 | O184: 1 | P184: 1
B185: 114315 | C185: 2 | D185: 2 | E185: 1F | F185: All | G185: Financial | H185: 996583.74 | I185: 2017-02-21 | J185: 2020-12-31 | K185: 1129156.258 | M185: 1 | N185: 1 | O185: 1 | P185: 1
B186: 114335 | C186: 2 | D186: 2 | E186: 1F | F186: All | G186: Financial | H186: 1358483.69 | I186: 2017-01-20 | J186: 2021-07-31 | K186: 4301969.441 | M186: 0.9583184578 | N186: 1 | O186: 1 | P186: 1
B187: 114361 | C187: 2 | D187: 2 | E187: 1F | F187: All | G187: Financial | H187: 2308422.87 | I187: 2017-03-06 | J187: 2020-08-31 | K187: 2535521.893 | M187: 1 | N187: 1 | O187: 1 | P187: 1
B188: 114396 | C188: 2 | D188: 2 | E188: 1F | F188: All | G188: Financial | H188: 35678.7 | I188: 2016-11-01 | J188: 2021-11-30 | K188: 1991854.501 | M188: 0.9388623732 | N188: 1 | O188: 1 | P188: 1
B189: 114463 | C189: 2 | D189: 2 | E189: 1F | F189: All | G189: Financial | H189: 1817352 | I189: 2017-04-01 | J189: 2020-09-30 | K189: 3156763.598 | M189: 1 | N189: 1 | O189: 1 | P189: 1
B190: 114571 | C190: 2 | D190: 2 | E190: 1F | F190: All | G190: Financial | H190: 97777.22 | I190: 2017-03-01 | J190: 2021-06-30 | K190: 2192667.833 | M190: 0.9655254176 | N190: 1 | O190: 1 | P190: 1
B191: 114600 | C191: 2 | D191: 2 | E191: 1F | F191: All | G191: Financial | H191: 193040.49 | I191: 2017-05-09 | J191: 2021-02-28 | K191: 3528581.716 | M191: 0.9884101162 | N191: 1 | O191: 1 | P191: 1
B192: 114624 | C192: 2 | D192: 2 | E192: 1F | F192: All | G192: Financial | H192: 2117514.89 | I192: 2017-06-01 | J192: 2021-08-31 | K192: 3042039.629 | M192: 0.946900509 | N192: 1 | O192: 1 | P192: 1
B193: 114693 | C193: 2 | D193: 2 | E193: 1F | F193: All | G193: Financial | H193: 0 | I193: 2016-08-01 | J193: 2021-10-31 | K193: 1373085.135 | M193: 0.946900509 | N193: 1 | O193: 1 | P193: 1
B194: 114703 | C194: 2 | D194: 2 | E194: 1F | F194: All | G194: Financial | H194: 121950 | I194: 2017-05-01 | J194: 2022-01-31 | K194: 4129178.981 | M194: 0.9171624253 | N194: 0.9943315416 | O194: 1 | P194: 1
B195: 114796 | C195: 2 | D195: 2 | E195: 1F | F195: All | G195: Financial | H195: 1468217.74 | I195: 2016-12-28 | J195: 2020-08-28 | K195: 1501379.018 | M195: 1 | N195: 1 | O195: 1 | P195: 1
B196: 114843 | C196: 2 | D196: 2 | E196: 1F | F196: All | G196: Financial | H196: 730204.1 | I196: 2017-02-01 | J196: 2020-09-15 | K196: 4321709.625 | M196: 1 | N196: 1 | O196: 1 | P196: 1
B197: 114854 | C197: 2 | D197: 2 | E197: 1F | F197: All | G197: Financial | H197: 4293937.57 | I197: 2016-05-01 | J197: 2021-07-30 | K197: 4323348.655 | M197: 0.9655254176 | N197: 1 | O197: 1 | P197: 1
B198: 114891 | C198: 2 | D198: 2 | E198: 1F | F198: All | G198: Financial | H198: 621791.05 | I198: 2016-05-01 | J198: 2021-05-31 | K198: 4323510.538 | M198: 0.9757627039 | N198: 1 | O198: 1 | P198: 1
B199: 114896 | C199: 2 | D199: 2 | E199: 1F | F199: All | G199: Financial | H199: 3957883.05 | I199: 2017-04-10 | J199: 2020-11-30 | K199: 4323338.604 | M199: 1 | N199: 1 | O199: 1 | P199: 1
B200: 114905 | C200: 2 | D200: 2 | E200: 1F | F200: All | G200: Financial | H200: 734888.96 | I200: 2016-12-01 | J200: 2021-04-30 | K200: 4211330.622 | M200: 0.9790288328 | N200: 1 | O200: 1 | P200: 1
B201: 114961 | C201: 2 | D201: 2 | E201: 1F | F201: All | G201: Financial | H201: 1330592.51 | I201: 2017-02-01 | J201: 2021-07-31 | K201: 4303686.494 | M201: 0.9583184578 | N201: 1 | O201: 1 | P201: 1
... 4299 more rows

Sheet Achievement_forecast_ongoing
G2: User calibrations | L2: Statistical projections
C4: Characteristics | G4: Year | L4: Year
B5: SMIS CODE | C5: PA | D5: PI | E5: Indicator | F5: Region | G5: 2020 | H5: 2021 | I5: 2022 | J5: 2024 | L5: 2020 | M5: 2021 | N5: 2022 | O5: 2024
B6: =Achievement_to_date_ongoing!B4 -> 125978 | C6: =IF($B6>0, Achievement_to_date_ongoing!C4, "") -> 1 | D6: =IF($B6>0, Achievement_to_date_ongoing!D4, "") -> 1 | E6: =IF($B6>0, Achievement_to_date_ongoing!E4, "") -> 1F | F6: =IF($B6>0, Achievement_to_date_ongoing!F4, "") -> All | G6: 675435.9118 | H6: 675435.9118 | I6: 675435.9118 | J6: 675435.9118 | L6: =IF($B6>0,Achievement_to_date_ongoing!$K4*Achievement_to_date_ongoing!M4,"") -> 675435.9118 | M6: =IF($B6>0,Achievement_to_date_ongoing!$K4*Achievement_to_date_ongoing!N4,"") -> 675435.9118 | N6: =IF($B6>0,Achievement_to_date_ongoing!$K4*Achievement_to_date_ongoing!O4,"") -> 675435.9118 | O6: =IF($B6>0,Achievement_to_date_ongoing!$K4*Achievement_to_date_ongoing!P4,"") -> 675435.9118
B7: =Achievement_to_date_ongoing!B5 -> 128789 | C7: =IF($B7>0, Achievement_to_date_ongoing!C5, "") -> 1 | D7: =IF($B7>0, Achievement_to_date_ongoing!D5, "") -> 1 | E7: =IF($B7>0, Achievement_to_date_ongoing!E5, "") -> 1F | F7: =IF($B7>0, Achievement_to_date_ongoing!F5, "") -> All | G7: 1686225.737 | H7: 2954234.869 | I7: 3189878.89 | J7: 3189878.89 | L7: =IF($B7>0,Achievement_to_date_ongoing!$K5*Achievement_to_date_ongoing!M5,"") -> 1686225.737 | M7: =IF($B7>0,Achievement_to_date_ongoing!$K5*Achievement_to_date_ongoing!N5,"") -> 2954234.869 | N7: =IF($B7>0,Achievement_to_date_ongoing!$K5*Achievement_to_date_ongoing!O5,"") -> 3189878.89 | O7: =IF($B7>0,Achievement_to_date_ongoing!$K5*Achievement_to_date_ongoing!P5,"") -> 3189878.89
B8: =Achievement_to_date_ongoing!B6 -> 127057 | C8: =IF($B8>0, Achievement_to_date_ongoing!C6, "") -> 1 | D8: =IF($B8>0, Achievement_to_date_ongoing!D6, "") -> 1 | E8: =IF($B8>0, Achievement_to_date_ongoing!E6, "") -> 1F | F8: =IF($B8>0, Achievement_to_date_ongoing!F6, "") -> All | G8: 9408429.495 | H8: 10470879.67 | I8: 11012822.05 | J8: 11012822.05 | L8: =IF($B8>0,Achievement_to_date_ongoing!$K6*Achievement_to_date_ongoing!M6,"") -> 9408429.495 | M8: =IF($B8>0,Achievement_to_date_ongoing!$K6*Achievement_to_date_ongoing!N6,"") -> 10470879.67 | N8: =IF($B8>0,Achievement_to_date_ongoing!$K6*Achievement_to_date_ongoing!O6,"") -> 11012822.05 | O8: =IF($B8>0,Achievement_to_date_ongoing!$K6*Achievement_to_date_ongoing!P6,"") -> 11012822.05
B9: =Achievement_to_date_ongoing!B7 -> 128795 | C9: =IF($B9>0, Achievement_to_date_ongoing!C7, "") -> 1 | D9: =IF($B9>0, Achievement_to_date_ongoing!D7, "") -> 1 | E9: =IF($B9>0, Achievement_to_date_ongoing!E7, "") -> 1F | F9: =IF($B9>0, Achievement_to_date_ongoing!F7, "") -> All | G9: 8930801.257 | H9: 10396156.88 | I9: 10767357.02 | J9: 10767357.02 | L9: =IF($B9>0,Achievement_to_date_ongoing!$K7*Achievement_to_date_ongoing!M7,"") -> 8930801.257 | M9: =IF($B9>0,Achievement_to_date_ongoing!$K7*Achievement_to_date_ongoing!N7,"") -> 10396156.88 | N9: =IF($B9>0,Achievement_to_date_ongoing!$K7*Achievement_to_date_ongoing!O7,"") -> 10767357.02 | O9: =IF($B9>0,Achievement_to_date_ongoing!$K7*Achievement_to_date_ongoing!P7,"") -> 10767357.02
B10: =Achievement_to_date_ongoing!B8 -> 128309 | C10: =IF($B10>0, Achievement_to_date_ongoing!C8, "") -> 1 | D10: =IF($B10>0, Achievement_to_date_ongoing!D8, "") -> 1 | E10: =IF($B10>0, Achievement_to_date_ongoing!E8, "") -> 1F | F10: =IF($B10>0, Achievement_to_date_ongoing!F8, "") -> All | G10: 774845.0095 | H10: 844828.5583 | I10: 844828.5583 | J10: 844828.5583 | L10: =IF($B10>0,Achievement_to_date_ongoing!$K8*Achievement_to_date_ongoing!M8,"") -> 774845.0095 | M10: =IF($B10>0,Achievement_to_date_ongoing!$K8*Achievement_to_date_ongoing!N8,"") -> 844828.5583 | N10: =IF($B10>0,Achievement_to_date_ongoing!$K8*Achievement_to_date_ongoing!O8,"") -> 844828.5583 | O10: =IF($B10>0,Achievement_to_date_ongoing!$K8*Achievement_to_date_ongoing!P8,"") -> 844828.5583
B11: =Achievement_to_date_ongoing!B9 -> 128862 | C11: =IF($B11>0, Achievement_to_date_ongoing!C9, "") -> 1 | D11: =IF($B11>0, Achievement_to_date_ongoing!D9, "") -> 1 | E11: =IF($B11>0, Achievement_to_date_ongoing!E9, "") -> 1F | F11: =IF($B11>0, Achievement_to_date_ongoing!F9, "") -> All | G11: 2124636.589 | H11: 2561719.511 | I11: 2807268.773 | J11: 2807268.773 | L11: =IF($B11>0,Achievement_to_date_ongoing!$K9*Achievement_to_date_ongoing!M9,"") -> 2124636.589 | M11: =IF($B11>0,Achievement_to_date_ongoing!$K9*Achievement_to_date_ongoing!N9,"") -> 2561719.511 | N11: =IF($B11>0,Achievement_to_date_ongoing!$K9*Achievement_to_date_ongoing!O9,"") -> 2807268.773 | O11: =IF($B11>0,Achievement_to_date_ongoing!$K9*Achievement_to_date_ongoing!P9,"") -> 2807268.773
B12: =Achievement_to_date_ongoing!B10 -> 128947 | C12: =IF($B12>0, Achievement_to_date_ongoing!C10, "") -> 1 | D12: =IF($B12>0, Achievement_to_date_ongoing!D10, "") -> 1 | E12: =IF($B12>0, Achievement_to_date_ongoing!E10, "") -> 1F | F12: =IF($B12>0, Achievement_to_date_ongoing!F10, "") -> All | G12: 725063.2733 | H12: 775709.5269 | I12: 775709.5269 | J12: 775709.5269 | L12: =IF($B12>0,Achievement_to_date_ongoing!$K10*Achievement_to_date_ongoing!M10,"") -> 725063.2733 | M12: =IF($B12>0,Achievement_to_date_ongoing!$K10*Achievement_to_date_ongoing!N10,"") -> 775709.5269 | N12: =IF($B12>0,Achievement_to_date_ongoing!$K10*Achievement_to_date_ongoing!O10,"") -> 775709.5269 | O12: =IF($B12>0,Achievement_to_date_ongoing!$K10*Achievement_to_date_ongoing!P10,"") -> 775709.5269
B13: =Achievement_to_date_ongoing!B11 -> 125978 | C13: =IF($B13>0, Achievement_to_date_ongoing!C11, "") -> 1 | D13: =IF($B13>0, Achievement_to_date_ongoing!D11, "") -> 1 | E13: =IF($B13>0, Achievement_to_date_ongoing!E11, "") -> 1S2 | F13: =IF($B13>0, Achievement_to_date_ongoing!F11, "") -> All | G13: 0 | H13: 0 | I13: 0 | J13: 0 | L13: =IF($B13>0,Achievement_to_date_ongoing!$K11*Achievement_to_date_ongoing!M11,"") -> 0 | M13: =IF($B13>0,Achievement_to_date_ongoing!$K11*Achievement_to_date_ongoing!N11,"") -> 0 | N13: =IF($B13>0,Achievement_to_date_ongoing!$K11*Achievement_to_date_ongoing!O11,"") -> 0 | O13: =IF($B13>0,Achievement_to_date_ongoing!$K11*Achievement_to_date_ongoing!P11,"") -> 0
B14: =Achievement_to_date_ongoing!B12 -> 128789 | C14: =IF($B14>0, Achievement_to_date_ongoing!C12, "") -> 1 | D14: =IF($B14>0, Achievement_to_date_ongoing!D12, "") -> 1 | E14: =IF($B14>0, Achievement_to_date_ongoing!E12, "") -> 1S2 | F14: =IF($B14>0, Achievement_to_date_ongoing!F12, "") -> All | G14: 0 | H14: 0 | I14: 1 | J14: 1 | L14: =IF($B14>0,Achievement_to_date_ongoing!$K12*Achievement_to_date_ongoing!M12,"") -> 0 | M14: =IF($B14>0,Achievement_to_date_ongoing!$K12*Achievement_to_date_ongoing!N12,"") -> 0 | N14: =IF($B14>0,Achievement_to_date_ongoing!$K12*Achievement_to_date_ongoing!O12,"") -> 1 | O14: =IF($B14>0,Achievement_to_date_ongoing!$K12*Achievement_to_date_ongoing!P12,"") -> 1
B15: =Achievement_to_date_ongoing!B13 -> 127057 | C15: =IF($B15>0, Achievement_to_date_ongoing!C13, "") -> 1 | D15: =IF($B15>0, Achievement_to_date_ongoing!D13, "") -> 1 | E15: =IF($B15>0, Achievement_to_date_ongoing!E13, "") -> 1S2 | F15: =IF($B15>0, Achievement_to_date_ongoing!F13, "") -> All | G15: 0 | H15: 0 | I15: 1 | J15: 1 | L15: =IF($B15>0,Achievement_to_date_ongoing!$K13*Achievement_to_date_ongoing!M13,"") -> 0 | M15: =IF($B15>0,Achievement_to_date_ongoing!$K13*Achievement_to_date_ongoing!N13,"") -> 0 | N15: =IF($B15>0,Achievement_to_date_ongoing!$K13*Achievement_to_date_ongoing!O13,"") -> 1 | O15: =IF($B15>0,Achievement_to_date_ongoing!$K13*Achievement_to_date_ongoing!P13,"") -> 1
B16: =Achievement_to_date_ongoing!B14 -> 128795 | C16: =IF($B16>0, Achievement_to_date_ongoing!C14, "") -> 1 | D16: =IF($B16>0, Achievement_to_date_ongoing!D14, "") -> 1 | E16: =IF($B16>0, Achievement_to_date_ongoing!E14, "") -> 1S2 | F16: =IF($B16>0, Achievement_to_date_ongoing!F14, "") -> All | G16: 0 | H16: 0 | I16: 1 | J16: 1 | L16: =IF($B16>0,Achievement_to_date_ongoing!$K14*Achievement_to_date_ongoing!M14,"") -> 0 | M16: =IF($B16>0,Achievement_to_date_ongoing!$K14*Achievement_to_date_ongoing!N14,"") -> 0 | N16: =IF($B16>0,Achievement_to_date_ongoing!$K14*Achievement_to_date_ongoing!O14,"") -> 1 | O16: =IF($B16>0,Achievement_to_date_ongoing!$K14*Achievement_to_date_ongoing!P14,"") -> 1
B17: =Achievement_to_date_ongoing!B15 -> 128309 | C17: =IF($B17>0, Achievement_to_date_ongoing!C15, "") -> 1 | D17: =IF($B17>0, Achievement_to_date_ongoing!D15, "") -> 1 | E17: =IF($B17>0, Achievement_to_date_ongoing!E15, "") -> 1S2 | F17: =IF($B17>0, Achievement_to_date_ongoing!F15, "") -> All | G17: 0 | H17: 1 | I17: 1 | J17: 1 | L17: =IF($B17>0,Achievement_to_date_ongoing!$K15*Achievement_to_date_ongoing!M15,"") -> 0 | M17: =IF($B17>0,Achievement_to_date_ongoing!$K15*Achievement_to_date_ongoing!N15,"") -> 1 | N17: =IF($B17>0,Achievement_to_date_ongoing!$K15*Achievement_to_date_ongoing!O15,"") -> 1 | O17: =IF($B17>0,Achievement_to_date_ongoing!$K15*Achievement_to_date_ongoing!P15,"") -> 1
B18: =Achievement_to_date_ongoing!B16 -> 128862 | C18: =IF($B18>0, Achievement_to_date_ongoing!C16, "") -> 1 | D18: =IF($B18>0, Achievement_to_date_ongoing!D16, "") -> 1 | E18: =IF($B18>0, Achievement_to_date_ongoing!E16, "") -> 1S2 | F18: =IF($B18>0, Achievement_to_date_ongoing!F16, "") -> All | G18: 0 | H18: 0 | I18: 1 | J18: 1 | L18: =IF($B18>0,Achievement_to_date_ongoing!$K16*Achievement_to_date_ongoing!M16,"") -> 0 | M18: =IF($B18>0,Achievement_to_date_ongoing!$K16*Achievement_to_date_ongoing!N16,"") -> 0 | N18: =IF($B18>0,Achievement_to_date_ongoing!$K16*Achievement_to_date_ongoing!O16,"") -> 1 | O18: =IF($B18>0,Achievement_to_date_ongoing!$K16*Achievement_to_date_ongoing!P16,"") -> 1
B19: =Achievement_to_date_ongoing!B17 -> 128947 | C19: =IF($B19>0, Achievement_to_date_ongoing!C17, "") -> 1 | D19: =IF($B19>0, Achievement_to_date_ongoing!D17, "") -> 1 | E19: =IF($B19>0, Achievement_to_date_ongoing!E17, "") -> 1S2 | F19: =IF($B19>0, Achievement_to_date_ongoing!F17, "") -> All | G19: 0 | H19: 1 | I19: 1 | J19: 1 | L19: =IF($B19>0,Achievement_to_date_ongoing!$K17*Achievement_to_date_ongoing!M17,"") -> 0 | M19: =IF($B19>0,Achievement_to_date_ongoing!$K17*Achievement_to_date_ongoing!N17,"") -> 1 | N19: =IF($B19>0,Achievement_to_date_ongoing!$K17*Achievement_to_date_ongoing!O17,"") -> 1 | O19: =IF($B19>0,Achievement_to_date_ongoing!$K17*Achievement_to_date_ongoing!P17,"") -> 1
B20: =Achievement_to_date_ongoing!B18 -> 125978 | C20: =IF($B20>0, Achievement_to_date_ongoing!C18, "") -> 1 | D20: =IF($B20>0, Achievement_to_date_ongoing!D18, "") -> 1 | E20: =IF($B20>0, Achievement_to_date_ongoing!E18, "") -> CO02 | F20: =IF($B20>0, Achievement_to_date_ongoing!F18, "") -> All | G20: 1 | H20: 1 | I20: 1 | J20: 1 | L20: =IF($B20>0,Achievement_to_date_ongoing!$K18*Achievement_to_date_ongoing!M18,"") -> 1 | M20: =IF($B20>0,Achievement_to_date_ongoing!$K18*Achievement_to_date_ongoing!N18,"") -> 1 | N20: =IF($B20>0,Achievement_to_date_ongoing!$K18*Achievement_to_date_ongoing!O18,"") -> 1 | O20: =IF($B20>0,Achievement_to_date_ongoing!$K18*Achievement_to_date_ongoing!P18,"") -> 1
B21: =Achievement_to_date_ongoing!B19 -> 128789 | C21: =IF($B21>0, Achievement_to_date_ongoing!C19, "") -> 1 | D21: =IF($B21>0, Achievement_to_date_ongoing!D19, "") -> 1 | E21: =IF($B21>0, Achievement_to_date_ongoing!E19, "") -> CO02 | F21: =IF($B21>0, Achievement_to_date_ongoing!F19, "") -> All | G21: 0 | H21: 0 | I21: 1 | J21: 1 | L21: =IF($B21>0,Achievement_to_date_ongoing!$K19*Achievement_to_date_ongoing!M19,"") -> 0 | M21: =IF($B21>0,Achievement_to_date_ongoing!$K19*Achievement_to_date_ongoing!N19,"") -> 0 | N21: =IF($B21>0,Achievement_to_date_ongoing!$K19*Achievement_to_date_ongoing!O19,"") -> 1 | O21: =IF($B21>0,Achievement_to_date_ongoing!$K19*Achievement_to_date_ongoing!P19,"") -> 1
B22: =Achievement_to_date_ongoing!B20 -> 127057 | C22: =IF($B22>0, Achievement_to_date_ongoing!C20, "") -> 1 | D22: =IF($B22>0, Achievement_to_date_ongoing!D20, "") -> 1 | E22: =IF($B22>0, Achievement_to_date_ongoing!E20, "") -> CO02 | F22: =IF($B22>0, Achievement_to_date_ongoing!F20, "") -> All | G22: 0 | H22: 0 | I22: 1 | J22: 1 | L22: =IF($B22>0,Achievement_to_date_ongoing!$K20*Achievement_to_date_ongoing!M20,"") -> 0 | M22: =IF($B22>0,Achievement_to_date_ongoing!$K20*Achievement_to_date_ongoing!N20,"") -> 0 | N22: =IF($B22>0,Achievement_to_date_ongoing!$K20*Achievement_to_date_ongoing!O20,"") -> 1 | O22: =IF($B22>0,Achievement_to_date_ongoing!$K20*Achievement_to_date_ongoing!P20,"") -> 1
B23: =Achievement_to_date_ongoing!B21 -> 128795 | C23: =IF($B23>0, Achievement_to_date_ongoing!C21, "") -> 1 | D23: =IF($B23>0, Achievement_to_date_ongoing!D21, "") -> 1 | E23: =IF($B23>0, Achievement_to_date_ongoing!E21, "") -> CO02 | F23: =IF($B23>0, Achievement_to_date_ongoing!F21, "") -> All | G23: 0 | H23: 0 | I23: 1 | J23: 1 | L23: =IF($B23>0,Achievement_to_date_ongoing!$K21*Achievement_to_date_ongoing!M21,"") -> 0 | M23: =IF($B23>0,Achievement_to_date_ongoing!$K21*Achievement_to_date_ongoing!N21,"") -> 0 | N23: =IF($B23>0,Achievement_to_date_ongoing!$K21*Achievement_to_date_ongoing!O21,"") -> 1 | O23: =IF($B23>0,Achievement_to_date_ongoing!$K21*Achievement_to_date_ongoing!P21,"") -> 1
B24: =Achievement_to_date_ongoing!B22 -> 128309 | C24: =IF($B24>0, Achievement_to_date_ongoing!C22, "") -> 1 | D24: =IF($B24>0, Achievement_to_date_ongoing!D22, "") -> 1 | E24: =IF($B24>0, Achievement_to_date_ongoing!E22, "") -> CO02 | F24: =IF($B24>0, Achievement_to_date_ongoing!F22, "") -> All | G24: 0 | H24: 1 | I24: 1 | J24: 1 | L24: =IF($B24>0,Achievement_to_date_ongoing!$K22*Achievement_to_date_ongoing!M22,"") -> 0 | M24: =IF($B24>0,Achievement_to_date_ongoing!$K22*Achievement_to_date_ongoing!N22,"") -> 1 | N24: =IF($B24>0,Achievement_to_date_ongoing!$K22*Achievement_to_date_ongoing!O22,"") -> 1 | O24: =IF($B24>0,Achievement_to_date_ongoing!$K22*Achievement_to_date_ongoing!P22,"") -> 1
B25: =Achievement_to_date_ongoing!B23 -> 128862 | C25: =IF($B25>0, Achievement_to_date_ongoing!C23, "") -> 1 | D25: =IF($B25>0, Achievement_to_date_ongoing!D23, "") -> 1 | E25: =IF($B25>0, Achievement_to_date_ongoing!E23, "") -> CO02 | F25: =IF($B25>0, Achievement_to_date_ongoing!F23, "") -> All | G25: 0 | H25: 0 | I25: 1 | J25: 1 | L25: =IF($B25>0,Achievement_to_date_ongoing!$K23*Achievement_to_date_ongoing!M23,"") -> 0 | M25: =IF($B25>0,Achievement_to_date_ongoing!$K23*Achievement_to_date_ongoing!N23,"") -> 0 | N25: =IF($B25>0,Achievement_to_date_ongoing!$K23*Achievement_to_date_ongoing!O23,"") -> 1 | O25: =IF($B25>0,Achievement_to_date_ongoing!$K23*Achievement_to_date_ongoing!P23,"") -> 1
B26: =Achievement_to_date_ongoing!B24 -> 110110 | C26: =IF($B26>0, Achievement_to_date_ongoing!C24, "") -> 2 | D26: =IF($B26>0, Achievement_to_date_ongoing!D24, "") -> 2 | E26: =IF($B26>0, Achievement_to_date_ongoing!E24, "") -> 1F | F26: =IF($B26>0, Achievement_to_date_ongoing!F24, "") -> All | G26: 3567251.406 | H26: 3722407.073 | I26: 3722407.073 | J26: 3722407.073 | L26: =IF($B26>0,Achievement_to_date_ongoing!$K24*Achievement_to_date_ongoing!M24,"") -> 3567251.406 | M26: =IF($B26>0,Achievement_to_date_ongoing!$K24*Achievement_to_date_ongoing!N24,"") -> 3722407.073 | N26: =IF($B26>0,Achievement_to_date_ongoing!$K24*Achievement_to_date_ongoing!O24,"") -> 3722407.073 | O26: =IF($B26>0,Achievement_to_date_ongoing!$K24*Achievement_to_date_ongoing!P24,"") -> 3722407.073
B27: =Achievement_to_date_ongoing!B25 -> 110217 | C27: =IF($B27>0, Achievement_to_date_ongoing!C25, "") -> 2 | D27: =IF($B27>0, Achievement_to_date_ongoing!D25, "") -> 2 | E27: =IF($B27>0, Achievement_to_date_ongoing!E25, "") -> 1F | F27: =IF($B27>0, Achievement_to_date_ongoing!F25, "") -> All | G27: 3604282.453 | H27: 3604282.453 | I27: 3604282.453 | J27: 3604282.453 | L27: =IF($B27>0,Achievement_to_date_ongoing!$K25*Achievement_to_date_ongoing!M25,"") -> 3604282.453 | M27: =IF($B27>0,Achievement_to_date_ongoing!$K25*Achievement_to_date_ongoing!N25,"") -> 3604282.453 | N27: =IF($B27>0,Achievement_to_date_ongoing!$K25*Achievement_to_date_ongoing!O25,"") -> 3604282.453 | O27: =IF($B27>0,Achievement_to_date_ongoing!$K25*Achievement_to_date_ongoing!P25,"") -> 3604282.453
B28: =Achievement_to_date_ongoing!B26 -> 110496 | C28: =IF($B28>0, Achievement_to_date_ongoing!C26, "") -> 2 | D28: =IF($B28>0, Achievement_to_date_ongoing!D26, "") -> 2 | E28: =IF($B28>0, Achievement_to_date_ongoing!E26, "") -> 1F | F28: =IF($B28>0, Achievement_to_date_ongoing!F26, "") -> All | G28: 2333354.214 | H28: 2444338.805 | I28: 2444338.805 | J28: 2444338.805 | L28: =IF($B28>0,Achievement_to_date_ongoing!$K26*Achievement_to_date_ongoing!M26,"") -> 2333354.214 | M28: =IF($B28>0,Achievement_to_date_ongoing!$K26*Achievement_to_date_ongoing!N26,"") -> 2444338.805 | N28: =IF($B28>0,Achievement_to_date_ongoing!$K26*Achievement_to_date_ongoing!O26,"") -> 2444338.805 | O28: =IF($B28>0,Achievement_to_date_ongoing!$K26*Achievement_to_date_ongoing!P26,"") -> 2444338.805
B29: =Achievement_to_date_ongoing!B27 -> 110567 | C29: =IF($B29>0, Achievement_to_date_ongoing!C27, "") -> 2 | D29: =IF($B29>0, Achievement_to_date_ongoing!D27, "") -> 2 | E29: =IF($B29>0, Achievement_to_date_ongoing!E27, "") -> 1F | F29: =IF($B29>0, Achievement_to_date_ongoing!F27, "") -> All | G29: 914203.8859 | H29: 996774.247 | I29: 996774.247 | J29: 996774.247 | L29: =IF($B29>0,Achievement_to_date_ongoing!$K27*Achievement_to_date_ongoing!M27,"") -> 914203.8859 | M29: =IF($B29>0,Achievement_to_date_ongoing!$K27*Achievement_to_date_ongoing!N27,"") -> 996774.247 | N29: =IF($B29>0,Achievement_to_date_ongoing!$K27*Achievement_to_date_ongoing!O27,"") -> 996774.247 | O29: =IF($B29>0,Achievement_to_date_ongoing!$K27*Achievement_to_date_ongoing!P27,"") -> 996774.247
B30: =Achievement_to_date_ongoing!B28 -> 110996 | C30: =IF($B30>0, Achievement_to_date_ongoing!C28, "") -> 2 | D30: =IF($B30>0, Achievement_to_date_ongoing!D28, "") -> 2 | E30: =IF($B30>0, Achievement_to_date_ongoing!E28, "") -> 1F | F30: =IF($B30>0, Achievement_to_date_ongoing!F28, "") -> All | G30: 2037879.719 | H30: 2200430.834 | I30: 2200430.834 | J30: 2200430.834 | L30: =IF($B30>0,Achievement_to_date_ongoing!$K28*Achievement_to_date_ongoing!M28,"") -> 2037879.719 | M30: =IF($B30>0,Achievement_to_date_ongoing!$K28*Achievement_to_date_ongoing!N28,"") -> 2200430.834 | N30: =IF($B30>0,Achievement_to_date_ongoing!$K28*Achievement_to_date_ongoing!O28,"") -> 2200430.834 | O30: =IF($B30>0,Achievement_to_date_ongoing!$K28*Achievement_to_date_ongoing!P28,"") -> 2200430.834
B31: =Achievement_to_date_ongoing!B29 -> 111168 | C31: =IF($B31>0, Achievement_to_date_ongoing!C29, "") -> 2 | D31: =IF($B31>0, Achievement_to_date_ongoing!D29, "") -> 2 | E31: =IF($B31>0, Achievement_to_date_ongoing!E29, "") -> 1F | F31: =IF($B31>0, Achievement_to_date_ongoing!F29, "") -> All | G31: 4076575.052 | H31: 4177834.462 | I31: 4177834.462 | J31: 4177834.462 | L31: =IF($B31>0,Achievement_to_date_ongoing!$K29*Achievement_to_date_ongoing!M29,"") -> 4076575.052 | M31: =IF($B31>0,Achievement_to_date_ongoing!$K29*Achievement_to_date_ongoing!N29,"") -> 4177834.462 | N31: =IF($B31>0,Achievement_to_date_ongoing!$K29*Achievement_to_date_ongoing!O29,"") -> 4177834.462 | O31: =IF($B31>0,Achievement_to_date_ongoing!$K29*Achievement_to_date_ongoing!P29,"") -> 4177834.462
B32: =Achievement_to_date_ongoing!B30 -> 111415 | C32: =IF($B32>0, Achievement_to_date_ongoing!C30, "") -> 2 | D32: =IF($B32>0, Achievement_to_date_ongoing!D30, "") -> 2 | E32: =IF($B32>0, Achievement_to_date_ongoing!E30, "") -> 1F | F32: =IF($B32>0, Achievement_to_date_ongoing!F30, "") -> All | G32: 4197259.408 | H32: 4197259.408 | I32: 4197259.408 | J32: 4197259.408 | L32: =IF($B32>0,Achievement_to_date_ongoing!$K30*Achievement_to_date_ongoing!M30,"") -> 4197259.408 | M32: =IF($B32>0,Achievement_to_date_ongoing!$K30*Achievement_to_date_ongoing!N30,"") -> 4197259.408 | N32: =IF($B32>0,Achievement_to_date_ongoing!$K30*Achievement_to_date_ongoing!O30,"") -> 4197259.408 | O32: =IF($B32>0,Achievement_to_date_ongoing!$K30*Achievement_to_date_ongoing!P30,"") -> 4197259.408
B33: =Achievement_to_date_ongoing!B31 -> 111416 | C33: =IF($B33>0, Achievement_to_date_ongoing!C31, "") -> 2 | D33: =IF($B33>0, Achievement_to_date_ongoing!D31, "") -> 2 | E33: =IF($B33>0, Achievement_to_date_ongoing!E31, "") -> 1F | F33: =IF($B33>0, Achievement_to_date_ongoing!F31, "") -> All | G33: 3849926.339 | H33: 3987389.942 | I33: 3987389.942 | J33: 3987389.942 | L33: =IF($B33>0,Achievement_to_date_ongoing!$K31*Achievement_to_date_ongoing!M31,"") -> 3849926.339 | M33: =IF($B33>0,Achievement_to_date_ongoing!$K31*Achievement_to_date_ongoing!N31,"") -> 3987389.942 | N33: =IF($B33>0,Achievement_to_date_ongoing!$K31*Achievement_to_date_ongoing!O31,"") -> 3987389.942 | O33: =IF($B33>0,Achievement_to_date_ongoing!$K31*Achievement_to_date_ongoing!P31,"") -> 3987389.942
B34: =Achievement_to_date_ongoing!B32 -> 111670 | C34: =IF($B34>0, Achievement_to_date_ongoing!C32, "") -> 2 | D34: =IF($B34>0, Achievement_to_date_ongoing!D32, "") -> 2 | E34: =IF($B34>0, Achievement_to_date_ongoing!E32, "") -> 1F | F34: =IF($B34>0, Achievement_to_date_ongoing!F32, "") -> All | G34: 4323384.962 | H34: 4323384.962 | I34: 4323384.962 | J34: 4323384.962 | L34: =IF($B34>0,Achievement_to_date_ongoing!$K32*Achievement_to_date_ongoing!M32,"") -> 4323384.962 | M34: =IF($B34>0,Achievement_to_date_ongoing!$K32*Achievement_to_date_ongoing!N32,"") -> 4323384.962 | N34: =IF($B34>0,Achievement_to_date_ongoing!$K32*Achievement_to_date_ongoing!O32,"") -> 4323384.962 | O34: =IF($B34>0,Achievement_to_date_ongoing!$K32*Achievement_to_date_ongoing!P32,"") -> 4323384.962
B35: =Achievement_to_date_ongoing!B33 -> 111704 | C35: =IF($B35>0, Achievement_to_date_ongoing!C33, "") -> 2 | D35: =IF($B35>0, Achievement_to_date_ongoing!D33, "") -> 2 | E35: =IF($B35>0, Achievement_to_date_ongoing!E33, "") -> 1F | F35: =IF($B35>0, Achievement_to_date_ongoing!F33, "") -> All | G35: 4301285.763 | H35: 4301285.763 | I35: 4301285.763 | J35: 4301285.763 | L35: =IF($B35>0,Achievement_to_date_ongoing!$K33*Achievement_to_date_ongoing!M33,"") -> 4301285.763 | M35: =IF($B35>0,Achievement_to_date_ongoing!$K33*Achievement_to_date_ongoing!N33,"") -> 4301285.763 | N35: =IF($B35>0,Achievement_to_date_ongoing!$K33*Achievement_to_date_ongoing!O33,"") -> 4301285.763 | O35: =IF($B35>0,Achievement_to_date_ongoing!$K33*Achievement_to_date_ongoing!P33,"") -> 4301285.763
B36: =Achievement_to_date_ongoing!B34 -> 111729 | C36: =IF($B36>0, Achievement_to_date_ongoing!C34, "") -> 2 | D36: =IF($B36>0, Achievement_to_date_ongoing!D34, "") -> 2 | E36: =IF($B36>0, Achievement_to_date_ongoing!E34, "") -> 1F | F36: =IF($B36>0, Achievement_to_date_ongoing!F34, "") -> All | G36: 3900328.819 | H36: 3900328.819 | I36: 3900328.819 | J36: 3900328.819 | L36: =IF($B36>0,Achievement_to_date_ongoing!$K34*Achievement_to_date_ongoing!M34,"") -> 3900328.819 | M36: =IF($B36>0,Achievement_to_date_ongoing!$K34*Achievement_to_date_ongoing!N34,"") -> 3900328.819 | N36: =IF($B36>0,Achievement_to_date_ongoing!$K34*Achievement_to_date_ongoing!O34,"") -> 3900328.819 | O36: =IF($B36>0,Achievement_to_date_ongoing!$K34*Achievement_to_date_ongoing!P34,"") -> 3900328.819
B37: =Achievement_to_date_ongoing!B35 -> 111891 | C37: =IF($B37>0, Achievement_to_date_ongoing!C35, "") -> 2 | D37: =IF($B37>0, Achievement_to_date_ongoing!D35, "") -> 2 | E37: =IF($B37>0, Achievement_to_date_ongoing!E35, "") -> 1F | F37: =IF($B37>0, Achievement_to_date_ongoing!F35, "") -> All | G37: 1744584.083 | H37: 1978804.18 | I37: 2042083.013 | J37: 2042083.013 | L37: =IF($B37>0,Achievement_to_date_ongoing!$K35*Achievement_to_date_ongoing!M35,"") -> 1744584.083 | M37: =IF($B37>0,Achievement_to_date_ongoing!$K35*Achievement_to_date_ongoing!N35,"") -> 1978804.18 | N37: =IF($B37>0,Achievement_to_date_ongoing!$K35*Achievement_to_date_ongoing!O35,"") -> 2042083.013 | O37: =IF($B37>0,Achievement_to_date_ongoing!$K35*Achievement_to_date_ongoing!P35,"") -> 2042083.013
B38: =Achievement_to_date_ongoing!B36 -> 111942 | C38: =IF($B38>0, Achievement_to_date_ongoing!C36, "") -> 2 | D38: =IF($B38>0, Achievement_to_date_ongoing!D36, "") -> 2 | E38: =IF($B38>0, Achievement_to_date_ongoing!E36, "") -> 1F | F38: =IF($B38>0, Achievement_to_date_ongoing!F36, "") -> All | G38: 3445698.307 | H38: 3445698.307 | I38: 3445698.307 | J38: 3445698.307 | L38: =IF($B38>0,Achievement_to_date_ongoing!$K36*Achievement_to_date_ongoing!M36,"") -> 3445698.307 | M38: =IF($B38>0,Achievement_to_date_ongoing!$K36*Achievement_to_date_ongoing!N36,"") -> 3445698.307 | N38: =IF($B38>0,Achievement_to_date_ongoing!$K36*Achievement_to_date_ongoing!O36,"") -> 3445698.307 | O38: =IF($B38>0,Achievement_to_date_ongoing!$K36*Achievement_to_date_ongoing!P36,"") -> 3445698.307
B39: =Achievement_to_date_ongoing!B37 -> 111960 | C39: =IF($B39>0, Achievement_to_date_ongoing!C37, "") -> 2 | D39: =IF($B39>0, Achievement_to_date_ongoing!D37, "") -> 2 | E39: =IF($B39>0, Achievement_to_date_ongoing!E37, "") -> 1F | F39: =IF($B39>0, Achievement_to_date_ongoing!F37, "") -> All | G39: 3851247.605 | H39: 4178445.201 | I39: 4178445.201 | J39: 4178445.201 | L39: =IF($B39>0,Achievement_to_date_ongoing!$K37*Achievement_to_date_ongoing!M37,"") -> 3851247.605 | M39: =IF($B39>0,Achievement_to_date_ongoing!$K37*Achievement_to_date_ongoing!N37,"") -> 4178445.201 | N39: =IF($B39>0,Achievement_to_date_ongoing!$K37*Achievement_to_date_ongoing!O37,"") -> 4178445.201 | O39: =IF($B39>0,Achievement_to_date_ongoing!$K37*Achievement_to_date_ongoing!P37,"") -> 4178445.201
B40: =Achievement_to_date_ongoing!B38 -> 112212 | C40: =IF($B40>0, Achievement_to_date_ongoing!C38, "") -> 2 | D40: =IF($B40>0, Achievement_to_date_ongoing!D38, "") -> 2 | E40: =IF($B40>0, Achievement_to_date_ongoing!E38, "") -> 1F | F40: =IF($B40>0, Achievement_to_date_ongoing!F38, "") -> All | G40: 4120460.85 | H40: 4299678.063 | I40: 4299678.063 | J40: 4299678.063 | L40: =IF($B40>0,Achievement_to_date_ongoing!$K38*Achievement_to_date_ongoing!M38,"") -> 4120460.85 | M40: =IF($B40>0,Achievement_to_date_ongoing!$K38*Achievement_to_date_ongoing!N38,"") -> 4299678.063 | N40: =IF($B40>0,Achievement_to_date_ongoing!$K38*Achievement_to_date_ongoing!O38,"") -> 4299678.063 | O40: =IF($B40>0,Achievement_to_date_ongoing!$K38*Achievement_to_date_ongoing!P38,"") -> 4299678.063
B41: =Achievement_to_date_ongoing!B39 -> 112245 | C41: =IF($B41>0, Achievement_to_date_ongoing!C39, "") -> 2 | D41: =IF($B41>0, Achievement_to_date_ongoing!D39, "") -> 2 | E41: =IF($B41>0, Achievement_to_date_ongoing!E39, "") -> 1F | F41: =IF($B41>0, Achievement_to_date_ongoing!F39, "") -> All | G41: 4204448.68 | H41: 4323676.251 | I41: 4323676.251 | J41: 4323676.251 | L41: =IF($B41>0,Achievement_to_date_ongoing!$K39*Achievement_to_date_ongoing!M39,"") -> 4204448.68 | M41: =IF($B41>0,Achievement_to_date_ongoing!$K39*Achievement_to_date_ongoing!N39,"") -> 4323676.251 | N41: =IF($B41>0,Achievement_to_date_ongoing!$K39*Achievement_to_date_ongoing!O39,"") -> 4323676.251 | O41: =IF($B41>0,Achievement_to_date_ongoing!$K39*Achievement_to_date_ongoing!P39,"") -> 4323676.251
B42: =Achievement_to_date_ongoing!B40 -> 112726 | C42: =IF($B42>0, Achievement_to_date_ongoing!C40, "") -> 2 | D42: =IF($B42>0, Achievement_to_date_ongoing!D40, "") -> 2 | E42: =IF($B42>0, Achievement_to_date_ongoing!E40, "") -> 1F | F42: =IF($B42>0, Achievement_to_date_ongoing!F40, "") -> All | G42: 1601200.996 | H42: 1615085.655 | I42: 1615085.655 | J42: 1615085.655 | L42: =IF($B42>0,Achievement_to_date_ongoing!$K40*Achievement_to_date_ongoing!M40,"") -> 1601200.996 | M42: =IF($B42>0,Achievement_to_date_ongoing!$K40*Achievement_to_date_ongoing!N40,"") -> 1615085.655 | N42: =IF($B42>0,Achievement_to_date_ongoing!$K40*Achievement_to_date_ongoing!O40,"") -> 1615085.655 | O42: =IF($B42>0,Achievement_to_date_ongoing!$K40*Achievement_to_date_ongoing!P40,"") -> 1615085.655
B43: =Achievement_to_date_ongoing!B41 -> 113157 | C43: =IF($B43>0, Achievement_to_date_ongoing!C41, "") -> 2 | D43: =IF($B43>0, Achievement_to_date_ongoing!D41, "") -> 2 | E43: =IF($B43>0, Achievement_to_date_ongoing!E41, "") -> 1F | F43: =IF($B43>0, Achievement_to_date_ongoing!F41, "") -> All | G43: 3119292.34 | H43: 3119292.34 | I43: 3119292.34 | J43: 3119292.34 | L43: =IF($B43>0,Achievement_to_date_ongoing!$K41*Achievement_to_date_ongoing!M41,"") -> 3119292.34 | M43: =IF($B43>0,Achievement_to_date_ongoing!$K41*Achievement_to_date_ongoing!N41,"") -> 3119292.34 | N43: =IF($B43>0,Achievement_to_date_ongoing!$K41*Achievement_to_date_ongoing!O41,"") -> 3119292.34 | O43: =IF($B43>0,Achievement_to_date_ongoing!$K41*Achievement_to_date_ongoing!P41,"") -> 3119292.34
B44: =Achievement_to_date_ongoing!B42 -> 113319 | C44: =IF($B44>0, Achievement_to_date_ongoing!C42, "") -> 2 | D44: =IF($B44>0, Achievement_to_date_ongoing!D42, "") -> 2 | E44: =IF($B44>0, Achievement_to_date_ongoing!E42, "") -> 1F | F44: =IF($B44>0, Achievement_to_date_ongoing!F42, "") -> All | G44: 1600210.232 | H44: 1600210.232 | I44: 1600210.232 | J44: 1600210.232 | L44: =IF($B44>0,Achievement_to_date_ongoing!$K42*Achievement_to_date_ongoing!M42,"") -> 1600210.232 | M44: =IF($B44>0,Achievement_to_date_ongoing!$K42*Achievement_to_date_ongoing!N42,"") -> 1600210.232 | N44: =IF($B44>0,Achievement_to_date_ongoing!$K42*Achievement_to_date_ongoing!O42,"") -> 1600210.232 | O44: =IF($B44>0,Achievement_to_date_ongoing!$K42*Achievement_to_date_ongoing!P42,"") -> 1600210.232
B45: =Achievement_to_date_ongoing!B43 -> 113378 | C45: =IF($B45>0, Achievement_to_date_ongoing!C43, "") -> 2 | D45: =IF($B45>0, Achievement_to_date_ongoing!D43, "") -> 2 | E45: =IF($B45>0, Achievement_to_date_ongoing!E43, "") -> 1F | F45: =IF($B45>0, Achievement_to_date_ongoing!F43, "") -> All | G45: 1364337.147 | H45: 1431515.883 | I45: 1431515.883 | J45: 1431515.883 | L45: =IF($B45>0,Achievement_to_date_ongoing!$K43*Achievement_to_date_ongoing!M43,"") -> 1364337.147 | M45: =IF($B45>0,Achievement_to_date_ongoing!$K43*Achievement_to_date_ongoing!N43,"") -> 1431515.883 | N45: =IF($B45>0,Achievement_to_date_ongoing!$K43*Achievement_to_date_ongoing!O43,"") -> 1431515.883 | O45: =IF($B45>0,Achievement_to_date_ongoing!$K43*Achievement_to_date_ongoing!P43,"") -> 1431515.883
B46: =Achievement_to_date_ongoing!B44 -> 113386 | C46: =IF($B46>0, Achievement_to_date_ongoing!C44, "") -> 2 | D46: =IF($B46>0, Achievement_to_date_ongoing!D44, "") -> 2 | E46: =IF($B46>0, Achievement_to_date_ongoing!E44, "") -> 1F | F46: =IF($B46>0, Achievement_to_date_ongoing!F44, "") -> All | G46: 1378392.569 | H46: 1407918.258 | I46: 1407918.258 | J46: 1407918.258 | L46: =IF($B46>0,Achievement_to_date_ongoing!$K44*Achievement_to_date_ongoing!M44,"") -> 1378392.569 | M46: =IF($B46>0,Achievement_to_date_ongoing!$K44*Achievement_to_date_ongoing!N44,"") -> 1407918.258 | N46: =IF($B46>0,Achievement_to_date_ongoing!$K44*Achievement_to_date_ongoing!O44,"") -> 1407918.258 | O46: =IF($B46>0,Achievement_to_date_ongoing!$K44*Achievement_to_date_ongoing!P44,"") -> 1407918.258
B47: =Achievement_to_date_ongoing!B45 -> 113390 | C47: =IF($B47>0, Achievement_to_date_ongoing!C45, "") -> 2 | D47: =IF($B47>0, Achievement_to_date_ongoing!D45, "") -> 2 | E47: =IF($B47>0, Achievement_to_date_ongoing!E45, "") -> 1F | F47: =IF($B47>0, Achievement_to_date_ongoing!F45, "") -> All | G47: 4273794.551 | H47: 4323908.144 | I47: 4323908.144 | J47: 4323908.144 | L47: =IF($B47>0,Achievement_to_date_ongoing!$K45*Achievement_to_date_ongoing!M45,"") -> 4273794.551 | M47: =IF($B47>0,Achievement_to_date_ongoing!$K45*Achievement_to_date_ongoing!N45,"") -> 4323908.144 | N47: =IF($B47>0,Achievement_to_date_ongoing!$K45*Achievement_to_date_ongoing!O45,"") -> 4323908.144 | O47: =IF($B47>0,Achievement_to_date_ongoing!$K45*Achievement_to_date_ongoing!P45,"") -> 4323908.144
B48: =Achievement_to_date_ongoing!B46 -> 113465 | C48: =IF($B48>0, Achievement_to_date_ongoing!C46, "") -> 2 | D48: =IF($B48>0, Achievement_to_date_ongoing!D46, "") -> 2 | E48: =IF($B48>0, Achievement_to_date_ongoing!E46, "") -> 1F | F48: =IF($B48>0, Achievement_to_date_ongoing!F46, "") -> All | G48: 2099463.845 | H48: 2099463.845 | I48: 2099463.845 | J48: 2099463.845 | L48: =IF($B48>0,Achievement_to_date_ongoing!$K46*Achievement_to_date_ongoing!M46,"") -> 2099463.845 | M48: =IF($B48>0,Achievement_to_date_ongoing!$K46*Achievement_to_date_ongoing!N46,"") -> 2099463.845 | N48: =IF($B48>0,Achievement_to_date_ongoing!$K46*Achievement_to_date_ongoing!O46,"") -> 2099463.845 | O48: =IF($B48>0,Achievement_to_date_ongoing!$K46*Achievement_to_date_ongoing!P46,"") -> 2099463.845
B49: =Achievement_to_date_ongoing!B47 -> 113479 | C49: =IF($B49>0, Achievement_to_date_ongoing!C47, "") -> 2 | D49: =IF($B49>0, Achievement_to_date_ongoing!D47, "") -> 2 | E49: =IF($B49>0, Achievement_to_date_ongoing!E47, "") -> 1F | F49: =IF($B49>0, Achievement_to_date_ongoing!F47, "") -> All | G49: 3250675.318 | H49: 3250675.318 | I49: 3250675.318 | J49: 3250675.318 | L49: =IF($B49>0,Achievement_to_date_ongoing!$K47*Achievement_to_date_ongoing!M47,"") -> 3250675.318 | M49: =IF($B49>0,Achievement_to_date_ongoing!$K47*Achievement_to_date_ongoing!N47,"") -> 3250675.318 | N49: =IF($B49>0,Achievement_to_date_ongoing!$K47*Achievement_to_date_ongoing!O47,"") -> 3250675.318 | O49: =IF($B49>0,Achievement_to_date_ongoing!$K47*Achievement_to_date_ongoing!P47,"") -> 3250675.318
B50: =Achievement_to_date_ongoing!B48 -> 113579 | C50: =IF($B50>0, Achievement_to_date_ongoing!C48, "") -> 2 | D50: =IF($B50>0, Achievement_to_date_ongoing!D48, "") -> 2 | E50: =IF($B50>0, Achievement_to_date_ongoing!E48, "") -> 1F | F50: =IF($B50>0, Achievement_to_date_ongoing!F48, "") -> All | G50: 4167576.649 | H50: 4316382.12 | I50: 4316382.12 | J50: 4316382.12 | L50: =IF($B50>0,Achievement_to_date_ongoing!$K48*Achievement_to_date_ongoing!M48,"") -> 4167576.649 | M50: =IF($B50>0,Achievement_to_date_ongoing!$K48*Achievement_to_date_ongoing!N48,"") -> 4316382.12 | N50: =IF($B50>0,Achievement_to_date_ongoing!$K48*Achievement_to_date_ongoing!O48,"") -> 4316382.12 | O50: =IF($B50>0,Achievement_to_date_ongoing!$K48*Achievement_to_date_ongoing!P48,"") -> 4316382.12
B51: =Achievement_to_date_ongoing!B49 -> 113928 | C51: =IF($B51>0, Achievement_to_date_ongoing!C49, "") -> 2 | D51: =IF($B51>0, Achievement_to_date_ongoing!D49, "") -> 2 | E51: =IF($B51>0, Achievement_to_date_ongoing!E49, "") -> 1F | F51: =IF($B51>0, Achievement_to_date_ongoing!F49, "") -> All | G51: 3024024.667 | H51: 3207067.032 | I51: 3207067.032 | J51: 3207067.032 | L51: =IF($B51>0,Achievement_to_date_ongoing!$K49*Achievement_to_date_ongoing!M49,"") -> 3024024.667 | M51: =IF($B51>0,Achievement_to_date_ongoing!$K49*Achievement_to_date_ongoing!N49,"") -> 3207067.032 | N51: =IF($B51>0,Achievement_to_date_ongoing!$K49*Achievement_to_date_ongoing!O49,"") -> 3207067.032 | O51: =IF($B51>0,Achievement_to_date_ongoing!$K49*Achievement_to_date_ongoing!P49,"") -> 3207067.032
B52: =Achievement_to_date_ongoing!B50 -> 114154 | C52: =IF($B52>0, Achievement_to_date_ongoing!C50, "") -> 2 | D52: =IF($B52>0, Achievement_to_date_ongoing!D50, "") -> 2 | E52: =IF($B52>0, Achievement_to_date_ongoing!E50, "") -> 1F | F52: =IF($B52>0, Achievement_to_date_ongoing!F50, "") -> All | G52: 2892106.448 | H52: 2892106.448 | I52: 2892106.448 | J52: 2892106.448 | L52: =IF($B52>0,Achievement_to_date_ongoing!$K50*Achievement_to_date_ongoing!M50,"") -> 2892106.448 | M52: =IF($B52>0,Achievement_to_date_ongoing!$K50*Achievement_to_date_ongoing!N50,"") -> 2892106.448 | N52: =IF($B52>0,Achievement_to_date_ongoing!$K50*Achievement_to_date_ongoing!O50,"") -> 2892106.448 | O52: =IF($B52>0,Achievement_to_date_ongoing!$K50*Achievement_to_date_ongoing!P50,"") -> 2892106.448
B53: =Achievement_to_date_ongoing!B51 -> 114191 | C53: =IF($B53>0, Achievement_to_date_ongoing!C51, "") -> 2 | D53: =IF($B53>0, Achievement_to_date_ongoing!D51, "") -> 2 | E53: =IF($B53>0, Achievement_to_date_ongoing!E51, "") -> 1F | F53: =IF($B53>0, Achievement_to_date_ongoing!F51, "") -> All | G53: 4219881.799 | H53: 4219881.799 | I53: 4219881.799 | J53: 4219881.799 | L53: =IF($B53>0,Achievement_to_date_ongoing!$K51*Achievement_to_date_ongoing!M51,"") -> 4219881.799 | M53: =IF($B53>0,Achievement_to_date_ongoing!$K51*Achievement_to_date_ongoing!N51,"") -> 4219881.799 | N53: =IF($B53>0,Achievement_to_date_ongoing!$K51*Achievement_to_date_ongoing!O51,"") -> 4219881.799 | O53: =IF($B53>0,Achievement_to_date_ongoing!$K51*Achievement_to_date_ongoing!P51,"") -> 4219881.799
B54: =Achievement_to_date_ongoing!B52 -> 114197 | C54: =IF($B54>0, Achievement_to_date_ongoing!C52, "") -> 2 | D54: =IF($B54>0, Achievement_to_date_ongoing!D52, "") -> 2 | E54: =IF($B54>0, Achievement_to_date_ongoing!E52, "") -> 1F | F54: =IF($B54>0, Achievement_to_date_ongoing!F52, "") -> All | G54: 4246539.465 | H54: 4309671.706 | I54: 4309671.706 | J54: 4309671.706 | L54: =IF($B54>0,Achievement_to_date_ongoing!$K52*Achievement_to_date_ongoing!M52,"") -> 4246539.465 | M54: =IF($B54>0,Achievement_to_date_ongoing!$K52*Achievement_to_date_ongoing!N52,"") -> 4309671.706 | N54: =IF($B54>0,Achievement_to_date_ongoing!$K52*Achievement_to_date_ongoing!O52,"") -> 4309671.706 | O54: =IF($B54>0,Achievement_to_date_ongoing!$K52*Achievement_to_date_ongoing!P52,"") -> 4309671.706
B55: =Achievement_to_date_ongoing!B53 -> 114557 | C55: =IF($B55>0, Achievement_to_date_ongoing!C53, "") -> 2 | D55: =IF($B55>0, Achievement_to_date_ongoing!D53, "") -> 2 | E55: =IF($B55>0, Achievement_to_date_ongoing!E53, "") -> 1F | F55: =IF($B55>0, Achievement_to_date_ongoing!F53, "") -> All | G55: 1207896.605 | H55: 1207896.605 | I55: 1207896.605 | J55: 1207896.605 | L55: =IF($B55>0,Achievement_to_date_ongoing!$K53*Achievement_to_date_ongoing!M53,"") -> 1207896.605 | M55: =IF($B55>0,Achievement_to_date_ongoing!$K53*Achievement_to_date_ongoing!N53,"") -> 1207896.605 | N55: =IF($B55>0,Achievement_to_date_ongoing!$K53*Achievement_to_date_ongoing!O53,"") -> 1207896.605 | O55: =IF($B55>0,Achievement_to_date_ongoing!$K53*Achievement_to_date_ongoing!P53,"") -> 1207896.605
B56: =Achievement_to_date_ongoing!B54 -> 114620 | C56: =IF($B56>0, Achievement_to_date_ongoing!C54, "") -> 2 | D56: =IF($B56>0, Achievement_to_date_ongoing!D54, "") -> 2 | E56: =IF($B56>0, Achievement_to_date_ongoing!E54, "") -> 1F | F56: =IF($B56>0, Achievement_to_date_ongoing!F54, "") -> All | G56: 3994243.268 | H56: 3994243.268 | I56: 3994243.268 | J56: 3994243.268 | L56: =IF($B56>0,Achievement_to_date_ongoing!$K54*Achievement_to_date_ongoing!M54,"") -> 3994243.268 | M56: =IF($B56>0,Achievement_to_date_ongoing!$K54*Achievement_to_date_ongoing!N54,"") -> 3994243.268 | N56: =IF($B56>0,Achievement_to_date_ongoing!$K54*Achievement_to_date_ongoing!O54,"") -> 3994243.268 | O56: =IF($B56>0,Achievement_to_date_ongoing!$K54*Achievement_to_date_ongoing!P54,"") -> 3994243.268
B57: =Achievement_to_date_ongoing!B55 -> 114632 | C57: =IF($B57>0, Achievement_to_date_ongoing!C55, "") -> 2 | D57: =IF($B57>0, Achievement_to_date_ongoing!D55, "") -> 2 | E57: =IF($B57>0, Achievement_to_date_ongoing!E55, "") -> 1F | F57: =IF($B57>0, Achievement_to_date_ongoing!F55, "") -> All | G57: 1170870.493 | H57: 1221796.871 | I57: 1221796.871 | J57: 1221796.871 | L57: =IF($B57>0,Achievement_to_date_ongoing!$K55*Achievement_to_date_ongoing!M55,"") -> 1170870.493 | M57: =IF($B57>0,Achievement_to_date_ongoing!$K55*Achievement_to_date_ongoing!N55,"") -> 1221796.871 | N57: =IF($B57>0,Achievement_to_date_ongoing!$K55*Achievement_to_date_ongoing!O55,"") -> 1221796.871 | O57: =IF($B57>0,Achievement_to_date_ongoing!$K55*Achievement_to_date_ongoing!P55,"") -> 1221796.871
B58: =Achievement_to_date_ongoing!B56 -> 114744 | C58: =IF($B58>0, Achievement_to_date_ongoing!C56, "") -> 2 | D58: =IF($B58>0, Achievement_to_date_ongoing!D56, "") -> 2 | E58: =IF($B58>0, Achievement_to_date_ongoing!E56, "") -> 1F | F58: =IF($B58>0, Achievement_to_date_ongoing!F56, "") -> All | G58: 1729724.791 | H58: 1819250.332 | I58: 1819250.332 | J58: 1819250.332 | L58: =IF($B58>0,Achievement_to_date_ongoing!$K56*Achievement_to_date_ongoing!M56,"") -> 1729724.791 | M58: =IF($B58>0,Achievement_to_date_ongoing!$K56*Achievement_to_date_ongoing!N56,"") -> 1819250.332 | N58: =IF($B58>0,Achievement_to_date_ongoing!$K56*Achievement_to_date_ongoing!O56,"") -> 1819250.332 | O58: =IF($B58>0,Achievement_to_date_ongoing!$K56*Achievement_to_date_ongoing!P56,"") -> 1819250.332
B59: =Achievement_to_date_ongoing!B57 -> 114819 | C59: =IF($B59>0, Achievement_to_date_ongoing!C57, "") -> 2 | D59: =IF($B59>0, Achievement_to_date_ongoing!D57, "") -> 2 | E59: =IF($B59>0, Achievement_to_date_ongoing!E57, "") -> 1F | F59: =IF($B59>0, Achievement_to_date_ongoing!F57, "") -> All | G59: 1267949.68 | H59: 1267949.68 | I59: 1267949.68 | J59: 1267949.68 | L59: =IF($B59>0,Achievement_to_date_ongoing!$K57*Achievement_to_date_ongoing!M57,"") -> 1267949.68 | M59: =IF($B59>0,Achievement_to_date_ongoing!$K57*Achievement_to_date_ongoing!N57,"") -> 1267949.68 | N59: =IF($B59>0,Achievement_to_date_ongoing!$K57*Achievement_to_date_ongoing!O57,"") -> 1267949.68 | O59: =IF($B59>0,Achievement_to_date_ongoing!$K57*Achievement_to_date_ongoing!P57,"") -> 1267949.68
B60: =Achievement_to_date_ongoing!B58 -> 114897 | C60: =IF($B60>0, Achievement_to_date_ongoing!C58, "") -> 2 | D60: =IF($B60>0, Achievement_to_date_ongoing!D58, "") -> 2 | E60: =IF($B60>0, Achievement_to_date_ongoing!E58, "") -> 1F | F60: =IF($B60>0, Achievement_to_date_ongoing!F58, "") -> All | G60: 4187805.516 | H60: 4187805.516 | I60: 4187805.516 | J60: 4187805.516 | L60: =IF($B60>0,Achievement_to_date_ongoing!$K58*Achievement_to_date_ongoing!M58,"") -> 4187805.516 | M60: =IF($B60>0,Achievement_to_date_ongoing!$K58*Achievement_to_date_ongoing!N58,"") -> 4187805.516 | N60: =IF($B60>0,Achievement_to_date_ongoing!$K58*Achievement_to_date_ongoing!O58,"") -> 4187805.516 | O60: =IF($B60>0,Achievement_to_date_ongoing!$K58*Achievement_to_date_ongoing!P58,"") -> 4187805.516
B61: =Achievement_to_date_ongoing!B59 -> 114903 | C61: =IF($B61>0, Achievement_to_date_ongoing!C59, "") -> 2 | D61: =IF($B61>0, Achievement_to_date_ongoing!D59, "") -> 2 | E61: =IF($B61>0, Achievement_to_date_ongoing!E59, "") -> 1F | F61: =IF($B61>0, Achievement_to_date_ongoing!F59, "") -> All | G61: 4303880.788 | H61: 4303880.788 | I61: 4303880.788 | J61: 4303880.788 | L61: =IF($B61>0,Achievement_to_date_ongoing!$K59*Achievement_to_date_ongoing!M59,"") -> 4303880.788 | M61: =IF($B61>0,Achievement_to_date_ongoing!$K59*Achievement_to_date_ongoing!N59,"") -> 4303880.788 | N61: =IF($B61>0,Achievement_to_date_ongoing!$K59*Achievement_to_date_ongoing!O59,"") -> 4303880.788 | O61: =IF($B61>0,Achievement_to_date_ongoing!$K59*Achievement_to_date_ongoing!P59,"") -> 4303880.788
B62: =Achievement_to_date_ongoing!B60 -> 115110 | C62: =IF($B62>0, Achievement_to_date_ongoing!C60, "") -> 2 | D62: =IF($B62>0, Achievement_to_date_ongoing!D60, "") -> 2 | E62: =IF($B62>0, Achievement_to_date_ongoing!E60, "") -> 1F | F62: =IF($B62>0, Achievement_to_date_ongoing!F60, "") -> All | G62: 3301813.395 | H62: 3372807.54 | I62: 3372807.54 | J62: 3372807.54 | L62: =IF($B62>0,Achievement_to_date_ongoing!$K60*Achievement_to_date_ongoing!M60,"") -> 3301813.395 | M62: =IF($B62>0,Achievement_to_date_ongoing!$K60*Achievement_to_date_ongoing!N60,"") -> 3372807.54 | N62: =IF($B62>0,Achievement_to_date_ongoing!$K60*Achievement_to_date_ongoing!O60,"") -> 3372807.54 | O62: =IF($B62>0,Achievement_to_date_ongoing!$K60*Achievement_to_date_ongoing!P60,"") -> 3372807.54
B63: =Achievement_to_date_ongoing!B61 -> 115112 | C63: =IF($B63>0, Achievement_to_date_ongoing!C61, "") -> 2 | D63: =IF($B63>0, Achievement_to_date_ongoing!D61, "") -> 2 | E63: =IF($B63>0, Achievement_to_date_ongoing!E61, "") -> 1F | F63: =IF($B63>0, Achievement_to_date_ongoing!F61, "") -> All | G63: 3120461.072 | H63: 3134955.06 | I63: 3134955.06 | J63: 3134955.06 | L63: =IF($B63>0,Achievement_to_date_ongoing!$K61*Achievement_to_date_ongoing!M61,"") -> 3120461.072 | M63: =IF($B63>0,Achievement_to_date_ongoing!$K61*Achievement_to_date_ongoing!N61,"") -> 3134955.06 | N63: =IF($B63>0,Achievement_to_date_ongoing!$K61*Achievement_to_date_ongoing!O61,"") -> 3134955.06 | O63: =IF($B63>0,Achievement_to_date_ongoing!$K61*Achievement_to_date_ongoing!P61,"") -> 3134955.06
B64: =Achievement_to_date_ongoing!B62 -> 115129 | C64: =IF($B64>0, Achievement_to_date_ongoing!C62, "") -> 2 | D64: =IF($B64>0, Achievement_to_date_ongoing!D62, "") -> 2 | E64: =IF($B64>0, Achievement_to_date_ongoing!E62, "") -> 1F | F64: =IF($B64>0, Achievement_to_date_ongoing!F62, "") -> All | G64: 3965550.497 | H64: 4323716.702 | I64: 4323716.702 | J64: 4323716.702 | L64: =IF($B64>0,Achievement_to_date_ongoing!$K62*Achievement_to_date_ongoing!M62,"") -> 3965550.497 | M64: =IF($B64>0,Achievement_to_date_ongoing!$K62*Achievement_to_date_ongoing!N62,"") -> 4323716.702 | N64: =IF($B64>0,Achievement_to_date_ongoing!$K62*Achievement_to_date_ongoing!O62,"") -> 4323716.702 | O64: =IF($B64>0,Achievement_to_date_ongoing!$K62*Achievement_to_date_ongoing!P62,"") -> 4323716.702
B65: =Achievement_to_date_ongoing!B63 -> 115187 | C65: =IF($B65>0, Achievement_to_date_ongoing!C63, "") -> 2 | D65: =IF($B65>0, Achievement_to_date_ongoing!D63, "") -> 2 | E65: =IF($B65>0, Achievement_to_date_ongoing!E63, "") -> 1F | F65: =IF($B65>0, Achievement_to_date_ongoing!F63, "") -> All | G65: 1256876.074 | H65: 1256876.074 | I65: 1256876.074 | J65: 1256876.074 | L65: =IF($B65>0,Achievement_to_date_ongoing!$K63*Achievement_to_date_ongoing!M63,"") -> 1256876.074 | M65: =IF($B65>0,Achievement_to_date_ongoing!$K63*Achievement_to_date_ongoing!N63,"") -> 1256876.074 | N65: =IF($B65>0,Achievement_to_date_ongoing!$K63*Achievement_to_date_ongoing!O63,"") -> 1256876.074 | O65: =IF($B65>0,Achievement_to_date_ongoing!$K63*Achievement_to_date_ongoing!P63,"") -> 1256876.074
B66: =Achievement_to_date_ongoing!B64 -> 115313 | C66: =IF($B66>0, Achievement_to_date_ongoing!C64, "") -> 2 | D66: =IF($B66>0, Achievement_to_date_ongoing!D64, "") -> 2 | E66: =IF($B66>0, Achievement_to_date_ongoing!E64, "") -> 1F | F66: =IF($B66>0, Achievement_to_date_ongoing!F64, "") -> All | G66: 1820087.91 | H66: 1820087.91 | I66: 1820087.91 | J66: 1820087.91 | L66: =IF($B66>0,Achievement_to_date_ongoing!$K64*Achievement_to_date_ongoing!M64,"") -> 1820087.91 | M66: =IF($B66>0,Achievement_to_date_ongoing!$K64*Achievement_to_date_ongoing!N64,"") -> 1820087.91 | N66: =IF($B66>0,Achievement_to_date_ongoing!$K64*Achievement_to_date_ongoing!O64,"") -> 1820087.91 | O66: =IF($B66>0,Achievement_to_date_ongoing!$K64*Achievement_to_date_ongoing!P64,"") -> 1820087.91
B67: =Achievement_to_date_ongoing!B65 -> 115356 | C67: =IF($B67>0, Achievement_to_date_ongoing!C65, "") -> 2 | D67: =IF($B67>0, Achievement_to_date_ongoing!D65, "") -> 2 | E67: =IF($B67>0, Achievement_to_date_ongoing!E65, "") -> 1F | F67: =IF($B67>0, Achievement_to_date_ongoing!F65, "") -> All | G67: 3651217.111 | H67: 3651217.111 | I67: 3651217.111 | J67: 3651217.111 | L67: =IF($B67>0,Achievement_to_date_ongoing!$K65*Achievement_to_date_ongoing!M65,"") -> 3651217.111 | M67: =IF($B67>0,Achievement_to_date_ongoing!$K65*Achievement_to_date_ongoing!N65,"") -> 3651217.111 | N67: =IF($B67>0,Achievement_to_date_ongoing!$K65*Achievement_to_date_ongoing!O65,"") -> 3651217.111 | O67: =IF($B67>0,Achievement_to_date_ongoing!$K65*Achievement_to_date_ongoing!P65,"") -> 3651217.111
B68: =Achievement_to_date_ongoing!B66 -> 115416 | C68: =IF($B68>0, Achievement_to_date_ongoing!C66, "") -> 2 | D68: =IF($B68>0, Achievement_to_date_ongoing!D66, "") -> 2 | E68: =IF($B68>0, Achievement_to_date_ongoing!E66, "") -> 1F | F68: =IF($B68>0, Achievement_to_date_ongoing!F66, "") -> All | G68: 2284263.948 | H68: 2284263.948 | I68: 2284263.948 | J68: 2284263.948 | L68: =IF($B68>0,Achievement_to_date_ongoing!$K66*Achievement_to_date_ongoing!M66,"") -> 2284263.948 | M68: =IF($B68>0,Achievement_to_date_ongoing!$K66*Achievement_to_date_ongoing!N66,"") -> 2284263.948 | N68: =IF($B68>0,Achievement_to_date_ongoing!$K66*Achievement_to_date_ongoing!O66,"") -> 2284263.948 | O68: =IF($B68>0,Achievement_to_date_ongoing!$K66*Achievement_to_date_ongoing!P66,"") -> 2284263.948
B69: =Achievement_to_date_ongoing!B67 -> 115466 | C69: =IF($B69>0, Achievement_to_date_ongoing!C67, "") -> 2 | D69: =IF($B69>0, Achievement_to_date_ongoing!D67, "") -> 2 | E69: =IF($B69>0, Achievement_to_date_ongoing!E67, "") -> 1F | F69: =IF($B69>0, Achievement_to_date_ongoing!F67, "") -> All | G69: 1756091.485 | H69: 1756091.485 | I69: 1756091.485 | J69: 1756091.485 | L69: =IF($B69>0,Achievement_to_date_ongoing!$K67*Achievement_to_date_ongoing!M67,"") -> 1756091.485 | M69: =IF($B69>0,Achievement_to_date_ongoing!$K67*Achievement_to_date_ongoing!N67,"") -> 1756091.485 | N69: =IF($B69>0,Achievement_to_date_ongoing!$K67*Achievement_to_date_ongoing!O67,"") -> 1756091.485 | O69: =IF($B69>0,Achievement_to_date_ongoing!$K67*Achievement_to_date_ongoing!P67,"") -> 1756091.485
B70: =Achievement_to_date_ongoing!B68 -> 115669 | C70: =IF($B70>0, Achievement_to_date_ongoing!C68, "") -> 2 | D70: =IF($B70>0, Achievement_to_date_ongoing!D68, "") -> 2 | E70: =IF($B70>0, Achievement_to_date_ongoing!E68, "") -> 1F | F70: =IF($B70>0, Achievement_to_date_ongoing!F68, "") -> All | G70: 2390685.888 | H70: 2557677.223 | I70: 2557677.223 | J70: 2557677.223 | L70: =IF($B70>0,Achievement_to_date_ongoing!$K68*Achievement_to_date_ongoing!M68,"") -> 2390685.888 | M70: =IF($B70>0,Achievement_to_date_ongoing!$K68*Achievement_to_date_ongoing!N68,"") -> 2557677.223 | N70: =IF($B70>0,Achievement_to_date_ongoing!$K68*Achievement_to_date_ongoing!O68,"") -> 2557677.223 | O70: =IF($B70>0,Achievement_to_date_ongoing!$K68*Achievement_to_date_ongoing!P68,"") -> 2557677.223
B71: =Achievement_to_date_ongoing!B69 -> 115711 | C71: =IF($B71>0, Achievement_to_date_ongoing!C69, "") -> 2 | D71: =IF($B71>0, Achievement_to_date_ongoing!D69, "") -> 2 | E71: =IF($B71>0, Achievement_to_date_ongoing!E69, "") -> 1F | F71: =IF($B71>0, Achievement_to_date_ongoing!F69, "") -> All | G71: 4321446.076 | H71: 4321446.076 | I71: 4321446.076 | J71: 4321446.076 | L71: =IF($B71>0,Achievement_to_date_ongoing!$K69*Achievement_to_date_ongoing!M69,"") -> 4321446.076 | M71: =IF($B71>0,Achievement_to_date_ongoing!$K69*Achievement_to_date_ongoing!N69,"") -> 4321446.076 | N71: =IF($B71>0,Achievement_to_date_ongoing!$K69*Achievement_to_date_ongoing!O69,"") -> 4321446.076 | O71: =IF($B71>0,Achievement_to_date_ongoing!$K69*Achievement_to_date_ongoing!P69,"") -> 4321446.076
B72: =Achievement_to_date_ongoing!B70 -> 115981 | C72: =IF($B72>0, Achievement_to_date_ongoing!C70, "") -> 2 | D72: =IF($B72>0, Achievement_to_date_ongoing!D70, "") -> 2 | E72: =IF($B72>0, Achievement_to_date_ongoing!E70, "") -> 1F | F72: =IF($B72>0, Achievement_to_date_ongoing!F70, "") -> All | G72: 4259410.888 | H72: 4259410.888 | I72: 4259410.888 | J72: 4259410.888 | L72: =IF($B72>0,Achievement_to_date_ongoing!$K70*Achievement_to_date_ongoing!M70,"") -> 4259410.888 | M72: =IF($B72>0,Achievement_to_date_ongoing!$K70*Achievement_to_date_ongoing!N70,"") -> 4259410.888 | N72: =IF($B72>0,Achievement_to_date_ongoing!$K70*Achievement_to_date_ongoing!O70,"") -> 4259410.888 | O72: =IF($B72>0,Achievement_to_date_ongoing!$K70*Achievement_to_date_ongoing!P70,"") -> 4259410.888
B73: =Achievement_to_date_ongoing!B71 -> 115984 | C73: =IF($B73>0, Achievement_to_date_ongoing!C71, "") -> 2 | D73: =IF($B73>0, Achievement_to_date_ongoing!D71, "") -> 2 | E73: =IF($B73>0, Achievement_to_date_ongoing!E71, "") -> 1F | F73: =IF($B73>0, Achievement_to_date_ongoing!F71, "") -> All | G73: 4112228.024 | H73: 4307823.679 | I73: 4307823.679 | J73: 4307823.679 | L73: =IF($B73>0,Achievement_to_date_ongoing!$K71*Achievement_to_date_ongoing!M71,"") -> 4112228.024 | M73: =IF($B73>0,Achievement_to_date_ongoing!$K71*Achievement_to_date_ongoing!N71,"") -> 4307823.679 | N73: =IF($B73>0,Achievement_to_date_ongoing!$K71*Achievement_to_date_ongoing!O71,"") -> 4307823.679 | O73: =IF($B73>0,Achievement_to_date_ongoing!$K71*Achievement_to_date_ongoing!P71,"") -> 4307823.679
B74: =Achievement_to_date_ongoing!B72 -> 116011 | C74: =IF($B74>0, Achievement_to_date_ongoing!C72, "") -> 2 | D74: =IF($B74>0, Achievement_to_date_ongoing!D72, "") -> 2 | E74: =IF($B74>0, Achievement_to_date_ongoing!E72, "") -> 1F | F74: =IF($B74>0, Achievement_to_date_ongoing!F72, "") -> All | G74: 4349676.39 | H74: 4349676.39 | I74: 4349676.39 | J74: 4349676.39 | L74: =IF($B74>0,Achievement_to_date_ongoing!$K72*Achievement_to_date_ongoing!M72,"") -> 4349676.39 | M74: =IF($B74>0,Achievement_to_date_ongoing!$K72*Achievement_to_date_ongoing!N72,"") -> 4349676.39 | N74: =IF($B74>0,Achievement_to_date_ongoing!$K72*Achievement_to_date_ongoing!O72,"") -> 4349676.39 | O74: =IF($B74>0,Achievement_to_date_ongoing!$K72*Achievement_to_date_ongoing!P72,"") -> 4349676.39
B75: =Achievement_to_date_ongoing!B73 -> 116091 | C75: =IF($B75>0, Achievement_to_date_ongoing!C73, "") -> 2 | D75: =IF($B75>0, Achievement_to_date_ongoing!D73, "") -> 2 | E75: =IF($B75>0, Achievement_to_date_ongoing!E73, "") -> 1F | F75: =IF($B75>0, Achievement_to_date_ongoing!F73, "") -> All | G75: 1805977.416 | H75: 1998785.14 | I75: 2128943.706 | J75: 2128943.706 | L75: =IF($B75>0,Achievement_to_date_ongoing!$K73*Achievement_to_date_ongoing!M73,"") -> 1805977.416 | M75: =IF($B75>0,Achievement_to_date_ongoing!$K73*Achievement_to_date_ongoing!N73,"") -> 1998785.14 | N75: =IF($B75>0,Achievement_to_date_ongoing!$K73*Achievement_to_date_ongoing!O73,"") -> 2128943.706 | O75: =IF($B75>0,Achievement_to_date_ongoing!$K73*Achievement_to_date_ongoing!P73,"") -> 2128943.706
B76: =Achievement_to_date_ongoing!B74 -> 116098 | C76: =IF($B76>0, Achievement_to_date_ongoing!C74, "") -> 2 | D76: =IF($B76>0, Achievement_to_date_ongoing!D74, "") -> 2 | E76: =IF($B76>0, Achievement_to_date_ongoing!E74, "") -> 1F | F76: =IF($B76>0, Achievement_to_date_ongoing!F74, "") -> All | G76: 1734740.021 | H76: 1734740.021 | I76: 1734740.021 | J76: 1734740.021 | L76: =IF($B76>0,Achievement_to_date_ongoing!$K74*Achievement_to_date_ongoing!M74,"") -> 1734740.021 | M76: =IF($B76>0,Achievement_to_date_ongoing!$K74*Achievement_to_date_ongoing!N74,"") -> 1734740.021 | N76: =IF($B76>0,Achievement_to_date_ongoing!$K74*Achievement_to_date_ongoing!O74,"") -> 1734740.021 | O76: =IF($B76>0,Achievement_to_date_ongoing!$K74*Achievement_to_date_ongoing!P74,"") -> 1734740.021
B77: =Achievement_to_date_ongoing!B75 -> 116117 | C77: =IF($B77>0, Achievement_to_date_ongoing!C75, "") -> 2 | D77: =IF($B77>0, Achievement_to_date_ongoing!D75, "") -> 2 | E77: =IF($B77>0, Achievement_to_date_ongoing!E75, "") -> 1F | F77: =IF($B77>0, Achievement_to_date_ongoing!F75, "") -> All | G77: 3081570.872 | H77: 3081570.872 | I77: 3081570.872 | J77: 3081570.872 | L77: =IF($B77>0,Achievement_to_date_ongoing!$K75*Achievement_to_date_ongoing!M75,"") -> 3081570.872 | M77: =IF($B77>0,Achievement_to_date_ongoing!$K75*Achievement_to_date_ongoing!N75,"") -> 3081570.872 | N77: =IF($B77>0,Achievement_to_date_ongoing!$K75*Achievement_to_date_ongoing!O75,"") -> 3081570.872 | O77: =IF($B77>0,Achievement_to_date_ongoing!$K75*Achievement_to_date_ongoing!P75,"") -> 3081570.872
B78: =Achievement_to_date_ongoing!B76 -> 116281 | C78: =IF($B78>0, Achievement_to_date_ongoing!C76, "") -> 2 | D78: =IF($B78>0, Achievement_to_date_ongoing!D76, "") -> 2 | E78: =IF($B78>0, Achievement_to_date_ongoing!E76, "") -> 1F | F78: =IF($B78>0, Achievement_to_date_ongoing!F76, "") -> All | G78: 4111038.124 | H78: 4306577.181 | I78: 4306577.181 | J78: 4306577.181 | L78: =IF($B78>0,Achievement_to_date_ongoing!$K76*Achievement_to_date_ongoing!M76,"") -> 4111038.124 | M78: =IF($B78>0,Achievement_to_date_ongoing!$K76*Achievement_to_date_ongoing!N76,"") -> 4306577.181 | N78: =IF($B78>0,Achievement_to_date_ongoing!$K76*Achievement_to_date_ongoing!O76,"") -> 4306577.181 | O78: =IF($B78>0,Achievement_to_date_ongoing!$K76*Achievement_to_date_ongoing!P76,"") -> 4306577.181
B79: =Achievement_to_date_ongoing!B77 -> 116329 | C79: =IF($B79>0, Achievement_to_date_ongoing!C77, "") -> 2 | D79: =IF($B79>0, Achievement_to_date_ongoing!D77, "") -> 2 | E79: =IF($B79>0, Achievement_to_date_ongoing!E77, "") -> 1F | F79: =IF($B79>0, Achievement_to_date_ongoing!F77, "") -> All | G79: 4303494.248 | H79: 4303494.248 | I79: 4303494.248 | J79: 4303494.248 | L79: =IF($B79>0,Achievement_to_date_ongoing!$K77*Achievement_to_date_ongoing!M77,"") -> 4303494.248 | M79: =IF($B79>0,Achievement_to_date_ongoing!$K77*Achievement_to_date_ongoing!N77,"") -> 4303494.248 | N79: =IF($B79>0,Achievement_to_date_ongoing!$K77*Achievement_to_date_ongoing!O77,"") -> 4303494.248 | O79: =IF($B79>0,Achievement_to_date_ongoing!$K77*Achievement_to_date_ongoing!P77,"") -> 4303494.248
B80: =Achievement_to_date_ongoing!B78 -> 116362 | C80: =IF($B80>0, Achievement_to_date_ongoing!C78, "") -> 2 | D80: =IF($B80>0, Achievement_to_date_ongoing!D78, "") -> 2 | E80: =IF($B80>0, Achievement_to_date_ongoing!E78, "") -> 1F | F80: =IF($B80>0, Achievement_to_date_ongoing!F78, "") -> All | G80: 2845275.475 | H80: 3134263.453 | I80: 3134263.453 | J80: 3134263.453 | L80: =IF($B80>0,Achievement_to_date_ongoing!$K78*Achievement_to_date_ongoing!M78,"") -> 2845275.475 | M80: =IF($B80>0,Achievement_to_date_ongoing!$K78*Achievement_to_date_ongoing!N78,"") -> 3134263.453 | N80: =IF($B80>0,Achievement_to_date_ongoing!$K78*Achievement_to_date_ongoing!O78,"") -> 3134263.453 | O80: =IF($B80>0,Achievement_to_date_ongoing!$K78*Achievement_to_date_ongoing!P78,"") -> 3134263.453
B81: =Achievement_to_date_ongoing!B79 -> 116402 | C81: =IF($B81>0, Achievement_to_date_ongoing!C79, "") -> 2 | D81: =IF($B81>0, Achievement_to_date_ongoing!D79, "") -> 2 | E81: =IF($B81>0, Achievement_to_date_ongoing!E79, "") -> 1F | F81: =IF($B81>0, Achievement_to_date_ongoing!F79, "") -> All | G81: 3847593.892 | H81: 4238385.009 | I81: 4238385.009 | J81: 4238385.009 | L81: =IF($B81>0,Achievement_to_date_ongoing!$K79*Achievement_to_date_ongoing!M79,"") -> 3847593.892 | M81: =IF($B81>0,Achievement_to_date_ongoing!$K79*Achievement_to_date_ongoing!N79,"") -> 4238385.009 | N81: =IF($B81>0,Achievement_to_date_ongoing!$K79*Achievement_to_date_ongoing!O79,"") -> 4238385.009 | O81: =IF($B81>0,Achievement_to_date_ongoing!$K79*Achievement_to_date_ongoing!P79,"") -> 4238385.009
B82: =Achievement_to_date_ongoing!B80 -> 116679 | C82: =IF($B82>0, Achievement_to_date_ongoing!C80, "") -> 2 | D82: =IF($B82>0, Achievement_to_date_ongoing!D80, "") -> 2 | E82: =IF($B82>0, Achievement_to_date_ongoing!E80, "") -> 1F | F82: =IF($B82>0, Achievement_to_date_ongoing!F80, "") -> All | G82: 2359500.727 | H82: 2673611.354 | I82: 2673611.354 | J82: 2673611.354 | L82: =IF($B82>0,Achievement_to_date_ongoing!$K80*Achievement_to_date_ongoing!M80,"") -> 2359500.727 | M82: =IF($B82>0,Achievement_to_date_ongoing!$K80*Achievement_to_date_ongoing!N80,"") -> 2673611.354 | N82: =IF($B82>0,Achievement_to_date_ongoing!$K80*Achievement_to_date_ongoing!O80,"") -> 2673611.354 | O82: =IF($B82>0,Achievement_to_date_ongoing!$K80*Achievement_to_date_ongoing!P80,"") -> 2673611.354
B83: =Achievement_to_date_ongoing!B81 -> 116694 | C83: =IF($B83>0, Achievement_to_date_ongoing!C81, "") -> 2 | D83: =IF($B83>0, Achievement_to_date_ongoing!D81, "") -> 2 | E83: =IF($B83>0, Achievement_to_date_ongoing!E81, "") -> 1F | F83: =IF($B83>0, Achievement_to_date_ongoing!F81, "") -> All | G83: 3941895.952 | H83: 3941895.952 | I83: 3941895.952 | J83: 3941895.952 | L83: =IF($B83>0,Achievement_to_date_ongoing!$K81*Achievement_to_date_ongoing!M81,"") -> 3941895.952 | M83: =IF($B83>0,Achievement_to_date_ongoing!$K81*Achievement_to_date_ongoing!N81,"") -> 3941895.952 | N83: =IF($B83>0,Achievement_to_date_ongoing!$K81*Achievement_to_date_ongoing!O81,"") -> 3941895.952 | O83: =IF($B83>0,Achievement_to_date_ongoing!$K81*Achievement_to_date_ongoing!P81,"") -> 3941895.952
B84: =Achievement_to_date_ongoing!B82 -> 116832 | C84: =IF($B84>0, Achievement_to_date_ongoing!C82, "") -> 2 | D84: =IF($B84>0, Achievement_to_date_ongoing!D82, "") -> 2 | E84: =IF($B84>0, Achievement_to_date_ongoing!E82, "") -> 1F | F84: =IF($B84>0, Achievement_to_date_ongoing!F82, "") -> All | G84: 4164459.092 | H84: 4164459.092 | I84: 4164459.092 | J84: 4164459.092 | L84: =IF($B84>0,Achievement_to_date_ongoing!$K82*Achievement_to_date_ongoing!M82,"") -> 4164459.092 | M84: =IF($B84>0,Achievement_to_date_ongoing!$K82*Achievement_to_date_ongoing!N82,"") -> 4164459.092 | N84: =IF($B84>0,Achievement_to_date_ongoing!$K82*Achievement_to_date_ongoing!O82,"") -> 4164459.092 | O84: =IF($B84>0,Achievement_to_date_ongoing!$K82*Achievement_to_date_ongoing!P82,"") -> 4164459.092
B85: =Achievement_to_date_ongoing!B83 -> 117020 | C85: =IF($B85>0, Achievement_to_date_ongoing!C83, "") -> 2 | D85: =IF($B85>0, Achievement_to_date_ongoing!D83, "") -> 2 | E85: =IF($B85>0, Achievement_to_date_ongoing!E83, "") -> 1F | F85: =IF($B85>0, Achievement_to_date_ongoing!F83, "") -> All | G85: 3883764.017 | H85: 4278228.848 | I85: 4278228.848 | J85: 4278228.848 | L85: =IF($B85>0,Achievement_to_date_ongoing!$K83*Achievement_to_date_ongoing!M83,"") -> 3883764.017 | M85: =IF($B85>0,Achievement_to_date_ongoing!$K83*Achievement_to_date_ongoing!N83,"") -> 4278228.848 | N85: =IF($B85>0,Achievement_to_date_ongoing!$K83*Achievement_to_date_ongoing!O83,"") -> 4278228.848 | O85: =IF($B85>0,Achievement_to_date_ongoing!$K83*Achievement_to_date_ongoing!P83,"") -> 4278228.848
B86: =Achievement_to_date_ongoing!B84 -> 117165 | C86: =IF($B86>0, Achievement_to_date_ongoing!C84, "") -> 2 | D86: =IF($B86>0, Achievement_to_date_ongoing!D84, "") -> 2 | E86: =IF($B86>0, Achievement_to_date_ongoing!E84, "") -> 1F | F86: =IF($B86>0, Achievement_to_date_ongoing!F84, "") -> All | G86: 3957211.987 | H86: 4293412.196 | I86: 4293412.196 | J86: 4293412.196 | L86: =IF($B86>0,Achievement_to_date_ongoing!$K84*Achievement_to_date_ongoing!M84,"") -> 3957211.987 | M86: =IF($B86>0,Achievement_to_date_ongoing!$K84*Achievement_to_date_ongoing!N84,"") -> 4293412.196 | N86: =IF($B86>0,Achievement_to_date_ongoing!$K84*Achievement_to_date_ongoing!O84,"") -> 4293412.196 | O86: =IF($B86>0,Achievement_to_date_ongoing!$K84*Achievement_to_date_ongoing!P84,"") -> 4293412.196
B87: =Achievement_to_date_ongoing!B85 -> 110727 | C87: =IF($B87>0, Achievement_to_date_ongoing!C85, "") -> 2 | D87: =IF($B87>0, Achievement_to_date_ongoing!D85, "") -> 2 | E87: =IF($B87>0, Achievement_to_date_ongoing!E85, "") -> 1F | F87: =IF($B87>0, Achievement_to_date_ongoing!F85, "") -> All | G87: 3209921.292 | H87: 3228220.325 | I87: 3228220.325 | J87: 3228220.325 | L87: =IF($B87>0,Achievement_to_date_ongoing!$K85*Achievement_to_date_ongoing!M85,"") -> 3209921.292 | M87: =IF($B87>0,Achievement_to_date_ongoing!$K85*Achievement_to_date_ongoing!N85,"") -> 3228220.325 | N87: =IF($B87>0,Achievement_to_date_ongoing!$K85*Achievement_to_date_ongoing!O85,"") -> 3228220.325 | O87: =IF($B87>0,Achievement_to_date_ongoing!$K85*Achievement_to_date_ongoing!P85,"") -> 3228220.325
B88: =Achievement_to_date_ongoing!B86 -> 110753 | C88: =IF($B88>0, Achievement_to_date_ongoing!C86, "") -> 2 | D88: =IF($B88>0, Achievement_to_date_ongoing!D86, "") -> 2 | E88: =IF($B88>0, Achievement_to_date_ongoing!E86, "") -> 1F | F88: =IF($B88>0, Achievement_to_date_ongoing!F86, "") -> All | G88: 3500397.42 | H88: 3500397.42 | I88: 3500397.42 | J88: 3500397.42 | L88: =IF($B88>0,Achievement_to_date_ongoing!$K86*Achievement_to_date_ongoing!M86,"") -> 3500397.42 | M88: =IF($B88>0,Achievement_to_date_ongoing!$K86*Achievement_to_date_ongoing!N86,"") -> 3500397.42 | N88: =IF($B88>0,Achievement_to_date_ongoing!$K86*Achievement_to_date_ongoing!O86,"") -> 3500397.42 | O88: =IF($B88>0,Achievement_to_date_ongoing!$K86*Achievement_to_date_ongoing!P86,"") -> 3500397.42
B89: =Achievement_to_date_ongoing!B87 -> 110892 | C89: =IF($B89>0, Achievement_to_date_ongoing!C87, "") -> 2 | D89: =IF($B89>0, Achievement_to_date_ongoing!D87, "") -> 2 | E89: =IF($B89>0, Achievement_to_date_ongoing!E87, "") -> 1F | F89: =IF($B89>0, Achievement_to_date_ongoing!F87, "") -> All | G89: 4173910.476 | H89: 4322942.099 | I89: 4322942.099 | J89: 4322942.099 | L89: =IF($B89>0,Achievement_to_date_ongoing!$K87*Achievement_to_date_ongoing!M87,"") -> 4173910.476 | M89: =IF($B89>0,Achievement_to_date_ongoing!$K87*Achievement_to_date_ongoing!N87,"") -> 4322942.099 | N89: =IF($B89>0,Achievement_to_date_ongoing!$K87*Achievement_to_date_ongoing!O87,"") -> 4322942.099 | O89: =IF($B89>0,Achievement_to_date_ongoing!$K87*Achievement_to_date_ongoing!P87,"") -> 4322942.099
B90: =Achievement_to_date_ongoing!B88 -> 110915 | C90: =IF($B90>0, Achievement_to_date_ongoing!C88, "") -> 2 | D90: =IF($B90>0, Achievement_to_date_ongoing!D88, "") -> 2 | E90: =IF($B90>0, Achievement_to_date_ongoing!E88, "") -> 1F | F90: =IF($B90>0, Achievement_to_date_ongoing!F88, "") -> All | G90: 4023926.286 | H90: 4023926.286 | I90: 4023926.286 | J90: 4023926.286 | L90: =IF($B90>0,Achievement_to_date_ongoing!$K88*Achievement_to_date_ongoing!M88,"") -> 4023926.286 | M90: =IF($B90>0,Achievement_to_date_ongoing!$K88*Achievement_to_date_ongoing!N88,"") -> 4023926.286 | N90: =IF($B90>0,Achievement_to_date_ongoing!$K88*Achievement_to_date_ongoing!O88,"") -> 4023926.286 | O90: =IF($B90>0,Achievement_to_date_ongoing!$K88*Achievement_to_date_ongoing!P88,"") -> 4023926.286
B91: =Achievement_to_date_ongoing!B89 -> 111026 | C91: =IF($B91>0, Achievement_to_date_ongoing!C89, "") -> 2 | D91: =IF($B91>0, Achievement_to_date_ongoing!D89, "") -> 2 | E91: =IF($B91>0, Achievement_to_date_ongoing!E89, "") -> 1F | F91: =IF($B91>0, Achievement_to_date_ongoing!F89, "") -> All | G91: 1700872.933 | H91: 1700872.933 | I91: 1700872.933 | J91: 1700872.933 | L91: =IF($B91>0,Achievement_to_date_ongoing!$K89*Achievement_to_date_ongoing!M89,"") -> 1700872.933 | M91: =IF($B91>0,Achievement_to_date_ongoing!$K89*Achievement_to_date_ongoing!N89,"") -> 1700872.933 | N91: =IF($B91>0,Achievement_to_date_ongoing!$K89*Achievement_to_date_ongoing!O89,"") -> 1700872.933 | O91: =IF($B91>0,Achievement_to_date_ongoing!$K89*Achievement_to_date_ongoing!P89,"") -> 1700872.933
B92: =Achievement_to_date_ongoing!B90 -> 111087 | C92: =IF($B92>0, Achievement_to_date_ongoing!C90, "") -> 2 | D92: =IF($B92>0, Achievement_to_date_ongoing!D90, "") -> 2 | E92: =IF($B92>0, Achievement_to_date_ongoing!E90, "") -> 1F | F92: =IF($B92>0, Achievement_to_date_ongoing!F90, "") -> All | G92: 4289591.637 | H92: 4289591.637 | I92: 4289591.637 | J92: 4289591.637 | L92: =IF($B92>0,Achievement_to_date_ongoing!$K90*Achievement_to_date_ongoing!M90,"") -> 4289591.637 | M92: =IF($B92>0,Achievement_to_date_ongoing!$K90*Achievement_to_date_ongoing!N90,"") -> 4289591.637 | N92: =IF($B92>0,Achievement_to_date_ongoing!$K90*Achievement_to_date_ongoing!O90,"") -> 4289591.637 | O92: =IF($B92>0,Achievement_to_date_ongoing!$K90*Achievement_to_date_ongoing!P90,"") -> 4289591.637
B93: =Achievement_to_date_ongoing!B91 -> 111211 | C93: =IF($B93>0, Achievement_to_date_ongoing!C91, "") -> 2 | D93: =IF($B93>0, Achievement_to_date_ongoing!D91, "") -> 2 | E93: =IF($B93>0, Achievement_to_date_ongoing!E91, "") -> 1F | F93: =IF($B93>0, Achievement_to_date_ongoing!F91, "") -> All | G93: 955971.42 | H93: 955971.42 | I93: 955971.42 | J93: 955971.42 | L93: =IF($B93>0,Achievement_to_date_ongoing!$K91*Achievement_to_date_ongoing!M91,"") -> 955971.42 | M93: =IF($B93>0,Achievement_to_date_ongoing!$K91*Achievement_to_date_ongoing!N91,"") -> 955971.42 | N93: =IF($B93>0,Achievement_to_date_ongoing!$K91*Achievement_to_date_ongoing!O91,"") -> 955971.42 | O93: =IF($B93>0,Achievement_to_date_ongoing!$K91*Achievement_to_date_ongoing!P91,"") -> 955971.42
B94: =Achievement_to_date_ongoing!B92 -> 111513 | C94: =IF($B94>0, Achievement_to_date_ongoing!C92, "") -> 2 | D94: =IF($B94>0, Achievement_to_date_ongoing!D92, "") -> 2 | E94: =IF($B94>0, Achievement_to_date_ongoing!E92, "") -> 1F | F94: =IF($B94>0, Achievement_to_date_ongoing!F92, "") -> All | G94: 1278869.419 | H94: 1408761.196 | I94: 1408761.196 | J94: 1408761.196 | L94: =IF($B94>0,Achievement_to_date_ongoing!$K92*Achievement_to_date_ongoing!M92,"") -> 1278869.419 | M94: =IF($B94>0,Achievement_to_date_ongoing!$K92*Achievement_to_date_ongoing!N92,"") -> 1408761.196 | N94: =IF($B94>0,Achievement_to_date_ongoing!$K92*Achievement_to_date_ongoing!O92,"") -> 1408761.196 | O94: =IF($B94>0,Achievement_to_date_ongoing!$K92*Achievement_to_date_ongoing!P92,"") -> 1408761.196
B95: =Achievement_to_date_ongoing!B93 -> 111797 | C95: =IF($B95>0, Achievement_to_date_ongoing!C93, "") -> 2 | D95: =IF($B95>0, Achievement_to_date_ongoing!D93, "") -> 2 | E95: =IF($B95>0, Achievement_to_date_ongoing!E93, "") -> 1F | F95: =IF($B95>0, Achievement_to_date_ongoing!F93, "") -> All | G95: 1511747.725 | H95: 1511747.725 | I95: 1511747.725 | J95: 1511747.725 | L95: =IF($B95>0,Achievement_to_date_ongoing!$K93*Achievement_to_date_ongoing!M93,"") -> 1511747.725 | M95: =IF($B95>0,Achievement_to_date_ongoing!$K93*Achievement_to_date_ongoing!N93,"") -> 1511747.725 | N95: =IF($B95>0,Achievement_to_date_ongoing!$K93*Achievement_to_date_ongoing!O93,"") -> 1511747.725 | O95: =IF($B95>0,Achievement_to_date_ongoing!$K93*Achievement_to_date_ongoing!P93,"") -> 1511747.725
B96: =Achievement_to_date_ongoing!B94 -> 112077 | C96: =IF($B96>0, Achievement_to_date_ongoing!C94, "") -> 2 | D96: =IF($B96>0, Achievement_to_date_ongoing!D94, "") -> 2 | E96: =IF($B96>0, Achievement_to_date_ongoing!E94, "") -> 1F | F96: =IF($B96>0, Achievement_to_date_ongoing!F94, "") -> All | G96: 3653396.534 | H96: 3653396.534 | I96: 3653396.534 | J96: 3653396.534 | L96: =IF($B96>0,Achievement_to_date_ongoing!$K94*Achievement_to_date_ongoing!M94,"") -> 3653396.534 | M96: =IF($B96>0,Achievement_to_date_ongoing!$K94*Achievement_to_date_ongoing!N94,"") -> 3653396.534 | N96: =IF($B96>0,Achievement_to_date_ongoing!$K94*Achievement_to_date_ongoing!O94,"") -> 3653396.534 | O96: =IF($B96>0,Achievement_to_date_ongoing!$K94*Achievement_to_date_ongoing!P94,"") -> 3653396.534
B97: =Achievement_to_date_ongoing!B95 -> 112294 | C97: =IF($B97>0, Achievement_to_date_ongoing!C95, "") -> 2 | D97: =IF($B97>0, Achievement_to_date_ongoing!D95, "") -> 2 | E97: =IF($B97>0, Achievement_to_date_ongoing!E95, "") -> 1F | F97: =IF($B97>0, Achievement_to_date_ongoing!F95, "") -> All | G97: 4319218.381 | H97: 4319218.381 | I97: 4319218.381 | J97: 4319218.381 | L97: =IF($B97>0,Achievement_to_date_ongoing!$K95*Achievement_to_date_ongoing!M95,"") -> 4319218.381 | M97: =IF($B97>0,Achievement_to_date_ongoing!$K95*Achievement_to_date_ongoing!N95,"") -> 4319218.381 | N97: =IF($B97>0,Achievement_to_date_ongoing!$K95*Achievement_to_date_ongoing!O95,"") -> 4319218.381 | O97: =IF($B97>0,Achievement_to_date_ongoing!$K95*Achievement_to_date_ongoing!P95,"") -> 4319218.381
B98: =Achievement_to_date_ongoing!B96 -> 112440 | C98: =IF($B98>0, Achievement_to_date_ongoing!C96, "") -> 2 | D98: =IF($B98>0, Achievement_to_date_ongoing!D96, "") -> 2 | E98: =IF($B98>0, Achievement_to_date_ongoing!E96, "") -> 1F | F98: =IF($B98>0, Achievement_to_date_ongoing!F96, "") -> All | G98: 1565303.738 | H98: 1565303.738 | I98: 1565303.738 | J98: 1565303.738 | L98: =IF($B98>0,Achievement_to_date_ongoing!$K96*Achievement_to_date_ongoing!M96,"") -> 1565303.738 | M98: =IF($B98>0,Achievement_to_date_ongoing!$K96*Achievement_to_date_ongoing!N96,"") -> 1565303.738 | N98: =IF($B98>0,Achievement_to_date_ongoing!$K96*Achievement_to_date_ongoing!O96,"") -> 1565303.738 | O98: =IF($B98>0,Achievement_to_date_ongoing!$K96*Achievement_to_date_ongoing!P96,"") -> 1565303.738
B99: =Achievement_to_date_ongoing!B97 -> 113047 | C99: =IF($B99>0, Achievement_to_date_ongoing!C97, "") -> 2 | D99: =IF($B99>0, Achievement_to_date_ongoing!D97, "") -> 2 | E99: =IF($B99>0, Achievement_to_date_ongoing!E97, "") -> 1F | F99: =IF($B99>0, Achievement_to_date_ongoing!F97, "") -> All | G99: 3412725.062 | H99: 3412725.062 | I99: 3412725.062 | J99: 3412725.062 | L99: =IF($B99>0,Achievement_to_date_ongoing!$K97*Achievement_to_date_ongoing!M97,"") -> 3412725.062 | M99: =IF($B99>0,Achievement_to_date_ongoing!$K97*Achievement_to_date_ongoing!N97,"") -> 3412725.062 | N99: =IF($B99>0,Achievement_to_date_ongoing!$K97*Achievement_to_date_ongoing!O97,"") -> 3412725.062 | O99: =IF($B99>0,Achievement_to_date_ongoing!$K97*Achievement_to_date_ongoing!P97,"") -> 3412725.062
B100: =Achievement_to_date_ongoing!B98 -> 113062 | C100: =IF($B100>0, Achievement_to_date_ongoing!C98, "") -> 2 | D100: =IF($B100>0, Achievement_to_date_ongoing!D98, "") -> 2 | E100: =IF($B100>0, Achievement_to_date_ongoing!E98, "") -> 1F | F100: =IF($B100>0, Achievement_to_date_ongoing!F98, "") -> All | G100: 2126365.921 | H100: 2277472.05 | I100: 2290455.402 | J100: 2290455.402 | L100: =IF($B100>0,Achievement_to_date_ongoing!$K98*Achievement_to_date_ongoing!M98,"") -> 2126365.921 | M100: =IF($B100>0,Achievement_to_date_ongoing!$K98*Achievement_to_date_ongoing!N98,"") -> 2277472.05 | N100: =IF($B100>0,Achievement_to_date_ongoing!$K98*Achievement_to_date_ongoing!O98,"") -> 2290455.402 | O100: =IF($B100>0,Achievement_to_date_ongoing!$K98*Achievement_to_date_ongoing!P98,"") -> 2290455.402
B101: =Achievement_to_date_ongoing!B99 -> 113070 | C101: =IF($B101>0, Achievement_to_date_ongoing!C99, "") -> 2 | D101: =IF($B101>0, Achievement_to_date_ongoing!D99, "") -> 2 | E101: =IF($B101>0, Achievement_to_date_ongoing!E99, "") -> 1F | F101: =IF($B101>0, Achievement_to_date_ongoing!F99, "") -> All | G101: 4236913.299 | H101: 4313589.796 | I101: 4313589.796 | J101: 4313589.796 | L101: =IF($B101>0,Achievement_to_date_ongoing!$K99*Achievement_to_date_ongoing!M99,"") -> 4236913.299 | M101: =IF($B101>0,Achievement_to_date_ongoing!$K99*Achievement_to_date_ongoing!N99,"") -> 4313589.796 | N101: =IF($B101>0,Achievement_to_date_ongoing!$K99*Achievement_to_date_ongoing!O99,"") -> 4313589.796 | O101: =IF($B101>0,Achievement_to_date_ongoing!$K99*Achievement_to_date_ongoing!P99,"") -> 4313589.796
B102: =Achievement_to_date_ongoing!B100 -> 113270 | C102: =IF($B102>0, Achievement_to_date_ongoing!C100, "") -> 2 | D102: =IF($B102>0, Achievement_to_date_ongoing!D100, "") -> 2 | E102: =IF($B102>0, Achievement_to_date_ongoing!E100, "") -> 1F | F102: =IF($B102>0, Achievement_to_date_ongoing!F100, "") -> All | G102: 3013570.362 | H102: 3013570.362 | I102: 3013570.362 | J102: 3013570.362 | L102: =IF($B102>0,Achievement_to_date_ongoing!$K100*Achievement_to_date_ongoing!M100,"") -> 3013570.362 | M102: =IF($B102>0,Achievement_to_date_ongoing!$K100*Achievement_to_date_ongoing!N100,"") -> 3013570.362 | N102: =IF($B102>0,Achievement_to_date_ongoing!$K100*Achievement_to_date_ongoing!O100,"") -> 3013570.362 | O102: =IF($B102>0,Achievement_to_date_ongoing!$K100*Achievement_to_date_ongoing!P100,"") -> 3013570.362
B103: =Achievement_to_date_ongoing!B101 -> 113426 | C103: =IF($B103>0, Achievement_to_date_ongoing!C101, "") -> 2 | D103: =IF($B103>0, Achievement_to_date_ongoing!D101, "") -> 2 | E103: =IF($B103>0, Achievement_to_date_ongoing!E101, "") -> 1F | F103: =IF($B103>0, Achievement_to_date_ongoing!F101, "") -> All | G103: 1163073.344 | H103: 1223270.648 | I103: 1223270.648 | J103: 1223270.648 | L103: =IF($B103>0,Achievement_to_date_ongoing!$K101*Achievement_to_date_ongoing!M101,"") -> 1163073.344 | M103: =IF($B103>0,Achievement_to_date_ongoing!$K101*Achievement_to_date_ongoing!N101,"") -> 1223270.648 | N103: =IF($B103>0,Achievement_to_date_ongoing!$K101*Achievement_to_date_ongoing!O101,"") -> 1223270.648 | O103: =IF($B103>0,Achievement_to_date_ongoing!$K101*Achievement_to_date_ongoing!P101,"") -> 1223270.648
B104: =Achievement_to_date_ongoing!B102 -> 113557 | C104: =IF($B104>0, Achievement_to_date_ongoing!C102, "") -> 2 | D104: =IF($B104>0, Achievement_to_date_ongoing!D102, "") -> 2 | E104: =IF($B104>0, Achievement_to_date_ongoing!E102, "") -> 1F | F104: =IF($B104>0, Achievement_to_date_ongoing!F102, "") -> All | G104: 1448654.695 | H104: 1448654.695 | I104: 1448654.695 | J104: 1448654.695 | L104: =IF($B104>0,Achievement_to_date_ongoing!$K102*Achievement_to_date_ongoing!M102,"") -> 1448654.695 | M104: =IF($B104>0,Achievement_to_date_ongoing!$K102*Achievement_to_date_ongoing!N102,"") -> 1448654.695 | N104: =IF($B104>0,Achievement_to_date_ongoing!$K102*Achievement_to_date_ongoing!O102,"") -> 1448654.695 | O104: =IF($B104>0,Achievement_to_date_ongoing!$K102*Achievement_to_date_ongoing!P102,"") -> 1448654.695
B105: =Achievement_to_date_ongoing!B103 -> 114046 | C105: =IF($B105>0, Achievement_to_date_ongoing!C103, "") -> 2 | D105: =IF($B105>0, Achievement_to_date_ongoing!D103, "") -> 2 | E105: =IF($B105>0, Achievement_to_date_ongoing!E103, "") -> 1F | F105: =IF($B105>0, Achievement_to_date_ongoing!F103, "") -> All | G105: 995207.3999 | H105: 995207.3999 | I105: 995207.3999 | J105: 995207.3999 | L105: =IF($B105>0,Achievement_to_date_ongoing!$K103*Achievement_to_date_ongoing!M103,"") -> 995207.3999 | M105: =IF($B105>0,Achievement_to_date_ongoing!$K103*Achievement_to_date_ongoing!N103,"") -> 995207.3999 | N105: =IF($B105>0,Achievement_to_date_ongoing!$K103*Achievement_to_date_ongoing!O103,"") -> 995207.3999 | O105: =IF($B105>0,Achievement_to_date_ongoing!$K103*Achievement_to_date_ongoing!P103,"") -> 995207.3999
B106: =Achievement_to_date_ongoing!B104 -> 114048 | C106: =IF($B106>0, Achievement_to_date_ongoing!C104, "") -> 2 | D106: =IF($B106>0, Achievement_to_date_ongoing!D104, "") -> 2 | E106: =IF($B106>0, Achievement_to_date_ongoing!E104, "") -> 1F | F106: =IF($B106>0, Achievement_to_date_ongoing!F104, "") -> All | G106: 893018.7 | H106: 893018.7 | I106: 893018.7 | J106: 893018.7 | L106: =IF($B106>0,Achievement_to_date_ongoing!$K104*Achievement_to_date_ongoing!M104,"") -> 893018.7 | M106: =IF($B106>0,Achievement_to_date_ongoing!$K104*Achievement_to_date_ongoing!N104,"") -> 893018.7 | N106: =IF($B106>0,Achievement_to_date_ongoing!$K104*Achievement_to_date_ongoing!O104,"") -> 893018.7 | O106: =IF($B106>0,Achievement_to_date_ongoing!$K104*Achievement_to_date_ongoing!P104,"") -> 893018.7
B107: =Achievement_to_date_ongoing!B105 -> 114069 | C107: =IF($B107>0, Achievement_to_date_ongoing!C105, "") -> 2 | D107: =IF($B107>0, Achievement_to_date_ongoing!D105, "") -> 2 | E107: =IF($B107>0, Achievement_to_date_ongoing!E105, "") -> 1F | F107: =IF($B107>0, Achievement_to_date_ongoing!F105, "") -> All | G107: 4246713.053 | H107: 4323566.899 | I107: 4323566.899 | J107: 4323566.899 | L107: =IF($B107>0,Achievement_to_date_ongoing!$K105*Achievement_to_date_ongoing!M105,"") -> 4246713.053 | M107: =IF($B107>0,Achievement_to_date_ongoing!$K105*Achievement_to_date_ongoing!N105,"") -> 4323566.899 | N107: =IF($B107>0,Achievement_to_date_ongoing!$K105*Achievement_to_date_ongoing!O105,"") -> 4323566.899 | O107: =IF($B107>0,Achievement_to_date_ongoing!$K105*Achievement_to_date_ongoing!P105,"") -> 4323566.899
B108: =Achievement_to_date_ongoing!B106 -> 114089 | C108: =IF($B108>0, Achievement_to_date_ongoing!C106, "") -> 2 | D108: =IF($B108>0, Achievement_to_date_ongoing!D106, "") -> 2 | E108: =IF($B108>0, Achievement_to_date_ongoing!E106, "") -> 1F | F108: =IF($B108>0, Achievement_to_date_ongoing!F106, "") -> All | G108: 4152058.784 | H108: 4284834.648 | I108: 4284834.648 | J108: 4284834.648 | L108: =IF($B108>0,Achievement_to_date_ongoing!$K106*Achievement_to_date_ongoing!M106,"") -> 4152058.784 | M108: =IF($B108>0,Achievement_to_date_ongoing!$K106*Achievement_to_date_ongoing!N106,"") -> 4284834.648 | N108: =IF($B108>0,Achievement_to_date_ongoing!$K106*Achievement_to_date_ongoing!O106,"") -> 4284834.648 | O108: =IF($B108>0,Achievement_to_date_ongoing!$K106*Achievement_to_date_ongoing!P106,"") -> 4284834.648
B109: =Achievement_to_date_ongoing!B107 -> 114107 | C109: =IF($B109>0, Achievement_to_date_ongoing!C107, "") -> 2 | D109: =IF($B109>0, Achievement_to_date_ongoing!D107, "") -> 2 | E109: =IF($B109>0, Achievement_to_date_ongoing!E107, "") -> 1F | F109: =IF($B109>0, Achievement_to_date_ongoing!F107, "") -> All | G109: 4095868.051 | H109: 4095868.051 | I109: 4095868.051 | J109: 4095868.051 | L109: =IF($B109>0,Achievement_to_date_ongoing!$K107*Achievement_to_date_ongoing!M107,"") -> 4095868.051 | M109: =IF($B109>0,Achievement_to_date_ongoing!$K107*Achievement_to_date_ongoing!N107,"") -> 4095868.051 | N109: =IF($B109>0,Achievement_to_date_ongoing!$K107*Achievement_to_date_ongoing!O107,"") -> 4095868.051 | O109: =IF($B109>0,Achievement_to_date_ongoing!$K107*Achievement_to_date_ongoing!P107,"") -> 4095868.051
B110: =Achievement_to_date_ongoing!B108 -> 114128 | C110: =IF($B110>0, Achievement_to_date_ongoing!C108, "") -> 2 | D110: =IF($B110>0, Achievement_to_date_ongoing!D108, "") -> 2 | E110: =IF($B110>0, Achievement_to_date_ongoing!E108, "") -> 1F | F110: =IF($B110>0, Achievement_to_date_ongoing!F108, "") -> All | G110: 3515634.801 | H110: 3524753.41 | I110: 3524753.41 | J110: 3524753.41 | L110: =IF($B110>0,Achievement_to_date_ongoing!$K108*Achievement_to_date_ongoing!M108,"") -> 3515634.801 | M110: =IF($B110>0,Achievement_to_date_ongoing!$K108*Achievement_to_date_ongoing!N108,"") -> 3524753.41 | N110: =IF($B110>0,Achievement_to_date_ongoing!$K108*Achievement_to_date_ongoing!O108,"") -> 3524753.41 | O110: =IF($B110>0,Achievement_to_date_ongoing!$K108*Achievement_to_date_ongoing!P108,"") -> 3524753.41
B111: =Achievement_to_date_ongoing!B109 -> 114306 | C111: =IF($B111>0, Achievement_to_date_ongoing!C109, "") -> 2 | D111: =IF($B111>0, Achievement_to_date_ongoing!D109, "") -> 2 | E111: =IF($B111>0, Achievement_to_date_ongoing!E109, "") -> 1F | F111: =IF($B111>0, Achievement_to_date_ongoing!F109, "") -> All | G111: 4264579.763 | H111: 4264579.763 | I111: 4264579.763 | J111: 4264579.763 | L111: =IF($B111>0,Achievement_to_date_ongoing!$K109*Achievement_to_date_ongoing!M109,"") -> 4264579.763 | M111: =IF($B111>0,Achievement_to_date_ongoing!$K109*Achievement_to_date_ongoing!N109,"") -> 4264579.763 | N111: =IF($B111>0,Achievement_to_date_ongoing!$K109*Achievement_to_date_ongoing!O109,"") -> 4264579.763 | O111: =IF($B111>0,Achievement_to_date_ongoing!$K109*Achievement_to_date_ongoing!P109,"") -> 4264579.763
B112: =Achievement_to_date_ongoing!B110 -> 114395 | C112: =IF($B112>0, Achievement_to_date_ongoing!C110, "") -> 2 | D112: =IF($B112>0, Achievement_to_date_ongoing!D110, "") -> 2 | E112: =IF($B112>0, Achievement_to_date_ongoing!E110, "") -> 1F | F112: =IF($B112>0, Achievement_to_date_ongoing!F110, "") -> All | G112: 3448812.466 | H112: 3553546.62 | I112: 3553546.62 | J112: 3553546.62 | L112: =IF($B112>0,Achievement_to_date_ongoing!$K110*Achievement_to_date_ongoing!M110,"") -> 3448812.466 | M112: =IF($B112>0,Achievement_to_date_ongoing!$K110*Achievement_to_date_ongoing!N110,"") -> 3553546.62 | N112: =IF($B112>0,Achievement_to_date_ongoing!$K110*Achievement_to_date_ongoing!O110,"") -> 3553546.62 | O112: =IF($B112>0,Achievement_to_date_ongoing!$K110*Achievement_to_date_ongoing!P110,"") -> 3553546.62
B113: =Achievement_to_date_ongoing!B111 -> 114413 | C113: =IF($B113>0, Achievement_to_date_ongoing!C111, "") -> 2 | D113: =IF($B113>0, Achievement_to_date_ongoing!D111, "") -> 2 | E113: =IF($B113>0, Achievement_to_date_ongoing!E111, "") -> 1F | F113: =IF($B113>0, Achievement_to_date_ongoing!F111, "") -> All | G113: 1921793.626 | H113: 1993138.38 | I113: 1993138.38 | J113: 1993138.38 | L113: =IF($B113>0,Achievement_to_date_ongoing!$K111*Achievement_to_date_ongoing!M111,"") -> 1921793.626 | M113: =IF($B113>0,Achievement_to_date_ongoing!$K111*Achievement_to_date_ongoing!N111,"") -> 1993138.38 | N113: =IF($B113>0,Achievement_to_date_ongoing!$K111*Achievement_to_date_ongoing!O111,"") -> 1993138.38 | O113: =IF($B113>0,Achievement_to_date_ongoing!$K111*Achievement_to_date_ongoing!P111,"") -> 1993138.38
B114: =Achievement_to_date_ongoing!B112 -> 114425 | C114: =IF($B114>0, Achievement_to_date_ongoing!C112, "") -> 2 | D114: =IF($B114>0, Achievement_to_date_ongoing!D112, "") -> 2 | E114: =IF($B114>0, Achievement_to_date_ongoing!E112, "") -> 1F | F114: =IF($B114>0, Achievement_to_date_ongoing!F112, "") -> All | G114: 1022722.204 | H114: 1022722.204 | I114: 1022722.204 | J114: 1022722.204 | L114: =IF($B114>0,Achievement_to_date_ongoing!$K112*Achievement_to_date_ongoing!M112,"") -> 1022722.204 | M114: =IF($B114>0,Achievement_to_date_ongoing!$K112*Achievement_to_date_ongoing!N112,"") -> 1022722.204 | N114: =IF($B114>0,Achievement_to_date_ongoing!$K112*Achievement_to_date_ongoing!O112,"") -> 1022722.204 | O114: =IF($B114>0,Achievement_to_date_ongoing!$K112*Achievement_to_date_ongoing!P112,"") -> 1022722.204
B115: =Achievement_to_date_ongoing!B113 -> 114535 | C115: =IF($B115>0, Achievement_to_date_ongoing!C113, "") -> 2 | D115: =IF($B115>0, Achievement_to_date_ongoing!D113, "") -> 2 | E115: =IF($B115>0, Achievement_to_date_ongoing!E113, "") -> 1F | F115: =IF($B115>0, Achievement_to_date_ongoing!F113, "") -> All | G115: 4282282.057 | H115: 4282282.057 | I115: 4282282.057 | J115: 4282282.057 | L115: =IF($B115>0,Achievement_to_date_ongoing!$K113*Achievement_to_date_ongoing!M113,"") -> 4282282.057 | M115: =IF($B115>0,Achievement_to_date_ongoing!$K113*Achievement_to_date_ongoing!N113,"") -> 4282282.057 | N115: =IF($B115>0,Achievement_to_date_ongoing!$K113*Achievement_to_date_ongoing!O113,"") -> 4282282.057 | O115: =IF($B115>0,Achievement_to_date_ongoing!$K113*Achievement_to_date_ongoing!P113,"") -> 4282282.057
B116: =Achievement_to_date_ongoing!B114 -> 114643 | C116: =IF($B116>0, Achievement_to_date_ongoing!C114, "") -> 2 | D116: =IF($B116>0, Achievement_to_date_ongoing!D114, "") -> 2 | E116: =IF($B116>0, Achievement_to_date_ongoing!E114, "") -> 1F | F116: =IF($B116>0, Achievement_to_date_ongoing!F114, "") -> All | G116: 2178718.013 | H116: 2178718.013 | I116: 2178718.013 | J116: 2178718.013 | L116: =IF($B116>0,Achievement_to_date_ongoing!$K114*Achievement_to_date_ongoing!M114,"") -> 2178718.013 | M116: =IF($B116>0,Achievement_to_date_ongoing!$K114*Achievement_to_date_ongoing!N114,"") -> 2178718.013 | N116: =IF($B116>0,Achievement_to_date_ongoing!$K114*Achievement_to_date_ongoing!O114,"") -> 2178718.013 | O116: =IF($B116>0,Achievement_to_date_ongoing!$K114*Achievement_to_date_ongoing!P114,"") -> 2178718.013
B117: =Achievement_to_date_ongoing!B115 -> 114649 | C117: =IF($B117>0, Achievement_to_date_ongoing!C115, "") -> 2 | D117: =IF($B117>0, Achievement_to_date_ongoing!D115, "") -> 2 | E117: =IF($B117>0, Achievement_to_date_ongoing!E115, "") -> 1F | F117: =IF($B117>0, Achievement_to_date_ongoing!F115, "") -> All | G117: 3163910.146 | H117: 3163910.146 | I117: 3163910.146 | J117: 3163910.146 | L117: =IF($B117>0,Achievement_to_date_ongoing!$K115*Achievement_to_date_ongoing!M115,"") -> 3163910.146 | M117: =IF($B117>0,Achievement_to_date_ongoing!$K115*Achievement_to_date_ongoing!N115,"") -> 3163910.146 | N117: =IF($B117>0,Achievement_to_date_ongoing!$K115*Achievement_to_date_ongoing!O115,"") -> 3163910.146 | O117: =IF($B117>0,Achievement_to_date_ongoing!$K115*Achievement_to_date_ongoing!P115,"") -> 3163910.146
B118: =Achievement_to_date_ongoing!B116 -> 114738 | C118: =IF($B118>0, Achievement_to_date_ongoing!C116, "") -> 2 | D118: =IF($B118>0, Achievement_to_date_ongoing!D116, "") -> 2 | E118: =IF($B118>0, Achievement_to_date_ongoing!E116, "") -> 1F | F118: =IF($B118>0, Achievement_to_date_ongoing!F116, "") -> All | G118: 1611593.418 | H118: 1675320.485 | I118: 1675320.485 | J118: 1675320.485 | L118: =IF($B118>0,Achievement_to_date_ongoing!$K116*Achievement_to_date_ongoing!M116,"") -> 1611593.418 | M118: =IF($B118>0,Achievement_to_date_ongoing!$K116*Achievement_to_date_ongoing!N116,"") -> 1675320.485 | N118: =IF($B118>0,Achievement_to_date_ongoing!$K116*Achievement_to_date_ongoing!O116,"") -> 1675320.485 | O118: =IF($B118>0,Achievement_to_date_ongoing!$K116*Achievement_to_date_ongoing!P116,"") -> 1675320.485
B119: =Achievement_to_date_ongoing!B117 -> 114887 | C119: =IF($B119>0, Achievement_to_date_ongoing!C117, "") -> 2 | D119: =IF($B119>0, Achievement_to_date_ongoing!D117, "") -> 2 | E119: =IF($B119>0, Achievement_to_date_ongoing!E117, "") -> 1F | F119: =IF($B119>0, Achievement_to_date_ongoing!F117, "") -> All | G119: 2869030.237 | H119: 3225012.022 | I119: 3495889.729 | J119: 3676826.848 | L119: =IF($B119>0,Achievement_to_date_ongoing!$K117*Achievement_to_date_ongoing!M117,"") -> 2869030.237 | M119: =IF($B119>0,Achievement_to_date_ongoing!$K117*Achievement_to_date_ongoing!N117,"") -> 3225012.022 | N119: =IF($B119>0,Achievement_to_date_ongoing!$K117*Achievement_to_date_ongoing!O117,"") -> 3495889.729 | O119: =IF($B119>0,Achievement_to_date_ongoing!$K117*Achievement_to_date_ongoing!P117,"") -> 3676826.848
B120: =Achievement_to_date_ongoing!B118 -> 114914 | C120: =IF($B120>0, Achievement_to_date_ongoing!C118, "") -> 2 | D120: =IF($B120>0, Achievement_to_date_ongoing!D118, "") -> 2 | E120: =IF($B120>0, Achievement_to_date_ongoing!E118, "") -> 1F | F120: =IF($B120>0, Achievement_to_date_ongoing!F118, "") -> All | G120: 2881777.462 | H120: 2984672.81 | I120: 2984672.81 | J120: 2984672.81 | L120: =IF($B120>0,Achievement_to_date_ongoing!$K118*Achievement_to_date_ongoing!M118,"") -> 2881777.462 | M120: =IF($B120>0,Achievement_to_date_ongoing!$K118*Achievement_to_date_ongoing!N118,"") -> 2984672.81 | N120: =IF($B120>0,Achievement_to_date_ongoing!$K118*Achievement_to_date_ongoing!O118,"") -> 2984672.81 | O120: =IF($B120>0,Achievement_to_date_ongoing!$K118*Achievement_to_date_ongoing!P118,"") -> 2984672.81
B121: =Achievement_to_date_ongoing!B119 -> 115041 | C121: =IF($B121>0, Achievement_to_date_ongoing!C119, "") -> 2 | D121: =IF($B121>0, Achievement_to_date_ongoing!D119, "") -> 2 | E121: =IF($B121>0, Achievement_to_date_ongoing!E119, "") -> 1F | F121: =IF($B121>0, Achievement_to_date_ongoing!F119, "") -> All | G121: 2773523.43 | H121: 2773523.43 | I121: 2773523.43 | J121: 2773523.43 | L121: =IF($B121>0,Achievement_to_date_ongoing!$K119*Achievement_to_date_ongoing!M119,"") -> 2773523.43 | M121: =IF($B121>0,Achievement_to_date_ongoing!$K119*Achievement_to_date_ongoing!N119,"") -> 2773523.43 | N121: =IF($B121>0,Achievement_to_date_ongoing!$K119*Achievement_to_date_ongoing!O119,"") -> 2773523.43 | O121: =IF($B121>0,Achievement_to_date_ongoing!$K119*Achievement_to_date_ongoing!P119,"") -> 2773523.43
B122: =Achievement_to_date_ongoing!B120 -> 115215 | C122: =IF($B122>0, Achievement_to_date_ongoing!C120, "") -> 2 | D122: =IF($B122>0, Achievement_to_date_ongoing!D120, "") -> 2 | E122: =IF($B122>0, Achievement_to_date_ongoing!E120, "") -> 1F | F122: =IF($B122>0, Achievement_to_date_ongoing!F120, "") -> All | G122: 858043.3212 | H122: 888680.2 | I122: 888680.2 | J122: 888680.2 | L122: =IF($B122>0,Achievement_to_date_ongoing!$K120*Achievement_to_date_ongoing!M120,"") -> 858043.3212 | M122: =IF($B122>0,Achievement_to_date_ongoing!$K120*Achievement_to_date_ongoing!N120,"") -> 888680.2 | N122: =IF($B122>0,Achievement_to_date_ongoing!$K120*Achievement_to_date_ongoing!O120,"") -> 888680.2 | O122: =IF($B122>0,Achievement_to_date_ongoing!$K120*Achievement_to_date_ongoing!P120,"") -> 888680.2
B123: =Achievement_to_date_ongoing!B121 -> 115248 | C123: =IF($B123>0, Achievement_to_date_ongoing!C121, "") -> 2 | D123: =IF($B123>0, Achievement_to_date_ongoing!D121, "") -> 2 | E123: =IF($B123>0, Achievement_to_date_ongoing!E121, "") -> 1F | F123: =IF($B123>0, Achievement_to_date_ongoing!F121, "") -> All | G123: 1909529.597 | H123: 1985037.923 | I123: 1985037.923 | J123: 1985037.923 | L123: =IF($B123>0,Achievement_to_date_ongoing!$K121*Achievement_to_date_ongoing!M121,"") -> 1909529.597 | M123: =IF($B123>0,Achievement_to_date_ongoing!$K121*Achievement_to_date_ongoing!N121,"") -> 1985037.923 | N123: =IF($B123>0,Achievement_to_date_ongoing!$K121*Achievement_to_date_ongoing!O121,"") -> 1985037.923 | O123: =IF($B123>0,Achievement_to_date_ongoing!$K121*Achievement_to_date_ongoing!P121,"") -> 1985037.923
B124: =Achievement_to_date_ongoing!B122 -> 115687 | C124: =IF($B124>0, Achievement_to_date_ongoing!C122, "") -> 2 | D124: =IF($B124>0, Achievement_to_date_ongoing!D122, "") -> 2 | E124: =IF($B124>0, Achievement_to_date_ongoing!E122, "") -> 1F | F124: =IF($B124>0, Achievement_to_date_ongoing!F122, "") -> All | G124: 1337706.45 | H124: 1337706.45 | I124: 1337706.45 | J124: 1337706.45 | L124: =IF($B124>0,Achievement_to_date_ongoing!$K122*Achievement_to_date_ongoing!M122,"") -> 1337706.45 | M124: =IF($B124>0,Achievement_to_date_ongoing!$K122*Achievement_to_date_ongoing!N122,"") -> 1337706.45 | N124: =IF($B124>0,Achievement_to_date_ongoing!$K122*Achievement_to_date_ongoing!O122,"") -> 1337706.45 | O124: =IF($B124>0,Achievement_to_date_ongoing!$K122*Achievement_to_date_ongoing!P122,"") -> 1337706.45
B125: =Achievement_to_date_ongoing!B123 -> 115877 | C125: =IF($B125>0, Achievement_to_date_ongoing!C123, "") -> 2 | D125: =IF($B125>0, Achievement_to_date_ongoing!D123, "") -> 2 | E125: =IF($B125>0, Achievement_to_date_ongoing!E123, "") -> 1F | F125: =IF($B125>0, Achievement_to_date_ongoing!F123, "") -> All | G125: 2242759.862 | H125: 2269057.98 | I125: 2269057.98 | J125: 2269057.98 | L125: =IF($B125>0,Achievement_to_date_ongoing!$K123*Achievement_to_date_ongoing!M123,"") -> 2242759.862 | M125: =IF($B125>0,Achievement_to_date_ongoing!$K123*Achievement_to_date_ongoing!N123,"") -> 2269057.98 | N125: =IF($B125>0,Achievement_to_date_ongoing!$K123*Achievement_to_date_ongoing!O123,"") -> 2269057.98 | O125: =IF($B125>0,Achievement_to_date_ongoing!$K123*Achievement_to_date_ongoing!P123,"") -> 2269057.98
B126: =Achievement_to_date_ongoing!B124 -> 115927 | C126: =IF($B126>0, Achievement_to_date_ongoing!C124, "") -> 2 | D126: =IF($B126>0, Achievement_to_date_ongoing!D124, "") -> 2 | E126: =IF($B126>0, Achievement_to_date_ongoing!E124, "") -> 1F | F126: =IF($B126>0, Achievement_to_date_ongoing!F124, "") -> All | G126: 1966277.999 | H126: 2076541.284 | I126: 2076541.284 | J126: 2076541.284 | L126: =IF($B126>0,Achievement_to_date_ongoing!$K124*Achievement_to_date_ongoing!M124,"") -> 1966277.999 | M126: =IF($B126>0,Achievement_to_date_ongoing!$K124*Achievement_to_date_ongoing!N124,"") -> 2076541.284 | N126: =IF($B126>0,Achievement_to_date_ongoing!$K124*Achievement_to_date_ongoing!O124,"") -> 2076541.284 | O126: =IF($B126>0,Achievement_to_date_ongoing!$K124*Achievement_to_date_ongoing!P124,"") -> 2076541.284
B127: =Achievement_to_date_ongoing!B125 -> 116022 | C127: =IF($B127>0, Achievement_to_date_ongoing!C125, "") -> 2 | D127: =IF($B127>0, Achievement_to_date_ongoing!D125, "") -> 2 | E127: =IF($B127>0, Achievement_to_date_ongoing!E125, "") -> 1F | F127: =IF($B127>0, Achievement_to_date_ongoing!F125, "") -> All | G127: 3790252.589 | H127: 4294833.327 | I127: 4294833.327 | J127: 4294833.327 | L127: =IF($B127>0,Achievement_to_date_ongoing!$K125*Achievement_to_date_ongoing!M125,"") -> 3790252.589 | M127: =IF($B127>0,Achievement_to_date_ongoing!$K125*Achievement_to_date_ongoing!N125,"") -> 4294833.327 | N127: =IF($B127>0,Achievement_to_date_ongoing!$K125*Achievement_to_date_ongoing!O125,"") -> 4294833.327 | O127: =IF($B127>0,Achievement_to_date_ongoing!$K125*Achievement_to_date_ongoing!P125,"") -> 4294833.327
B128: =Achievement_to_date_ongoing!B126 -> 116041 | C128: =IF($B128>0, Achievement_to_date_ongoing!C126, "") -> 2 | D128: =IF($B128>0, Achievement_to_date_ongoing!D126, "") -> 2 | E128: =IF($B128>0, Achievement_to_date_ongoing!E126, "") -> 1F | F128: =IF($B128>0, Achievement_to_date_ongoing!F126, "") -> All | G128: 4323126.18 | H128: 4323126.18 | I128: 4323126.18 | J128: 4323126.18 | L128: =IF($B128>0,Achievement_to_date_ongoing!$K126*Achievement_to_date_ongoing!M126,"") -> 4323126.18 | M128: =IF($B128>0,Achievement_to_date_ongoing!$K126*Achievement_to_date_ongoing!N126,"") -> 4323126.18 | N128: =IF($B128>0,Achievement_to_date_ongoing!$K126*Achievement_to_date_ongoing!O126,"") -> 4323126.18 | O128: =IF($B128>0,Achievement_to_date_ongoing!$K126*Achievement_to_date_ongoing!P126,"") -> 4323126.18
B129: =Achievement_to_date_ongoing!B127 -> 116050 | C129: =IF($B129>0, Achievement_to_date_ongoing!C127, "") -> 2 | D129: =IF($B129>0, Achievement_to_date_ongoing!D127, "") -> 2 | E129: =IF($B129>0, Achievement_to_date_ongoing!E127, "") -> 1F | F129: =IF($B129>0, Achievement_to_date_ongoing!F127, "") -> All | G129: 898745.2319 | H129: 903868.7745 | I129: 903868.7745 | J129: 903868.7745 | L129: =IF($B129>0,Achievement_to_date_ongoing!$K127*Achievement_to_date_ongoing!M127,"") -> 898745.2319 | M129: =IF($B129>0,Achievement_to_date_ongoing!$K127*Achievement_to_date_ongoing!N127,"") -> 903868.7745 | N129: =IF($B129>0,Achievement_to_date_ongoing!$K127*Achievement_to_date_ongoing!O127,"") -> 903868.7745 | O129: =IF($B129>0,Achievement_to_date_ongoing!$K127*Achievement_to_date_ongoing!P127,"") -> 903868.7745
B130: =Achievement_to_date_ongoing!B128 -> 116072 | C130: =IF($B130>0, Achievement_to_date_ongoing!C128, "") -> 2 | D130: =IF($B130>0, Achievement_to_date_ongoing!D128, "") -> 2 | E130: =IF($B130>0, Achievement_to_date_ongoing!E128, "") -> 1F | F130: =IF($B130>0, Achievement_to_date_ongoing!F128, "") -> All | G130: 3811932.139 | H130: 4319398.987 | I130: 4319398.987 | J130: 4319398.987 | L130: =IF($B130>0,Achievement_to_date_ongoing!$K128*Achievement_to_date_ongoing!M128,"") -> 3811932.139 | M130: =IF($B130>0,Achievement_to_date_ongoing!$K128*Achievement_to_date_ongoing!N128,"") -> 4319398.987 | N130: =IF($B130>0,Achievement_to_date_ongoing!$K128*Achievement_to_date_ongoing!O128,"") -> 4319398.987 | O130: =IF($B130>0,Achievement_to_date_ongoing!$K128*Achievement_to_date_ongoing!P128,"") -> 4319398.987
B131: =Achievement_to_date_ongoing!B129 -> 116205 | C131: =IF($B131>0, Achievement_to_date_ongoing!C129, "") -> 2 | D131: =IF($B131>0, Achievement_to_date_ongoing!D129, "") -> 2 | E131: =IF($B131>0, Achievement_to_date_ongoing!E129, "") -> 1F | F131: =IF($B131>0, Achievement_to_date_ongoing!F129, "") -> All | G131: 2300218.166 | H131: 2300218.166 | I131: 2300218.166 | J131: 2300218.166 | L131: =IF($B131>0,Achievement_to_date_ongoing!$K129*Achievement_to_date_ongoing!M129,"") -> 2300218.166 | M131: =IF($B131>0,Achievement_to_date_ongoing!$K129*Achievement_to_date_ongoing!N129,"") -> 2300218.166 | N131: =IF($B131>0,Achievement_to_date_ongoing!$K129*Achievement_to_date_ongoing!O129,"") -> 2300218.166 | O131: =IF($B131>0,Achievement_to_date_ongoing!$K129*Achievement_to_date_ongoing!P129,"") -> 2300218.166
B132: =Achievement_to_date_ongoing!B130 -> 116254 | C132: =IF($B132>0, Achievement_to_date_ongoing!C130, "") -> 2 | D132: =IF($B132>0, Achievement_to_date_ongoing!D130, "") -> 2 | E132: =IF($B132>0, Achievement_to_date_ongoing!E130, "") -> 1F | F132: =IF($B132>0, Achievement_to_date_ongoing!F130, "") -> All | G132: 1941143.779 | H132: 1941143.779 | I132: 1979521.9 | J132: 1979521.9 | L132: =IF($B132>0,Achievement_to_date_ongoing!$K130*Achievement_to_date_ongoing!M130,"") -> 1941143.779 | M132: =IF($B132>0,Achievement_to_date_ongoing!$K130*Achievement_to_date_ongoing!N130,"") -> 1941143.779 | N132: =IF($B132>0,Achievement_to_date_ongoing!$K130*Achievement_to_date_ongoing!O130,"") -> 1979521.9 | O132: =IF($B132>0,Achievement_to_date_ongoing!$K130*Achievement_to_date_ongoing!P130,"") -> 1979521.9
B133: =Achievement_to_date_ongoing!B131 -> 116313 | C133: =IF($B133>0, Achievement_to_date_ongoing!C131, "") -> 2 | D133: =IF($B133>0, Achievement_to_date_ongoing!D131, "") -> 2 | E133: =IF($B133>0, Achievement_to_date_ongoing!E131, "") -> 1F | F133: =IF($B133>0, Achievement_to_date_ongoing!F131, "") -> All | G133: 1746480.353 | H133: 1822442.57 | I133: 1822442.57 | J133: 1822442.57 | L133: =IF($B133>0,Achievement_to_date_ongoing!$K131*Achievement_to_date_ongoing!M131,"") -> 1746480.353 | M133: =IF($B133>0,Achievement_to_date_ongoing!$K131*Achievement_to_date_ongoing!N131,"") -> 1822442.57 | N133: =IF($B133>0,Achievement_to_date_ongoing!$K131*Achievement_to_date_ongoing!O131,"") -> 1822442.57 | O133: =IF($B133>0,Achievement_to_date_ongoing!$K131*Achievement_to_date_ongoing!P131,"") -> 1822442.57
B134: =Achievement_to_date_ongoing!B132 -> 116373 | C134: =IF($B134>0, Achievement_to_date_ongoing!C132, "") -> 2 | D134: =IF($B134>0, Achievement_to_date_ongoing!D132, "") -> 2 | E134: =IF($B134>0, Achievement_to_date_ongoing!E132, "") -> 1F | F134: =IF($B134>0, Achievement_to_date_ongoing!F132, "") -> All | G134: 3978304.155 | H134: 3978304.155 | I134: 3978304.155 | J134: 3978304.155 | L134: =IF($B134>0,Achievement_to_date_ongoing!$K132*Achievement_to_date_ongoing!M132,"") -> 3978304.155 | M134: =IF($B134>0,Achievement_to_date_ongoing!$K132*Achievement_to_date_ongoing!N132,"") -> 3978304.155 | N134: =IF($B134>0,Achievement_to_date_ongoing!$K132*Achievement_to_date_ongoing!O132,"") -> 3978304.155 | O134: =IF($B134>0,Achievement_to_date_ongoing!$K132*Achievement_to_date_ongoing!P132,"") -> 3978304.155
B135: =Achievement_to_date_ongoing!B133 -> 116430 | C135: =IF($B135>0, Achievement_to_date_ongoing!C133, "") -> 2 | D135: =IF($B135>0, Achievement_to_date_ongoing!D133, "") -> 2 | E135: =IF($B135>0, Achievement_to_date_ongoing!E133, "") -> 1F | F135: =IF($B135>0, Achievement_to_date_ongoing!F133, "") -> All | G135: 4112213.523 | H135: 4307808.488 | I135: 4307808.488 | J135: 4307808.488 | L135: =IF($B135>0,Achievement_to_date_ongoing!$K133*Achievement_to_date_ongoing!M133,"") -> 4112213.523 | M135: =IF($B135>0,Achievement_to_date_ongoing!$K133*Achievement_to_date_ongoing!N133,"") -> 4307808.488 | N135: =IF($B135>0,Achievement_to_date_ongoing!$K133*Achievement_to_date_ongoing!O133,"") -> 4307808.488 | O135: =IF($B135>0,Achievement_to_date_ongoing!$K133*Achievement_to_date_ongoing!P133,"") -> 4307808.488
B136: =Achievement_to_date_ongoing!B134 -> 116750 | C136: =IF($B136>0, Achievement_to_date_ongoing!C134, "") -> 2 | D136: =IF($B136>0, Achievement_to_date_ongoing!D134, "") -> 2 | E136: =IF($B136>0, Achievement_to_date_ongoing!E134, "") -> 1F | F136: =IF($B136>0, Achievement_to_date_ongoing!F134, "") -> All | G136: 881412.5079 | H136: 881412.5079 | I136: 881412.5079 | J136: 881412.5079 | L136: =IF($B136>0,Achievement_to_date_ongoing!$K134*Achievement_to_date_ongoing!M134,"") -> 881412.5079 | M136: =IF($B136>0,Achievement_to_date_ongoing!$K134*Achievement_to_date_ongoing!N134,"") -> 881412.5079 | N136: =IF($B136>0,Achievement_to_date_ongoing!$K134*Achievement_to_date_ongoing!O134,"") -> 881412.5079 | O136: =IF($B136>0,Achievement_to_date_ongoing!$K134*Achievement_to_date_ongoing!P134,"") -> 881412.5079
B137: =Achievement_to_date_ongoing!B135 -> 116892 | C137: =IF($B137>0, Achievement_to_date_ongoing!C135, "") -> 2 | D137: =IF($B137>0, Achievement_to_date_ongoing!D135, "") -> 2 | E137: =IF($B137>0, Achievement_to_date_ongoing!E135, "") -> 1F | F137: =IF($B137>0, Achievement_to_date_ongoing!F135, "") -> All | G137: 2475823.771 | H137: 2475823.771 | I137: 2475823.771 | J137: 2475823.771 | L137: =IF($B137>0,Achievement_to_date_ongoing!$K135*Achievement_to_date_ongoing!M135,"") -> 2475823.771 | M137: =IF($B137>0,Achievement_to_date_ongoing!$K135*Achievement_to_date_ongoing!N135,"") -> 2475823.771 | N137: =IF($B137>0,Achievement_to_date_ongoing!$K135*Achievement_to_date_ongoing!O135,"") -> 2475823.771 | O137: =IF($B137>0,Achievement_to_date_ongoing!$K135*Achievement_to_date_ongoing!P135,"") -> 2475823.771
B138: =Achievement_to_date_ongoing!B136 -> 116997 | C138: =IF($B138>0, Achievement_to_date_ongoing!C136, "") -> 2 | D138: =IF($B138>0, Achievement_to_date_ongoing!D136, "") -> 2 | E138: =IF($B138>0, Achievement_to_date_ongoing!E136, "") -> 1F | F138: =IF($B138>0, Achievement_to_date_ongoing!F136, "") -> All | G138: 1204214.257 | H138: 1204214.257 | I138: 1204214.257 | J138: 1204214.257 | L138: =IF($B138>0,Achievement_to_date_ongoing!$K136*Achievement_to_date_ongoing!M136,"") -> 1204214.257 | M138: =IF($B138>0,Achievement_to_date_ongoing!$K136*Achievement_to_date_ongoing!N136,"") -> 1204214.257 | N138: =IF($B138>0,Achievement_to_date_ongoing!$K136*Achievement_to_date_ongoing!O136,"") -> 1204214.257 | O138: =IF($B138>0,Achievement_to_date_ongoing!$K136*Achievement_to_date_ongoing!P136,"") -> 1204214.257
B139: =Achievement_to_date_ongoing!B137 -> 117083 | C139: =IF($B139>0, Achievement_to_date_ongoing!C137, "") -> 2 | D139: =IF($B139>0, Achievement_to_date_ongoing!D137, "") -> 2 | E139: =IF($B139>0, Achievement_to_date_ongoing!E137, "") -> 1F | F139: =IF($B139>0, Achievement_to_date_ongoing!F137, "") -> All | G139: 1749902.425 | H139: 1749902.425 | I139: 1749902.425 | J139: 1749902.425 | L139: =IF($B139>0,Achievement_to_date_ongoing!$K137*Achievement_to_date_ongoing!M137,"") -> 1749902.425 | M139: =IF($B139>0,Achievement_to_date_ongoing!$K137*Achievement_to_date_ongoing!N137,"") -> 1749902.425 | N139: =IF($B139>0,Achievement_to_date_ongoing!$K137*Achievement_to_date_ongoing!O137,"") -> 1749902.425 | O139: =IF($B139>0,Achievement_to_date_ongoing!$K137*Achievement_to_date_ongoing!P137,"") -> 1749902.425
B140: =Achievement_to_date_ongoing!B138 -> 117236 | C140: =IF($B140>0, Achievement_to_date_ongoing!C138, "") -> 2 | D140: =IF($B140>0, Achievement_to_date_ongoing!D138, "") -> 2 | E140: =IF($B140>0, Achievement_to_date_ongoing!E138, "") -> 1F | F140: =IF($B140>0, Achievement_to_date_ongoing!F138, "") -> All | G140: 4099085.194 | H140: 4099085.194 | I140: 4099085.194 | J140: 4099085.194 | L140: =IF($B140>0,Achievement_to_date_ongoing!$K138*Achievement_to_date_ongoing!M138,"") -> 4099085.194 | M140: =IF($B140>0,Achievement_to_date_ongoing!$K138*Achievement_to_date_ongoing!N138,"") -> 4099085.194 | N140: =IF($B140>0,Achievement_to_date_ongoing!$K138*Achievement_to_date_ongoing!O138,"") -> 4099085.194 | O140: =IF($B140>0,Achievement_to_date_ongoing!$K138*Achievement_to_date_ongoing!P138,"") -> 4099085.194
B141: =Achievement_to_date_ongoing!B139 -> 110078 | C141: =IF($B141>0, Achievement_to_date_ongoing!C139, "") -> 2 | D141: =IF($B141>0, Achievement_to_date_ongoing!D139, "") -> 2 | E141: =IF($B141>0, Achievement_to_date_ongoing!E139, "") -> 1F | F141: =IF($B141>0, Achievement_to_date_ongoing!F139, "") -> All | G141: 1808483.89 | H141: 1808483.89 | I141: 1808483.89 | J141: 1808483.89 | L141: =IF($B141>0,Achievement_to_date_ongoing!$K139*Achievement_to_date_ongoing!M139,"") -> 1808483.89 | M141: =IF($B141>0,Achievement_to_date_ongoing!$K139*Achievement_to_date_ongoing!N139,"") -> 1808483.89 | N141: =IF($B141>0,Achievement_to_date_ongoing!$K139*Achievement_to_date_ongoing!O139,"") -> 1808483.89 | O141: =IF($B141>0,Achievement_to_date_ongoing!$K139*Achievement_to_date_ongoing!P139,"") -> 1808483.89
B142: =Achievement_to_date_ongoing!B140 -> 110303 | C142: =IF($B142>0, Achievement_to_date_ongoing!C140, "") -> 2 | D142: =IF($B142>0, Achievement_to_date_ongoing!D140, "") -> 2 | E142: =IF($B142>0, Achievement_to_date_ongoing!E140, "") -> 1F | F142: =IF($B142>0, Achievement_to_date_ongoing!F140, "") -> All | G142: 3638504.72 | H142: 3670055.661 | I142: 3670055.661 | J142: 3670055.661 | L142: =IF($B142>0,Achievement_to_date_ongoing!$K140*Achievement_to_date_ongoing!M140,"") -> 3638504.72 | M142: =IF($B142>0,Achievement_to_date_ongoing!$K140*Achievement_to_date_ongoing!N140,"") -> 3670055.661 | N142: =IF($B142>0,Achievement_to_date_ongoing!$K140*Achievement_to_date_ongoing!O140,"") -> 3670055.661 | O142: =IF($B142>0,Achievement_to_date_ongoing!$K140*Achievement_to_date_ongoing!P140,"") -> 3670055.661
B143: =Achievement_to_date_ongoing!B141 -> 110654 | C143: =IF($B143>0, Achievement_to_date_ongoing!C141, "") -> 2 | D143: =IF($B143>0, Achievement_to_date_ongoing!D141, "") -> 2 | E143: =IF($B143>0, Achievement_to_date_ongoing!E141, "") -> 1F | F143: =IF($B143>0, Achievement_to_date_ongoing!F141, "") -> All | G143: 1069898.338 | H143: 1069898.338 | I143: 1069898.338 | J143: 1069898.338 | L143: =IF($B143>0,Achievement_to_date_ongoing!$K141*Achievement_to_date_ongoing!M141,"") -> 1069898.338 | M143: =IF($B143>0,Achievement_to_date_ongoing!$K141*Achievement_to_date_ongoing!N141,"") -> 1069898.338 | N143: =IF($B143>0,Achievement_to_date_ongoing!$K141*Achievement_to_date_ongoing!O141,"") -> 1069898.338 | O143: =IF($B143>0,Achievement_to_date_ongoing!$K141*Achievement_to_date_ongoing!P141,"") -> 1069898.338
B144: =Achievement_to_date_ongoing!B142 -> 110671 | C144: =IF($B144>0, Achievement_to_date_ongoing!C142, "") -> 2 | D144: =IF($B144>0, Achievement_to_date_ongoing!D142, "") -> 2 | E144: =IF($B144>0, Achievement_to_date_ongoing!E142, "") -> 1F | F144: =IF($B144>0, Achievement_to_date_ongoing!F142, "") -> All | G144: 4375959.777 | H144: 4445815.32 | I144: 4445815.32 | J144: 4445815.32 | L144: =IF($B144>0,Achievement_to_date_ongoing!$K142*Achievement_to_date_ongoing!M142,"") -> 4375959.777 | M144: =IF($B144>0,Achievement_to_date_ongoing!$K142*Achievement_to_date_ongoing!N142,"") -> 4445815.32 | N144: =IF($B144>0,Achievement_to_date_ongoing!$K142*Achievement_to_date_ongoing!O142,"") -> 4445815.32 | O144: =IF($B144>0,Achievement_to_date_ongoing!$K142*Achievement_to_date_ongoing!P142,"") -> 4445815.32
B145: =Achievement_to_date_ongoing!B143 -> 110698 | C145: =IF($B145>0, Achievement_to_date_ongoing!C143, "") -> 2 | D145: =IF($B145>0, Achievement_to_date_ongoing!D143, "") -> 2 | E145: =IF($B145>0, Achievement_to_date_ongoing!E143, "") -> 1F | F145: =IF($B145>0, Achievement_to_date_ongoing!F143, "") -> All | G145: 2865070.172 | H145: 2865070.172 | I145: 2865070.172 | J145: 2865070.172 | L145: =IF($B145>0,Achievement_to_date_ongoing!$K143*Achievement_to_date_ongoing!M143,"") -> 2865070.172 | M145: =IF($B145>0,Achievement_to_date_ongoing!$K143*Achievement_to_date_ongoing!N143,"") -> 2865070.172 | N145: =IF($B145>0,Achievement_to_date_ongoing!$K143*Achievement_to_date_ongoing!O143,"") -> 2865070.172 | O145: =IF($B145>0,Achievement_to_date_ongoing!$K143*Achievement_to_date_ongoing!P143,"") -> 2865070.172
B146: =Achievement_to_date_ongoing!B144 -> 111045 | C146: =IF($B146>0, Achievement_to_date_ongoing!C144, "") -> 2 | D146: =IF($B146>0, Achievement_to_date_ongoing!D144, "") -> 2 | E146: =IF($B146>0, Achievement_to_date_ongoing!E144, "") -> 1F | F146: =IF($B146>0, Achievement_to_date_ongoing!F144, "") -> All | G146: 4321030.29 | H146: 4321030.29 | I146: 4321030.29 | J146: 4321030.29 | L146: =IF($B146>0,Achievement_to_date_ongoing!$K144*Achievement_to_date_ongoing!M144,"") -> 4321030.29 | M146: =IF($B146>0,Achievement_to_date_ongoing!$K144*Achievement_to_date_ongoing!N144,"") -> 4321030.29 | N146: =IF($B146>0,Achievement_to_date_ongoing!$K144*Achievement_to_date_ongoing!O144,"") -> 4321030.29 | O146: =IF($B146>0,Achievement_to_date_ongoing!$K144*Achievement_to_date_ongoing!P144,"") -> 4321030.29
B147: =Achievement_to_date_ongoing!B145 -> 111518 | C147: =IF($B147>0, Achievement_to_date_ongoing!C145, "") -> 2 | D147: =IF($B147>0, Achievement_to_date_ongoing!D145, "") -> 2 | E147: =IF($B147>0, Achievement_to_date_ongoing!E145, "") -> 1F | F147: =IF($B147>0, Achievement_to_date_ongoing!F145, "") -> All | G147: 4313759.04 | H147: 4313759.04 | I147: 4313759.04 | J147: 4313759.04 | L147: =IF($B147>0,Achievement_to_date_ongoing!$K145*Achievement_to_date_ongoing!M145,"") -> 4313759.04 | M147: =IF($B147>0,Achievement_to_date_ongoing!$K145*Achievement_to_date_ongoing!N145,"") -> 4313759.04 | N147: =IF($B147>0,Achievement_to_date_ongoing!$K145*Achievement_to_date_ongoing!O145,"") -> 4313759.04 | O147: =IF($B147>0,Achievement_to_date_ongoing!$K145*Achievement_to_date_ongoing!P145,"") -> 4313759.04
B148: =Achievement_to_date_ongoing!B146 -> 111738 | C148: =IF($B148>0, Achievement_to_date_ongoing!C146, "") -> 2 | D148: =IF($B148>0, Achievement_to_date_ongoing!D146, "") -> 2 | E148: =IF($B148>0, Achievement_to_date_ongoing!E146, "") -> 1F | F148: =IF($B148>0, Achievement_to_date_ongoing!F146, "") -> All | G148: 1402706.528 | H148: 1402706.528 | I148: 1402706.528 | J148: 1402706.528 | L148: =IF($B148>0,Achievement_to_date_ongoing!$K146*Achievement_to_date_ongoing!M146,"") -> 1402706.528 | M148: =IF($B148>0,Achievement_to_date_ongoing!$K146*Achievement_to_date_ongoing!N146,"") -> 1402706.528 | N148: =IF($B148>0,Achievement_to_date_ongoing!$K146*Achievement_to_date_ongoing!O146,"") -> 1402706.528 | O148: =IF($B148>0,Achievement_to_date_ongoing!$K146*Achievement_to_date_ongoing!P146,"") -> 1402706.528
B149: =Achievement_to_date_ongoing!B147 -> 111764 | C149: =IF($B149>0, Achievement_to_date_ongoing!C147, "") -> 2 | D149: =IF($B149>0, Achievement_to_date_ongoing!D147, "") -> 2 | E149: =IF($B149>0, Achievement_to_date_ongoing!E147, "") -> 1F | F149: =IF($B149>0, Achievement_to_date_ongoing!F147, "") -> All | G149: 1540185.308 | H149: 1540185.308 | I149: 1540185.308 | J149: 1540185.308 | L149: =IF($B149>0,Achievement_to_date_ongoing!$K147*Achievement_to_date_ongoing!M147,"") -> 1540185.308 | M149: =IF($B149>0,Achievement_to_date_ongoing!$K147*Achievement_to_date_ongoing!N147,"") -> 1540185.308 | N149: =IF($B149>0,Achievement_to_date_ongoing!$K147*Achievement_to_date_ongoing!O147,"") -> 1540185.308 | O149: =IF($B149>0,Achievement_to_date_ongoing!$K147*Achievement_to_date_ongoing!P147,"") -> 1540185.308
B150: =Achievement_to_date_ongoing!B148 -> 111807 | C150: =IF($B150>0, Achievement_to_date_ongoing!C148, "") -> 2 | D150: =IF($B150>0, Achievement_to_date_ongoing!D148, "") -> 2 | E150: =IF($B150>0, Achievement_to_date_ongoing!E148, "") -> 1F | F150: =IF($B150>0, Achievement_to_date_ongoing!F148, "") -> All | G150: 4273100.11 | H150: 4273100.11 | I150: 4273100.11 | J150: 4273100.11 | L150: =IF($B150>0,Achievement_to_date_ongoing!$K148*Achievement_to_date_ongoing!M148,"") -> 4273100.11 | M150: =IF($B150>0,Achievement_to_date_ongoing!$K148*Achievement_to_date_ongoing!N148,"") -> 4273100.11 | N150: =IF($B150>0,Achievement_to_date_ongoing!$K148*Achievement_to_date_ongoing!O148,"") -> 4273100.11 | O150: =IF($B150>0,Achievement_to_date_ongoing!$K148*Achievement_to_date_ongoing!P148,"") -> 4273100.11
B151: =Achievement_to_date_ongoing!B149 -> 111911 | C151: =IF($B151>0, Achievement_to_date_ongoing!C149, "") -> 2 | D151: =IF($B151>0, Achievement_to_date_ongoing!D149, "") -> 2 | E151: =IF($B151>0, Achievement_to_date_ongoing!E149, "") -> 1F | F151: =IF($B151>0, Achievement_to_date_ongoing!F149, "") -> All | G151: 1543596.139 | H151: 1571530.991 | I151: 1571530.991 | J151: 1571530.991 | L151: =IF($B151>0,Achievement_to_date_ongoing!$K149*Achievement_to_date_ongoing!M149,"") -> 1543596.139 | M151: =IF($B151>0,Achievement_to_date_ongoing!$K149*Achievement_to_date_ongoing!N149,"") -> 1571530.991 | N151: =IF($B151>0,Achievement_to_date_ongoing!$K149*Achievement_to_date_ongoing!O149,"") -> 1571530.991 | O151: =IF($B151>0,Achievement_to_date_ongoing!$K149*Achievement_to_date_ongoing!P149,"") -> 1571530.991
B152: =Achievement_to_date_ongoing!B150 -> 111922 | C152: =IF($B152>0, Achievement_to_date_ongoing!C150, "") -> 2 | D152: =IF($B152>0, Achievement_to_date_ongoing!D150, "") -> 2 | E152: =IF($B152>0, Achievement_to_date_ongoing!E150, "") -> 1F | F152: =IF($B152>0, Achievement_to_date_ongoing!F150, "") -> All | G152: 1490737.937 | H152: 1490737.937 | I152: 1490737.937 | J152: 1490737.937 | L152: =IF($B152>0,Achievement_to_date_ongoing!$K150*Achievement_to_date_ongoing!M150,"") -> 1490737.937 | M152: =IF($B152>0,Achievement_to_date_ongoing!$K150*Achievement_to_date_ongoing!N150,"") -> 1490737.937 | N152: =IF($B152>0,Achievement_to_date_ongoing!$K150*Achievement_to_date_ongoing!O150,"") -> 1490737.937 | O152: =IF($B152>0,Achievement_to_date_ongoing!$K150*Achievement_to_date_ongoing!P150,"") -> 1490737.937
B153: =Achievement_to_date_ongoing!B151 -> 111945 | C153: =IF($B153>0, Achievement_to_date_ongoing!C151, "") -> 2 | D153: =IF($B153>0, Achievement_to_date_ongoing!D151, "") -> 2 | E153: =IF($B153>0, Achievement_to_date_ongoing!E151, "") -> 1F | F153: =IF($B153>0, Achievement_to_date_ongoing!F151, "") -> All | G153: 1408447.998 | H153: 1433937.04 | I153: 1433937.04 | J153: 1433937.04 | L153: =IF($B153>0,Achievement_to_date_ongoing!$K151*Achievement_to_date_ongoing!M151,"") -> 1408447.998 | M153: =IF($B153>0,Achievement_to_date_ongoing!$K151*Achievement_to_date_ongoing!N151,"") -> 1433937.04 | N153: =IF($B153>0,Achievement_to_date_ongoing!$K151*Achievement_to_date_ongoing!O151,"") -> 1433937.04 | O153: =IF($B153>0,Achievement_to_date_ongoing!$K151*Achievement_to_date_ongoing!P151,"") -> 1433937.04
B154: =Achievement_to_date_ongoing!B152 -> 111950 | C154: =IF($B154>0, Achievement_to_date_ongoing!C152, "") -> 2 | D154: =IF($B154>0, Achievement_to_date_ongoing!D152, "") -> 2 | E154: =IF($B154>0, Achievement_to_date_ongoing!E152, "") -> 1F | F154: =IF($B154>0, Achievement_to_date_ongoing!F152, "") -> All | G154: 4323908.144 | H154: 4323908.144 | I154: 4323908.144 | J154: 4323908.144 | L154: =IF($B154>0,Achievement_to_date_ongoing!$K152*Achievement_to_date_ongoing!M152,"") -> 4323908.144 | M154: =IF($B154>0,Achievement_to_date_ongoing!$K152*Achievement_to_date_ongoing!N152,"") -> 4323908.144 | N154: =IF($B154>0,Achievement_to_date_ongoing!$K152*Achievement_to_date_ongoing!O152,"") -> 4323908.144 | O154: =IF($B154>0,Achievement_to_date_ongoing!$K152*Achievement_to_date_ongoing!P152,"") -> 4323908.144
B155: =Achievement_to_date_ongoing!B153 -> 111988 | C155: =IF($B155>0, Achievement_to_date_ongoing!C153, "") -> 2 | D155: =IF($B155>0, Achievement_to_date_ongoing!D153, "") -> 2 | E155: =IF($B155>0, Achievement_to_date_ongoing!E153, "") -> 1F | F155: =IF($B155>0, Achievement_to_date_ongoing!F153, "") -> All | G155: 4273088.749 | H155: 4323194.066 | I155: 4323194.066 | J155: 4323194.066 | L155: =IF($B155>0,Achievement_to_date_ongoing!$K153*Achievement_to_date_ongoing!M153,"") -> 4273088.749 | M155: =IF($B155>0,Achievement_to_date_ongoing!$K153*Achievement_to_date_ongoing!N153,"") -> 4323194.066 | N155: =IF($B155>0,Achievement_to_date_ongoing!$K153*Achievement_to_date_ongoing!O153,"") -> 4323194.066 | O155: =IF($B155>0,Achievement_to_date_ongoing!$K153*Achievement_to_date_ongoing!P153,"") -> 4323194.066
B156: =Achievement_to_date_ongoing!B154 -> 112214 | C156: =IF($B156>0, Achievement_to_date_ongoing!C154, "") -> 2 | D156: =IF($B156>0, Achievement_to_date_ongoing!D154, "") -> 2 | E156: =IF($B156>0, Achievement_to_date_ongoing!E154, "") -> 1F | F156: =IF($B156>0, Achievement_to_date_ongoing!F154, "") -> All | G156: 1151831.458 | H156: 1151831.458 | I156: 1151831.458 | J156: 1151831.458 | L156: =IF($B156>0,Achievement_to_date_ongoing!$K154*Achievement_to_date_ongoing!M154,"") -> 1151831.458 | M156: =IF($B156>0,Achievement_to_date_ongoing!$K154*Achievement_to_date_ongoing!N154,"") -> 1151831.458 | N156: =IF($B156>0,Achievement_to_date_ongoing!$K154*Achievement_to_date_ongoing!O154,"") -> 1151831.458 | O156: =IF($B156>0,Achievement_to_date_ongoing!$K154*Achievement_to_date_ongoing!P154,"") -> 1151831.458
B157: =Achievement_to_date_ongoing!B155 -> 112223 | C157: =IF($B157>0, Achievement_to_date_ongoing!C155, "") -> 2 | D157: =IF($B157>0, Achievement_to_date_ongoing!D155, "") -> 2 | E157: =IF($B157>0, Achievement_to_date_ongoing!E155, "") -> 1F | F157: =IF($B157>0, Achievement_to_date_ongoing!F155, "") -> All | G157: 4189036.186 | H157: 4322994.526 | I157: 4322994.526 | J157: 4322994.526 | L157: =IF($B157>0,Achievement_to_date_ongoing!$K155*Achievement_to_date_ongoing!M155,"") -> 4189036.186 | M157: =IF($B157>0,Achievement_to_date_ongoing!$K155*Achievement_to_date_ongoing!N155,"") -> 4322994.526 | N157: =IF($B157>0,Achievement_to_date_ongoing!$K155*Achievement_to_date_ongoing!O155,"") -> 4322994.526 | O157: =IF($B157>0,Achievement_to_date_ongoing!$K155*Achievement_to_date_ongoing!P155,"") -> 4322994.526
B158: =Achievement_to_date_ongoing!B156 -> 112253 | C158: =IF($B158>0, Achievement_to_date_ongoing!C156, "") -> 2 | D158: =IF($B158>0, Achievement_to_date_ongoing!D156, "") -> 2 | E158: =IF($B158>0, Achievement_to_date_ongoing!E156, "") -> 1F | F158: =IF($B158>0, Achievement_to_date_ongoing!F156, "") -> All | G158: 1453761.61 | H158: 1453761.61 | I158: 1453761.61 | J158: 1453761.61 | L158: =IF($B158>0,Achievement_to_date_ongoing!$K156*Achievement_to_date_ongoing!M156,"") -> 1453761.61 | M158: =IF($B158>0,Achievement_to_date_ongoing!$K156*Achievement_to_date_ongoing!N156,"") -> 1453761.61 | N158: =IF($B158>0,Achievement_to_date_ongoing!$K156*Achievement_to_date_ongoing!O156,"") -> 1453761.61 | O158: =IF($B158>0,Achievement_to_date_ongoing!$K156*Achievement_to_date_ongoing!P156,"") -> 1453761.61
B159: =Achievement_to_date_ongoing!B157 -> 112298 | C159: =IF($B159>0, Achievement_to_date_ongoing!C157, "") -> 2 | D159: =IF($B159>0, Achievement_to_date_ongoing!D157, "") -> 2 | E159: =IF($B159>0, Achievement_to_date_ongoing!E157, "") -> 1F | F159: =IF($B159>0, Achievement_to_date_ongoing!F157, "") -> All | G159: 4274668.649 | H159: 4299037.565 | I159: 4299037.565 | J159: 4299037.565 | L159: =IF($B159>0,Achievement_to_date_ongoing!$K157*Achievement_to_date_ongoing!M157,"") -> 4274668.649 | M159: =IF($B159>0,Achievement_to_date_ongoing!$K157*Achievement_to_date_ongoing!N157,"") -> 4299037.565 | N159: =IF($B159>0,Achievement_to_date_ongoing!$K157*Achievement_to_date_ongoing!O157,"") -> 4299037.565 | O159: =IF($B159>0,Achievement_to_date_ongoing!$K157*Achievement_to_date_ongoing!P157,"") -> 4299037.565
